Workbook

Sheet START

Sheet Instructions
D2: 2020
X4: Yes
X5: No
W7: Type of Entities Range:
X8: Parent Municipality
X9: Consolidated Information
W17: MTREF Range: | X17: 2008
X18: 2009
X19: 2010
X20: 2011
X21: 2012
X22: 2013
X23: 2014
X24: 2015
X25: 2016
X26: 2017
X27: 2018
X28: 2019
X29: 2020
X30: 2021
X31: 2022
W33: MTREF Linked: | X33: 13
W34: MTREF: | X34: =INDEX(X17:X31,X33,1) -> 2020
W36: Fin Year: | X36: =MTREF&"/"&RIGHT(MTREF,2)+1 -> 2020/21

Sheet Template names (hidden)
A1: Common sheet headings
A2: Head1 | B2: =HLOOKUP(MTREF,Headings,2) -> 2018/19 | C2: Prior year -1
A3: Head1A | B3: =HLOOKUP(MTREF,Headings,3) -> 2017/18 | C3: Prior year -2
A4: Head1B | B4: =HLOOKUP(MTREF,Headings,4) -> 2016/17 | C4: Prior year -3
A5: Head2 | B5: =HLOOKUP(MTREF,Headings,5) -> Current Year 2019/20 | C5: Year in which budget is being prepared
A6: Head2A | B6: =HLOOKUP(MTREF,Headings,6) -> 2019/20 | C6: Year in which budget is being prepared
A7: Head3 | B7: =HLOOKUP(MTREF,Headings,7) -> 2020/21 Medium Term Revenue & Expenditure Framework | C7: MTREF name
A8: Head4 | B8: LTFS | C8: Long term financial strategy
A9: Head5 | B9: Audited Outcome
A10: Head5A | B10: Outcome
A11: Head5B | B11: Pre-audit outcome
A12: Head6 | B12: Original Budget
A13: Head7 | B13: Adjusted Budget
A14: Head8 | B14: Full Year Forecast
A15: Head9 | B15: =HLOOKUP(MTREF,Headings,8) -> Budget Year 2020/21 | C15: 1st year of MTREF | D15: Year1
A16: Head10 | B16: =HLOOKUP(MTREF,Headings,9) -> Budget Year +1 2021/22 | C16: 2nd year of MTREF | D16: Year2
A17: Head11 | B17: =HLOOKUP(MTREF,Headings,10) -> Budget Year +2 2022/23 | C17: 3rd year of MTREF | D17: Year3
A18: Head12 | B18: =HLOOKUP(MTREF,Headings,11) -> Forecast 2023/24 | C18: 1st yr of long term forecast | D18: Year4
A19: Head13 | B19: =HLOOKUP(MTREF,Headings,12) -> Forecast 2024/25 | C19: Next yr of long term forecast | D19: Year5
A20: Head14 | B20: =HLOOKUP(MTREF,Headings,13) -> Forecast 2025/26 | C20: Next yr of long term forecast | D20: Year6
A21: Head15 | B21: =HLOOKUP(MTREF,Headings,14) -> Forecast 2026/27 | C21: Next yr of long term forecast | D21: Year7
A22: Head16 | B22: =HLOOKUP(MTREF,Headings,15) -> Forecast 2027/28 | C22: Next yr of long term forecast | D22: Year8
A23: Head17 | B23: =HLOOKUP(MTREF,Headings,16) -> Forecast 2028/29 | C23: Next yr of long term forecast | D23: Year9
A24: Head18 | B24: =HLOOKUP(MTREF,Headings,17) -> Forecast 2029/30 | C24: Next yr of long term forecast | D24: Year10
A25: Head19 | B25: =HLOOKUP(MTREF,Headings,18) -> Forecast 2030/31 | C25: Next yr of long term forecast | D25: Year11
A26: Head20 | B26: =HLOOKUP(MTREF,Headings,19) -> Forecast 2031/32 | C26: Next yr of long term forecast | D26: Year12
A27: Head21 | B27: =HLOOKUP(MTREF,Headings,20) -> Forecast 2032/33 | C27: Next yr of long term forecast | D27: Year13
A28: Head22 | B28: =HLOOKUP(MTREF,Headings,21) -> Forecast 2033/34 | C28: Next yr of long term forecast | D28: Year14
A29: Head23 | B29: =HLOOKUP(MTREF,Headings,22) -> Forecast 2034/35 | C29: Next yr of long term forecast | D29: Year15
A30: Head24 | B30: Description
A31: Head25
A32: Head26 | B32: Vote Description
A33: Head27 | B33: Ref
A34: Head27a | B34: References
A35: Head28 | B35: Surplus/(Deficit) for the year | D35: Result
A36: Head29 | B36: =HLOOKUP(MTREF,Headings,23) -> Annual target 2020/21
A37: Head30 | B37: =HLOOKUP(MTREF,Headings,24) -> Revised target 2020/21
A38: Head31 | B38: Quarter ended 30 September
A39: Head32 | B39: Quarter ended 31 December
A40: Head33 | B40: Quarter ended 31 March
A41: Head34 | B41: Quarter ended 30 June
A42: Head35 | B42: Variance explanation
A43: Head36 | B43: YTD Actual 31 Dec
A44: Head37 | B44: YTD Budget 31 Dec
A45: Head38 | B45: Monthly actual
A46: Head39 | B46: YTD actual
A47: Head40 | B47: YTD budget
A48: Head41 | B48: YTD variance
A49: Head42 | B49: Surplus/ (Deficit) for the yr/period
A50: Head43 | B50: =Head3&" Summary" -> 2020/21 Medium Term Revenue & Expenditure Framework Summary
A51: Head44 | B51: 2001 Census
A52: Head45 | B52: 2011 Census
A53: Head46 | B53: - Adjustments Budget - January 2007
A54: Head47 | B54: Previous target year to complete
A55: Head48 | B55: Present value
A56: Head49
A57: Head50 | B57: Other Adjusts.
A58: Head51 | B58: Accum. Funds
A59: Head52 | B59: Multi-year capital
A60: Head53 | B60: Unfore. Unavoid.
A61: Head54 | B61: Prior Adjusted
A62: Head55 | B62: Nat. or Prov. Govt
A63: Head56 | B63: Total Adjusts.
A64: SFPerf1 | B64: Budgeted Financial Performance
A65: SFPerf2 | B65: Forecast Financial Performance
A66: SFPos1 | B66: Budgeted Financial Position
A67: SFPos2 | B67: Forecast Financial Position
A68: Cash1 | B68: Budget Cash Flow
A69: Cash2 | B69: Forecast Cash Flow
A70: RandM | B70: Expenditure includes repairs & maintenance of R'000
A71: Depart1 | B71: Department 1 - | D71: DEP1
A72: Depart2 | B72: Department 2 - | D72: DEP2
A73: Depart3 | B73: Department 3 - | D73: DEP3
A74: Depart4 | B74: Department 4 - | D74: DEP4
A75: Depart5 | B75: Department 5 - | D75: DEP5
A76: Depart6 | B76: Department 6 - | D76: DEP6
A77: Depart7 | B77: Department 7 - | D77: DEP7
A78: Depart8 | B78: Department 8 - | D78: DEP8
A79: Depart9 | B79: Department 9 - | D79: DEP9
A80: Depart10 | B80: Department 10 - | D80: DEP10
A81: Depart11 | B81: Department 11 - | D81: DEP11
A82: Depart12 | B82: Department 12 - | D82: DEP12
A83: Depart13 | B83: Department 13 - | D83: DEP13
A84: Depart14 | B84: Department 14 - | D84: DEP14
A87: Base year of forecast column selection names
A88: Choose | B88: ACT
B89: APP
B90: ADJ
A92: Standard nomenclature
A93: Muni | B93: ='Lookup and lists'!B28 -> LIM471 Ephraim Mogale
A94: Municipal Entities | B94: 2 | C94: Type of report: | D94: 1
A95: =IF((MuniEntities=1)*(MuniType=2),"YES","NO") -> NO | B95: Does this municipality have entities (consolidated budget and entity budgets required)? YES/NO
A96: Entity 1 | B96: (Pty) Ltd Example 1 - Municipal entity - | D96: Ent1
A97: Entity 2 | B97: (Pty) Ltd Example 2 - Municipal entity - | D97: Ent2
A98: Entity 3 | B98: Municipal Entity Example 3 | D98: Ent3
A99: Budget approval tables | C99: Chart x-ref | D99: Sch/Tab/Ch | E99: Alternative for municipalities without entities | F99: Alternative for municipalities without entities
B100: =IF(Consolques="YES",E100,F100) -> Table A1 Budget Summary | D100: Table A1 | E100: =D100&"Consolidated Budget Summary" -> Table A1 Consolidated Budget Summary | F100: =D100&"Budget Summary" -> Table A1 Budget Summary
B101: Table A2 Budgeted Financial Performance (revenue and expenditure by functional classification) | C101: Charts 5, 6 | D101: Table A2 | E101: =D101&"Consolidated Budgeted Financial Performance (revenue and expenditure by functional classification)" -> Table A2 Consolidated Budgeted Financial Performance (revenue and expenditure by functional classification) | F101: =D101&"Budgeted Financial Performance (revenue and expenditure by functional classification)" -> Table A2 Budgeted Financial Performance (revenue and expenditure by functional classification)
B102: Table A3 Budgeted Financial Performance (revenue and expenditure by municipal vote) | D102: Table A3 | E102: =D102&"Consolidated Budgeted Financial Performance (revenue and expenditure by municipal vote)" -> Table A3 Consolidated Budgeted Financial Performance (revenue and expenditure by municipal vote) | F102: =D102&"Budgeted Financial Performance (revenue and expenditure by municipal vote)" -> Table A3 Budgeted Financial Performance (revenue and expenditure by municipal vote)
B103: Table A4 Budgeted Financial Performance (revenue and expenditure) | C103: Charts 1, 2, 3, 4 | D103: Table A4 | E103: =D103&"Consolidated Budgeted Financial Performance (revenue and expenditure)" -> Table A4 Consolidated Budgeted Financial Performance (revenue and expenditure) | F103: =D103&"Budgeted Financial Performance (revenue and expenditure)" -> Table A4 Budgeted Financial Performance (revenue and expenditure)
B104: Table A5 Budgeted Capital Expenditure by vote, functional classification and funding | C104: Charts 7, 8, 9, 10, 20 | D104: Table A5 | E104: =D104&"Consolidated Budgeted Capital Expenditure by vote, functional classification and funding" -> Table A5 Consolidated Budgeted Capital Expenditure by vote, functional classification and funding | F104: =D104&"Budgeted Capital Expenditure by vote, functional classification and funding" -> Table A5 Budgeted Capital Expenditure by vote, functional classification and funding
B105: Table A6 Budgeted Financial Position | D105: Table A6 | E105: =D105&"Consolidated Budgeted Financial Position" -> Table A6 Consolidated Budgeted Financial Position | F105: =D105&"Budgeted Financial Position" -> Table A6 Budgeted Financial Position
B106: Table A7 Budgeted Cash Flows | D106: Table A7 | E106: =D106&"Consolidated Budgeted Cash Flows" -> Table A7 Consolidated Budgeted Cash Flows | F106: =D106&"Budgeted Cash Flows" -> Table A7 Budgeted Cash Flows
B107: Table A8 Cash backed reserves/accumulated surplus reconciliation | D107: Table A8 | E107: =D107&"Consolidated Cash backed reserves/accumulated surplus reconciliation" -> Table A8 Consolidated Cash backed reserves/accumulated surplus reconciliation | F107: =D107&"Cash backed reserves/accumulated surplus reconciliation" -> Table A8 Cash backed reserves/accumulated surplus reconciliation
B108: Table A9 Asset Management | D108: Table A9 | E108: =D108&"Consolidated Asset Management" -> Table A9 Consolidated Asset Management | F108: =D108&"Asset Management" -> Table A9 Asset Management
B109: Table A10 Basic service delivery measurement | D109: Table A10 | E109: =D109&"Consolidated basic service delivery measurement" -> Table A10 Consolidated basic service delivery measurement | F109: =D109&"Basic service delivery measurement" -> Table A10 Basic service delivery measurement
A110: Supportinging Tables to the Budget Approval Tables | C110: =$C$99 -> Chart x-ref | D110: =$D$99 -> Sch/Tab/Ch
A111: Supporting Table SA1 | B111: =A111&" Supportinging detail to 'Budgeted Financial Performance'" -> Supporting Table SA1 Supportinging detail to 'Budgeted Financial Performance'
A112: Supporting Table SA2 | B112: =IF(Consolques="YES",E112,F112) -> Supporting Table SA2 Matrix Financial Performance Budget (revenue source/expenditure type and dept.) | E112: =A112&"Consolidated Matrix Financial Performance Budget (revenue source/expenditure type & dept.)" -> Supporting Table SA2 Consolidated Matrix Financial Performance Budget (revenue source/expenditure type & dept.) | F112: =A112&"Matrix Financial Performance Budget (revenue source/expenditure type and dept.)" -> Supporting Table SA2 Matrix Financial Performance Budget (revenue source/expenditure type and dept.)
A113: Supporting Table SA3 | B113: =A113&"Supportinging detail to 'Budgeted Financial Position'" -> Supporting Table SA3 Supportinging detail to 'Budgeted Financial Position'
A114: Supporting Table SA4 | B114: =A114&"Reconciliation of IDP strategic objectives and budget (revenue)" -> Supporting Table SA4 Reconciliation of IDP strategic objectives and budget (revenue) | C114: Chart 11
A115: Supporting Table SA5 | B115: =A115&"Reconciliation of IDP strategic objectives and budget (operating expenditure)" -> Supporting Table SA5 Reconciliation of IDP strategic objectives and budget (operating expenditure) | C115: Chart 12
A116: Supporting Table SA6 | B116: =A116&"Reconciliation of IDP strategic objectives and budget (capital expenditure)" -> Supporting Table SA6 Reconciliation of IDP strategic objectives and budget (capital expenditure) | C116: Chart 13
A117: Supporting Table SA7 | B117: =A117&" Measureable performance objectives" -> Supporting Table SA7 Measureable performance objectives
A118: Supporting Table SA8 | B118: =A118&" Performance indicators and benchmarks" -> Supporting Table SA8 Performance indicators and benchmarks | C118: Chts 15-19
A119: Supporting Table SA9 | B119: =A119&" Social, economic and demographic statistics and assumptions" -> Supporting Table SA9 Social, economic and demographic statistics and assumptions
A120: Supporting Table SA10 | B120: =A120&" Funding measurement" -> Supporting Table SA10 Funding measurement | C120: Chart 14
A121: Supporting Table SA11 | B121: =A121&" Property rates summary" -> Supporting Table SA11 Property rates summary
A122: Supporting Table SA12a | B122: =A122&" Property rates by category (current year)" -> Supporting Table SA12a Property rates by category (current year)
A123: Supporting Table SA12b | B123: =A123&" Property rates by category (budget year)" -> Supporting Table SA12b Property rates by category (budget year)
A124: Supporting Table SA13a | B124: =A124&" Service Tariffs by category" -> Supporting Table SA13a Service Tariffs by category
A125: Supporting Table SA13b | B125: =A125&" Service Tariffs by category - explanatory" -> Supporting Table SA13b Service Tariffs by category - explanatory
A126: Supporting Table SA14 | B126: =A126&" Household bills" -> Supporting Table SA14 Household bills
A127: Supporting Table SA15 | B127: =A127&" Investment particulars by type" -> Supporting Table SA15 Investment particulars by type
A128: Supporting Table SA16 | B128: =A128&" Investment particulars by maturity" -> Supporting Table SA16 Investment particulars by maturity
A129: Supporting Table SA17 | B129: =A129&" Borrowing" -> Supporting Table SA17 Borrowing
A130: Supporting Table SA18 | B130: =A130&" Transfers and grant receipts" -> Supporting Table SA18 Transfers and grant receipts
A131: Supporting Table SA19 | B131: =A131&" Expenditure on transfers and grant programme" -> Supporting Table SA19 Expenditure on transfers and grant programme
A132: Supporting Table SA20 | B132: =A132&" Reconciliation of transfers, grant receipts and unspent funds" -> Supporting Table SA20 Reconciliation of transfers, grant receipts and unspent funds
A133: Supporting Table SA21 | B133: =A133&" Transfers and grants made by the municipality" -> Supporting Table SA21 Transfers and grants made by the municipality
A134: Supporting Table SA22 | B134: =A134&" Summary councillor and staff benefits" -> Supporting Table SA22 Summary councillor and staff benefits
A135: Supporting Table SA23 | B135: =A135&" Salaries, allowances & benefits (political office bearers/councillors/senior managers)" -> Supporting Table SA23 Salaries, allowances & benefits (political office bearers/councillors/senior managers)
A136: Supporting Table SA24 | B136: =A136&" Summary of personnel numbers" -> Supporting Table SA24 Summary of personnel numbers
A137: Supporting Table SA25 | B137: =IF(Consolques="YES",E137,F137) -> Supporting Table SA25 Budgeted monthly revenue and expenditure | E137: =A137&" Consolidated budgeted monthly revenue and expenditure" -> Supporting Table SA25 Consolidated budgeted monthly revenue and expenditure | F137: =A137&" Budgeted monthly revenue and expenditure" -> Supporting Table SA25 Budgeted monthly revenue and expenditure
A138: Supporting Table SA26 | B138: Supporting Table SA26 Budgeted monthly revenue and expenditure (municipal vote) | E138: =A138&" Consolidated budgeted monthly revenue and expenditure (municipal vote)" -> Supporting Table SA26 Consolidated budgeted monthly revenue and expenditure (municipal vote) | F138: =A138&" Budgeted monthly revenue and expenditure (municipal vote)" -> Supporting Table SA26 Budgeted monthly revenue and expenditure (municipal vote)
A139: Supporting Table SA27 | B139: Supporting Table SA27 Budgeted monthly revenue and expenditure (functional classification) | E139: =A139&" Consolidated budgeted monthly revenue and expenditure (functional classification)" -> Supporting Table SA27 Consolidated budgeted monthly revenue and expenditure (functional classification) | F139: =A139&" Budgeted monthly revenue and expenditure (functional classification)" -> Supporting Table SA27 Budgeted monthly revenue and expenditure (functional classification)
A140: Supporting Table SA28 | B140: Supporting Table SA28 Budgeted monthly capital expenditure (municipal vote) | E140: =A140&" Consolidated budgeted monthly capital expenditure (municipal vote)" -> Supporting Table SA28 Consolidated budgeted monthly capital expenditure (municipal vote) | F140: =A140&" Budgeted monthly capital expenditure (municipal vote)" -> Supporting Table SA28 Budgeted monthly capital expenditure (municipal vote)
A141: Supporting Table SA29 | B141: Supporting Table SA29 Budgeted monthly capital expenditure (functional classification) | E141: =A141&" Consolidated budgeted monthly capital expenditure (functional classification)" -> Supporting Table SA29 Consolidated budgeted monthly capital expenditure (functional classification) | F141: =A141&" Budgeted monthly capital expenditure (functional classification)" -> Supporting Table SA29 Budgeted monthly capital expenditure (functional classification)
A142: Supporting Table SA30 | B142: Supporting Table SA30 Budgeted monthly cash flow | E142: =A142&" Consolidated budgeted monthly cash flow" -> Supporting Table SA30 Consolidated budgeted monthly cash flow | F142: =A142&" Budgeted monthly cash flow" -> Supporting Table SA30 Budgeted monthly cash flow
A143: Supporting Table SA31 | B143: NOT REQUIRED - municipality does not have entities | E143: =A143&" Aggregated entity budget" -> Supporting Table SA31 Aggregated entity budget | F143: NOT REQUIRED - municipality does not have entities
A144: Supporting Table SA32 | B144: =A144&" List of external mechanisms" -> Supporting Table SA32 List of external mechanisms
A145: Supporting Table SA33 | B145: =A145&" Contracts having future budgetary implications" -> Supporting Table SA33 Contracts having future budgetary implications
A146: Supporting Table SA34a | B146: =IF(Consolques="YES",E146,F146) -> Supporting Table SA34a Capital expenditure on new assets by asset class | E146: =A146&" Consolidated capital expenditure on new assets by asset class" -> Supporting Table SA34a Consolidated capital expenditure on new assets by asset class | F146: =A146&" Capital expenditure on new assets by asset class" -> Supporting Table SA34a Capital expenditure on new assets by asset class
A147: Supporting Table SA34b | B147: Supporting Table SA34b Capital expenditure on the renewal of existing assets by asset class | E147: =A147&" Consolidated capital expenditure on the renewal of existing assets by asset class" -> Supporting Table SA34b Consolidated capital expenditure on the renewal of existing assets by asset class | F147: =A147&" Capital expenditure on the renewal of existing assets by asset class" -> Supporting Table SA34b Capital expenditure on the renewal of existing assets by asset class
A148: Supporting Table SA34c | B148: Supporting Table SA34c Repairs and maintenance expenditure by asset class | E148: =A148&" Consolidated repairs and maintenance by asset class" -> Supporting Table SA34c Consolidated repairs and maintenance by asset class | F148: =A148&" Repairs and maintenance expenditure by asset class" -> Supporting Table SA34c Repairs and maintenance expenditure by asset class
A149: Supporting Table SA34d | B149: =IF(Consolques="YES",E149,F149) -> Supporting Table SA34d Depreciation by asset class | E149: =A149&" Consolidated Depreciation by asset class" -> Supporting Table SA34d Consolidated Depreciation by asset class | F149: =A149&" Depreciation by asset class" -> Supporting Table SA34d Depreciation by asset class
A150: Supporting Table SA34e | B150: =IF(Consolques="YES",E150,F150) -> Supporting Table SA34e Capital expenditure on the upgrading of existing assets by asset class | E150: =A150&" Consolidated capital expenditure on the upgrading of existing assets by asset class" -> Supporting Table SA34e Consolidated capital expenditure on the upgrading of existing assets by asset class | F150: =A150&" Capital expenditure on the upgrading of existing assets by asset class" -> Supporting Table SA34e Capital expenditure on the upgrading of existing assets by asset class
A151: Supporting Table SA35 | B151: Supporting Table SA35 Future financial implications of the capital budget | E151: =A151&" Consolidated future financial implications of the capital budget" -> Supporting Table SA35 Consolidated future financial implications of the capital budget | F151: =A151& " Future financial implications of the capital budget" -> Supporting Table SA35 Future financial implications of the capital budget
A152: Supporting Table SA36 | B152: Supporting Table SA36 Detailed capital budget | E152: =A152&" Consolidated detailed capital budget" -> Supporting Table SA36 Consolidated detailed capital budget | F152: =A152& " Detailed capital budget" -> Supporting Table SA36 Detailed capital budget
A153: Supporting Table SA37 | B153: Supporting Table SA37 Projects delayed from previous financial year/s | E153: =A153&" Consolidated projects delayed from previous financial year/s" -> Supporting Table SA37 Consolidated projects delayed from previous financial year/s | F153: =A153& " Projects delayed from previous financial year/s" -> Supporting Table SA37 Projects delayed from previous financial year/s
A154: Supporting Table SA38 | B154: =IF(Consolques="YES",E154,F154) -> Supporting Table SA38 Detailed operational projects | E154: =A154&" Consolidated detailed operational projects" -> Supporting Table SA38 Consolidated detailed operational projects | F154: =A154& " Detailed operational projects" -> Supporting Table SA38 Detailed operational projects
A156: Budget Charts | B156: Charts | C156: Cross reference
A157: Chart A1 | B157: =A157&"Revenue by Municipal Vote" -> Chart A1 Revenue by Municipal Vote
A158: Chart A2 | B158: =A158&"Expenditure by Municipal Vote" -> Chart A2 Expenditure by Municipal Vote
A159: Chart A3 | B159: =A159&"Revenue by Standard Classification" -> Chart A3 Revenue by Standard Classification | C159: A2
A160: Chart A4 | B160: =A160&"Expenditure by Standard Classification" -> Chart A4 Expenditure by Standard Classification | C160: A2
A161: Chart A5 | B161: =A161&"Revenue by Major Source (refer 'Minor' source for 'Other Revenue' allocation" -> Chart A5 Revenue by Major Source (refer 'Minor' source for 'Other Revenue' allocation | C161: A3
A162: Chart A6 | B162: =A162&"Revenue by Minor Source (Other)" -> Chart A6 Revenue by Minor Source (Other) | C162: A3
A163: Chart A7 | B163: =A163&"Expenditure by Major Type" -> Chart A7 Expenditure by Major Type | C163: A3
A164: Chart A8 | B164: =A164&"Expenditure by Minor Type (Other)" -> Chart A8 Expenditure by Minor Type (Other) | C164: A3
A165: Chart A9 | B165: =A165&"Capital Expenditure by Municipal Vote/Appropriation (Major)" -> Chart A9 Capital Expenditure by Municipal Vote/Appropriation (Major) | C165: A5
A166: Chart A10 | B166: =A166&"Capital Expenditure by Municipal Vote/Appropriation (Minor)" -> Chart A10 Capital Expenditure by Municipal Vote/Appropriation (Minor) | C166: A5
A167: Chart A11 | B167: =A166&"Capital Expenditure by Standard Classification" -> Chart A10 Capital Expenditure by Standard Classification | C167: A5
A168: Chart A12 | B168: =A168&"Capital expenditure performance trend" -> Chart A12 Capital expenditure performance trend | C168: A5
A169: Chart A13 | B169: =A169&"Capital funding by Source" -> Chart A13 Capital funding by Source | C169: A5
A170: Chart A14 | B170: =A170&"Cash flow trend" -> Chart A14 Cash flow trend | C170: A7
A171: Chart A15 | B171: =A171&"IDP Strategic Objective - Revenue" -> Chart A15 IDP Strategic Objective - Revenue | C171: Table A4
A172: Chart A16 | B172: =A172&"IDP Strategic Objective - Expenditure" -> Chart A16 IDP Strategic Objective - Expenditure | C172: Table A5
A173: Chart A17 | B173: =A173&"IDP Strategic Objective - Capital Expenditure" -> Chart A17 IDP Strategic Objective - Capital Expenditure | C173: Table A6
A174: Chart A18 | B174: =A174&"Debt (borrowing to Total Revenue)" -> Chart A18 Debt (borrowing to Total Revenue) | C174: Table A8
A175: Chart A19 | B175: =A175&"Debtors' trend analysis" -> Chart A19 Debtors' trend analysis | C175: Table A8
A176: Chart A20 | B176: =A176&"Distribution losses" -> Chart A20 Distribution losses | C176: Table A8
A177: Chart A21 | B177: =A177&"Borrowed funding of capital expenditure" -> Chart A21 Borrowed funding of capital expenditure | C177: Table A8
A178: Chart A22 | B178: =A178&"Expenditure analysis (% of Revenue)" -> Chart A22 Expenditure analysis (% of Revenue) | C178: Table A8
A179: Chart A23 | B179: =A179&"Increases in service charges" -> Chart A23 Increases in service charges | C179: Table A10

Sheet Lookup and lists (hidden)
A1: Description | B1: 2007 | C1: 2008 | D1: 2009 | E1: 2010 | F1: 2011 | G1: 2012 | H1: 2013 | I1: 2014 | J1: 2015 | K1: 2016 | L1: 2017 | M1: 2018 | N1: 2019 | O1: 2020 | Q1: Lists | Y1: Grants: | Z1: National - opex | AA1: Provincial - opex | AB1: National - capex | AC1: Provincial - capex
A2: ='Template names'!C2 -> Prior year -1 | B2: 2005/06 | C2: 2006/07 | D2: 2007/08 | E2: =E1-2&"/"&RIGHT(E1,2)-1 -> 2008/9 | F2: 2009/10 | G2: 2010/11 | H2: 2011/12 | I2: 2012/13 | J2: 2013/14 | K2: 2014/15 | L2: 2015/16 | M2: 2016/17 | N2: 2017/18 | O2: 2018/19 | Q2: Yes | R2: <1 | S2: <4 | T2: Market | U2: Land & impr. | V2: Yes | W2: Uniform | X2: Yrs | Z2: Local Government Equitable Share | AA2: Health subsidy | AB2: Municipal Infrastructure Grant (MIG) | AC2: Agriculture
A3: ='Template names'!C3 -> Prior year -2 | B3: 2004/05 | C3: 2005/06 | D3: 2006/07 | E3: =E1-3&"/"&RIGHT(E1,2)-2 -> 2007/8 | F3: 2008/9 | G3: 2009/10 | H3: 2010/11 | I3: 2011/12 | J3: 2012/13 | K3: 2013/14 | L3: 2014/15 | M3: 2015/16 | N3: 2016/17 | O3: 2017/18 | Q3: No | R3: 1 | S3: 4 | T3: Dep.Replace | U3: Land only | V3: No | W3: Variable | X3: Mths | Z3: RSC Levy Replacement | AA3: Ambulance subsidy | AB3: Public Transport and Systems | AC3: Education
A4: ='Template names'!C4 -> Prior year -3 | B4: 2003/04 | C4: 2004/05 | D4: 2005/06 | E4: =E1-4&"/"&RIGHT(E1,2)-3 -> 2006/7 | F4: 2007/8 | G4: 2008/9 | H4: 2009/10 | I4: 2010/11 | J4: 2011/12 | K4: 2012/13 | L4: 2013/14 | M4: 2014/15 | N4: 2015/16 | O4: 2016/17 | R4: 2 | S4: 5 | T4: Other | U4: Other | Z4: Finance Management | AA4: Housing | AB4: Rural Transport Services and Infrastructure | AC4: Health
A5: ='Template names'!C5 -> Year in which budget is being prepared | B5: Current Year 2006/07 | C5: Current Year 2007/08 | D5: Current Year 2008/09 | E5: ="Current Year "& E1-1&"/"&RIGHT(E1,2) -> Current Year 2009/10 | F5: Current Year 2010/11 | G5: Current Year 2011/12 | H5: Current Year 2012/13 | I5: Current Year 2013/14 | J5: Current Year 2014/15 | K5: Current Year 2015/16 | L5: Current Year 2016/17 | M5: Current Year 2017/18 | N5: Current Year 2018/19 | O5: Current Year 2019/20 | R5: 3 | S5: 6 | Z5: Municipal Systems Improvement | AA5: Sport and Recreation | AB5: Regional Bulk Infrastructure | AC5: Housing and Local Government
A6: ='Template names'!C6 -> Year in which budget is being prepared | B6: 2006/07 | C6: 2007/08 | D6: 2008/09 | E6: =E1-1&"/"&RIGHT(E1,2) -> 2009/10 | F6: 2010/11 | G6: 2011/12 | H6: 2012/13 | I6: 2013/14 | J6: 2014/15 | K6: 2015/16 | L6: 2016/17 | M6: 2017/18 | N6: 2018/19 | O6: 2019/20 | R6: 4 | S6: 6-10 | Z6: Water Services Operating Subsidy | AB6: Rural Households Infrastructure | AC6: Other Departments
A7: ='Template names'!C7 -> MTREF name | B7: 2007/08 Medium Term Revenue & Expenditure Framework | C7: 2008/09 Medium Term Revenue & Expenditure Framework | D7: 2009/10 Medium Term Revenue & Expenditure Framework | E7: =E1&"/"&RIGHT(E1,2)+1&" Medium Term Revenue & Expenditure Framework" -> 2010/11 Medium Term Revenue & Expenditure Framework | F7: 2011/12 Medium Term Revenue & Expenditure Framework | G7: 2012/13 Medium Term Revenue & Expenditure Framework | H7: 2013/14 Medium Term Revenue & Expenditure Framework | I7: 2014/15 Medium Term Revenue & Expenditure Framework | J7: 2015/16 Medium Term Revenue & Expenditure Framework | K7: 2016/17 Medium Term Revenue & Expenditure Framework | L7: 2017/18 Medium Term Revenue & Expenditure Framework | M7: 2018/19 Medium Term Revenue & Expenditure Framework | N7: 2019/20 Medium Term Revenue & Expenditure Framework | O7: 2020/21 Medium Term Revenue & Expenditure Framework | R7: 5 | S7: >10 | Z7: Energy Efficiency and Demand Management | AB7: Neighbourhood Development Partnership | AC7: Public Works, Roads, Transport
A8: ='Template names'!C15 -> 1st year of MTREF | B8: Budget Year 2007/08 | C8: Budget Year 2008/09 | D8: Budget Year 2009/10 | E8: ="Budget Year "&E1&"/"&RIGHT(E1,2)+1 -> Budget Year 2010/11 | F8: Budget Year 2011/12 | G8: Budget Year 2012/13 | H8: Budget Year 2013/14 | I8: Budget Year 2014/15 | J8: Budget Year 2015/16 | K8: Budget Year 2016/17 | L8: Budget Year 2017/18 | M8: Budget Year 2018/19 | N8: Budget Year 2019/20 | O8: Budget Year 2020/21 | R8: >5 | Z8: Integrated National Electrification Programme | AB8: 2010 FIFA World Cup Stadiums Development | AC8: Sport and Recreation
A9: ='Template names'!C16 -> 2nd year of MTREF | B9: Budget Year +1 2008/09 | C9: Budget Year +1 2009/10 | D9: Budget Year +1 2010/11 | E9: ="Budget Year +1 "&E1+1&"/"&RIGHT(E1,2)+2 -> Budget Year +1 2011/12 | F9: Budget Year +1 2012/13 | G9: Budget Year +1 2013/14 | H9: Budget Year +1 2014/15 | I9: Budget Year +1 2015/16 | J9: Budget Year +1 2016/17 | K9: Budget Year +1 2017/18 | L9: Budget Year +1 2018/19 | M9: Budget Year +1 2019/20 | N9: Budget Year +1 2020/21 | O9: Budget Year +1 2021/22 | Z9: Municipal Drought Relief
A10: ='Template names'!C17 -> 3rd year of MTREF | B10: Budget Year +2 2009/10 | C10: Budget Year +2 2010/11 | D10: Budget Year +2 2011/12 | E10: ="Budget Year +2 "&E1+2&"/"&RIGHT(E1,2)+3 -> Budget Year +2 2012/13 | F10: Budget Year +2 2013/14 | G10: Budget Year +2 2014/15 | H10: Budget Year +2 2015/16 | I10: Budget Year +2 2016/17 | J10: Budget Year +2 2017/18 | K10: Budget Year +2 2018/19 | L10: Budget Year +2 2019/20 | M10: Budget Year +2 2020/21 | N10: Budget Year +2 2021/22 | O10: Budget Year +2 2022/23 | Z10: 2010 FIFA World Cup Operating
A11: ='Template names'!C18 -> 1st yr of long term forecast | B11: Forecast 2010/11 | C11: Forecast 2011/12 | D11: Forecast 2012/13 | E11: ="Forecast "&E1+3&"/"&RIGHT(E1,2)+4 -> Forecast 2013/14 | F11: Forecast 2014/15 | G11: Forecast 2015/16 | H11: Forecast 2016/17 | I11: Forecast 2017/18 | J11: Forecast 2018/19 | K11: Forecast 2019/20 | L11: Forecast 2020/21 | M11: Forecast 2021/22 | N11: Forecast 2022/23 | O11: Forecast 2023/24 | Z11: Electricity Demand Side Management
A12: ='Template names'!C19 -> Next yr of long term forecast | B12: Forecast 2011/12 | C12: Forecast 2012/13 | D12: Forecast 2013/14 | E12: ="Forecast "&E1+4&"/"&RIGHT(E1,2)+5 -> Forecast 2014/15 | F12: Forecast 2015/16 | G12: Forecast 2016/17 | H12: Forecast 2017/18 | I12: Forecast 2018/19 | J12: Forecast 2019/20 | K12: Forecast 2020/21 | L12: Forecast 2021/22 | M12: Forecast 2022/23 | N12: Forecast 2023/24 | O12: Forecast 2024/25 | Z12: EPWP Incentive
A13: ='Template names'!C20 -> Next yr of long term forecast | B13: Forecast 2012/13 | C13: Forecast 2013/14 | D13: Forecast 2014/15 | E13: ="Forecast "&E1+5&"/"&RIGHT(E1,2)+6 -> Forecast 2015/16 | F13: Forecast 2016/17 | G13: Forecast 2017/18 | H13: Forecast 2018/19 | I13: Forecast 2019/20 | J13: Forecast 2020/21 | K13: Forecast 2021/22 | L13: Forecast 2022/23 | M13: Forecast 2023/24 | N13: Forecast 2024/25 | O13: Forecast 2025/26
A14: ='Template names'!C21 -> Next yr of long term forecast | B14: Forecast 2013/14 | C14: Forecast 2014/15 | D14: Forecast 2015/16 | E14: ="Forecast "&E1+6&"/"&RIGHT(E1,2)+7 -> Forecast 2016/17 | F14: Forecast 2017/18 | G14: Forecast 2018/19 | H14: Forecast 2019/20 | I14: Forecast 2020/21 | J14: Forecast 2021/22 | K14: Forecast 2022/23 | L14: Forecast 2023/24 | M14: Forecast 2024/25 | N14: Forecast 2025/26 | O14: Forecast 2026/27 | Z14: Asset Class | AA14: Asset sub-class old | AB14: Asset sub-class | AC14: IUDF | AD14: MTSF
A15: ='Template names'!C22 -> Next yr of long term forecast | B15: Forecast 2014/15 | C15: Forecast 2015/16 | D15: Forecast 2016/17 | E15: ="Forecast "&E1+7&"/"&RIGHT(E1,2)+8 -> Forecast 2017/18 | F15: Forecast 2018/19 | G15: Forecast 2019/20 | H15: Forecast 2020/21 | I15: Forecast 2021/22 | J15: Forecast 2022/23 | K15: Forecast 2023/24 | L15: Forecast 2024/25 | M15: Forecast 2025/26 | N15: Forecast 2026/27 | O15: Forecast 2027/28
A16: ='Template names'!C23 -> Next yr of long term forecast | B16: Forecast 2015/16 | C16: Forecast 2016/17 | D16: Forecast 2017/18 | E16: ="Forecast "&E1+8&"/"&RIGHT(E1,2)+9 -> Forecast 2018/19 | F16: Forecast 2019/20 | G16: Forecast 2020/21 | H16: Forecast 2021/22 | I16: Forecast 2022/23 | J16: Forecast 2023/24 | K16: Forecast 2024/25 | L16: Forecast 2025/26 | M16: Forecast 2026/27 | N16: Forecast 2027/28 | O16: Forecast 2028/29 | Z16: Roads Infrastructure | AA16: Roads, Pavements & Bridges | AB16: Roads | AC16: Spatial integration | AD16: Quality basic education
A17: ='Template names'!C24 -> Next yr of long term forecast | B17: Forecast 2016/17 | C17: Forecast 2017/18 | D17: Forecast 2018/19 | E17: ="Forecast "&E1+9&"/"&RIGHT(E1,2)+10 -> Forecast 2019/20 | F17: Forecast 2020/21 | G17: Forecast 2021/22 | H17: Forecast 2022/23 | I17: Forecast 2023/24 | J17: Forecast 2024/25 | K17: Forecast 2025/26 | L17: Forecast 2026/27 | M17: Forecast 2027/28 | N17: Forecast 2028/29 | O17: Forecast 2029/30 | Z17: Storm water Infrastructure | AA17: Storm water | AB17: Road Structures | AC17: Inclusion and access | AD17: A long and healthy life for all South Africans
A18: ='Template names'!C25 -> Next yr of long term forecast | B18: Forecast 2017/18 | C18: Forecast 2018/19 | D18: Forecast 2019/20 | E18: ="Forecast "&E1+10&"/"&RIGHT(E1,2)+11 -> Forecast 2020/21 | F18: Forecast 2021/22 | G18: Forecast 2022/23 | H18: Forecast 2023/24 | I18: Forecast 2024/25 | J18: Forecast 2025/26 | K18: Forecast 2026/27 | L18: Forecast 2027/28 | M18: Forecast 2028/29 | N18: Forecast 2029/30 | O18: Forecast 2030/31 | Z18: Electrical Infrastructure | AA18: Generation | AB18: Road Furniture | AC18: Growth | AD18: All people in South Africa are and feel safe
A19: ='Template names'!C26 -> Next yr of long term forecast | B19: Forecast 2018/19 | C19: Forecast 2019/20 | D19: Forecast 2020/21 | E19: ="Forecast "&E1+11&"/"&RIGHT(E1,2)+12 -> Forecast 2021/22 | F19: Forecast 2022/23 | G19: Forecast 2023/24 | H19: Forecast 2024/25 | I19: Forecast 2025/26 | J19: Forecast 2026/27 | K19: Forecast 2027/28 | L19: Forecast 2028/29 | M19: Forecast 2029/30 | N19: Forecast 2030/31 | O19: Forecast 2031/32 | Z19: Water Supply Infrastructure | AA19: Transmission & Reticulation | AB19: Capital Spares | AC19: Governance | AD19: Decent employment through inclusive growth
A20: ='Template names'!C27 -> Next yr of long term forecast | B20: Forecast 2019/20 | C20: Forecast 2020/21 | D20: Forecast 2021/22 | E20: ="Forecast "&E1+12&"/"&RIGHT(E1,2)+13 -> Forecast 2022/23 | F20: Forecast 2023/24 | G20: Forecast 2024/25 | H20: Forecast 2025/26 | I20: Forecast 2026/27 | J20: Forecast 2027/28 | K20: Forecast 2028/29 | L20: Forecast 2029/30 | M20: Forecast 2030/31 | N20: Forecast 2031/32 | O20: Forecast 2032/33 | Z20: Sanitation Infrastructure | AA20: Street Lighting | AB20: Drainage Collection | AD20: A skilled and capable workforce to support an inclusive growth path
A21: ='Template names'!C28 -> Next yr of long term forecast | B21: Forecast 2020/21 | C21: Forecast 2021/22 | D21: Forecast 2022/23 | E21: ="Forecast "&E1+13&"/"&RIGHT(E1,2)+14 -> Forecast 2023/24 | F21: Forecast 2024/25 | G21: Forecast 2025/26 | H21: Forecast 2026/27 | I21: Forecast 2027/28 | J21: Forecast 2028/29 | K21: Forecast 2029/30 | L21: Forecast 2030/31 | M21: Forecast 2031/32 | N21: Forecast 2032/33 | O21: Forecast 2033/34 | Z21: Solid Waste Infrastructure | AA21: Dams & Reservoirs | AB21: Storm water Conveyance | AD21: An efficient, competitive and responsive economic infrastructure network
A22: ='Template names'!C29 -> Next yr of long term forecast | B22: Forecast 2021/22 | C22: Forecast 2022/23 | D22: Forecast 2023/24 | E22: ="Forecast "&E1+14&"/"&RIGHT(E1,2)+15 -> Forecast 2024/25 | F22: Forecast 2025/26 | G22: Forecast 2026/27 | H22: Forecast 2027/28 | I22: Forecast 2028/29 | J22: Forecast 2029/30 | K22: Forecast 2030/31 | L22: Forecast 2031/32 | M22: Forecast 2032/33 | N22: Forecast 2033/34 | O22: Forecast 2034/35 | Z22: Rail Infrastructure | AA22: Water purification | AB22: Attenuation | AD22: Vibrant, equitable, sustainable rural communities contributing towards food security for all
A23: Adjustments Budget | B23: Annual target 2007/08 | C23: Annual target 2008/09 | D23: Annual target 2009/10 | E23: ="Annual target " & E1&"/"&RIGHT(E1,2)+1 -> Annual target 2010/11 | F23: Annual target 2011/12 | G23: Annual target 2012/13 | H23: Annual target 2013/14 | I23: Annual target 2014/15 | J23: Annual target 2015/16 | K23: Annual target 2016/17 | L23: Annual target 2017/18 | M23: Annual target 2018/19 | N23: Annual target 2019/20 | O23: Annual target 2020/21 | Z23: Coastal Infrastructure | AA23: Reticulation | AB23: Power Plants | AD23: Sustainable human settlements and improved quality of household life
A24: =A23 -> Adjustments Budget | B24: Revised target 2007/08 | C24: Revised target 2008/09 | D24: Revised target 2009/10 | E24: ="Revised target "& E1&"/"&RIGHT(E1,2)+1 -> Revised target 2010/11 | F24: Revised target 2011/12 | G24: Revised target 2012/13 | H24: Revised target 2013/14 | I24: Revised target 2014/15 | J24: Revised target 2015/16 | K24: Revised target 2016/17 | L24: Revised target 2017/18 | M24: Revised target 2018/19 | N24: Revised target 2019/20 | O24: Revised target 2020/21 | Z24: Information and Communication Infrastructure | AA24: Sewerage purification | AB24: HV Substations | AD24: Responsive, accountable, effective and efficient local government
A25: NOTE: This sheet should not be directly amended - select headings from sheet 'S' | Z25: Community Facilities | AA25: Waste Management | AB25: HV Switching Station | AD25: Protect and enhance our environmental assets and natural resources
Z26: Sport and Recreation Facilities | AA26: Transportation | AB26: HV Transmission Conductors | AD26: Create a better South Africa and contribute to a better Africa and a better world
A27: Name link | B27: 151 | Z27: Heritage assets | AA27: Gas | AB27: MV Substations | AD27: An efficient, effective and development-oriented public service
A28: Name of Muni | B28: =INDEX(B29:B307,B27,1) -> LIM471 Ephraim Mogale | Z28: Revenue Generating | AA28: Parks & gardens | AB28: MV Switching Stations | AD28: A comprehensive, responsive and sustainable social protection system
B29: Choose name from list | C29: Set name on 'Instructions' sheet | Z29: Non-revenue Generating | AA29: Sportsfields & stadia | AB29: MV Networks | AD29: A diverse, socially cohesive society with a common national identity
B30: BUF Buffalo City | C30: EC EASTERN CAPE | Z30: Operational Buildings | AA30: Swimming pools | AB30: LV Networks
B31: NMA Nelson Mandela Bay | C31: EC EASTERN CAPE | Z31: Housing | AA31: Community halls | AB31: Capital Spares
B32: EC101 Dr Beyers Naude | C32: EC EASTERN CAPE | Z32: Biological or Cultivated Assets | AA32: Libraries | AB32: Dams and Weirs
B33: EC102 Blue Crane Route | C33: EC EASTERN CAPE | Z33: Servitudes | AA33: Recreational facilities | AB33: Boreholes
B34: EC104 Makana | C34: EC EASTERN CAPE | Z34: Licences and Rights | AA34: Fire, safety & emergency | AB34: Reservoirs
B35: EC105 Ndlambe | C35: EC EASTERN CAPE | Z35: Computer Equipment | AA35: Security and policing | AB35: Pump Stations
B36: EC106 Sundays River Valley | C36: EC EASTERN CAPE | Z36: Furniture and Office Equipment | AA36: Buses | AB36: Water Treatment Works
B37: EC108 Kouga | C37: EC EASTERN CAPE | Z37: Machinery and Equipment | AA37: Clinics | AB37: Bulk Mains
B38: EC109 Kou-Kamma | C38: EC EASTERN CAPE | Z38: Transport Assets | AA38: Museums & Art Galleries | AB38: Distribution
B39: DC10 Sarah Baartman | C39: EC EASTERN CAPE | Z39: Land | AA39: Cemeteries | AB39: Distribution Points
B40: EC121 Mbhashe | C40: EC EASTERN CAPE | Z40: Zoo's, Marine and Non-biological Animals | AA40: Social rental housing | AB40: PRV Stations
B41: EC122 Mnquma | C41: EC EASTERN CAPE | AA41: Buildings | AB41: Capital Spares
B42: EC123 Great Kei | C42: EC EASTERN CAPE | AA42: Housing development | AB42: Pump Station
B43: EC124 Amahlathi | C43: EC EASTERN CAPE | AA43: General vehicles | AB43: Reticulation
B44: EC126 Ngqushwa | C44: EC EASTERN CAPE | AA44: Specialised vehicles - Refuse | AB44: Waste Water Treatment Works
B45: EC129 Raymond Mhlaba | C45: EC EASTERN CAPE | AA45: Specialised vehicles - Fire | AB45: Outfall Sewers
B46: DC12 Amathole | C46: EC EASTERN CAPE | AA46: Specialised vehicles - Conservancy | AB46: Toilet Facilities
B47: EC131 Inxuba Yethemba | C47: EC EASTERN CAPE | AA47: Specialised vehicles - Ambulances | AB47: Capital Spares
B48: EC135 Intsika Yethu | C48: EC EASTERN CAPE | AA48: Plant & equipment | AB48: Landfill Sites
B49: EC136 Emalahleni (Ec) | C49: EC EASTERN CAPE | AA49: Computers - hardware/equipment | AB49: Waste Transfer Stations
B50: EC137 Engcobo | C50: EC EASTERN CAPE | AA50: Furniture and other office equipment | AB50: Waste Processing Facilities
B51: EC138 Sakhisizwe | C51: EC EASTERN CAPE | AA51: Abattoirs | AB51: Waste Drop-off Points
B52: EC139 Enoch Mgijima | C52: EC EASTERN CAPE | AA52: Markets | AB52: Waste Separation Facilities
B53: DC13 Chris Hani | C53: EC EASTERN CAPE | AA53: Civic Land and Buildings | AB53: Electricity Generation Facilities
B54: EC141 Elundini | C54: EC EASTERN CAPE | AA54: Other Buildings | AB54: Capital Spares
B55: EC142 Senqu | C55: EC EASTERN CAPE | AA55: Other Land | AB55: Rail Lines
B56: EC145 Walter Sisulu | C56: EC EASTERN CAPE | AA56: Surplus Assets - (Investment or Inventory) | AB56: Rail Structures
B57: DC14 Joe Gqabi | C57: EC EASTERN CAPE | AA57: Computers - software & programming | AB57: Rail Furniture
B58: EC153 Ngquza Hills | C58: EC EASTERN CAPE | AA58: Other | AB58: Drainage Collection
B59: EC154 Port St Johns | C59: EC EASTERN CAPE | AB59: Storm water Conveyance
B60: EC155 Nyandeni | C60: EC EASTERN CAPE | Z60: SA16 - Investments | AB60: Attenuation
B61: EC156 Mhlontlo | C61: EC EASTERN CAPE | Z61: Security | AA61: Interest rate | AB61: MV Substations
B62: EC157 King Sabata Dalindyebo | C62: EC EASTERN CAPE | Z62: Yes | AA62: Fixed | AB62: LV Networks
B63: DC15 O .R. Tambo | C63: EC EASTERN CAPE | Z63: No | AA63: Variable | AB63: Capital Spares
B64: EC441 Matatiele | C64: EC EASTERN CAPE | AB64: Sand Pumps
B65: EC442 Umzimvubu | C65: EC EASTERN CAPE | AB65: Piers
B66: EC443 Mbizana | C66: EC EASTERN CAPE | Z66: SA36, SA37 - Capital projects | AB66: Revetments
B67: EC444 Ntabankulu | C67: EC EASTERN CAPE | Z67: Yes | AB67: Promenades
B68: DC44 Alfred Nzo | C68: EC EASTERN CAPE | Z68: No | AB68: Capital Spares
B69: MAN Mangaung | C69: FS FREE STATE | AB69: Data Centres
B70: FS161 Letsemeng | C70: FS FREE STATE | AB70: Core Layers
B71: FS162 Kopanong | C71: FS FREE STATE | AB71: Distribution Layers
B72: FS163 Mohokare | C72: FS FREE STATE | AB72: Capital Spares
B73: DC16 Xhariep | C73: FS FREE STATE | AB73: Halls
B74: FS181 Masilonyana | C74: FS FREE STATE | AB74: Centres
B75: FS182 Tokologo | C75: FS FREE STATE | AB75: Crèches
B76: FS183 Tswelopele | C76: FS FREE STATE | AB76: Clinics/Care Centres
B77: FS184 Matjhabeng | C77: FS FREE STATE | AB77: Fire/Ambulance Stations
B78: FS185 Nala | C78: FS FREE STATE | AB78: Testing Stations
B79: DC18 Lejweleputswa | C79: FS FREE STATE | AB79: Museums
B80: FS191 Setsoto | C80: FS FREE STATE | AB80: Galleries
B81: FS192 Dihlabeng | C81: FS FREE STATE | AB81: Theatres
B82: FS193 Nketoana | C82: FS FREE STATE | AB82: Libraries
B83: FS194 Maluti-a-Phofung | C83: FS FREE STATE | AB83: Cemeteries/Crematoria
B84: FS195 Phumelela | C84: FS FREE STATE | AB84: Police
B85: FS196 Mantsopa | C85: FS FREE STATE | AB85: Purls
B86: DC19 Thabo Mofutsanyana | C86: FS FREE STATE | AB86: Public Open Space
B87: FS201 Moqhaka | C87: FS FREE STATE | AB87: Nature Reserves
B88: FS203 Ngwathe | C88: FS FREE STATE | AB88: Public Ablution Facilities
B89: FS204 Metsimaholo | C89: FS FREE STATE | AB89: Markets
B90: FS205 Mafube | C90: FS FREE STATE | AB90: Stalls
B91: DC20 Fezile Dabi | C91: FS FREE STATE | AB91: Abattoirs
B92: EKU City of Ekurhuleni | C92: GT GAUTENG | AB92: Airports
B93: JHB City Of Johannesburg | C93: GT GAUTENG | AB93: Taxi Ranks/Bus Terminals
B94: TSH City Of Tshwane | C94: GT GAUTENG | AB94: Capital Spares
B95: GT421 Emfuleni | C95: GT GAUTENG | AB95: Indoor Facilities
B96: GT422 Midvaal | C96: GT GAUTENG | AB96: Outdoor Facilities
B97: GT423 Lesedi | C97: GT GAUTENG | AB97: Capital Spares
B98: DC42 Sedibeng | C98: GT GAUTENG | AB98: Monuments
B99: GT481 Mogale City | C99: GT GAUTENG | AB99: Historic Buildings
B100: GT484 Merafong City | C100: GT GAUTENG | AB100: Works of Art
B101: GT485 Rand West City | C101: GT GAUTENG | AB101: Conservation Areas
B102: DC48 West Rand | C102: GT GAUTENG | AB102: Other Heritage
B103: ETH eThekwini | C103: KZN KWAZULU-NATAL | AB103: Improved Property
B104: KZN212 Umdoni | C104: KZN KWAZULU-NATAL | AB104: Unimproved Property
B105: KZN213 Umzumbe | C105: KZN KWAZULU-NATAL | AB105: Municipal Offices
B106: KZN214 uMuziwabantu | C106: KZN KWAZULU-NATAL | AB106: Pay/Enquiry Points
B107: KZN216 Ray Nkonyeni | C107: KZN KWAZULU-NATAL | AB107: Building Plan Offices
B108: DC21 Ugu | C108: KZN KWAZULU-NATAL | AB108: Workshops
B109: KZN221 uMshwathi | C109: KZN KWAZULU-NATAL | AB109: Yards
B110: KZN222 uMngeni | C110: KZN KWAZULU-NATAL | AB110: Stores
B111: KZN223 Mpofana | C111: KZN KWAZULU-NATAL | AB111: Laboratories
B112: KZN224 Impendle | C112: KZN KWAZULU-NATAL | AB112: Training Centres
B113: KZN225 Msunduzi | C113: KZN KWAZULU-NATAL | AB113: Manufacturing Plant
B114: KZN226 Mkhambathini | C114: KZN KWAZULU-NATAL | AB114: Depots
B115: KZN227 Richmond | C115: KZN KWAZULU-NATAL | AB115: Capital Spares
B116: DC22 uMgungundlovu | C116: KZN KWAZULU-NATAL | AB116: Staff Housing
B117: KZN235 Okhahlamba | C117: KZN KWAZULU-NATAL | AB117: Social Housing
B118: KZN237 Inkosi Langalibalele | C118: KZN KWAZULU-NATAL | AB118: Capital Spares
B119: KZN238 Alfred Duma | C119: KZN KWAZULU-NATAL | AB119: Water Rights
B120: DC23 Uthukela | C120: KZN KWAZULU-NATAL | AB120: Effluent Licenses
B121: KZN241 Endumeni | C121: KZN KWAZULU-NATAL | AB121: Solid Waste Licenses
B122: KZN242 Nquthu | C122: KZN KWAZULU-NATAL | AB122: Computer Software and Applications
B123: KZN244 Msinga | C123: KZN KWAZULU-NATAL | AB123: Load Settlement Software Applications
B124: KZN245 Umvoti | C124: KZN KWAZULU-NATAL | AB124: Unspecified
B125: DC24 Umzinyathi | C125: KZN KWAZULU-NATAL
B126: KZN252 Newcastle | C126: KZN KWAZULU-NATAL
B127: KZN253 Emadlangeni | C127: KZN KWAZULU-NATAL
B128: KZN254 Dannhauser | C128: KZN KWAZULU-NATAL
B129: DC25 Amajuba | C129: KZN KWAZULU-NATAL
B130: KZN261 eDumbe | C130: KZN KWAZULU-NATAL
B131: KZN262 uPhongolo | C131: KZN KWAZULU-NATAL
B132: KZN263 Abaqulusi | C132: KZN KWAZULU-NATAL
B133: KZN265 Nongoma | C133: KZN KWAZULU-NATAL
B134: KZN266 Ulundi | C134: KZN KWAZULU-NATAL
B135: DC26 Zululand | C135: KZN KWAZULU-NATAL
B136: KZN271 Umhlabuyalingana | C136: KZN KWAZULU-NATAL
B137: KZN272 Jozini | C137: KZN KWAZULU-NATAL
B138: KZN275 Mtubatuba | C138: KZN KWAZULU-NATAL
B139: KZN276 Hlabisa Big Five | C139: KZN KWAZULU-NATAL
B140: DC27 Umkhanyakude | C140: KZN KWAZULU-NATAL
B141: KZN281 Mfolozi | C141: KZN KWAZULU-NATAL
B142: KZN282 uMhlathuze | C142: KZN KWAZULU-NATAL
B143: KZN284 uMlalazi | C143: KZN KWAZULU-NATAL
B144: KZN285 Mthonjaneni | C144: KZN KWAZULU-NATAL
B145: KZN286 Nkandla | C145: KZN KWAZULU-NATAL
B146: DC28 King Cetshwayo | C146: KZN KWAZULU-NATAL
B147: KZN291 Mandeni | C147: KZN KWAZULU-NATAL
B148: KZN292 KwaDukuza | C148: KZN KWAZULU-NATAL
B149: KZN293 Ndwedwe | C149: KZN KWAZULU-NATAL
B150: KZN294 Maphumulo | C150: KZN KWAZULU-NATAL
B151: DC29 iLembe | C151: KZN KWAZULU-NATAL
B152: KZN433 Greater Kokstad | C152: KZN KWAZULU-NATAL
B153: KZN434 Ubuhlebezwe | C153: KZN KWAZULU-NATAL
B154: KZN435 Umzimkhulu | C154: KZN KWAZULU-NATAL
B155: KZN436 Dr Nkosazana Dlamini Zuma | C155: KZN KWAZULU-NATAL
B156: DC43 Harry Gwala | C156: KZN KWAZULU-NATAL
B157: LIM331 Greater Giyani | C157: LIM LIMPOPO
B158: LIM332 Greater Letaba | C158: LIM LIMPOPO
B159: LIM333 Greater Tzaneen | C159: LIM LIMPOPO
B160: LIM334 Ba-Phalaborwa | C160: LIM LIMPOPO
B161: LIM335 Maruleng | C161: LIM LIMPOPO
B162: DC33 Mopani | C162: LIM LIMPOPO
B163: LIM341 Musina | C163: LIM LIMPOPO
B164: LIM343 Thulamela | C164: LIM LIMPOPO
B165: LIM344 Makhado | C165: LIM LIMPOPO
B166: LIM345 Collins Chabane | C166: LIM LIMPOPO
B167: DC34 Vhembe | C167: LIM LIMPOPO
B168: LIM351 Blouberg | C168: LIM LIMPOPO
B169: LIM353 Molemole | C169: LIM LIMPOPO
B170: LIM354 Polokwane | C170: LIM LIMPOPO
B171: LIM355 Lepelle-Nkumpi | C171: LIM LIMPOPO
B172: DC35 Capricorn | C172: LIM LIMPOPO
B173: LIM361 Thabazimbi | C173: LIM LIMPOPO
B174: LIM362 Lephalale | C174: LIM LIMPOPO
B175: LIM366 Bela Bela | C175: LIM LIMPOPO
B176: LIM367 Mogalakwena | C176: LIM LIMPOPO
B177: LIM368 Modimolle-Mookgopong | C177: LIM LIMPOPO
B178: DC36 Waterberg | C178: LIM LIMPOPO
B179: LIM471 Ephraim Mogale | C179: LIM LIMPOPO
B180: LIM472 Elias Motsoaledi | C180: LIM LIMPOPO
B181: LIM473 Makhuduthamaga | C181: LIM LIMPOPO
B182: LIM476 Tubatse Fetakgomo | C182: LIM LIMPOPO
B183: DC47 Sekhukhune | C183: LIM LIMPOPO
B184: MP301 Albert Luthuli | C184: MP MPUMALANGA
B185: MP302 Msukaligwa | C185: MP MPUMALANGA
B186: MP303 Mkhondo | C186: MP MPUMALANGA
B187: MP304 Pixley Ka Seme (MP) | C187: MP MPUMALANGA
B188: MP305 Lekwa | C188: MP MPUMALANGA
B189: MP306 Dipaleseng | C189: MP MPUMALANGA
B190: MP307 Govan Mbeki | C190: MP MPUMALANGA
B191: DC30 Gert Sibande | C191: MP MPUMALANGA
B192: MP311 Victor Khanye | C192: MP MPUMALANGA
B193: MP312 Emalahleni (Mp) | C193: MP MPUMALANGA
B194: MP313 Steve Tshwete | C194: MP MPUMALANGA
B195: MP314 Emakhazeni | C195: MP MPUMALANGA
B196: MP315 Thembisile Hani | C196: MP MPUMALANGA
B197: MP316 Dr J.S. Moroka | C197: MP MPUMALANGA
B198: DC31 Nkangala | C198: MP MPUMALANGA
B199: MP321 Thaba Chweu | C199: MP MPUMALANGA
B200: MP324 Nkomazi | C200: MP MPUMALANGA
... 87 more rows

Sheet Org structure
A1: Organisational Structure Votes | C1: Organisational Structure Sub-Votes | E1: Display Sub-Votes
A2: =B2&" - "&C2 -> Vote 1 - EXECUTIVE AND COUNCIL | B2: Vote 1 | C2: EXECUTIVE AND COUNCIL
A3: =B13&" - "& C13 -> Vote 2 - MUNICIPAL MANAGER | B3: 1.1 | C3: COUNCIL GENERAL | D3: =CONCATENATE(B3, " - ", C3) -> 1.1 - COUNCIL GENERAL | E3: 1.1 - COUNCIL GENERAL
A4: =B24&" - "&C24 -> Vote 3 - FINANCE | B4: 1.2 | C4: [Name of sub-vote] | D4: 1,2 - [Name of sub-vote]
A5: =B35&" - "&C35 -> Vote 4 - CORPORATE SERVICES MANAGEMENT | B5: 1.3 | C5: [Name of sub-vote] | D5: 1,3 - [Name of sub-vote]
A6: =B46&" - "&C46 -> Vote 5 - TECHNICAL SERVICES | B6: 1.4 | C6: [Name of sub-vote] | D6: 1,4 - [Name of sub-vote]
A7: =B57&" - "&C57 -> Vote 6 - PLANNING & ECONOMIC DEVELOPMENT | B7: 1.5 | C7: [Name of sub-vote] | D7: 1,5 - [Name of sub-vote]
A8: =B68&" - "&C68 -> Vote 7 - COMMUNITY SERVICES MANAGEMENT | B8: 1.6 | C8: [Name of sub-vote] | D8: 1,6 - [Name of sub-vote]
A9: =B79&" - "&C79 -> Vote 8 - [NAME OF VOTE 8] | B9: 1.7 | C9: [Name of sub-vote] | D9: 1,7 - [Name of sub-vote]
A10: =B90&" - "&C90 -> Vote 9 - [NAME OF VOTE 9] | B10: 1.8 | C10: [Name of sub-vote] | D10: 1,8 - [Name of sub-vote]
A11: =B101&" - "&C101 -> Vote 10 - [NAME OF VOTE 10] | B11: 1.9 | C11: [Name of sub-vote] | D11: 1,9 - [Name of sub-vote]
A12: =B112&" - "&C112 -> Vote 11 - [NAME OF VOTE 11] | B12: 1.10 | C12: [Name of sub-vote] | D12: 1.10 - [Name of sub-vote]
A13: =B123&" - "&C123 -> Vote 12 - [NAME OF VOTE 12] | B13: Vote 2 | C13: MUNICIPAL MANAGER
A14: =B134&" - "&C134 -> Vote 13 - [NAME OF VOTE 13] | B14: 2.1 | C14: MUNICIPAL MANAGER | D14: =CONCATENATE(B14, " - ", C14) -> 2.1 - MUNICIPAL MANAGER | E14: 2.1 - MUNICIPAL MANAGER
A15: =B145&" - "&C145 -> Vote 14 - [NAME OF VOTE 14] | B15: 2.2 | C15: URBAN RENEWAL | D15: 2.2 - URBAN RENEWAL | E15: 2.2 - URBAN RENEWAL
A16: =B156&" - "&C156 -> Vote 15 - [NAME OF VOTE 15] | B16: 2.3 | C16: [Name of sub-vote] | D16: 2,3 - [Name of sub-vote]
B17: 2.4 | C17: [Name of sub-vote] | D17: 2,4 - [Name of sub-vote]
B18: 2.5 | C18: [Name of sub-vote] | D18: 2,5 - [Name of sub-vote]
B19: 2.6 | C19: [Name of sub-vote] | D19: 2,6 - [Name of sub-vote]
B20: 2.7 | C20: [Name of sub-vote] | D20: 2,7 - [Name of sub-vote]
B21: 2.8 | C21: [Name of sub-vote] | D21: 2,8 - [Name of sub-vote]
B22: 2.9 | C22: [Name of sub-vote] | D22: 2,9 - [Name of sub-vote]
B23: 2.10 | C23: [Name of sub-vote] | D23: 2.10 - [Name of sub-vote]
B24: Vote 3 | C24: FINANCE
B25: 3.1 | C25: FINANCE | D25: =CONCATENATE(B25, " - ", C25) -> 3.1 - FINANCE | E25: 3.1 - FINANCE
B26: 3.2 | C26: STORES | D26: 3.2 - STORES | E26: 3.3 - FLEET
B27: 3.3 | C27: FLEET | D27: 3.3 - FLEET | E27: 3.2 - STORES
B28: 3.4 | C28: Information Technology | D28: 3,4 - Information Technology | E28: 3,4 - Information Technology
B29: 3.5 | C29: [Name of sub-vote] | D29: 3,5 - [Name of sub-vote]
B30: 3.6 | C30: [Name of sub-vote] | D30: 3,6 - [Name of sub-vote]
B31: 3.7 | C31: [Name of sub-vote] | D31: 3,7 - [Name of sub-vote]
B32: 3.8 | C32: [Name of sub-vote] | D32: 3,8 - [Name of sub-vote]
B33: 3.9 | C33: [Name of sub-vote] | D33: 3,9 - [Name of sub-vote]
B34: 3.10 | C34: [Name of sub-vote] | D34: 3.10 - [Name of sub-vote]
B35: Vote 4 | C35: CORPORATE SERVICES MANAGEMENT
B36: 4.1 | C36: HUMAN RESOURCES | D36: =CONCATENATE(B36, " - ", C36) -> 4.1 - HUMAN RESOURCES | E36: 4.1 - HUMAN RESOURCES
B37: 4.2 | C37: ADMINISTRATION | D37: 4.2 - ADMINISTRATION | E37: 4.2 - ADMINISTRATION
B38: 4.3 | C38: CORPORATE SERVICES MANAGEMENT | D38: 4.3 - CORPORATE SERVICES MANAGEMENT | E38: 4.3 - CORPORATE SERVICES MANAGEMENT
B39: 4.4 | C39: ICT | D39: 4.4 - ICT | E39: 4.4 - ICT
B40: 4.5 | C40: COMMINICATION | D40: 4,5 - COMMINICATION | E40: 4,5 - COMMINICATION
B41: 4.6 | C41: Legal | D41: 4,6 - Legal | E41: 4,6 - Legal
B42: 4.7 | C42: [Name of sub-vote] | D42: 4,7 - [Name of sub-vote]
B43: 4.8 | C43: [Name of sub-vote] | D43: 4,8 - [Name of sub-vote]
B44: 4.9 | C44: [Name of sub-vote] | D44: 4,9 - [Name of sub-vote]
B45: 4.10 | C45: [Name of sub-vote] | D45: 4.10 - [Name of sub-vote]
B46: Vote 5 | C46: TECHNICAL SERVICES
B47: 5.1 | C47: ELECTRICITY | D47: =CONCATENATE(B47, " - ", C47) -> 5.1 - ELECTRICITY | E47: 5.1 - ELECTRICITY
B48: 5.2 | C48: TECHNICAL | D48: 5.2 - TECHNICAL | E48: 5.2 - TECHNICAL
B49: 5.3 | C49: ROADS & STORMWATER | D49: 5.3 - ROADS & STORMWATER | E49: 5.3 - ROADS & STORMWATER
B50: 5.4 | C50: [Name of sub-vote] | D50: 5,4 - [Name of sub-vote] | E50: 5,8 - [Name of sub-vote]
B51: 5.5 | C51: [Name of sub-vote] | D51: 5,5 - [Name of sub-vote]
B52: 5.6 | C52: [Name of sub-vote] | D52: 5,6 - [Name of sub-vote]
B53: 5.7 | C53: [Name of sub-vote] | D53: 5,7 - [Name of sub-vote]
B54: 5.8 | C54: [Name of sub-vote] | D54: 5,8 - [Name of sub-vote]
B55: 5.9 | C55: [Name of sub-vote] | D55: 5,9 - [Name of sub-vote]
B56: 5.10 | C56: [Name of sub-vote] | D56: 5.10 - [Name of sub-vote]
B57: Vote 6 | C57: PLANNING & ECONOMIC DEVELOPMENT
B58: 6.1 | C58: HOUSING & BUILDING CONTROL | D58: =CONCATENATE(B58, " - ", C58) -> 6.1 - HOUSING & BUILDING CONTROL | E58: 6.1 - HOUSING & BUILDING CONTROL
B59: 6.2 | C59: URBAN RENEWAL | D59: 6.2 - URBAN RENEWAL | E59: 6.2 - URBAN RENEWAL
B60: 6.3 | C60: [Name of sub-vote] | D60: 6,3 - [Name of sub-vote]
B61: 6.4 | C61: [Name of sub-vote] | D61: 6,4 - [Name of sub-vote]
B62: 6.5 | C62: [Name of sub-vote] | D62: 6,5 - [Name of sub-vote]
B63: 6.6 | C63: [Name of sub-vote] | D63: 6,6 - [Name of sub-vote]
B64: 6.7 | C64: [Name of sub-vote] | D64: 6,7 - [Name of sub-vote]
B65: 6.8 | C65: [Name of sub-vote] | D65: 6,8 - [Name of sub-vote]
B66: 6.9 | C66: [Name of sub-vote] | D66: 6,9 - [Name of sub-vote]
B67: 6.10 | C67: [Name of sub-vote] | D67: 6.10 - [Name of sub-vote]
B68: Vote 7 | C68: COMMUNITY SERVICES MANAGEMENT
B69: 7.1 | C69: COMMUNITY SERVICES MANAGEMENT | D69: =CONCATENATE(B69, " - ", C69) -> 7.1 - COMMUNITY SERVICES MANAGEMENT | E69: 7.1 - COMMUNITY SERVICES MANAGEMENT
B70: 7.2 | C70: LIBRARY | D70: 7.2 - LIBRARY | E70: 7.2 - LIBRARY
B71: 7.3 | C71: HEALTH GENERAL | D71: 7.3 - HEALTH GENERAL | E71: 7.3 - HEALTH GENERAL
B72: 7.4 | C72: REGISTRATION AUTHORITY | D72: 7.4 - REGISTRATION AUTHORITY | E72: 7.4 - REGISTRATION AUTHORITY
B73: 7.5 | C73: LICENCING & TRAFFIC | D73: 7.5 - LICENCING & TRAFFIC | E73: 7.5 - LICENCING & TRAFFIC
B74: 7.6 | C74: PARKS & CEMETRIES | D74: 7.6 - PARKS & CEMETRIES | E74: 7.6 - PARKS & CEMETRIES
B75: 7.7 | C75: SOLID WASTE | D75: 7.7 - SOLID WASTE | E75: 7.7 - SOLID WASTE
B76: 7.8 | C76: SPORTS ARTS AND CULTURE | D76: 7.8 - SPORTS ARTS AND CULTURE | E76: 7.8 - SPORTS ARTS AND CULTURE
B77: 7.9 | C77: HIV/AIDS | D77: 7.9 - HIV/AIDS | E77: 7.9 - HIV/AIDS
B78: 7.10 | C78: [Name of sub-vote] | D78: 7.10 - [Name of sub-vote]
B79: Vote 8 | C79: [NAME OF VOTE 8]
B80: 8.1 | C80: [Name of sub-vote] | D80: =CONCATENATE(B80, " - ", C80) -> 8,1 - [Name of sub-vote] | E80: 8.1 - [Name of sub-vote]
B81: 8.2 | C81: [Name of sub-vote] | D81: 8,2 - [Name of sub-vote]
B82: 8.3 | C82: [Name of sub-vote] | D82: 8,3 - [Name of sub-vote]
B83: 8.4 | C83: [Name of sub-vote] | D83: 8,4 - [Name of sub-vote]
B84: 8.5 | C84: [Name of sub-vote] | D84: 8,5 - [Name of sub-vote]
B85: 8.6 | C85: [Name of sub-vote] | D85: 8,6 - [Name of sub-vote]
B86: 8.7 | C86: [Name of sub-vote] | D86: 8,7 - [Name of sub-vote]
B87: 8.8 | C87: [Name of sub-vote] | D87: 8,8 - [Name of sub-vote]
B88: 8.9 | C88: [Name of sub-vote] | D88: 8,9 - [Name of sub-vote]
B89: 8.10 | C89: [Name of sub-vote] | D89: 8.10 - [Name of sub-vote]
B90: Vote 9 | C90: [NAME OF VOTE 9]
B91: 9.1 | C91: [Name of sub-vote] | D91: =CONCATENATE(B91, " - ", C91) -> 9,1 - [Name of sub-vote] | E91: 9.1 - [Name of sub-vote]
B92: 9.2 | C92: [Name of sub-vote] | D92: 9,2 - [Name of sub-vote]
B93: 9.3 | C93: [Name of sub-vote] | D93: 9,3 - [Name of sub-vote]
B94: 9.4 | C94: [Name of sub-vote] | D94: 9,4 - [Name of sub-vote]
B95: 9.5 | C95: [Name of sub-vote] | D95: 9,5 - [Name of sub-vote]
B96: 9.6 | C96: [Name of sub-vote] | D96: 9,6 - [Name of sub-vote]
B97: 9.7 | C97: [Name of sub-vote] | D97: 9,7 - [Name of sub-vote]
B98: 9.8 | C98: [Name of sub-vote] | D98: 9,8 - [Name of sub-vote]
B99: 9.9 | C99: [Name of sub-vote] | D99: 9,9 - [Name of sub-vote]
B100: 9.10 | C100: [Name of sub-vote] | D100: 9.10 - [Name of sub-vote]
B101: Vote 10 | C101: [NAME OF VOTE 10]
B102: 10.1 | C102: [Name of sub-vote] | D102: =CONCATENATE(B102, " - ", C102) -> 10,1 - [Name of sub-vote] | E102: 10.1 - [Name of sub-vote]
B103: 10.2 | C103: [Name of sub-vote] | D103: 10,2 - [Name of sub-vote]
B104: 10.3 | C104: [Name of sub-vote] | D104: 10,3 - [Name of sub-vote]
B105: 10.4 | C105: [Name of sub-vote] | D105: 10,4 - [Name of sub-vote]
B106: 10.5 | C106: [Name of sub-vote] | D106: 10,5 - [Name of sub-vote]
B107: 10.6 | C107: [Name of sub-vote] | D107: 10,6 - [Name of sub-vote]
B108: 10.7 | C108: [Name of sub-vote] | D108: 10,7 - [Name of sub-vote]
B109: 10.8 | C109: [Name of sub-vote] | D109: 10,8 - [Name of sub-vote]
B110: 10.9 | C110: [Name of sub-vote] | D110: 10,9 - [Name of sub-vote]
B111: 10.10 | C111: [Name of sub-vote] | D111: 10.10 - [Name of sub-vote]
B112: Vote 11 | C112: [NAME OF VOTE 11]
B113: 11.1 | C113: [Name of sub-vote] | D113: =CONCATENATE(B113, " - ", C113) -> 11,1 - [Name of sub-vote] | E113: 11.1 - [Name of sub-vote]
B114: 11.2 | C114: [Name of sub-vote] | D114: 11,2 - [Name of sub-vote]
B115: 11.3 | C115: [Name of sub-vote] | D115: 11,3 - [Name of sub-vote]
B116: 11.4 | C116: [Name of sub-vote] | D116: 11,4 - [Name of sub-vote]
B117: 11.5 | C117: [Name of sub-vote] | D117: 11,5 - [Name of sub-vote]
B118: 11.6 | C118: [Name of sub-vote] | D118: 11,6 - [Name of sub-vote]
B119: 11.7 | C119: [Name of sub-vote] | D119: 11,7 - [Name of sub-vote]
B120: 11.8 | C120: [Name of sub-vote] | D120: 11,8 - [Name of sub-vote]
B121: 11.9 | C121: [Name of sub-vote] | D121: 11,9 - [Name of sub-vote]
B122: 11.10 | C122: [Name of sub-vote] | D122: 11.10 - [Name of sub-vote]
B123: Vote 12 | C123: [NAME OF VOTE 12]
B124: 12.1 | C124: [Name of sub-vote] | D124: =CONCATENATE(B124, " - ", C124) -> 12,1 - [Name of sub-vote] | E124: 12.1 - [Name of sub-vote]
B125: 12.2 | C125: [Name of sub-vote] | D125: 12,2 - [Name of sub-vote]
B126: 12.3 | C126: [Name of sub-vote] | D126: 12,3 - [Name of sub-vote]
B127: 12.4 | C127: [Name of sub-vote] | D127: 12,4 - [Name of sub-vote]
B128: 12.5 | C128: [Name of sub-vote] | D128: 12,5 - [Name of sub-vote]
B129: 12.6 | C129: [Name of sub-vote] | D129: 12,6 - [Name of sub-vote]
B130: 12.7 | C130: [Name of sub-vote] | D130: 12,7 - [Name of sub-vote]
B131: 12.8 | C131: [Name of sub-vote] | D131: 12,8 - [Name of sub-vote]
B132: 12.9 | C132: [Name of sub-vote] | D132: 12,9 - [Name of sub-vote]
B133: 12.10 | C133: [Name of sub-vote] | D133: 12.10 - [Name of sub-vote]
B134: Vote 13 | C134: [NAME OF VOTE 13]
B135: 13.1 | C135: [Name of sub-vote] | D135: =CONCATENATE(B135, " - ", C135) -> 13,1 - [Name of sub-vote] | E135: 13.1 - [Name of sub-vote]
B136: 13.2 | C136: [Name of sub-vote] | D136: 13,2 - [Name of sub-vote]
B137: 13.3 | C137: [Name of sub-vote] | D137: 13,3 - [Name of sub-vote]
B138: 13.4 | C138: [Name of sub-vote] | D138: 13,4 - [Name of sub-vote]
B139: 13.5 | C139: [Name of sub-vote] | D139: 13,5 - [Name of sub-vote]
B140: 13.6 | C140: [Name of sub-vote] | D140: 13,6 - [Name of sub-vote]
B141: 13.7 | C141: [Name of sub-vote] | D141: 13,7 - [Name of sub-vote]
B142: 13.8 | C142: [Name of sub-vote] | D142: 13,8 - [Name of sub-vote]
B143: 13.9 | C143: [Name of sub-vote] | D143: 13,9 - [Name of sub-vote]
B144: 13.10 | C144: [Name of sub-vote] | D144: 13.10 - [Name of sub-vote]
B145: Vote 14 | C145: [NAME OF VOTE 14]
B146: 14.1 | C146: [Name of sub-vote] | D146: =CONCATENATE(B146, " - ", C146) -> 14,1 - [Name of sub-vote] | E146: 14.1 - [Name of sub-vote]
B147: 14.2 | C147: [Name of sub-vote] | D147: 14,2 - [Name of sub-vote]
B148: 14.3 | C148: [Name of sub-vote] | D148: 14,3 - [Name of sub-vote]
B149: 14.4 | C149: [Name of sub-vote] | D149: 14,4 - [Name of sub-vote]
B150: 14.5 | C150: [Name of sub-vote] | D150: 14,5 - [Name of sub-vote]
B151: 14.6 | C151: [Name of sub-vote] | D151: 14,6 - [Name of sub-vote]
B152: 14.7 | C152: [Name of sub-vote] | D152: 14,7 - [Name of sub-vote]
B153: 14.8 | C153: [Name of sub-vote] | D153: 14,8 - [Name of sub-vote]
B154: 14.9 | C154: [Name of sub-vote] | D154: 14,9 - [Name of sub-vote]
B155: 14.10 | C155: [Name of sub-vote] | D155: 14.10 - [Name of sub-vote]
B156: Vote 15 | C156: [NAME OF VOTE 15]
B157: 15.1 | C157: [Name of sub-vote] | D157: =CONCATENATE(B157, " - ", C157) -> 15,1 - [Name of sub-vote] | E157: 15.1 - [Name of sub-vote]
B158: 15.2 | C158: [Name of sub-vote] | D158: 15,2 - [Name of sub-vote]
B159: 15.3 | C159: [Name of sub-vote] | D159: 15,3 - [Name of sub-vote]
B160: 15.4 | C160: [Name of sub-vote] | D160: 15,4 - [Name of sub-vote]
B161: 15.5 | C161: [Name of sub-vote] | D161: 15,5 - [Name of sub-vote]
B162: 15.6 | C162: [Name of sub-vote] | D162: 15,6 - [Name of sub-vote]
B163: 15.7 | C163: [Name of sub-vote] | D163: 15,7 - [Name of sub-vote]
B164: 15.8 | C164: [Name of sub-vote] | D164: 15,8 - [Name of sub-vote]
B165: 15.9 | C165: [Name of sub-vote] | D165: 15,9 - [Name of sub-vote]
B166: 15.10 | C166: [Name of sub-vote] | D166: 15.10 - [Name of sub-vote]

Sheet Contacts
A1: =muni&" - "&" Contact Information" -> LIM471 Ephraim Mogale - Contact Information
A3: A. GENERAL INFORMATION
A4: Municipality | B4: =muni -> LIM471 Ephraim Mogale | C4: =IF(B4="Choose name from List","Set name on 'Instructions' sheet", "") -> 
A6: Grade | C6: 1 Grade in terms of the Remuneration of Public Office Bearers Act.
A8: Province | B8: =IF(B4>" ",VLOOKUP(B4,'Lookup and lists'!B29:C307,2, FALSE)," ") -> LIM LIMPOPO
A10: Web Address
A12: e-mail Address
A14: B. CONTACT INFORMATION
A15: Postal address:
A16: P.O. Box | B16: P.O BOX 111
A17: City / Town | B17: MARBLE HALL
A18: Postal Code | B18: 450
A20: Street address
A21: Building | B21: Civic Center
A22: Street No. & Name | B22: 13 Ficus Street
A23: City / Town | B23: Marble Hall
A24: Postal Code | B24: 450
A26: General Contacts
A27: Telephone number | B27: 0132618400
A28: Fax number | B28: 0132612985
A30: C. POLITICAL LEADERSHIP
A31: Speaker: | C31: Secretary/PA to the Speaker:
A32: ID Number | B32: 691123 0700 082 | C32: ID Number | D32: 790326 0462 088
A33: Title | B33: Mrs | C33: Title | D33: Ms
A34: Name | B34: Lorrain Bushy Modisha | C34: Name | D34: Pinky Nape Malefo
A35: Telephone number | B35: 013 261 8489 | C35: Telephone number | D35: 013 261 8499
A36: Cell number | B36: 076 060 5570 | C36: Cell number | D36: 079 450 8297
A37: Fax number | B37: 013 261 2985 | C37: Fax number | D37: 013 261 2985
A38: E-mail address | C38: E-mail address
A40: Mayor/Executive Mayor: | C40: Secretary/PA to the Mayor/Executive Mayor:
A41: ID Number | B41: 750405 5476 08 7 | C41: ID Number | D41: 850521 0800 08 2
A42: Title | B42: Mr. | C42: Title | D42: Ms.
A43: Name | B43: Molaudi Mothogwane | C43: Name | D43: Salome Malenake
A44: Telephone number | B44: 013 261 8407 | C44: Telephone number | D44: 013 261 8405
A45: Cell number | B45: 076 060 2126 | C45: Cell number | D45: 082 703 3628
A46: Fax number | C46: Fax number
A47: E-mail address | B47: molaudimothogwane@gmail.com | C47: E-mail address | D47: sphaahla@emogalelm.gov.za
A49: Deputy Mayor/Executive Mayor: | C49: Secretary/PA to the Deputy Mayor/Executive Mayor:
A50: ID Number | C50: ID Number
A51: Title | C51: Title
A52: Name | C52: Name
A53: Telephone number | C53: Telephone number
A54: Cell number | C54: Cell number
A55: Fax number | C55: Fax number
A56: E-mail address | C56: E-mail address
A58: D. MANAGEMENT LEADERSHIP
A59: Municipal Manager: | C59: Secretary/PA to the Municipal Manager:
A60: ID Number | C60: ID Number
A61: Title | C61: Title
A62: Name | C62: Name
A63: Telephone number | C63: Telephone number
A64: Cell number | C64: Cell number
A65: Fax number | C65: Fax number
A66: E-mail address | C66: E-mail address
A68: Chief Financial Officer | C68: Secretary/PA to the Chief Financial Officer
A69: ID Number | C69: ID Number
A70: Title | C70: Title
A71: Name | B71: MSJ MADISHA | C71: Name
A72: Telephone number | B72: 0132648447 | C72: Telephone number
A73: Cell number | C73: Cell number
A74: Fax number | C74: Fax number
A75: E-mail address | B75: jmadisha@emogalelm.gov.za | C75: E-mail address
A77: Official responsible for submitting financial information | C77: Official responsible for submitting financial information
A78: ID Number | C78: ID Number
A79: Title | C79: Title
A80: Name | C80: Name
A81: Telephone number | C81: Telephone number
A82: Cell number | C82: Cell number
A83: Fax number | C83: Fax number
A84: E-mail address | C84: E-mail address
A85: Official responsible for submitting financial information | C85: Official responsible for submitting financial information
A86: ID Number | C86: ID Number
A87: Title | C87: Title
A88: Name | C88: Name
A89: Telephone number | C89: Telephone number
A90: Cell number | C90: Cell number
A91: Fax number | C91: Fax number
A92: E-mail address | C92: E-mail address
A93: Official responsible for submitting financial information | C93: Official responsible for submitting financial information
A94: ID Number | C94: ID Number
A95: Title | C95: Title
A96: Name | C96: Name
A97: Telephone number | C97: Telephone number
A98: Cell number | C98: Cell number
A99: Fax number | C99: Fax number
A100: E-mail address | C100: E-mail address
A101: Official responsible for submitting financial information | C101: Official responsible for submitting financial information
A102: ID Number | C102: ID Number
A103: Title | C103: Title
A104: Name | C104: Name
A105: Telephone number | C105: Telephone number
A106: Cell number | C106: Cell number
A107: Fax number | C107: Fax number
A108: E-mail address | C108: E-mail address
A109: Official responsible for submitting financial information | C109: Official responsible for submitting financial information
A110: ID Number | C110: ID Number
A111: Title | C111: Title
A112: Name | C112: Name
A113: Telephone number | C113: Telephone number
A114: Cell number | C114: Cell number
A115: Fax number | C115: Fax number
A116: E-mail address | C116: E-mail address
A117: Official responsible for submitting financial information | C117: Official responsible for submitting financial information
A118: ID Number | C118: ID Number
A119: Title | C119: Title
A120: Name | C120: Name
A121: Telephone number | C121: Telephone number
A122: Cell number | C122: Cell number
A123: Fax number | C123: Fax number
A124: E-mail address | C124: E-mail address
A125: Official responsible for submitting financial information | C125: Official responsible for submitting financial information
A126: ID Number | C126: ID Number
A127: Title | C127: Title
A128: Name | C128: Name
A129: Telephone number | C129: Telephone number
A130: Cell number | C130: Cell number
A131: Fax number | C131: Fax number
A132: E-mail address | C132: E-mail address
A133: Official responsible for submitting financial information
A134: ID Number
A135: Title
A136: Name
A137: Telephone number
A138: Cell number
A139: Fax number
A140: E-mail address

Sheet A1-Sum
A1: =muni&" - "&Approve1 -> LIM471 Ephraim Mogale - Table A1 Budget Summary
A2: =desc -> Description | B2: =head1b -> 2016/17 | C2: =head1A -> 2017/18 | D2: =Head1 -> 2018/19 | E2: =Head2 -> Current Year 2019/20 | I2: =Head3 -> 2020/21 Medium Term Revenue & Expenditure Framework
A3: R thousands | B3: =Head5 -> Audited Outcome | C3: =Head5 -> Audited Outcome | D3: =Head5 -> Audited Outcome | E3: =Head6 -> Original Budget | F3: =Head7 -> Adjusted Budget | G3: =Head8 -> Full Year Forecast | H3: =Head5b -> Pre-audit outcome | I3: =Head9 -> Budget Year 2020/21 | J3: =Head10 -> Budget Year +1 2021/22 | K3: =Head11 -> Budget Year +2 2022/23
A4: Financial Performance
A5: Property rates | B5: ='A4-FinPerf RE'!C5 -> 31425047 | C5: ='A4-FinPerf RE'!D5 -> 33437488 | D5: ='A4-FinPerf RE'!E5 -> 35654755.19 | E5: ='A4-FinPerf RE'!F5 -> 37508803.88 | F5: ='A4-FinPerf RE'!G5 -> 37405604 | G5: ='A4-FinPerf RE'!H5 -> 37405604 | H5: ='A4-FinPerf RE'!I5 -> 37405604 | I5: ='A4-FinPerf RE'!J5 -> 39126261.78 | J5: ='A4-FinPerf RE'!K5 -> 41004322.35 | K5: ='A4-FinPerf RE'!L5 -> 42972529.82
A6: Service charges | B6: =SUM('A4-FinPerf RE'!C6:C9) -> 51171471 | C6: =SUM('A4-FinPerf RE'!D6:D9) -> 47669907 | D6: =SUM('A4-FinPerf RE'!E6:E9) -> 61714382.63 | E6: =SUM('A4-FinPerf RE'!F6:F9) -> 65687265.94 | F6: =SUM('A4-FinPerf RE'!G6:G9) -> 66550644 | G6: =SUM('A4-FinPerf RE'!H6:H9) -> 66550644 | H6: =SUM('A4-FinPerf RE'!I6:I9) -> 66550644 | I6: =SUM('A4-FinPerf RE'!J6:J9) -> 68770926 | J6: =SUM('A4-FinPerf RE'!K6:K9) -> 75413588.36 | K6: =SUM('A4-FinPerf RE'!L6:L9) -> 79033440.6
A7: Investment revenue | B7: ='A4-FinPerf RE'!C12 -> 7435467 | C7: ='A4-FinPerf RE'!D12 -> 7711892 | D7: ='A4-FinPerf RE'!E12 -> 3502634.76 | E7: ='A4-FinPerf RE'!F12 -> 3684777.28 | F7: ='A4-FinPerf RE'!G12 -> 5569998 | G7: ='A4-FinPerf RE'!H12 -> 5569998 | H7: ='A4-FinPerf RE'!I12 -> 5569998 | I7: ='A4-FinPerf RE'!J12 -> 4000000 | J7: ='A4-FinPerf RE'!K12 -> 5837360 | K7: ='A4-FinPerf RE'!L12 -> 5837360
A8: Transfers recognised - operational | B8: ='A4-FinPerf RE'!C18 -> 120499328 | C8: ='A4-FinPerf RE'!D18 -> 127358000 | D8: ='A4-FinPerf RE'!E18 -> 133485000 | E8: ='A4-FinPerf RE'!F18 -> 148974000 | F8: ='A4-FinPerf RE'!G18 -> 148974012 | G8: ='A4-FinPerf RE'!H18 -> 148974012 | H8: ='A4-FinPerf RE'!I18 -> 148974012 | I8: ='A4-FinPerf RE'!J18 -> 164216000 | J8: ='A4-FinPerf RE'!K18 -> 173342000 | K8: ='A4-FinPerf RE'!L18 -> 183313000
A9: Other own revenue | B9: ='A4-FinPerf RE'!C11+'A4-FinPerf RE'!C13+'A4-FinPerf RE'!C14+'A4-FinPerf RE'!C15+'A4-FinPerf RE'!C16+'A4-FinPerf RE'!C17+'A4-FinPerf RE'!C19+'A4-FinPerf RE'!C20 -> 13745491 | C9: ='A4-FinPerf RE'!D11+'A4-FinPerf RE'!D13+'A4-FinPerf RE'!D14+'A4-FinPerf RE'!D15+'A4-FinPerf RE'!D16+'A4-FinPerf RE'!D17+'A4-FinPerf RE'!D19+'A4-FinPerf RE'!D20 -> 11491452 | D9: ='A4-FinPerf RE'!E11+'A4-FinPerf RE'!E13+'A4-FinPerf RE'!E14+'A4-FinPerf RE'!E15+'A4-FinPerf RE'!E16+'A4-FinPerf RE'!E17+'A4-FinPerf RE'!E19+'A4-FinPerf RE'!E20 -> 10704185.54 | E9: ='A4-FinPerf RE'!F11+'A4-FinPerf RE'!F13+'A4-FinPerf RE'!F14+'A4-FinPerf RE'!F15+'A4-FinPerf RE'!F16+'A4-FinPerf RE'!F17+'A4-FinPerf RE'!F19+'A4-FinPerf RE'!F20 -> 14468391.13 | F9: ='A4-FinPerf RE'!G11+'A4-FinPerf RE'!G13+'A4-FinPerf RE'!G14+'A4-FinPerf RE'!G15+'A4-FinPerf RE'!G16+'A4-FinPerf RE'!G17+'A4-FinPerf RE'!G19+'A4-FinPerf RE'!G20 -> 14200977.18 | G9: ='A4-FinPerf RE'!H11+'A4-FinPerf RE'!H13+'A4-FinPerf RE'!H14+'A4-FinPerf RE'!H15+'A4-FinPerf RE'!H16+'A4-FinPerf RE'!H17+'A4-FinPerf RE'!H19+'A4-FinPerf RE'!H20 -> 14200977.18 | H9: ='A4-FinPerf RE'!I11+'A4-FinPerf RE'!I13+'A4-FinPerf RE'!I14+'A4-FinPerf RE'!I15+'A4-FinPerf RE'!I16+'A4-FinPerf RE'!I17+'A4-FinPerf RE'!I19+'A4-FinPerf RE'!I20 -> 14200977.18 | I9: ='A4-FinPerf RE'!J11+'A4-FinPerf RE'!J13+'A4-FinPerf RE'!J14+'A4-FinPerf RE'!J15+'A4-FinPerf RE'!J16+'A4-FinPerf RE'!J17+'A4-FinPerf RE'!J19+'A4-FinPerf RE'!J20 -> 16698761.54 | J9: ='A4-FinPerf RE'!K11+'A4-FinPerf RE'!K13+'A4-FinPerf RE'!K14+'A4-FinPerf RE'!K15+'A4-FinPerf RE'!K16+'A4-FinPerf RE'!K17+'A4-FinPerf RE'!K19+'A4-FinPerf RE'!K20 -> 15560404.19 | K9: ='A4-FinPerf RE'!L11+'A4-FinPerf RE'!L13+'A4-FinPerf RE'!L14+'A4-FinPerf RE'!L15+'A4-FinPerf RE'!L16+'A4-FinPerf RE'!L17+'A4-FinPerf RE'!L19+'A4-FinPerf RE'!L20 -> 16307303.59
A10: ='A4-FinPerf RE'!A21 -> Total Revenue (excluding capital transfers and contributions) | B10: =SUM(B5:B9) -> 224276804 | C10: 227668739 | D10: 245060958.1 | E10: 270323238.2 | F10: 272701235.2 | G10: 272701235.2 | H10: 272701235.2 | I10: 292811949.3 | J10: 311157674.9 | K10: 327463634
A11: Employee costs | B11: ='A4-FinPerf RE'!C24 -> 70975660 | C11: ='A4-FinPerf RE'!D24 -> 74433473 | D11: ='A4-FinPerf RE'!E24 -> 86113908 | E11: ='A4-FinPerf RE'!F24 -> 87714613.57 | F11: ='A4-FinPerf RE'!G24 -> 91074472.28 | G11: ='A4-FinPerf RE'!H24 -> 91074472.28 | H11: ='A4-FinPerf RE'!I24 -> 91074472.28 | I11: ='A4-FinPerf RE'!J24 -> 97556302 | J11: ='A4-FinPerf RE'!K24 -> 99881750 | K11: ='A4-FinPerf RE'!L24 -> 103562088
A12: Remuneration of councillors | B12: ='A4-FinPerf RE'!C25 -> 11328932 | C12: ='A4-FinPerf RE'!D25 -> 13388896 | D12: ='A4-FinPerf RE'!E25 -> 13524690.68 | E12: ='A4-FinPerf RE'!F25 -> 14533209.48 | F12: ='A4-FinPerf RE'!G25 -> 14533344 | G12: ='A4-FinPerf RE'!H25 -> 14533344 | H12: ='A4-FinPerf RE'!I25 -> 14533344 | I12: ='A4-FinPerf RE'!J25 -> 15623347 | J12: ='A4-FinPerf RE'!K25 -> 15696015 | K12: ='A4-FinPerf RE'!L25 -> 15768678
A13: Depreciation & asset impairment | B13: ='A4-FinPerf RE'!C27 -> 46756190 | C13: ='A4-FinPerf RE'!D27 -> 45000000 | D13: ='A4-FinPerf RE'!E27 -> 50000000 | E13: ='A4-FinPerf RE'!F27 -> 52000000 | F13: ='A4-FinPerf RE'!G27 -> 52000008 | G13: ='A4-FinPerf RE'!H27 -> 52000008 | H13: ='A4-FinPerf RE'!I27 -> 52000008 | I13: ='A4-FinPerf RE'!J27 -> 54600008 | J13: ='A4-FinPerf RE'!K27 -> 57330009 | K13: ='A4-FinPerf RE'!L27 -> 60196509
A14: Finance charges | B14: ='A4-FinPerf RE'!C28 -> 3493578 | C14: ='A4-FinPerf RE'!D28 -> 3597669 | D14: ='A4-FinPerf RE'!E28 -> 150000 | E14: ='A4-FinPerf RE'!F28 -> 365000 | F14: ='A4-FinPerf RE'!G28 -> 365000 | G14: ='A4-FinPerf RE'!H28 -> 365000 | H14: ='A4-FinPerf RE'!I28 -> 365000 | I14: ='A4-FinPerf RE'!J28 -> 53496 | J14: ='A4-FinPerf RE'!K28 -> 11029 | K14: ='A4-FinPerf RE'!L28 -> 11581
A15: Materials and bulk purchases | B15: ='A4-FinPerf RE'!C29+'A4-FinPerf RE'!C30 -> 36195720 | C15: ='A4-FinPerf RE'!D29+'A4-FinPerf RE'!D30 -> 36034845.91 | D15: ='A4-FinPerf RE'!E29+'A4-FinPerf RE'!E30 -> 38723704.87 | E15: ='A4-FinPerf RE'!F29+'A4-FinPerf RE'!F30 -> 43499347.28 | F15: ='A4-FinPerf RE'!G29+'A4-FinPerf RE'!G30 -> 40881422 | G15: ='A4-FinPerf RE'!H29+'A4-FinPerf RE'!H30 -> 40881422 | H15: ='A4-FinPerf RE'!I29+'A4-FinPerf RE'!I30 -> 40881422 | I15: ='A4-FinPerf RE'!J29+'A4-FinPerf RE'!J30 -> 57916009 | J15: ='A4-FinPerf RE'!K29+'A4-FinPerf RE'!K30 -> 67190624 | K15: ='A4-FinPerf RE'!L29+'A4-FinPerf RE'!L30 -> 75709060
A16: Transfers and grants | B16: ='A4-FinPerf RE'!C32 -> 0 | C16: ='A4-FinPerf RE'!D32 -> 0 | D16: ='A4-FinPerf RE'!E32 -> 0 | E16: ='A4-FinPerf RE'!F32 -> 0 | F16: ='A4-FinPerf RE'!G32 -> 0 | G16: ='A4-FinPerf RE'!H32 -> 0 | H16: ='A4-FinPerf RE'!I32 -> 0 | I16: ='A4-FinPerf RE'!J32 -> 0 | J16: ='A4-FinPerf RE'!K32 -> 0 | K16: ='A4-FinPerf RE'!L32 -> 0
A17: Other expenditure | B17: ='A4-FinPerf RE'!C26+'A4-FinPerf RE'!C31+'A4-FinPerf RE'!C33+'A4-FinPerf RE'!C34 -> 55818124.4 | C17: ='A4-FinPerf RE'!D26+'A4-FinPerf RE'!D31+'A4-FinPerf RE'!D33+'A4-FinPerf RE'!D34 -> 163976017.6 | D17: ='A4-FinPerf RE'!E26+'A4-FinPerf RE'!E31+'A4-FinPerf RE'!E33+'A4-FinPerf RE'!E34 -> 92473272 | E17: ='A4-FinPerf RE'!F26+'A4-FinPerf RE'!F31+'A4-FinPerf RE'!F33+'A4-FinPerf RE'!F34 -> 101989764.7 | F17: ='A4-FinPerf RE'!G26+'A4-FinPerf RE'!G31+'A4-FinPerf RE'!G33+'A4-FinPerf RE'!G34 -> 121911765.6 | G17: ='A4-FinPerf RE'!H26+'A4-FinPerf RE'!H31+'A4-FinPerf RE'!H33+'A4-FinPerf RE'!H34 -> 121911765.6 | H17: ='A4-FinPerf RE'!I26+'A4-FinPerf RE'!I31+'A4-FinPerf RE'!I33+'A4-FinPerf RE'!I34 -> 121911765.6 | I17: ='A4-FinPerf RE'!J26+'A4-FinPerf RE'!J31+'A4-FinPerf RE'!J33+'A4-FinPerf RE'!J34 -> 85182642.69 | J17: ='A4-FinPerf RE'!K26+'A4-FinPerf RE'!K31+'A4-FinPerf RE'!K33+'A4-FinPerf RE'!K34 -> 91089381 | K17: ='A4-FinPerf RE'!L26+'A4-FinPerf RE'!L31+'A4-FinPerf RE'!L33+'A4-FinPerf RE'!L34 -> 94444433
A18: ='A4-FinPerf RE'!A35 -> Total Expenditure | B18: =SUM(B11:B17) -> 224568204.4 | C18: =SUM(C11:C17) -> 336430901.5 | D18: 280985575.5 | E18: 300101935.1 | F18: 320766011.9 | G18: 320766011.9 | H18: 320766011.9 | I18: 310931804.7 | J18: 331198808 | K18: 349692349
A19: ='A4-FinPerf RE'!A37 -> Surplus/(Deficit) | B19: =B10-B18 -> -291400.4 | C19: -108762162.5 | D19: -35924617.42 | E19: -29778696.85 | F19: -48064776.74 | G19: -48064776.74 | H19: -48064776.74 | I19: -18119855.36 | J19: -20041133.11 | K19: -22228714.99
A20: ='A4-FinPerf RE'!A38 -> Transfers and subsidies - capital (monetary allocations) (National / Provincial and District) | B20: ='A4-FinPerf RE'!C38 -> 37720309 | C20: ='A4-FinPerf RE'!D38 -> 43008217 | D20: ='A4-FinPerf RE'!E38 -> 34624782.99 | E20: ='A4-FinPerf RE'!F38 -> 33443000 | F20: ='A4-FinPerf RE'!G38 -> 33443000 | G20: ='A4-FinPerf RE'!H38 -> 33443000 | H20: ='A4-FinPerf RE'!I38 -> 33443000 | I20: ='A4-FinPerf RE'!J38 -> 33238000 | J20: ='A4-FinPerf RE'!K38 -> 35885000 | K20: ='A4-FinPerf RE'!L38 -> 37822000
A21: ='A4-FinPerf RE'!A39&" & "&'A4-FinPerf RE'!A40 -> Transfers and subsidies - capital (monetary allocations) (National / Provincial Departmental Agencies, Households, Non-profit Institutions, Private Enterprises, Public Corporatons, Higher Educational Institutions) & Transfers and subsidies - capital (in-kind - all) | B21: ='A4-FinPerf RE'!C39+'A4-FinPerf RE'!C40 -> 0 | C21: ='A4-FinPerf RE'!D39+'A4-FinPerf RE'!D40 -> 0 | D21: ='A4-FinPerf RE'!E39+'A4-FinPerf RE'!E40 -> 0 | E21: ='A4-FinPerf RE'!F39+'A4-FinPerf RE'!F40 -> 0 | F21: ='A4-FinPerf RE'!G39+'A4-FinPerf RE'!G40 -> 0 | G21: ='A4-FinPerf RE'!H39+'A4-FinPerf RE'!H40 -> 0 | H21: ='A4-FinPerf RE'!I39+'A4-FinPerf RE'!I40 -> 0 | I21: ='A4-FinPerf RE'!J39+'A4-FinPerf RE'!J40 -> 0 | J21: ='A4-FinPerf RE'!K39+'A4-FinPerf RE'!K40 -> 0 | K21: ='A4-FinPerf RE'!L39+'A4-FinPerf RE'!L40 -> 0
A22: ='A4-FinPerf RE'!A41 -> Surplus/(Deficit) after capital transfers & contributions | B22: =B19+SUM(B20:B21) -> 37428908.6 | C22: =C19+SUM(C20:C21) -> -65753945.47 | D22: -1299834.433 | E22: 3664303.154 | F22: -14621776.74 | G22: -14621776.74 | H22: -14621776.74 | I22: 15118144.64 | J22: 15843866.89 | K22: 15593285.01
A23: ='A4-FinPerf RE'!A46 -> Share of surplus/ (deficit) of associate | B23: ='A4-FinPerf RE'!C46 -> 0 | C23: ='A4-FinPerf RE'!D46 -> 0 | D23: ='A4-FinPerf RE'!E46 -> 0 | E23: ='A4-FinPerf RE'!F46 -> 0 | F23: ='A4-FinPerf RE'!G46 -> 0 | G23: ='A4-FinPerf RE'!H46 -> 0 | H23: ='A4-FinPerf RE'!I46 -> 0 | I23: ='A4-FinPerf RE'!J46 -> 0 | J23: ='A4-FinPerf RE'!K46 -> 0 | K23: ='A4-FinPerf RE'!L46 -> 0
A24: ='A4-FinPerf RE'!A47 -> Surplus/(Deficit) for the year | B24: =B22+B23 -> 37428908.6 | C24: =C22+C23 -> -65753945.47 | D24: -1299834.433 | E24: 3664303.154 | F24: -14621776.74 | G24: -14621776.74 | H24: -14621776.74 | I24: 15118144.64 | J24: 15843866.89 | K24: 15593285.01
A26: Capital expenditure & funds sources
A27: Capital expenditure | B27: ='A5-Capex'!C63 -> 57078519.3 | C27: ='A5-Capex'!D63 -> 53343609.84 | D27: ='A5-Capex'!E63 -> 50507203.46 | E27: ='A5-Capex'!F63 -> 50216704 | F27: ='A5-Capex'!G63 -> 50360914 | G27: ='A5-Capex'!H63 -> 50360922 | H27: ='A5-Capex'!I63 -> 50360922 | I27: ='A5-Capex'!J63 -> 57316100 | J27: ='A5-Capex'!K63 -> 73598742.42 | K27: ='A5-Capex'!L63 -> 58300900
A28: Transfers recognised - capital | B28: ='A5-Capex'!C70 -> 37720309 | C28: ='A5-Capex'!D70 -> 43008217 | D28: ='A5-Capex'!E70 -> 34575727 | E28: ='A5-Capex'!F70 -> 33443000 | F28: ='A5-Capex'!G70 -> 33443000 | G28: ='A5-Capex'!H70 -> 33443000 | H28: ='A5-Capex'!I70 -> 33443000 | I28: ='A5-Capex'!J70 -> 33238000 | J28: ='A5-Capex'!K70 -> 35885000 | K28: ='A5-Capex'!L70 -> 37822000
A30: ='A5-Capex'!A72 -> Borrowing | B30: ='A5-Capex'!C72 -> 0 | C30: ='A5-Capex'!D72 -> 0 | D30: ='A5-Capex'!E72 -> 0 | E30: ='A5-Capex'!F72 -> 0 | F30: ='A5-Capex'!G72 -> 0 | G30: ='A5-Capex'!H72 -> 0 | H30: ='A5-Capex'!I72 -> 0 | I30: ='A5-Capex'!J72 -> 0 | J30: ='A5-Capex'!K72 -> 0 | K30: ='A5-Capex'!L72 -> 0
A31: ='A5-Capex'!A73 -> Internally generated funds | B31: ='A5-Capex'!C73 -> 19845746.27 | C31: ='A5-Capex'!D73 -> 9098866.54 | D31: ='A5-Capex'!E73 -> 11303506.78 | E31: ='A5-Capex'!F73 -> 16813600 | F31: ='A5-Capex'!G73 -> 16917922 | G31: ='A5-Capex'!H73 -> 16917922 | H31: ='A5-Capex'!I73 -> 16917922 | I31: ='A5-Capex'!J73 -> 24078100 | J31: ='A5-Capex'!K73 -> 37713742.42 | K31: ='A5-Capex'!L73 -> 20478900
A32: Total sources of capital funds | B32: =+B28+B30+B31 -> 57566055.27 | C32: =+C28+C30+C31 -> 52107083.54 | D32: 45879233.78 | E32: 50256600 | F32: 50360922 | G32: 50360922 | H32: 50360922 | I32: 57316100 | J32: 73598742.42 | K32: 58300900
A34: Financial position
A35: ='A6-FinPos'!A12 -> Total current assets | B35: ='A6-FinPos'!C12 -> 168920141 | C35: ='A6-FinPos'!D12 -> 69320623 | D35: ='A6-FinPos'!E12 -> 68133953.64 | E35: ='A6-FinPos'!F12 -> 46529651.32 | F35: ='A6-FinPos'!G12 -> 75850157 | G35: ='A6-FinPos'!H12 -> 75850157 | H35: ='A6-FinPos'!I12 -> 75850157 | I35: ='A6-FinPos'!J12 -> 75850157 | J35: ='A6-FinPos'!K12 -> 75850157 | K35: ='A6-FinPos'!L12 -> 75850157
A36: ='A6-FinPos'!A24 -> Total non current assets | B36: ='A6-FinPos'!C24 -> 88444348 | C36: ='A6-FinPos'!D24 -> 87629001 | D36: ='A6-FinPos'!E24 -> 89000000 | E36: ='A6-FinPos'!F24 -> 93450000 | F36: ='A6-FinPos'!G24 -> 50360922 | G36: ='A6-FinPos'!H24 -> 50360922 | H36: ='A6-FinPos'!I24 -> 50360922 | I36: ='A6-FinPos'!J24 -> 50360922 | J36: ='A6-FinPos'!K24 -> 50360922 | K36: ='A6-FinPos'!L24 -> 50360922
A37: ='A6-FinPos'!A34 -> Total current liabilities | B37: ='A6-FinPos'!C34 -> 1711841 | C37: ='A6-FinPos'!D34 -> 3722787 | D37: ='A6-FinPos'!E34 -> 0 | E37: ='A6-FinPos'!F34 -> 1585000 | F37: ='A6-FinPos'!G34 -> 378515 | G37: ='A6-FinPos'!H34 -> 378515 | H37: ='A6-FinPos'!I34 -> 378515 | I37: ='A6-FinPos'!J34 -> 378515 | J37: ='A6-FinPos'!K34 -> 378515 | K37: ='A6-FinPos'!L34 -> 378515
A38: ='A6-FinPos'!A39 -> Total non current liabilities | B38: ='A6-FinPos'!C39 -> 0 | C38: ='A6-FinPos'!D39 -> 0 | D38: ='A6-FinPos'!E39 -> 0 | E38: ='A6-FinPos'!F39 -> 0 | F38: ='A6-FinPos'!G39 -> 0 | G38: ='A6-FinPos'!H39 -> 0 | H38: ='A6-FinPos'!I39 -> 0 | I38: ='A6-FinPos'!J39 -> 0 | J38: ='A6-FinPos'!K39 -> 0 | K38: ='A6-FinPos'!L39 -> 0
A39: Community wealth/Equity | B39: ='A6-FinPos'!C48 -> 1009282505 | C39: ='A6-FinPos'!D48 -> 957767799 | D39: ='A6-FinPos'!E48 -> 1018379404 | E39: ='A6-FinPos'!F48 -> 1069298374 | F39: ='A6-FinPos'!G48 -> 66989036 | G39: ='A6-FinPos'!H48 -> 66989036 | H39: ='A6-FinPos'!I48 -> 66989036 | I39: ='A6-FinPos'!J48 -> 66989036 | J39: ='A6-FinPos'!K48 -> 66989036 | K39: ='A6-FinPos'!L48 -> 66989036
A41: Cash flows
A42: Net cash from (used) operating | B42: ='A7-CFlow'!C17 -> 74326955 | C42: ='A7-CFlow'!D17 -> 103576629 | D42: ='A7-CFlow'!E17 -> 60442438 | E42: ='A7-CFlow'!F17 -> 11507070.8 | F42: ='A7-CFlow'!G17 -> 74147306 | G42: ='A7-CFlow'!H17 -> 74147306 | H42: ='A7-CFlow'!I17 -> 74147306 | I42: ='A7-CFlow'!J17 -> 133690531.6 | J42: ='A7-CFlow'!K17 -> 152821060 | K42: ='A7-CFlow'!L17 -> 159345873.1
A43: Net cash from (used) investing | B43: ='A7-CFlow'!C27 -> -53765320 | C43: ='A7-CFlow'!D27 -> -155970273 | D43: ='A7-CFlow'!E27 -> 0 | E43: ='A7-CFlow'!F27 -> -40536600 | F43: ='A7-CFlow'!G27 -> -50360922 | G43: ='A7-CFlow'!H27 -> -50360922 | H43: ='A7-CFlow'!I27 -> -50360922 | I43: ='A7-CFlow'!J27 -> 0 | J43: ='A7-CFlow'!K27 -> 0 | K43: ='A7-CFlow'!L27 -> 0
A44: Net cash from (used) financing | B44: ='A7-CFlow'!C36 -> -1537792 | C44: ='A7-CFlow'!D36 -> -1943068 | D44: ='A7-CFlow'!E36 -> -1535367.6 | E44: ='A7-CFlow'!F36 -> 0 | F44: ='A7-CFlow'!G36 -> 0 | G44: ='A7-CFlow'!H36 -> 0 | H44: ='A7-CFlow'!I36 -> 0 | I44: ='A7-CFlow'!J36 -> 0 | J44: ='A7-CFlow'!K36 -> 0 | K44: ='A7-CFlow'!L36 -> 0
A45: =LEFT('A7-CFlow'!A40,37) -> Cash/cash equivalents at the year end | B45: ='A7-CFlow'!C40 -> 124746340 | C45: ='A7-CFlow'!D40 -> 68645417 | D45: ='A7-CFlow'!E40 -> 183653410.4 | E45: ='A7-CFlow'!F40 -> 154623881.2 | F45: ='A7-CFlow'!G40 -> 23786384 | G45: ='A7-CFlow'!H40 -> 23786384 | H45: ='A7-CFlow'!I40 -> 23786384 | I45: ='A7-CFlow'!J40 -> 133690531.6 | J45: ='A7-CFlow'!K40 -> 286511591.6 | K45: ='A7-CFlow'!L40 -> 445857464.7
A47: Cash backing/surplus reconciliation
A48: ='A8-ResRecon'!A4 -> Cash and investments available | B48: ='A8-ResRecon'!C8 -> 124746340 | C48: ='A8-ResRecon'!D8 -> 155959175 | D48: ='A8-ResRecon'!E8 -> 44313953.64 | E48: ='A8-ResRecon'!F8 -> 46529651.32 | F48: ='A8-ResRecon'!G8 -> 37806579 | G48: ='A8-ResRecon'!H8 -> 37806579 | H48: ='A8-ResRecon'!I8 -> 37806579 | I48: ='A8-ResRecon'!J8 -> 37806579 | J48: ='A8-ResRecon'!K8 -> 37806579 | K48: ='A8-ResRecon'!L8 -> 37806579
A49: ='A8-ResRecon'!A10 -> Application of cash and investments | B49: ='A8-ResRecon'!C18 -> -33493000 | C49: ='A8-ResRecon'!D18 -> 0 | D49: ='A8-ResRecon'!E18 -> -23595000 | E49: ='A8-ResRecon'!F18 -> 0 | F49: ='A8-ResRecon'!G18 -> -31611000 | G49: ='A8-ResRecon'!H18 -> -31611000 | H49: ='A8-ResRecon'!I18 -> -31611000 | I49: ='A8-ResRecon'!J18 -> -26434000 | J49: ='A8-ResRecon'!K18 -> -26868000 | K49: ='A8-ResRecon'!L18 -> -26868000
A50: Balance - surplus (shortfall) | B50: =B48-B49 -> 158239340 | C50: =C48-C49 -> 155959175 | D50: 67908953.64 | E50: 46529651.32 | F50: 69417579 | G50: 69417579 | H50: 69417579 | I50: 64240579 | J50: 64674579 | K50: 64674579
A52: Asset management
A53: Asset register summary (WDV) | B53: ='A9-Asset'!C165 -> 826174628 | C53: ='A9-Asset'!D165 -> 0 | D53: ='A9-Asset'!E165 -> 731113214 | E53: ='A9-Asset'!F165 -> 802204008.7 | F53: ='A9-Asset'!G165 -> 784249642 | G53: ='A9-Asset'!H165 -> 784249642 | H53: ='A9-Asset'!H165 -> 784249642 | I53: ='A9-Asset'!I165 -> 784249642 | J53: ='A9-Asset'!J165 -> 784249642 | K53: ='A9-Asset'!K165 -> 784249642
A54: ='A9-Asset'!A168 -> Depreciation | B54: ='A9-Asset'!C168 -> 46756190 | C54: ='A9-Asset'!D168 -> 45000000 | D54: ='A9-Asset'!E168 -> 47700000 | E54: ='A9-Asset'!F168 -> 0 | F54: ='A9-Asset'!G168 -> 0 | G54: ='A9-Asset'!H168 -> 0 | H54: ='A9-Asset'!H168 -> 0 | I54: ='A9-Asset'!I168 -> 0 | J54: ='A9-Asset'!J168 -> 0 | K54: ='A9-Asset'!K168 -> 0
A55: Renewal and Upgrading of Existing Assets | B55: ='A9-Asset'!C37+'A9-Asset'!C69 -> 3000000 | C55: ='A9-Asset'!D37+'A9-Asset'!D69 -> 10000000 | D55: ='A9-Asset'!E37+'A9-Asset'!E69 -> 5000000 | E55: ='A9-Asset'!F37+'A9-Asset'!F69 -> 2000004 | F55: ='A9-Asset'!G37+'A9-Asset'!G69 -> 2000004 | G55: ='A9-Asset'!H37+'A9-Asset'!H69 -> 2000004 | H55: ='A9-Asset'!H37+'A9-Asset'!H69 -> 2000004 | I55: ='A9-Asset'!I37+'A9-Asset'!I69 -> 2000000 | J55: ='A9-Asset'!J37+'A9-Asset'!J69 -> 3000000 | K55: ='A9-Asset'!K37+'A9-Asset'!K69 -> 3000000
A56: Repairs and Maintenance | B56: ='A9-Asset'!C169 -> 6838645 | C56: ='A9-Asset'!D169 -> 10833968.57 | D56: ='A9-Asset'!E169 -> 10927008 | E56: ='A9-Asset'!F169 -> 11063436 | F56: ='A9-Asset'!G169 -> 11070368 | G56: ='A9-Asset'!H169 -> 11070368 | H56: ='A9-Asset'!H169 -> 11070368 | I56: ='A9-Asset'!I169 -> 15916010.83 | J56: ='A9-Asset'!J169 -> 15613124.61 | K56: ='A9-Asset'!K169 -> 16394935.11
A58: Free services
A59: Cost of Free Basic Services provided | B59: ='A10-SerDel'!C60 -> 0 | C59: ='A10-SerDel'!D60 -> 0 | D59: ='A10-SerDel'!E60 -> 0 | E59: ='A10-SerDel'!F60 -> 0 | F59: ='A10-SerDel'!G60 -> 0 | G59: ='A10-SerDel'!H60 -> 0 | H59: ='A10-SerDel'!I60 -> 0 | I59: ='A10-SerDel'!I60 -> 0 | J59: ='A10-SerDel'!J60 -> 0 | K59: ='A10-SerDel'!K60 -> 0
A60: Revenue cost of free services provided | B60: ='A10-SerDel'!C79 -> 1679622 | C60: ='A10-SerDel'!D79 -> 0 | D60: ='A10-SerDel'!E79 -> 0 | E60: ='A10-SerDel'!F79 -> 0 | F60: ='A10-SerDel'!G79 -> 0 | G60: ='A10-SerDel'!H79 -> 0 | H60: ='A10-SerDel'!I79 -> 0 | I60: ='A10-SerDel'!I79 -> 0 | J60: ='A10-SerDel'!J79 -> 0 | K60: ='A10-SerDel'!K79 -> 0
A61: Households below minimum service level
A62: ='A10-SerDel'!A5 -> Water: | B62: ='A10-SerDel'!C14 -> 0 | C62: ='A10-SerDel'!D14 -> 0 | D62: ='A10-SerDel'!E14 -> 0 | E62: ='A10-SerDel'!F14 -> 0 | F62: ='A10-SerDel'!G14 -> 0 | G62: ='A10-SerDel'!H14 -> 0 | H62: ='A10-SerDel'!I14 -> 0 | I62: ='A10-SerDel'!I14 -> 0 | J62: ='A10-SerDel'!J14 -> 0 | K62: ='A10-SerDel'!K14 -> 0
A63: ='A10-SerDel'!A16 -> Sanitation/sewerage: | B63: ='A10-SerDel'!C26 -> 0 | C63: ='A10-SerDel'!D26 -> 0 | D63: ='A10-SerDel'!E26 -> 0 | E63: ='A10-SerDel'!F26 -> 0 | F63: ='A10-SerDel'!G26 -> 0 | G63: ='A10-SerDel'!H26 -> 0 | H63: ='A10-SerDel'!I26 -> 0 | I63: ='A10-SerDel'!I26 -> 0 | J63: ='A10-SerDel'!J26 -> 0 | K63: ='A10-SerDel'!K26 -> 0
A64: ='A10-SerDel'!A28 -> Energy: | B64: ='A10-SerDel'!C35 -> 0 | C64: ='A10-SerDel'!D35 -> 0 | D64: ='A10-SerDel'!E35 -> 0 | E64: ='A10-SerDel'!F35 -> 0 | F64: ='A10-SerDel'!G35 -> 0 | G64: ='A10-SerDel'!H35 -> 0 | H64: ='A10-SerDel'!I35 -> 0 | I64: ='A10-SerDel'!I35 -> 0 | J64: ='A10-SerDel'!J35 -> 0 | K64: ='A10-SerDel'!K35 -> 0
A65: ='A10-SerDel'!A37 -> Refuse: | B65: ='A10-SerDel'!C45 -> 0 | C65: ='A10-SerDel'!D45 -> 0 | D65: ='A10-SerDel'!E45 -> 0 | E65: ='A10-SerDel'!F45 -> 0 | F65: ='A10-SerDel'!G45 -> 0 | G65: ='A10-SerDel'!H45 -> 0 | H65: ='A10-SerDel'!I45 -> 0 | I65: ='A10-SerDel'!I45 -> 0 | J65: ='A10-SerDel'!J45 -> 0 | K65: ='A10-SerDel'!K45 -> 0

Sheet A2-FinPerf SC
A1: =muni&" - "&Approve3 -> LIM471 Ephraim Mogale - Table A2 Budgeted Financial Performance (revenue and expenditure by functional classification)
A2: ="Functional Classification "&desc -> Functional Classification Description | B2: =head27 -> Ref | C2: =head1b -> 2016/17 | D2: =head1A -> 2017/18 | E2: =Head1 -> 2018/19 | F2: =Head2 -> Current Year 2019/20 | I2: =Head3 -> 2020/21 Medium Term Revenue & Expenditure Framework
A3: R thousand | B3: 1 | C3: =Head5 -> Audited Outcome | D3: =Head5 -> Audited Outcome | E3: =Head5 -> Audited Outcome | F3: =Head6 -> Original Budget | G3: =Head7 -> Adjusted Budget | H3: =Head8 -> Full Year Forecast | I3: =Head9 -> Budget Year 2020/21 | J3: =Head10 -> Budget Year +1 2021/22 | K3: =Head11 -> Budget Year +2 2022/23
A4: Revenue - Functional
A5: Governance and administration | C5: =SUM(C6:C8) -> 157693784 | D5: =SUM(D6:D8) -> 175418835 | E5: 180804079.2 | F5: 198753744 | G5: 200840298 | H5: 200840298 | I5: 212045916.4 | J5: 226929720.4 | K5: 239336737.7
A6: Executive and council | C6: =A2A!C6 -> 1708836 | D6: =A2A!D6 -> 2094037 | E6: =A2A!E6 -> 2515698.5 | F6: =A2A!F6 -> 2286648 | G6: =A2A!G6 -> 2173032 | H6: =A2A!H6 -> 2173032 | I6: =A2A!I6 -> 2060408.614 | J6: =A2A!J6 -> 938388.2278 | K6: =A2A!K6 -> 983430.8627
A7: Finance and administration | C7: =A2A!C9 -> 155984948 | D7: =A2A!D9 -> 173324798 | E7: =A2A!E9 -> 178288380.7 | F7: =A2A!F9 -> 196467096 | G7: =A2A!G9 -> 198667266 | H7: =A2A!H9 -> 198667266 | I7: =A2A!I9 -> 209985507.8 | J7: =A2A!J9 -> 225991332.1 | K7: =A2A!K9 -> 238353306.8
A8: Internal audit | C8: =A2A!C23 -> 0 | D8: =A2A!D23 -> 0 | E8: =A2A!E23 -> 0 | F8: =A2A!F23 -> 0 | G8: =A2A!G23 -> 0 | H8: =A2A!H23 -> 0 | I8: =A2A!I23 -> 0 | J8: =A2A!J23 -> 0 | K8: =A2A!K23 -> 0
A9: Community and public safety | C9: =SUM(C10:C14) -> 250052.3 | D9: =SUM(D10:D14) -> 308425 | E9: 225237.9595 | F9: 236968.3021 | G9: 252120 | H9: 252120 | I9: 263725.888 | J9: 276384.7306 | K9: 289651.1977
A10: Community and social services | C10: =A2A!C26 -> 28305.3 | D10: =A2A!D26 -> 51951 | E10: =A2A!E26 -> 50020.37544 | F10: =A2A!F26 -> 52633.664 | G10: =A2A!G26 -> 53124 | H10: =A2A!H26 -> 53124 | I10: =A2A!I26 -> 55571.888 | J10: =A2A!J26 -> 58239.33862 | K10: =A2A!K26 -> 61034.82688
A11: Sport and recreation | C11: =A2A!C48 -> 0 | D11: =A2A!D48 -> 0 | E11: =A2A!E48 -> 0 | F11: =A2A!F48 -> 0 | G11: =A2A!G48 -> 0 | H11: =A2A!H48 -> 0 | I11: =A2A!I48 -> 0 | J11: =A2A!J48 -> 0 | K11: =A2A!K48 -> 0
A12: Public safety | C12: =A2A!C54 -> 0 | D12: =A2A!D54 -> 0 | E12: =A2A!E54 -> 0 | F12: =A2A!F54 -> 0 | G12: =A2A!G54 -> 0 | H12: =A2A!H54 -> 0 | I12: =A2A!I54 -> 0 | J12: =A2A!J54 -> 0 | K12: =A2A!K54 -> 0
A13: Housing | C13: =A2A!C63 -> 221747 | D13: =A2A!D63 -> 256474 | E13: =A2A!E63 -> 175217.5841 | F13: =A2A!F63 -> 184334.6381 | G13: =A2A!G63 -> 198996 | H13: =A2A!H63 -> 198996 | I13: =A2A!I63 -> 208154 | J13: =A2A!J63 -> 218145.392 | K13: =A2A!K63 -> 228616.3708
A14: Health | C14: =A2A!C66 -> 0 | D14: =A2A!D66 -> 0 | E14: =A2A!E66 -> 0 | F14: =A2A!F66 -> 0 | G14: =A2A!G66 -> 0 | H14: =A2A!H66 -> 0 | I14: =A2A!I66 -> 0 | J14: =A2A!J66 -> 0 | K14: =A2A!K66 -> 0
A15: Economic and environmental services | C15: =SUM(C16:C18) -> 37733400 | D15: =SUM(D16:D18) -> 48028990 | E15: 34674783.04 | F15: 33495600 | G15: 33488004 | H15: 33488004 | I15: 33285070 | J15: 35934329.36 | K15: 37873697.17
A16: Planning and development | C16: =A2A!C75 -> 13068 | D16: =A2A!D75 -> 28225 | E16: =A2A!E75 -> 50000.04824 | F16: =A2A!F75 -> 52600 | G16: =A2A!G75 -> 45000 | H16: =A2A!H75 -> 45000 | I16: =A2A!I75 -> 47070 | J16: =A2A!J75 -> 49329.36 | K16: =A2A!K75 -> 51697.16928
A17: Road transport | C17: =A2A!C86 -> 37720332 | D17: =A2A!D86 -> 48000765 | E17: =A2A!E86 -> 34624782.99 | F17: =A2A!F86 -> 33443000 | G17: =A2A!G86 -> 33443004 | H17: =A2A!H86 -> 33443004 | I17: =A2A!I86 -> 33238000 | J17: =A2A!J86 -> 35885000 | K17: =A2A!K86 -> 37822000
A18: Environmental protection | C18: =A2A!C91 -> 0 | D18: =A2A!D91 -> 0 | E18: =A2A!E91 -> 0 | F18: =A2A!F91 -> 0 | G18: =A2A!G91 -> 0 | H18: =A2A!H91 -> 0 | I18: =A2A!I91 -> 0 | J18: =A2A!J91 -> 0 | K18: =A2A!K91 -> 0
A19: Trading services | C19: =SUM(C20:C23) -> 54391254 | D19: =SUM(D20:D23) -> 55016292 | E19: 58119220 | F19: 67464505.78 | G19: 66311872 | H19: 66311872 | I19: 75711973.62 | J19: =SUM(J20:J23) -> 78413588.36 | K19: 82033440.6
A20: Energy sources | C20: =A2A!C99 -> 50860606 | D20: =A2A!D99 -> 51107241 | E20: =A2A!E99 -> 53875452 | F20: =A2A!F99 -> 62761291.5 | G20: =A2A!G99 -> 61529284 | H20: =A2A!H99 -> 61529284 | I20: =A2A!I99 -> 70459631.06 | J20: =A2A!J99 -> 72909133.36 | K20: =A2A!K99 -> 76264771.76
A21: Water management | C21: =A2A!C103 -> 0 | D21: =A2A!D103 -> 0 | E21: =A2A!E103 -> 0 | F21: =A2A!F103 -> 0 | G21: =A2A!G103 -> 0 | H21: =A2A!H103 -> 0 | I21: =A2A!I103 -> 0 | J21: =A2A!J103 -> 0 | K21: =A2A!K103 -> 0
A22: Waste water management | C22: =A2A!C107 -> 0 | D22: =A2A!D107 -> 0 | E22: =A2A!E107 -> 0 | F22: =A2A!F107 -> 0 | G22: =A2A!G107 -> 0 | H22: =A2A!H107 -> 0 | I22: =A2A!I107 -> 0 | J22: =A2A!J107 -> 0 | K22: =A2A!K107 -> 0
A23: Waste management | C23: =A2A!C112 -> 3530648 | D23: =A2A!D112 -> 3909051 | E23: =A2A!E112 -> 4243768 | F23: =A2A!F112 -> 4703214.272 | G23: =A2A!G112 -> 4782588 | H23: =A2A!H112 -> 4782588 | I23: =A2A!I112 -> 5252342.56 | J23: =A2A!J112 -> 5504455.003 | K23: =A2A!K112 -> 5768668.843
A24: Other | B24: 4 | C24: =A2A!C117 -> 1088650 | D24: =A2A!D117 -> 0 | E24: =A2A!E117 -> 0 | F24: =A2A!F117 -> 0 | G24: =A2A!G117 -> 5006944 | H24: =A2A!H117 -> 5006944 | I24: =A2A!I117 -> 5237263.424 | J24: =A2A!J117 -> 5488652.068 | K24: =A2A!K117 -> 5752107.368
A25: ="Total "&A4 -> Total Revenue - Functional | B25: 2 | C25: =C5+C9+C15+C19+C24 -> 251157140.3 | D25: =D5+D9+D15+D19+D24 -> 278772542 | E25: =E5+E9+E15+E19+E24 -> 273823320.2 | F25: 299950818.1 | G25: 305899238 | H25: 305899238 | I25: =I5+I9+I15+I19+I24 -> 326543949.3 | J25: 347042674.9 | K25: 365285634
A27: Expenditure - Functional
A28: Governance and administration | C28: =SUM(C29:C31) -> 135459930.9 | D28: =SUM(D29:D31) -> 220444081.9 | E28: 173708412.5 | F28: 181482626.4 | G28: 178106736 | H28: 178106736 | I28: 191201875.1 | J28: 191536571 | K28: 201092471.8
A29: Executive and council | C29: =A2A!C128 -> 29586810.32 | D29: =A2A!D128 -> 0 | E29: =A2A!E128 -> 46009557.02 | F29: =A2A!F128 -> 47087333.61 | G29: =A2A!G128 -> 44745372 | H29: =A2A!H128 -> 44745372 | I29: =A2A!I128 -> 41639393.9 | J29: =A2A!J128 -> 42110672.46 | K29: =A2A!K128 -> 43031509.87
A30: Finance and administration | C30: =A2A!C131 -> 105873120.6 | D30: =A2A!D131 -> 220444081.9 | E30: =A2A!E131 -> 127698855.5 | F30: =A2A!F131 -> 134395292.7 | G30: =A2A!G131 -> 133361364 | H30: =A2A!H131 -> 133361364 | I30: =A2A!I131 -> 149562481.2 | J30: =A2A!J131 -> 149425898.6 | K30: =A2A!K131 -> 158060962
A31: Internal audit | C31: =A2A!C145 -> 0 | D31: =A2A!D145 -> 0 | E31: =A2A!E145 -> 0 | F31: =A2A!F145 -> 0 | G31: =A2A!G145 -> 0 | H31: =A2A!H145 -> 0 | I31: =A2A!I145 -> 0 | J31: =A2A!J145 -> 0 | K31: =A2A!K145 -> 0
A32: Community and public safety | C32: =SUM(C33:C37) -> 21184315.09 | D32: =SUM(D33:D37) -> 8640072.8 | E32: 22541980.84 | F32: 23565213.79 | G32: 23126406 | H32: 23126406 | I32: 21524104.6 | J32: 22673956.06 | K32: 23832696.14
A33: Community and social services | C33: =A2A!C148 -> 5850233.87 | D33: =A2A!D148 -> 0 | E33: =A2A!E148 -> 9055126.214 | F33: =A2A!F148 -> 9147686.48 | G33: =A2A!G148 -> 8775078 | H33: =A2A!H148 -> 8775078 | I33: =A2A!I148 -> 9360919.968 | J33: =A2A!J148 -> 10051248.15 | K33: =A2A!K148 -> 10725592.12
A34: Sport and recreation | C34: =A2A!C170 -> 1573615.18 | D34: =A2A!D170 -> 0 | E34: =A2A!E170 -> 2077601.94 | F34: =A2A!F170 -> 2264243.8 | G34: =A2A!G170 -> 2195508 | H34: =A2A!H170 -> 2195508 | I34: =A2A!I170 -> 2342598.198 | J34: =A2A!J170 -> 2490681.812 | K34: =A2A!K170 -> 2649333.141
A35: Public safety | C35: =A2A!C176 -> 6711725.69 | D35: =A2A!D176 -> 0 | E35: =A2A!E176 -> 0 | F35: =A2A!F176 -> 0 | G35: =A2A!G176 -> 0 | H35: =A2A!H176 -> 0 | I35: =A2A!I176 -> 0 | J35: =A2A!J176 -> 0 | K35: =A2A!K176 -> 0
A36: Housing | C36: =A2A!C185 -> 4035749 | D36: =A2A!D185 -> 5255099.8 | E36: =A2A!E185 -> 7352383.749 | F36: =A2A!F185 -> 7806635.472 | G36: =A2A!G185 -> 7753290 | H36: =A2A!H185 -> 7753290 | I36: =A2A!I185 -> 5091155.406 | J36: =A2A!J185 -> 5345713.176 | K36: =A2A!K185 -> 5612998.835
A37: Health | C37: =A2A!C188 -> 3012991.35 | D37: =A2A!D188 -> 3384973 | E37: =A2A!E188 -> 4056868.94 | F37: =A2A!F188 -> 4346648.04 | G37: =A2A!G188 -> 4402530 | H37: =A2A!H188 -> 4402530 | I37: =A2A!I188 -> 4729431.028 | J37: =A2A!J188 -> 4786312.927 | K37: =A2A!K188 -> 4844772.047
A38: Economic and environmental services | C38: =SUM(C39:C41) -> 14414302.72 | D38: =SUM(D39:D41) -> 8421456.46 | E38: 19701776 | F38: 20928957.76 | G38: 22732662 | H38: 22732662 | I38: 24119104.95 | J38: 27312072.04 | K38: 26016939.31
A39: Planning and development | C39: =A2A!C197 -> 2689943.72 | D39: =A2A!D197 -> 0 | E39: =A2A!E197 -> 8941006 | F39: =A2A!F197 -> 9368205.467 | G39: =A2A!G197 -> 11212464 | H39: =A2A!H197 -> 11212464 | I39: =A2A!I197 -> 5620078.664 | J39: =A2A!J197 -> 7786101.008 | K39: =A2A!K197 -> 5378244.601
A40: Road transport | C40: =A2A!C208 -> 11724359 | D40: =A2A!D208 -> 8421456.46 | E40: =A2A!E208 -> 10760770 | F40: =A2A!F208 -> 11560752.29 | G40: =A2A!G208 -> 11520198 | H40: =A2A!H208 -> 11520198 | I40: =A2A!I208 -> 18499026.28 | J40: =A2A!J208 -> 19525971.03 | K40: =A2A!K208 -> 20638694.71
A41: Environmental protection | C41: =A2A!C213 -> 0 | D41: =A2A!D213 -> 0 | E41: =A2A!E213 -> 0 | F41: =A2A!F213 -> 0 | G41: =A2A!G213 -> 0 | H41: =A2A!H213 -> 0 | I41: =A2A!I213 -> 0 | J41: =A2A!J213 -> 0 | K41: =A2A!K213 -> 0
A42: Trading services | C42: =SUM(C43:C46) -> 43925409.8 | D42: =SUM(D43:D46) -> 44145395.04 | E42: 54098951.1 | F42: =SUM(F43:F46) -> 62248544.82 | G42: 57575968 | H42: 57575968 | I42: 68647998.97 | J42: 77003721.74 | K42: =SUM(K43:K46) -> 85928582.76
A43: Energy sources | C43: =A2A!C221 -> 39580762.04 | D43: =A2A!D221 -> 39201053.05 | E43: =A2A!E221 -> 48253054.46 | F43: =A2A!F221 -> 56177056.97 | G43: =A2A!G221 -> 51782182 | H43: =A2A!H221 -> 51782182 | I43: =A2A!I221 -> 62131489.26 | J43: =A2A!J221 -> 70017956.2 | K43: =A2A!K221 -> 78416485.95
A44: Water management | C44: =A2A!C225 -> 0 | D44: =A2A!D225 -> 0 | E44: =A2A!E225 -> 0 | F44: =A2A!F225 -> 0 | G44: =A2A!G225 -> 0 | H44: =A2A!H225 -> 0 | I44: =A2A!I225 -> 0 | J44: =A2A!J225 -> 0 | K44: =A2A!K225 -> 0
A45: Waste water management | C45: =A2A!C229 -> 0 | D45: =A2A!D229 -> 0 | E45: =A2A!E229 -> 0 | F45: =A2A!F229 -> 0 | G45: =A2A!G229 -> 0 | H45: =A2A!H229 -> 0 | I45: =A2A!I229 -> 0 | J45: =A2A!J229 -> 0 | K45: =A2A!K229 -> 0
A46: Waste management | C46: =A2A!C234 -> 4344647.76 | D46: =A2A!D234 -> 4944341.99 | E46: =A2A!E234 -> 5845896.634 | F46: =A2A!F234 -> 6071487.85 | G46: =A2A!G234 -> 5793786 | H46: =A2A!H234 -> 5793786 | I46: =A2A!I234 -> 6516509.719 | J46: =A2A!J234 -> 6985765.548 | K46: =A2A!K234 -> 7512096.814
A47: Other | B47: 4 | C47: =A2A!C239 -> 12812246.25 | D47: =A2A!D239 -> 10211351 | E47: =A2A!E239 -> 10978475.26 | F47: =A2A!F239 -> 11872475.92 | G47: =A2A!G239 -> 11553894 | H47: =A2A!H239 -> 11553894 | I47: =A2A!I239 -> 12795748.21 | J47: =A2A!J239 -> 12672485.84 | K47: =A2A!K239 -> 12797440.9
A48: ="Total "&A27 -> Total Expenditure - Functional | B48: 3 | C48: =C28+C32+C38+C42+C47 -> 227796204.8 | D48: =D28+D32+D38+D42+D47 -> 291862357.2 | E48: =E28+E32+E38+E42+E47 -> 281029595.7 | F48: =F28+F32+F38+F42+F47 -> 300097818.6 | G48: 293095666 | H48: 293095666 | I48: 318288831.8 | J48: 331198806.7 | K48: 349668130.9
A49: =result -> Surplus/(Deficit) for the year | C49: =C25-C48 -> 23360935.55 | D49: =D25-D48 -> -13089815.19 | E49: -7206275.523 | F49: -147000.5642 | G49: 12803572 | H49: 12803572 | I49: 8255117.531 | J49: 15843868.18 | K49: 15617503.06
A50: =head27a -> References
A51: 1. Government Finance Statistics Functions and Sub-functions are standardised to assist the compilation of national and international accounts for comparison purposes
A52: 2. Total Revenue by functional classification must reconcile to Total Operating Revenue shown in Budgeted Financial Performance (revenue and expenditure)
A53: 3. Total Expenditure by Functional Classification must reconcile to Total Operating Expenditure shown in Budgeted Financial Performance (revenue and expenditure)
A54: 4. All amounts must be classified under a functional classification . The GFS function 'Other' is only for Abbatoirs, Air Transport, Forestry, Licensing and Regulation, Markets and Tourism - and if used must be supported by footnotes. Nothing else may be placed under 'Other'. Assign associate share to relevant classification.
A57: check oprev balance | C57: =C25-'A4-FinPerf RE'!C59 -> -10839972.7 | D57: =D25-'A4-FinPerf RE'!D59 -> 8095586 | E57: =E25-'A4-FinPerf RE'!E59 -> -5862420.961 | F57: =F25-'A4-FinPerf RE'!F59 -> -3815420.143 | G57: =G25-'A4-FinPerf RE'!G59 -> -244997.18 | H57: =H25-'A4-FinPerf RE'!H59 -> -244997.18 | I57: =I25-'A4-FinPerf RE'!J59 -> 494000.004 | J57: =J25-'A4-FinPerf RE'!K59 -> 0 | K57: =K25-'A4-FinPerf RE'!L59 -> 0
A58: check opexp balance | C58: =C48-'A4-FinPerf RE'!C35 -> 3228000.35 | D58: =D48-'A4-FinPerf RE'!D35 -> -44568544.28 | E58: =E48-'A4-FinPerf RE'!E35 -> 44020.1293 | F58: =F48-'A4-FinPerf RE'!F35 -> -4116.425 | G58: =G48-'A4-FinPerf RE'!G35 -> -27670345.92 | H58: =H48-'A4-FinPerf RE'!H35 -> -27670345.92 | I58: =I48-'A4-FinPerf RE'!J35 -> 7357027.11 | J58: =J48-'A4-FinPerf RE'!K35 -> -1.284932494 | K58: =K48-'A4-FinPerf RE'!L35 -> -24218.0559

Sheet A2A
A1: =muni&" - "&Approve3 -> LIM471 Ephraim Mogale - Table A2 Budgeted Financial Performance (revenue and expenditure by functional classification)
A2: ="Functional Classification "&desc -> Functional Classification Description | B2: =head27 -> Ref | C2: =head1b -> 2016/17 | D2: =head1A -> 2017/18 | E2: =Head1 -> 2018/19 | F2: =Head2 -> Current Year 2019/20 | I2: =Head3 -> 2020/21 Medium Term Revenue & Expenditure Framework
A3: R thousand | B3: 1 | C3: =Head5 -> Audited Outcome | D3: =Head5 -> Audited Outcome | E3: =Head5 -> Audited Outcome | F3: =Head6 -> Original Budget | G3: =Head7 -> Adjusted Budget | H3: =Head8 -> Full Year Forecast | I3: =Head9 -> Budget Year 2020/21 | J3: =Head10 -> Budget Year +1 2021/22 | K3: =Head11 -> Budget Year +2 2022/23
A4: Revenue - Functional
A5: Municipal governance and administration | C5: =C6+C9+C23 -> 157693784 | D5: 175418835 | E5: 180804079.2 | F5: 198753744 | G5: 200840298 | H5: 200840298 | I5: 212045916.4 | J5: 226929720.4 | K5: 239336737.7
A6: Executive and council | C6: =SUM(C7:C8) -> 1708836 | D6: =SUM(D7:D8) -> 2094037 | E6: 2515698.5 | F6: 2286648 | G6: 2173032 | H6: 2173032 | I6: 2060408.614 | J6: 938388.2278 | K6: 983430.8627
A7: Mayor and Council | C7: 1708836 | D7: 2094037 | E7: 2515698.5 | F7: 2286648 | G7: 2173032 | H7: 2173032 | I7: 2060408.614 | J7: 938388.2278 | K7: 983430.8627
A8: Municipal Manager, Town Secretary and Chief Executive
A9: Finance and administration | C9: =SUM(C10:C22) -> 155984948 | D9: 173324798 | E9: 178288380.7 | F9: 196467096 | G9: 198667266 | H9: 198667266 | I9: 209985507.8 | J9: 225991332.1 | K9: 238353306.8
A10: Administrative and Corporate Support
A11: Asset Management
A12: Finance | C12: 155984948 | D12: 173324798 | E12: 178288380.7 | F12: 196467096 | G12: 198667266 | H12: 198667266 | I12: 209985507.8 | J12: 225991332.1 | K12: 238353306.8
A13: Fleet Management
A14: Human Resources
A15: Information Technology
A16: Legal Services
A17: Marketing, Customer Relations, Publicity and Media Co-ordination
A18: Property Services
A19: Risk Management
A20: Security Services
A21: Supply Chain Management
A22: Valuation Service
A23: Internal audit | C23: =SUM(C24:C24) -> 0 | D23: 0 | E23: 0 | F23: 0 | G23: 0 | H23: 0 | I23: 0 | J23: 0 | K23: 0
A24: Governance Function
A25: Community and public safety | C25: =C26+C48+C54+C63+C66 -> 250052.3 | D25: 308425 | E25: 225237.9595 | F25: 236968.3021 | G25: 252120 | H25: 252120 | I25: 263725.888 | J25: 276384.7306 | K25: 289651.1977
A26: Community and social services | C26: =SUM(C27:C47) -> 28305.3 | D26: =SUM(D27:D47) -> 51951 | E26: 50020.37544 | F26: 52633.664 | G26: 53124 | H26: 53124 | I26: 55571.888 | J26: 58239.33862 | K26: 61034.82688
A27: Aged Care
A28: Agricultural
A29: Animal Care and Diseases
A30: Cemeteries, Funeral Parlours and Crematoriums | C30: 27758 | D30: 51951 | E30: 47104.23144 | F30: 49553.408 | G30: 49560 | H30: 49560 | I30: 51839.76 | J30: 54328.06848 | K30: 56935.81577
A31: Child Care Facilities
A32: Community Halls and Facilities
A33: Consumer Protection
A34: Cultural Matters
A35: Disaster Management
A36: Education
A37: Indigenous and Customary Law
A38: Industrial Promotion
A39: Language Policy
A40: Libraries and Archives | C40: 547.3 | E40: 2916.144 | F40: 3080.256 | G40: 3564 | H40: 3564 | I40: 3732.128 | J40: 3911.270144 | K40: 4099.011111
A41: Literacy Programmes
A42: Media Services
A43: Museums and Art Galleries
A44: Population Development
A45: Provincial Cultural Matters
A46: Theatres
A47: Zoo's
A48: Sport and recreation | C48: =SUM(C49:C53) -> 0 | D48: =SUM(D49:D53) -> 0 | E48: 0 | F48: 0 | G48: 0 | H48: 0 | I48: 0 | J48: 0 | K48: 0
A49: Beaches and Jetties
A50: Casinos, Racing, Gambling, Wagering
A51: Community Parks (including Nurseries)
A52: Recreational Facilities
A53: Sports Grounds and Stadiums
A54: Public safety | C54: =SUM(C55:C62) -> 0 | D54: 0 | E54: 0 | F54: 0 | G54: 0 | H54: 0 | I54: 0 | J54: 0 | K54: 0
A55: Civil Defence
A56: Cleansing
A57: Control of Public Nuisances
A58: Fencing and Fences
A59: Fire Fighting and Protection
A60: Licensing and Control of Animals
A61: Police Forces, Traffic and Street Parking Control
A62: Pounds
A63: Housing | C63: =SUM(C64:C65) -> 221747 | D63: =SUM(D64:D65) -> 256474 | E63: 175217.5841 | F63: 184334.6381 | G63: 198996 | H63: 198996 | I63: 208154 | J63: 218145.392 | K63: 228616.3708
A64: Housing | C64: 221747 | D64: 256474 | E64: 175217.5841 | F64: 184334.6381 | G64: 198996 | H64: 198996 | I64: 208154 | J64: 218145.392 | K64: 228616.3708
A65: Informal Settlements
A66: Health | C66: =SUM(C67:C73) -> 0 | D66: =SUM(D67:D73) -> 0 | E66: 0 | F66: 0 | G66: 0 | H66: 0 | I66: 0 | J66: 0 | K66: 0
A67: Ambulance
A68: Health Services
A69: Laboratory Services
A70: Food Control
A71: Health Surveillance and Prevention of Communicable Diseases including immunizations
A72: Vector Control
A73: Chemical Safety
A74: Economic and environmental services | C74: =C75+C86+C91 -> 37733400 | D74: 48028990 | E74: 34674783.04 | F74: 33495600 | G74: 33488004 | H74: 33488004 | I74: 33285070 | J74: 35934329.36 | K74: 37873697.17
A75: Planning and development | C75: =SUM(C76:C85) -> 13068 | D75: =SUM(D76:D85) -> 28225 | E75: 50000.04824 | F75: 52600 | G75: 45000 | H75: 45000 | I75: 47070 | J75: 49329.36 | K75: 51697.16928
A76: Billboards
A77: Corporate Wide Strategic Planning (IDPs, LEDs)
A78: Central City Improvement District
A79: Development Facilitation
A80: Economic Development/Planning | C80: 13068 | D80: 28225 | E80: 50000.04824 | F80: 52600 | G80: 45000 | H80: 45000 | I80: 47070 | J80: 49329.36 | K80: 51697.16928
A81: Regional Planning and Development
A82: Town Planning, Building Regulations and Enforcement, and City Engineer
A83: Project Management Unit
A84: Provincial Planning
A85: Support to Local Municipalities
A86: Road transport | C86: =SUM(C87:C90) -> 37720332 | D86: 48000765 | E86: 34624782.99 | F86: 33443000 | G86: 33443004 | H86: 33443004 | I86: 33238000 | J86: 35885000 | K86: 37822000
A87: Public Transport
A88: Road and Traffic Regulation
A89: Roads | C89: 37720332 | D89: 48000765 | E89: 34624782.99 | F89: 33443000 | G89: 33443004 | H89: 33443004 | I89: 33238000 | J89: 35885000 | K89: 37822000
A90: Taxi Ranks
A91: Environmental protection | C91: =SUM(C92:C97) -> 0 | D91: =SUM(D92:D97) -> 0 | E91: 0 | F91: 0 | G91: 0 | H91: 0 | I91: 0 | J91: 0 | K91: 0
A92: Biodiversity and Landscape
A93: Coastal Protection
A94: Indigenous Forests
A95: Nature Conservation
A96: Pollution Control
A97: Soil Conservation
A98: Trading services | C98: =C99+C103+C107+C112 -> 54391254 | D98: =D99+D103+D107+D112 -> 55016292 | E98: 58119220 | F98: 67464505.78 | G98: 66311872 | H98: 66311872 | I98: 75711973.62 | J98: 78413588.36 | K98: =K99+K103+K107+K112 -> 82033440.6
A99: Energy sources | C99: =SUM(C100:C102) -> 50860606 | D99: =SUM(D100:D102) -> 51107241 | E99: 53875452 | F99: 62761291.5 | G99: 61529284 | H99: 61529284 | I99: 70459631.06 | J99: 72909133.36 | K99: 76264771.76
A100: Electricity | C100: 50860606 | D100: 51107241 | E100: 53875452 | F100: 62761291.5 | G100: 61529284 | H100: 61529284 | I100: 70459631.06 | J100: 72909133.36 | K100: 76264771.76
A101: Street Lighting and Signal Systems
A102: Nonelectric Energy
A103: Water management | C103: =SUM(C104:C106) -> 0 | D103: =SUM(D104:D106) -> 0 | E103: 0 | F103: 0 | G103: 0 | H103: 0 | I103: 0 | J103: 0 | K103: 0
A104: Water Treatment
A105: Water Distribution
A106: Water Storage
A107: Waste water management | C107: =SUM(C108:C111) -> 0 | D107: =SUM(D108:D111) -> 0 | E107: 0 | F107: 0 | G107: 0 | H107: 0 | I107: 0 | J107: 0 | K107: 0
A108: Public Toilets
A109: Sewerage
A110: Storm Water Management
A111: Waste Water Treatment
A112: Waste management | C112: =SUM(C113:C116) -> 3530648 | D112: =SUM(D113:D116) -> 3909051 | E112: 4243768 | F112: 4703214.272 | G112: 4782588 | H112: 4782588 | I112: 5252342.56 | J112: 5504455.003 | K112: 5768668.843
A113: Recycling
A114: Solid Waste Disposal (Landfill Sites)
A115: Solid Waste Removal | C115: 3530648 | D115: 3909051 | E115: 4243768 | F115: 4703214.272 | G115: 4782588 | H115: 4782588 | I115: 5252342.56 | J115: 5504455.003 | K115: 5768668.843
A116: Street Cleaning
A117: Other | C117: =SUM(C118:C123) -> 1088650 | D117: =SUM(D118:D123) -> 0 | E117: 0 | F117: 0 | G117: 5006944 | H117: 5006944 | I117: 5237263.424 | J117: 5488652.068 | K117: 5752107.368
A118: Abattoirs
A119: Air Transport
A120: Forestry
A121: Licensing and Regulation | C121: 1088650 | D121: 0 | E121: 0 | F121: 0 | G121: 5006944 | H121: 5006944 | I121: 5237263.424 | J121: 5488652.068 | K121: 5752107.368
A122: Markets
A123: Tourism
A124: ="Total "&A4 -> Total Revenue - Functional | B124: 2 | C124: =C5+C25+C74+C98+C117 -> 251157140.3 | D124: 278772542 | E124: 273823320.2 | F124: 299950818.1 | G124: 305899238 | H124: 305899238 | I124: 326543949.3 | J124: 347042674.9 | K124: 365285634
A126: Expenditure - Functional
A127: =A5 -> Municipal governance and administration | C127: =C128+C131+C145 -> 135459930.9 | D127: 220444081.9 | E127: 173708412.5 | F127: 181482626.4 | G127: 178106736 | H127: 178106736 | I127: 191201875.1 | J127: 191536571 | K127: 201092471.8
A128: Executive and council | C128: =SUM(C129:C130) -> 29586810.32 | D128: 0 | E128: 46009557.02 | F128: 47087333.61 | G128: 44745372 | H128: 44745372 | I128: 41639393.9 | J128: 42110672.46 | K128: 43031509.87
A129: Mayor and Council | C129: 25381517.73 | D129: 0 | E129: 34880173.92 | F129: 35651057.13 | G129: 33696162 | H129: 33696162 | I129: 29687920 | J129: 30096860.4 | K129: 30606710.62
A130: Municipal Manager, Town Secretary and Chief Executive | C130: 4205292.59 | D130: 0 | E130: 11129383.1 | F130: 11436276.48 | G130: 11049210 | H130: 11049210 | I130: 11951473.9 | J130: 12013812.06 | K130: 12424799.26
A131: Finance and administration | C131: =SUM(C132:C144) -> 105873120.6 | D131: 220444081.9 | E131: 127698855.5 | F131: 134395292.7 | G131: 133361364 | H131: 133361364 | I131: 149562481.2 | J131: 149425898.6 | K131: 158060962
A132: Administrative and Corporate Support | C132: 11159091 | D132: 27409255.94 | E132: 15225059.23 | F132: 16399866.48 | G132: 15665340 | H132: 15665340 | I132: 17416886.11 | J132: 18617520.7 | K132: 21034258.79
A133: Asset Management | C133: 0 | G133: 0 | H133: 0
A134: Finance | C134: 76832796.32 | D134: 192528753.8 | E134: 89516809.75 | F134: 93199970.67 | G134: 93814582 | H134: 93814582 | I134: 102872068.5 | J134: 99909943.64 | K134: 104510771.1
A135: Fleet Management | C135: 7414489.97 | D135: 0 | E135: 9480154.135 | F135: 8656859.06 | G135: 9413924 | H135: 9413924 | I135: 8671869.486 | J135: 9105462.96 | K135: 9560736.108
A136: Human Resources | C136: 7663635.62 | D136: 0 | E136: 9124795.926 | F136: 10944824.22 | G136: 9291672 | H136: 9291672 | I136: 9749026.395 | J136: 9855857.088 | K136: 10103277.42
A137: Information Technology | C137: 2388112.25 | D137: 0 | E137: 3721034 | F137: 4566886.32 | G137: 4548960 | H137: 4548960 | I137: 5198534.5 | J137: 5458461.225 | K137: 6031221.786
A138: Legal Services | D138: 0 | I138: 4980194.48 | J138: 5754208.656 | K138: 6041919.089
A139: Marketing, Customer Relations, Publicity and Media Co-ordination
A140: Property Services
A141: Risk Management
A142: Security Services
A143: Supply Chain Management | C143: 414995.41 | D143: 506072.17 | E143: 631002.425 | F143: 626886 | G143: 626886 | H143: 626886 | I143: 673901.676 | J143: 724444.3017 | K143: 778777.6243
A144: Valuation Service
A145: Internal audit | C145: =SUM(C146:C146) -> 0 | D145: 0 | E145: 0 | F145: 0 | G145: 0 | H145: 0 | I145: 0 | J145: 0 | K145: 0
A146: Governance Function
A147: Community and public safety | C147: =C148+C170+C176+C185+C188 -> 21184315.09 | D147: 8640072.8 | E147: 22541980.84 | F147: 23565213.79 | G147: 23126406 | H147: 23126406 | I147: 21524104.6 | J147: 22673956.06 | K147: 23832696.14
A148: Community and social services | C148: =SUM(C149:C169) -> 5850233.87 | D148: =SUM(D149:D169) -> 0 | E148: 9055126.214 | F148: 9147686.48 | G148: 8775078 | H148: 8775078 | I148: 9360919.968 | J148: 10051248.15 | K148: 10725592.12
A149: Aged Care
A150: Agricultural
A151: Animal Care and Diseases
A152: Cemeteries, Funeral Parlours and Crematoriums | C152: 3848697.3 | E152: 5502620.483 | F152: 5824211.491 | G152: 5360976 | H152: 5360976 | I152: 5707083.721 | J152: 6138166.576 | K152: 6599744.419
A153: Child Care Facilities
A154: Community Halls and Facilities
A155: Consumer Protection | C155: 1456927.05 | E155: 2916407.339 | F155: 2646402.789 | G155: 2740374 | H155: 2740374 | I155: 2929751.53 | J155: 3183250.573 | K155: 3413817.416
A156: Cultural Matters
A157: Disaster Management
A158: Education
A159: =A37 -> Indigenous and Customary Law
A160: Industrial Promotion
A161: Language Policy
A162: Libraries and Archives | C162: 544609.52 | E162: 636098.392 | F162: 677072.2 | G162: 673728 | H162: 673728 | I162: 724084.716 | J162: 729830.9984 | K162: 712030.2808
A163: Literacy Programmes
A164: Media Services
A165: Museums and Art Galleries
A166: Population Development
A167: Provincial Cultural Matters
A168: Theatres
A169: Zoo's
A170: Sport and recreation | C170: =SUM(C171:C175) -> 1573615.18 | D170: 0 | E170: 2077601.94 | F170: 2264243.8 | G170: 2195508 | H170: 2195508 | I170: 2342598.198 | J170: 2490681.812 | K170: 2649333.141
A171: Beaches and Jetties
A172: Casinos, Racing, Gambling, Wagering
A173: Community Parks (including Nurseries)
A174: Recreational Facilities
A175: Sports Grounds and Stadiums | C175: 1573615.18 | E175: 2077601.94 | F175: 2264243.8 | G175: 2195508 | H175: 2195508 | I175: 2342598.198 | J175: 2490681.812 | K175: 2649333.141
A176: Public safety | C176: =SUM(C177:C184) -> 6711725.69 | D176: 0 | E176: 0 | F176: 0 | G176: 0 | H176: 0 | I176: 0 | J176: 0 | K176: 0
A177: Civil Defence
A178: Cleansing
A179: =A57 -> Control of Public Nuisances
A180: Fencing and Fences
A181: Fire Fighting and Protection
A182: Licensing and Control of Animals | C182: 6711725.69 | E182: 0
A183: Police Forces, Traffic and Street Parking Control
A184: Pounds
A185: =A63 -> Housing | C185: =SUM(C186:C187) -> 4035749 | D185: 5255099.8 | E185: 7352383.749 | F185: 7806635.472 | G185: 7753290 | H185: 7753290 | I185: 5091155.406 | J185: 5345713.176 | K185: 5612998.835
A186: Housing | C186: 4035749 | D186: 5255099.8 | E186: 7352383.749 | F186: 7806635.472 | G186: 7753290 | H186: 7753290 | I186: 5091155.406 | J186: 5345713.176 | K186: 5612998.835
A187: Informal Settlements
A188: Health | C188: =SUM(C189:C195) -> 3012991.35 | D188: =SUM(D189:D195) -> 3384973 | E188: 4056868.94 | F188: 4346648.04 | G188: 4402530 | H188: 4402530 | I188: 4729431.028 | J188: 4786312.927 | K188: 4844772.047
A189: Ambulance
A190: Health Services | C190: 3012991.35 | D190: 3384973 | E190: 4056868.94 | F190: 4346648.04 | G190: 4402530 | H190: 4402530 | I190: 4729431.028 | J190: 4786312.927 | K190: 4844772.047
A191: Laboratory Services
A192: Food Control
A193: Health Surveillance and Prevention of Communicable Diseases including immunizations
A194: Vector Control
A195: Chemical Safety
A196: Economic and environmental services | C196: =C197+C208+C213 -> 14414302.72 | D196: 8421456.46 | E196: 19701776 | F196: 20928957.76 | G196: 22732662 | H196: 22732662 | I196: 24119104.95 | J196: 27312072.04 | K196: 26016939.31
A197: Planning and development | C197: =SUM(C198:C207) -> 2689943.72 | D197: =SUM(D198:D207) -> 0 | E197: 8941006 | F197: 9368205.467 | G197: 11212464 | H197: 11212464 | I197: 5620078.664 | J197: 7786101.008 | K197: 5378244.601
A198: Billboards
A199: Corporate Wide Strategic Planning (IDPs, LEDs)
A200: Central City Improvement District
A201: Development Facilitation
... 53 more rows

Sheet A3-FinPerf V
A1: =muni&" - "&Approve2 -> LIM471 Ephraim Mogale - Table A3 Budgeted Financial Performance (revenue and expenditure by municipal vote)
A2: =Vdesc -> Vote Description | B2: =head27 -> Ref | C2: =head1b -> 2016/17 | D2: =head1A -> 2017/18 | E2: =Head1 -> 2018/19 | F2: =Head2 -> Current Year 2019/20 | I2: =Head3 -> 2020/21 Medium Term Revenue & Expenditure Framework | L2: =Head4 -> LTFS
A3: R thousand | C3: =Head5 -> Audited Outcome | D3: =Head5 -> Audited Outcome | E3: =Head5 -> Audited Outcome | F3: =Head6 -> Original Budget | G3: =Head7 -> Adjusted Budget | H3: =Head8 -> Full Year Forecast | I3: =Head9 -> Budget Year 2020/21 | J3: =Head10 -> Budget Year +1 2021/22 | K3: =Head11 -> Budget Year +2 2022/23 | L3: =Head12 -> Forecast 2023/24 | M3: =Head13 -> Forecast 2024/25 | N3: =Head14 -> Forecast 2025/26 | O3: =Head15 -> Forecast 2026/27 | P3: =Head16 -> Forecast 2027/28 | Q3: =Head17 -> Forecast 2028/29 | R3: =Head18 -> Forecast 2029/30 | S3: =Head19 -> Forecast 2030/31 | T3: =Head20 -> Forecast 2031/32 | U3: =Head21 -> Forecast 2032/33 | V3: =Head22 -> Forecast 2033/34 | W3: =Head23 -> Forecast 2034/35
A4: Revenue by Vote | B4: 1
A5: =A3A!A5 -> Vote 1 - EXECUTIVE AND COUNCIL | C5: =A3A!C5 -> 1708836 | D5: =A3A!D5 -> 2094037 | E5: =A3A!E5 -> 2515698.5 | F5: =A3A!F5 -> 2286634.922 | G5: =A3A!G5 -> 2173032 | H5: =A3A!H5 -> 2173032 | I5: =A3A!I5 -> 2060408.614 | J5: =A3A!J5 -> 938388.2278 | K5: =A3A!K5 -> 983430.8627
A6: =A3A!A16 -> Vote 2 - MUNICIPAL MANAGER | C6: =A3A!C16 -> 0 | D6: =A3A!D16 -> 0 | E6: =A3A!E16 -> 0 | F6: =A3A!F16 -> 0 | G6: =A3A!G16 -> 0 | H6: =A3A!H16 -> 0 | I6: =A3A!I16 -> 0 | J6: =A3A!J16 -> 0 | K6: =A3A!K16 -> 0
A7: =A3A!A27 -> Vote 3 - FINANCE | C7: =A3A!C27 -> 155984948 | D7: =A3A!D27 -> 173324798 | E7: =A3A!E27 -> 178288380.7 | F7: =A3A!F27 -> 196467051.5 | G7: =A3A!G27 -> 198667266 | H7: =A3A!H27 -> 198667266 | I7: =A3A!I27 -> 209985507.8 | J7: =A3A!J27 -> 225991332.1 | K7: =A3A!K27 -> 238353306.8
A8: =A3A!A38 -> Vote 4 - CORPORATE SERVICES MANAGEMENT | C8: =A3A!C38 -> 0 | D8: =A3A!D38 -> 0 | E8: =A3A!E38 -> 0 | F8: =A3A!F38 -> 0 | G8: =A3A!G38 -> 0 | H8: =A3A!H38 -> 0 | I8: =A3A!I38 -> 0 | J8: =A3A!J38 -> 0 | K8: =A3A!K38 -> 0
A9: =A3A!A49 -> Vote 5 - TECHNICAL SERVICES | C9: =A3A!C49 -> 88580938 | D9: =A3A!D49 -> 94115458 | E9: =A3A!E49 -> 89801648.46 | F9: =A3A!F49 -> 96204291.5 | G9: =A3A!G49 -> 94972288 | H9: =A3A!H49 -> 94972288 | I9: =A3A!I49 -> 103697631.1 | J9: =A3A!J49 -> 108794133.4 | K9: =A3A!K49 -> 114086771.8
A10: =A3A!A60 -> Vote 6 - PLANNING & ECONOMIC DEVELOPMENT | C10: =A3A!C60 -> 234815 | D10: =A3A!D60 -> 284699 | E10: =A3A!E60 -> 225217.6323 | F10: =A3A!F60 -> 236934.6381 | G10: =A3A!G60 -> 243996 | H10: =A3A!H60 -> 243996 | I10: =A3A!I60 -> 255224 | J10: =A3A!J60 -> 267474.752 | K10: =A3A!K60 -> 280313.5401
A11: =A3A!A71 -> Vote 7 - COMMUNITY SERVICES MANAGEMENT | C11: =A3A!C71 -> 15486744 | D11: =A3A!D71 -> 8953549.92 | E11: =A3A!E71 -> 8147628.981 | F11: =A3A!F71 -> 8571325.696 | G11: =A3A!G71 -> 9842656 | H11: =A3A!H71 -> 9842656 | I11: =A3A!I71 -> 10545177.87 | J11: =A3A!J71 -> 11051346.41 | K11: =A3A!K71 -> 11581811.04
A12: =A3A!A82 -> Vote 8 - [NAME OF VOTE 8] | C12: =A3A!C82 -> 0 | D12: =A3A!D82 -> 0 | E12: =A3A!E82 -> 0 | F12: =A3A!F82 -> 0 | G12: =A3A!G82 -> 0 | H12: =A3A!H82 -> 0 | I12: =A3A!I82 -> 0 | J12: =A3A!J82 -> 0 | K12: =A3A!K82 -> 0
A13: =A3A!A93 -> Vote 9 - [NAME OF VOTE 9] | C13: =A3A!C93 -> 0 | D13: =A3A!D93 -> 0 | E13: =A3A!E93 -> 0 | F13: =A3A!F93 -> 0 | G13: =A3A!G93 -> 0 | H13: =A3A!H93 -> 0 | I13: =A3A!I93 -> 0 | J13: =A3A!J93 -> 0 | K13: =A3A!K93 -> 0
A14: =A3A!A104 -> Vote 10 - [NAME OF VOTE 10] | C14: =A3A!C104 -> 0 | D14: =A3A!D104 -> 0 | E14: =A3A!E104 -> 0 | F14: =A3A!F104 -> 0 | G14: =A3A!G104 -> 0 | H14: =A3A!H104 -> 0 | I14: =A3A!I104 -> 0 | J14: =A3A!J104 -> 0 | K14: =A3A!K104 -> 0
A15: =A3A!A115 -> Vote 11 - [NAME OF VOTE 11] | C15: =A3A!C115 -> 0 | D15: =A3A!D115 -> 0 | E15: =A3A!E115 -> 0 | F15: =A3A!F115 -> 0 | G15: =A3A!G115 -> 0 | H15: =A3A!H115 -> 0 | I15: =A3A!I115 -> 0 | J15: =A3A!J115 -> 0 | K15: =A3A!K115 -> 0 | L15: =A5A!L115 -> 0
A16: =A3A!A126 -> Vote 12 - [NAME OF VOTE 12] | C16: =A3A!C126 -> 0 | D16: =A3A!D126 -> 0 | E16: =A3A!E126 -> 0 | F16: =A3A!F126 -> 0 | G16: =A3A!G126 -> 0 | H16: =A3A!H126 -> 0 | I16: =A3A!I126 -> 0 | J16: =A3A!J126 -> 0 | K16: =A3A!K126 -> 0 | L16: =A5A!L126 -> 0
A17: =A3A!A137 -> Vote 13 - [NAME OF VOTE 13] | C17: =A3A!C137 -> 0 | D17: =A3A!D137 -> 0 | E17: =A3A!E137 -> 0 | F17: =A3A!F137 -> 0 | G17: =A3A!G137 -> 0 | H17: =A3A!H137 -> 0 | I17: =A3A!I137 -> 0 | J17: =A3A!J137 -> 0 | K17: =A3A!K137 -> 0 | L17: =A5A!L137 -> 0
A18: =A3A!A148 -> Vote 14 - [NAME OF VOTE 14] | C18: =A3A!C148 -> 0 | D18: =A3A!D148 -> 0 | E18: =A3A!E148 -> 0 | F18: =A3A!F148 -> 0 | G18: =A3A!G148 -> 0 | H18: =A3A!H148 -> 0 | I18: =A3A!I148 -> 0 | J18: =A3A!J148 -> 0 | K18: =A3A!K148 -> 0 | L18: =A5A!L148 -> 0
A19: =A3A!A159 -> Vote 15 - [NAME OF VOTE 15] | C19: =A3A!C159 -> 0 | D19: =A3A!D159 -> 0 | E19: =A3A!E159 -> 0 | F19: =A3A!F159 -> 0 | G19: =A3A!G159 -> 0 | H19: =A3A!H159 -> 0 | I19: =A3A!I159 -> 0 | J19: =A3A!J159 -> 0 | K19: =A3A!K159 -> 0 | L19: =A5A!L159 -> 0
A20: Total Revenue by Vote | B20: 2 | C20: =SUM(C5:C19) -> 261996281 | D20: =SUM(D5:D19) -> 278772541.9 | E20: 278978574.2 | F20: 303766238.2 | G20: 305899238 | H20: 305899238 | I20: 326543949.3 | J20: 347042674.9 | K20: 365285634
A22: Expenditure by Vote to be appropriated | B22: 1
A23: =A3A!A173 -> Vote 1 - EXECUTIVE AND COUNCIL | C23: =A3A!C173 -> 25381517.73 | D23: =A3A!D173 -> 37980150.44 | E23: =A3A!E173 -> 35222154.46 | F23: =A3A!F173 -> 35651057.13 | G23: =A3A!G173 -> 33696162 | H23: =A3A!H173 -> 33696162 | I23: =A3A!I173 -> 29687920 | J23: =A3A!J173 -> 30096865 | K23: =A3A!K173 -> 30606710
A24: =A3A!A184 -> Vote 2 - MUNICIPAL MANAGER | C24: =A3A!C184 -> 4205292.59 | D24: =A3A!D184 -> 9381427.92 | E24: =A3A!E184 -> 11129383.1 | F24: =A3A!F184 -> 11436276.48 | G24: =A3A!G184 -> 11049210 | H24: =A3A!H184 -> 11049210 | I24: =A3A!I184 -> 11951472 | J24: =A3A!J184 -> 12013814 | K24: =A3A!K184 -> 12424799
A25: =A3A!A195 -> Vote 3 - FINANCE | C25: =A3A!C195 -> 84662281.7 | D25: =A3A!D195 -> 192528753.8 | E25: =A3A!E195 -> 105471151.5 | F25: =A3A!F195 -> 102487832.2 | G25: =A3A!G195 -> 102483715.7 | H25: =A3A!H195 -> 103855392 | I25: =A3A!I195 -> 112217834 | J25: =A3A!J195 -> 109739847 | K25: =A3A!K195 -> 114850282
A26: =A3A!A206 -> Vote 4 - CORPORATE SERVICES MANAGEMENT | C26: =A3A!C206 -> 21146395.17 | D26: =A3A!D206 -> 22092583.39 | E26: =A3A!E206 -> 28070889.16 | F26: =A3A!F206 -> 31911577.01 | G26: =A3A!G206 -> 30240644 | H26: =A3A!H206 -> 30240644 | I26: =A3A!I206 -> 37344634 | J26: =A3A!J206 -> 39686052 | K26: =A3A!K206 -> 43210685
A27: =A3A!A217 -> Vote 5 - TECHNICAL SERVICES | C27: =A3A!C217 -> 51305120.37 | D27: =A3A!D217 -> 49728333.33 | E27: =A3A!E217 -> 63398667.44 | F27: =A3A!F217 -> 72120061.57 | G27: =A3A!G217 -> 69045722.44 | H27: =A3A!H217 -> 69045722.44 | I27: =A3A!I217 -> 80630511.66 | J27: =A3A!J217 -> 89543926.24 | K27: =A3A!K217 -> 99055088.43
A28: =A3A!A228 -> Vote 6 - PLANNING & ECONOMIC DEVELOPMENT | C28: =A3A!C228 -> 6725692.72 | D28: =A3A!D228 -> 9834139.53 | E28: =A3A!E228 -> 12200880.45 | F28: =A3A!F228 -> 12792588.63 | G28: =A3A!G228 -> 18965754 | H28: =A3A!H228 -> 18965754 | I28: =A3A!I228 -> 10711229 | J28: =A3A!J228 -> 13131815 | K28: =A3A!K228 -> 10991244
A29: =A3A!A239 -> Vote 7 - COMMUNITY SERVICES MANAGEMENT | C29: =A3A!C239 -> 34369904.12 | D29: =A3A!D239 -> 27177363.4 | E29: =A3A!E239 -> 32249943.84 | F29: =A3A!F239 -> 33702542.09 | G29: =A3A!G239 -> 30219212.5 | H29: =A3A!H239 -> 30219212.5 | I29: =A3A!I239 -> 35745205 | J29: =A3A!J239 -> 36986488 | K29: =A3A!K239 -> 38553541
A30: =A3A!A250 -> Vote 8 - [NAME OF VOTE 8] | C30: =A3A!C250 -> 0 | D30: =A3A!D250 -> 0 | E30: =A3A!E250 -> 0 | F30: =A3A!F250 -> 0 | G30: =A3A!G250 -> 0 | H30: =A3A!H250 -> 0 | I30: =A3A!I250 -> 0 | J30: =A3A!J250 -> 0 | K30: =A3A!K250 -> 0
A31: =A3A!A261 -> Vote 9 - [NAME OF VOTE 9] | C31: =A3A!C261 -> 0 | D31: =A3A!D261 -> 0 | E31: =A3A!E261 -> 0 | F31: =A3A!F261 -> 0 | G31: =A3A!G261 -> 0 | H31: =A3A!H261 -> 0 | I31: =A3A!I261 -> 0 | J31: =A3A!J261 -> 0 | K31: =A3A!K261 -> 0
A32: =A3A!A272 -> Vote 10 - [NAME OF VOTE 10] | C32: =A3A!C272 -> 0 | D32: =A3A!D272 -> 0 | E32: =A3A!E272 -> 0 | F32: =A3A!F272 -> 0 | G32: =A3A!G272 -> 0 | H32: =A3A!H272 -> 0 | I32: =A3A!I272 -> 0 | J32: =A3A!J272 -> 0 | K32: =A3A!K272 -> 0
A33: =A3A!A283 -> Vote 11 - [NAME OF VOTE 11] | C33: =A3A!C283 -> 0 | D33: =A3A!D283 -> 0 | E33: =A3A!E283 -> 0 | F33: =A3A!F283 -> 0 | G33: =A3A!G283 -> 0 | H33: =A3A!H283 -> 0 | I33: =A3A!I283 -> 0 | J33: =A3A!J283 -> 0 | K33: =A3A!K283 -> 0 | L33: =A3A!L284 -> 0
A34: =A3A!A294 -> Vote 12 - [NAME OF VOTE 12] | C34: =A3A!C294 -> 0 | D34: =A3A!D294 -> 0 | E34: =A3A!E294 -> 0 | F34: =A3A!F294 -> 0 | G34: =A3A!G294 -> 0 | H34: =A3A!H294 -> 0 | I34: =A3A!I294 -> 0 | J34: =A3A!J294 -> 0 | K34: =A3A!K294 -> 0 | L34: =A3A!L295 -> 0
A35: =A3A!A305 -> Vote 13 - [NAME OF VOTE 13] | C35: =A3A!C305 -> 0 | D35: =A3A!D305 -> 0 | E35: =A3A!E305 -> 0 | F35: =A3A!F305 -> 0 | G35: =A3A!G305 -> 0 | H35: =A3A!H305 -> 0 | I35: =A3A!I305 -> 0 | J35: =A3A!J305 -> 0 | K35: =A3A!K305 -> 0 | L35: =A3A!L306 -> 0
A36: =A3A!A316 -> Vote 14 - [NAME OF VOTE 14] | C36: =A3A!C316 -> 0 | D36: =A3A!D316 -> 0 | E36: =A3A!E316 -> 0 | F36: =A3A!F316 -> 0 | G36: =A3A!G316 -> 0 | H36: =A3A!H316 -> 0 | I36: =A3A!I316 -> 0 | J36: =A3A!J316 -> 0 | K36: =A3A!K316 -> 0 | L36: =A3A!L317 -> 0
A37: =A3A!A327 -> Vote 15 - [NAME OF VOTE 15] | C37: =A3A!C327 -> 0 | D37: =A3A!D327 -> 0 | E37: =A3A!E327 -> 0 | F37: =A3A!F327 -> 0 | G37: =A3A!G327 -> 0 | H37: =A3A!H327 -> 0 | I37: =A3A!I327 -> 0 | J37: =A3A!J327 -> 0 | K37: =A3A!K327 -> 0 | L37: =A3A!L328 -> 0
A38: Total Expenditure by Vote | B38: 2 | C38: =SUM(C23:C37) -> 227796204.4 | D38: =SUM(D23:D37) -> 348722751.8 | E38: 287743069.9 | F38: 300101935.1 | G38: 295700420.7 | H38: 297072096.9 | I38: 318288805.7 | J38: 331198807.2 | K38: 349692349.4 | L38: =SUM(L23:L29) -> 0 | M38: 0 | N38: 0 | O38: 0 | P38: 0 | Q38: 0 | R38: 0 | S38: 0 | T38: 0 | U38: 0 | V38: 0 | W38: 0
A39: =result -> Surplus/(Deficit) for the year | B39: 2 | C39: =C20-C38 -> 34200076.6 | D39: -69950209.87 | E39: -8764495.687 | F39: 3664303.154 | G39: 10198817.33 | H39: 8827141.064 | I39: 8255143.664 | J39: 15843867.66 | K39: 15593284.58 | L39: 0 | M39: 0 | N39: 0 | O39: 0 | P39: 0 | Q39: 0 | R39: 0 | S39: 0 | T39: 0 | U39: 0 | V39: 0 | W39: 0
A40: =head27a -> References
A41: 1. Insert 'Vote'; e.g. department, if different to functional classification structure
A42: 2. Must reconcile to Budgeted Financial Performance (revenue and expenditure)
A43: 3. Assign share in 'associate' to relevant Vote
A45: ="check "&A39 -> check Surplus/(Deficit) for the year | C45: =C39-A3A!C340 -> 0 | D45: =D39-A3A!D340 -> 0 | E45: =E39-A3A!E340 -> 0 | F45: =F39-A3A!F340 -> 0 | G45: =G39-A3A!G340 -> 0 | H45: =H39-A3A!H340 -> 0 | I45: =I39-A3A!I340 -> 0 | J45: =J39-A3A!J340 -> 0 | K45: =K39-A3A!K340 -> 0

Sheet A3A
A1: =muni&" - "&Approve2&"A" -> LIM471 Ephraim Mogale - Table A3 Budgeted Financial Performance (revenue and expenditure by municipal vote)A
A2: =Vdesc -> Vote Description | B2: =head27 -> Ref | C2: =head1b -> 2016/17 | D2: =head1A -> 2017/18 | E2: =Head1 -> 2018/19 | F2: =Head2 -> Current Year 2019/20 | I2: =Head3 -> 2020/21 Medium Term Revenue & Expenditure Framework | L2: =Head4 -> LTFS
A3: R thousand | C3: =Head5 -> Audited Outcome | D3: =Head5 -> Audited Outcome | E3: =Head5 -> Audited Outcome | F3: =Head6 -> Original Budget | G3: =Head7 -> Adjusted Budget | H3: =Head8 -> Full Year Forecast | I3: =Head9 -> Budget Year 2020/21 | J3: =Head10 -> Budget Year +1 2021/22 | K3: =Head11 -> Budget Year +2 2022/23 | L3: =Head12 -> Forecast 2023/24 | M3: =Head13 -> Forecast 2024/25 | N3: =Head14 -> Forecast 2025/26 | O3: =Head15 -> Forecast 2026/27 | P3: =Head16 -> Forecast 2027/28 | Q3: =Head17 -> Forecast 2028/29 | R3: =Head18 -> Forecast 2029/30 | S3: =Head19 -> Forecast 2030/31 | T3: =Head20 -> Forecast 2031/32 | U3: =Head21 -> Forecast 2032/33 | V3: =Head22 -> Forecast 2033/34 | W3: =Head23 -> Forecast 2034/35
A4: Revenue by Vote | B4: 1
A5: ='Org structure'!A2 -> Vote 1 - EXECUTIVE AND COUNCIL | C5: =SUM(C6:C15) -> 1708836 | D5: =SUM(D6:D15) -> 2094037 | E5: 2515698.5 | F5: 2286634.922 | G5: 2173032 | H5: 2173032 | I5: 2060408.614 | J5: 938388.2278 | K5: 983430.8627
A6: ='Org structure'!E3 -> 1.1 - COUNCIL GENERAL | C6: 1708836 | D6: 2094037 | E6: 2515698.5 | F6: 2286634.922 | G6: 2173032 | H6: 2173032 | I6: 2060408.614 | J6: 938388.2278 | K6: 983430.8627
A7: ='Org structure'!E4 -> 0
A8: ='Org structure'!E5 -> 0
A9: ='Org structure'!E6 -> 0
A10: ='Org structure'!E7 -> 0
A11: ='Org structure'!E8 -> 0
A12: ='Org structure'!E9 -> 0
A13: ='Org structure'!E10 -> 0
A14: ='Org structure'!E11 -> 0
A15: ='Org structure'!E12 -> 0
A16: ='Org structure'!A3 -> Vote 2 - MUNICIPAL MANAGER | C16: =SUM(C17:C26) -> 0 | D16: =SUM(D17:D26) -> 0 | E16: 0 | F16: 0 | G16: 0 | H16: 0 | I16: 0 | J16: 0 | K16: 0
A17: ='Org structure'!E14 -> 2.1 - MUNICIPAL MANAGER
A18: ='Org structure'!E15 -> 2.2 - URBAN RENEWAL
A19: ='Org structure'!E16 -> 0
A20: ='Org structure'!E17 -> 0
A21: ='Org structure'!E18 -> 0
A22: ='Org structure'!E19 -> 0
A23: ='Org structure'!E20 -> 0
A24: ='Org structure'!E21 -> 0
A25: ='Org structure'!E22 -> 0
A26: ='Org structure'!E23 -> 0
A27: ='Org structure'!A4 -> Vote 3 - FINANCE | C27: =SUM(C28:C37) -> 155984948 | D27: 173324798 | E27: 178288380.7 | F27: 196467051.5 | G27: 198667266 | H27: 198667266 | I27: 209985507.8 | J27: 225991332.1 | K27: 238353306.8
A28: ='Org structure'!E25 -> 3.1 - FINANCE | C28: 155984948 | D28: 173324798 | E28: 178288380.7 | F28: 196467051.5 | G28: 198667266 | H28: 198667266 | I28: 209985507.8 | J28: 225991332.1 | K28: 238353306.8
A29: ='Org structure'!E26 -> 3.3 - FLEET
A30: ='Org structure'!E27 -> 3.2 - STORES
A31: ='Org structure'!E28 -> 3,4 - Information Technology
A32: ='Org structure'!E29 -> 0
A33: ='Org structure'!E30 -> 0
A34: ='Org structure'!E31 -> 0
A35: ='Org structure'!E32 -> 0
A36: ='Org structure'!E33 -> 0
A37: ='Org structure'!E34 -> 0
A38: ='Org structure'!A5 -> Vote 4 - CORPORATE SERVICES MANAGEMENT | C38: =SUM(C39:C48) -> 0 | D38: 0 | E38: 0 | F38: 0 | G38: 0 | H38: 0 | I38: 0 | J38: 0 | K38: 0
A39: ='Org structure'!E36 -> 4.1 - HUMAN RESOURCES
A40: ='Org structure'!E37 -> 4.2 - ADMINISTRATION
A41: ='Org structure'!E38 -> 4.3 - CORPORATE SERVICES MANAGEMENT
A42: ='Org structure'!E39 -> 4.4 - ICT
A43: ='Org structure'!E40 -> 4,5 - COMMINICATION
A44: ='Org structure'!E41 -> 4,6 - Legal
A45: ='Org structure'!E42 -> 0
A46: ='Org structure'!E43 -> 0
A47: ='Org structure'!E44 -> 0
A48: ='Org structure'!E45 -> 0
A49: ='Org structure'!A6 -> Vote 5 - TECHNICAL SERVICES | C49: =SUM(C50:C59) -> 88580938 | D49: =SUM(D50:D59) -> 94115458 | E49: 89801648.46 | F49: 96204291.5 | G49: 94972288 | H49: 94972288 | I49: 103697631.1 | J49: 108794133.4 | K49: 114086771.8
A50: ='Org structure'!E47 -> 5.1 - ELECTRICITY | C50: 50860606 | D50: 51107241 | E50: 55176865.47 | F50: 62761291.5 | G50: 61529284 | H50: 61529284 | I50: 70459631.06 | J50: 72909133.36 | K50: 76264771.76
A51: ='Org structure'!E48 -> 5.2 - TECHNICAL
A52: ='Org structure'!E49 -> 5.3 - ROADS & STORMWATER | C52: 37720332 | D52: 43008217 | E52: 34624782.99 | F52: 33443000 | G52: 33443004 | H52: 33443004 | I52: 33238000 | J52: 35885000 | K52: 37822000
A53: ='Org structure'!E50 -> 5,8 - [Name of sub-vote]
A54: ='Org structure'!E51 -> 0
A55: ='Org structure'!E52 -> 0
A56: ='Org structure'!E53 -> 0
A57: ='Org structure'!E54 -> 0
A58: ='Org structure'!E55 -> 0
A59: ='Org structure'!E56 -> 0
A60: ='Org structure'!A7 -> Vote 6 - PLANNING & ECONOMIC DEVELOPMENT | C60: =SUM(C61:C70) -> 234815 | D60: =SUM(D61:D70) -> 284699 | E60: 225217.6323 | F60: 236934.6381 | G60: 243996 | H60: 243996 | I60: 255224 | J60: 267474.752 | K60: 280313.5401
A61: ='Org structure'!E58 -> 6.1 - HOUSING & BUILDING CONTROL | C61: 221747 | D61: 256474 | E61: 175217.5841 | F61: 184334.6381 | G61: 198996 | H61: 198996 | I61: 208154 | J61: 218145.392 | K61: 228616.3708
A62: ='Org structure'!E59 -> 6.2 - URBAN RENEWAL | C62: 13068 | D62: 28225 | E62: 50000.04824 | F62: 52600 | G62: 45000 | H62: 45000 | I62: 47070 | J62: 49329.36 | K62: 51697.16928
A63: ='Org structure'!E60 -> 0
A64: ='Org structure'!E61 -> 0
A65: ='Org structure'!E62 -> 0
A66: ='Org structure'!E63 -> 0
A67: ='Org structure'!E64 -> 0
A68: ='Org structure'!E65 -> 0
A69: ='Org structure'!E66 -> 0
A70: ='Org structure'!E67 -> 0
A71: ='Org structure'!A8 -> Vote 7 - COMMUNITY SERVICES MANAGEMENT | C71: =SUM(C72:C81) -> 15486744 | D71: 8953549.92 | E71: 8147628.981 | F71: 8571325.696 | G71: 9842656 | H71: 9842656 | I71: 10545177.87 | J71: 11051346.41 | K71: 11581811.04
A72: ='Org structure'!E69 -> 7.1 - COMMUNITY SERVICES MANAGEMENT
A73: ='Org structure'!E70 -> 7.2 - LIBRARY | D73: 1873.87 | E73: 2916.144 | F73: 3080.256 | G73: 3564 | H73: 3564 | I73: 3732.128 | J73: 3911.270144 | K73: 4099.011111
A74: ='Org structure'!E71 -> 7.3 - HEALTH GENERAL | E74: 0
A75: ='Org structure'!E72 -> 7.4 - REGISTRATION AUTHORITY | C75: 10839688 | D75: 3982328.55 | E75: 3530611.933 | F75: 3714208.032 | G75: 4880944 | H75: 4880944 | I75: 5105467.424 | J75: 5350529.86 | K75: 5607355.294
A76: ='Org structure'!E73 -> 7.5 - LICENCING & TRAFFIC | C76: 1088650 | D76: 1010220 | E76: 96258 | F76: 101269.728 | G76: 126000 | H76: 126000 | I76: 131796 | J76: 138122.208 | K76: 144752.074
A77: ='Org structure'!E74 -> 7.6 - PARKS & CEMETRIES | C77: 27758 | D77: 50076.53 | E77: 47104.23144 | F77: 49553.408 | G77: 49560 | H77: 49560 | I77: 51839.76 | J77: 54328.06848 | K77: 56935.81577
A78: ='Org structure'!E75 -> 7.7 - SOLID WASTE | C78: 3530648 | D78: 3909050.97 | E78: 4470738.672 | F78: 4703214.272 | G78: 4782588 | H78: 4782588 | I78: 5252342.56 | J78: 5504455.003 | K78: 5768668.843
A79: ='Org structure'!E76 -> 7.8 - SPORTS ARTS AND CULTURE
A80: ='Org structure'!E77 -> 7.9 - HIV/AIDS
A81: ='Org structure'!E78 -> 0
A82: ='Org structure'!A9 -> Vote 8 - [NAME OF VOTE 8] | C82: =SUM(C83:C92) -> 0 | D82: =SUM(D83:D92) -> 0 | E82: 0 | F82: 0 | G82: 0 | H82: 0 | I82: 0 | J82: 0 | K82: 0
A83: ='Org structure'!E80 -> 8.1 - [Name of sub-vote]
A84: ='Org structure'!E81 -> 0
A85: ='Org structure'!E82 -> 0
A86: ='Org structure'!E83 -> 0
A87: ='Org structure'!E84 -> 0
A88: ='Org structure'!E85 -> 0
A89: ='Org structure'!E86 -> 0
A90: ='Org structure'!E87 -> 0
A91: ='Org structure'!E88 -> 0
A92: ='Org structure'!E89 -> 0
A93: ='Org structure'!A10 -> Vote 9 - [NAME OF VOTE 9] | C93: =SUM(C94:C103) -> 0 | D93: =SUM(D94:D103) -> 0 | E93: 0 | F93: 0 | G93: 0 | H93: 0 | I93: 0 | J93: 0 | K93: 0
A94: ='Org structure'!E91 -> 9.1 - [Name of sub-vote]
A95: ='Org structure'!E92 -> 0
A96: ='Org structure'!E93 -> 0
A97: ='Org structure'!E94 -> 0
A98: ='Org structure'!E95 -> 0
A99: ='Org structure'!E96 -> 0
A100: ='Org structure'!E97 -> 0
A101: ='Org structure'!E98 -> 0
A102: ='Org structure'!E99 -> 0
A103: ='Org structure'!E100 -> 0
A104: ='Org structure'!A11 -> Vote 10 - [NAME OF VOTE 10] | C104: =SUM(C105:C114) -> 0 | D104: =SUM(D105:D114) -> 0 | E104: 0 | F104: 0 | G104: 0 | H104: 0 | I104: 0 | J104: 0 | K104: 0
A105: ='Org structure'!E102 -> 10.1 - [Name of sub-vote]
A106: ='Org structure'!E103 -> 0
A107: ='Org structure'!E104 -> 0
A108: ='Org structure'!E105 -> 0
A109: ='Org structure'!E106 -> 0
A110: ='Org structure'!E107 -> 0
A111: ='Org structure'!E108 -> 0
A112: ='Org structure'!E109 -> 0
A113: ='Org structure'!E110 -> 0
A114: ='Org structure'!E111 -> 0
A115: ='Org structure'!A12 -> Vote 11 - [NAME OF VOTE 11] | C115: =SUM(C116:C125) -> 0 | D115: =SUM(D116:D125) -> 0 | E115: 0 | F115: 0 | G115: 0 | H115: 0 | I115: 0 | J115: 0 | K115: 0
A116: ='Org structure'!E113 -> 11.1 - [Name of sub-vote]
A117: ='Org structure'!E114 -> 0
A118: ='Org structure'!E115 -> 0
A119: ='Org structure'!E116 -> 0
A120: ='Org structure'!E117 -> 0
A121: ='Org structure'!E118 -> 0
A122: ='Org structure'!E119 -> 0
A123: ='Org structure'!E120 -> 0
A124: ='Org structure'!E121 -> 0
A125: ='Org structure'!E122 -> 0
A126: ='Org structure'!A13 -> Vote 12 - [NAME OF VOTE 12] | C126: =SUM(C127:C136) -> 0 | D126: =SUM(D127:D136) -> 0 | E126: 0 | F126: 0 | G126: 0 | H126: 0 | I126: 0 | J126: 0 | K126: 0
A127: ='Org structure'!E124 -> 12.1 - [Name of sub-vote]
A128: ='Org structure'!E125 -> 0
A129: ='Org structure'!E126 -> 0
A130: ='Org structure'!E127 -> 0
A131: ='Org structure'!E128 -> 0
A132: ='Org structure'!E129 -> 0
A133: ='Org structure'!E130 -> 0
A134: ='Org structure'!E131 -> 0
A135: ='Org structure'!E132 -> 0
A136: ='Org structure'!E133 -> 0
A137: ='Org structure'!A14 -> Vote 13 - [NAME OF VOTE 13] | C137: =SUM(C138:C147) -> 0 | D137: =SUM(D138:D147) -> 0 | E137: 0 | F137: 0 | G137: 0 | H137: 0 | I137: 0 | J137: 0 | K137: 0
A138: ='Org structure'!E135 -> 13.1 - [Name of sub-vote]
A139: ='Org structure'!E136 -> 0
A140: ='Org structure'!E137 -> 0
A141: ='Org structure'!E138 -> 0
A142: ='Org structure'!E139 -> 0
A143: ='Org structure'!E140 -> 0
A144: ='Org structure'!E141 -> 0
A145: ='Org structure'!E142 -> 0
A146: ='Org structure'!E143 -> 0
A147: ='Org structure'!E144 -> 0
A148: ='Org structure'!A15 -> Vote 14 - [NAME OF VOTE 14] | C148: =SUM(C149:C158) -> 0 | D148: =SUM(D149:D158) -> 0 | E148: 0 | F148: 0 | G148: 0 | H148: 0 | I148: 0 | J148: 0 | K148: 0
A149: ='Org structure'!E146 -> 14.1 - [Name of sub-vote]
A150: ='Org structure'!E147 -> 0
A151: ='Org structure'!E148 -> 0
A152: ='Org structure'!E149 -> 0
A153: ='Org structure'!E150 -> 0
A154: ='Org structure'!E151 -> 0
A155: ='Org structure'!E152 -> 0
A156: ='Org structure'!E153 -> 0
A157: ='Org structure'!E154 -> 0
A158: ='Org structure'!E155 -> 0
A159: ='Org structure'!A16 -> Vote 15 - [NAME OF VOTE 15] | C159: =SUM(C160:C169) -> 0 | D159: =SUM(D160:D169) -> 0 | E159: 0 | F159: 0 | G159: 0 | H159: 0 | I159: 0 | J159: 0 | K159: 0
A160: ='Org structure'!E157 -> 15.1 - [Name of sub-vote]
A161: ='Org structure'!E158 -> 0
A162: ='Org structure'!E159 -> 0
A163: ='Org structure'!E160 -> 0
A164: ='Org structure'!E161 -> 0
A165: ='Org structure'!E162 -> 0
A166: ='Org structure'!E163 -> 0
A167: ='Org structure'!E164 -> 0
A168: ='Org structure'!E165 -> 0
A169: ='Org structure'!E166 -> 0
A170: Total Revenue by Vote | B170: 2 | C170: =C5+C16+C27+C38+C49+C60+C71+C82+C93+C104+C115+C126+C137+C148+C159 -> 261996281 | D170: =D5+D16+D27+D38+D49+D60+D71+D82+D93+D104+D115+D126+D137+D148+D159 -> 278772541.9 | E170: =E5+E16+E27+E38+E49+E60+E71+E82+E93+E104+E115+E126+E137+E148+E159 -> 278978574.2 | F170: 303766238.2 | G170: 305899238 | H170: 305899238 | I170: =I5+I16+I27+I38+I49+I60+I71+I82+I93+I104+I115+I126+I137+I148+I159 -> 326543949.3 | J170: 347042674.9 | K170: 365285634 | L170: =SUM(L78:L81) -> 0 | M170: 0 | N170: 0 | O170: 0 | P170: 0 | Q170: 0 | R170: 0 | S170: 0 | T170: 0 | U170: 0 | V170: 0 | W170: 0
A172: Expenditure by Vote | B172: 1
A173: =A5 -> Vote 1 - EXECUTIVE AND COUNCIL | C173: =SUM(C174:C183) -> 25381517.73 | D173: 37980150.44 | E173: 35222154.46 | F173: 35651057.13 | G173: 33696162 | H173: 33696162 | I173: 29687920 | J173: 30096865 | K173: 30606710
A174: =A6 -> 1.1 - COUNCIL GENERAL | C174: 25381517.73 | D174: 37980150.44 | E174: 35222154.46 | F174: 35651057.13 | G174: 33696162 | H174: 33696162 | I174: 29687920 | J174: 30096865 | K174: 30606710
A175: 0
A176: 0
A177: 0
A178: 0
A179: 0
A180: 0
A181: 0
A182: 0
A183: 0
A184: =A16 -> Vote 2 - MUNICIPAL MANAGER | C184: =SUM(C185:C194) -> 4205292.59 | D184: =SUM(D185:D194) -> 9381427.92 | E184: =SUM(E185:E194) -> 11129383.1 | F184: 11436276.48 | G184: 11049210 | H184: 11049210 | I184: 11951472 | J184: 12013814 | K184: 12424799
A185: =A17 -> 2.1 - MUNICIPAL MANAGER | C185: 4205292.59 | D185: 9381427.92 | E185: 11129383.1 | F185: 11436276.48 | G185: 11049210 | H185: 11049210 | I185: 11951472 | J185: 12013814 | K185: 12424799
A186: 2.2 - URBAN RENEWAL
A187: 0
A188: 0
A189: 0
A190: 0
A191: 0
A192: 0
A193: 0
A194: 0
A195: =A27 -> Vote 3 - FINANCE | C195: =SUM(C196:C205) -> 84662281.7 | D195: 192528753.8 | E195: 105471151.5 | F195: 102487832.2 | G195: 102483715.7 | H195: 103855392 | I195: 112217834 | J195: 109739847 | K195: 114850282
A196: 3.1 - FINANCE | C196: 76832796.32 | D196: 184622470.9 | E196: 95404021.39 | F196: 93199970.67 | G196: 93199970.67 | H196: 93814582 | I196: 102872063 | J196: 99909939 | K196: 104510770
A197: 3.3 - FLEET | C197: 414995.41 | D197: 373181.93 | E197: 586975.96 | F197: 631002.425 | G197: 8656859.06 | H197: 9413924 | I197: 8671869 | J197: 9105465 | K197: 9560735
A198: 3.2 - STORES | C198: 7414489.97 | D198: 7533100.99 | E198: 9480154.135 | F198: 8656859.06 | G198: 626886 | H198: 626886 | I198: 673902 | J198: 724443 | K198: 778777
A199: =A201 -> 0
A200: 0
A201: 0
... 144 more rows

Sheet A4-FinPerf RE
A1: =muni&" - "&Approve4 -> LIM471 Ephraim Mogale - Table A4 Budgeted Financial Performance (revenue and expenditure)
A2: =desc -> Description | B2: =head27 -> Ref | C2: =head1b -> 2016/17 | D2: =head1A -> 2017/18 | E2: =Head1 -> 2018/19 | F2: =Head2 -> Current Year 2019/20 | J2: =Head3 -> 2020/21 Medium Term Revenue & Expenditure Framework | M2: =Head4 -> LTFS
A3: R thousand | B3: 1 | C3: =Head5 -> Audited Outcome | D3: =Head5 -> Audited Outcome | E3: =Head5 -> Audited Outcome | F3: =Head6 -> Original Budget | G3: =Head7 -> Adjusted Budget | H3: =Head8 -> Full Year Forecast | I3: =Head5b -> Pre-audit outcome | J3: =Head9 -> Budget Year 2020/21 | K3: =Head10 -> Budget Year +1 2021/22 | L3: =Head11 -> Budget Year +2 2022/23 | M3: =Head12 -> Forecast 2023/24 | N3: =Head13 -> Forecast 2024/25 | O3: =Head14 -> Forecast 2025/26 | P3: =Head15 -> Forecast 2026/27 | Q3: =Head16 -> Forecast 2027/28 | R3: =Head17 -> Forecast 2028/29 | S3: =Head18 -> Forecast 2029/30 | T3: =Head19 -> Forecast 2030/31 | U3: =Head20 -> Forecast 2031/32 | V3: =Head21 -> Forecast 2032/33 | W3: =Head22 -> Forecast 2033/34 | X3: =Head23 -> Forecast 2034/35
A4: Revenue By Source
A5: Property rates | B5: 2 | C5: ='SA1'!C9 -> 31425047 | D5: ='SA1'!D9 -> 33437488 | E5: ='SA1'!E9 -> 35654755.19 | F5: ='SA1'!F9 -> 37508803.88 | G5: ='SA1'!G9 -> 37405604 | H5: ='SA1'!H9 -> 37405604 | I5: ='SA1'!I9 -> 37405604 | J5: ='SA1'!J9 -> 39126261.78 | K5: ='SA1'!K9 -> 41004322.35 | L5: ='SA1'!L9 -> 42972529.82
A6: Service charges - electricity revenue | B6: 2 | C6: ='SA1'!C15 -> 47943356 | D6: ='SA1'!D15 -> 43760856 | E6: ='SA1'!E15 -> 57470614.63 | F6: ='SA1'!F15 -> 61224400 | G6: ='SA1'!G15 -> 61529284 | H6: ='SA1'!H15 -> 61529284 | I6: ='SA1'!I15 -> 61529284 | J6: ='SA1'!J15 -> 63770000 | K6: ='SA1'!K15 -> 69909133.36 | L6: ='SA1'!L15 -> 73264771.76
A7: Service charges - water revenue | B7: 2 | C7: ='SA1'!C21 -> 0 | D7: ='SA1'!D21 -> 0 | E7: ='SA1'!E21 -> 0 | F7: ='SA1'!F21 -> 0 | G7: ='SA1'!G21 -> 0 | H7: 0 | I7: ='SA1'!I21 -> 0 | J7: ='SA1'!J21 -> 0 | K7: ='SA1'!K21 -> 0 | L7: ='SA1'!L21 -> 0
A8: Service charges - sanitation revenue | B8: 2 | C8: ='SA1'!C27 -> 0 | D8: ='SA1'!D27 -> 0 | E8: ='SA1'!E27 -> 0 | F8: ='SA1'!F27 -> 0 | G8: ='SA1'!G27 -> 0 | H8: 0 | I8: ='SA1'!I27 -> 0 | J8: ='SA1'!J27 -> 0 | K8: ='SA1'!K27 -> 0 | L8: ='SA1'!L27 -> 0
A9: Service charges - refuse revenue | B9: 2 | C9: ='SA1'!C34 -> 3228115 | D9: ='SA1'!D34 -> 3909051 | E9: ='SA1'!E34 -> 4243768 | F9: ='SA1'!F34 -> 4462865.936 | G9: ='SA1'!G34 -> 5021360 | H9: ='SA1'!H34 -> 5021360 | I9: ='SA1'!I34 -> 5021360 | J9: ='SA1'!J34 -> 5000926 | K9: ='SA1'!K34 -> 5504455.003 | L9: ='SA1'!L34 -> 5768668.843
A11: Rental of facilities and equipment | C11: 112897 | D11: 256475 | E11: 156223 | F11: 163294.6381 | G11: 182004 | H11: 182004 | I11: 182004 | J11: 189326 | K11: 198413.648 | L11: 207937.5031
A12: Interest earned - external investments | C12: 7435467 | D12: 7711892 | E12: 3502634.76 | F12: 3684777.28 | G12: 5569998 | H12: 5569998 | I12: 5569998 | J12: 4000000 | K12: 5837360 | L12: 5837360
A13: Interest earned - outstanding debtors | C13: 4976894 | D13: 6001823 | E13: 7093806.542 | F13: 7462684.733 | G13: 7900002 | H13: 7900002 | I13: 7900002 | J13: 8263400 | K13: 8660043.2 | L13: 9075725.274
A14: Dividends received | E14: 0 | G14: 0 | H14: 0 | I14: 0
A15: Fines, penalties and forfeits | C15: 1256769 | D15: 1010220 | E15: 106504 | F15: 101269.728 | G15: 134250 | H15: 134250 | I15: 134250 | J15: 131796 | K15: 138122.208 | L15: 144752.074
A16: Licences and permits | C16: 3116065 | D16: 3894749 | E16: 3347652 | F16: 3345216 | G16: 4877910 | H16: 4877910 | I16: 4877910 | J16: 5105467.424 | K16: 5350529.86 | L16: 5607355.294
A17: Agency services | C17: 900000 | E17: 0 | G17: 0 | H17: 0 | I17: 0
A18: Transfers and subsidies | C18: 120499328 | D18: 127358000 | E18: 133485000 | F18: 148974000 | G18: 148974012 | H18: 148974012 | I18: 148974012 | J18: 164216000 | K18: 173342000 | L18: 183313000
A19: Other revenue | B19: 2 | C19: ='SA1'!C49 -> 3382866 | D19: ='SA1'!D49 -> 228660 | E19: ='SA1'!E49 -> 0 | F19: ='SA1'!F49 -> 3395926.026 | G19: ='SA1'!G49 -> 1106811.18 | H19: ='SA1'!H49 -> 1106811.18 | I19: ='SA1'!I49 -> 1106811.18 | J19: ='SA1'!J49 -> 3008772.114 | K19: ='SA1'!K49 -> 1213295.27 | L19: ='SA1'!L49 -> 1271533.443
A20: Gains | D20: 99525
A21: Total Revenue (excluding capital transfers and contributions) | C21: =SUM(C5:C9)+SUM(C11:C20) -> 224276804 | D21: =SUM(D5:D9)+SUM(D11:D20) -> 227668739 | E21: 245060958.1 | F21: 270323238.2 | G21: 272701235.2 | H21: 272701235.2 | I21: 272701235.2 | J21: 292811949.3 | K21: 311157674.9 | L21: 327463634 | M21: =SUM(M5:M20) -> 0 | N21: 0 | O21: 0 | P21: 0 | Q21: 0 | R21: 0 | S21: 0 | T21: 0 | U21: 0 | V21: 0 | W21: 0 | X21: 0
A23: Expenditure By Type
A24: Employee related costs | B24: 2 | C24: ='SA1'!C67 -> 70975660 | D24: ='SA1'!D67 -> 74433473 | E24: ='SA1'!E67 -> 86113908 | F24: ='SA1'!F67 -> 87714613.57 | G24: ='SA1'!G67 -> 91074472.28 | H24: ='SA1'!H67 -> 91074472.28 | I24: ='SA1'!I67 -> 91074472.28 | J24: ='SA1'!J67 -> 97556302 | K24: ='SA1'!K67 -> 99881750 | L24: ='SA1'!L67 -> 103562088
A25: Remuneration of councillors | C25: 11328932 | D25: 13388896 | E25: 13524690.68 | F25: 14533209.48 | G25: 14533344 | H25: 14533344 | I25: 14533344 | J25: 15623347 | K25: 15696015 | L25: 15768678
A26: Debt impairment | B26: 3 | C26: 8690985 | D26: 5785065 | E26: 12449446 | F26: 13320907.64 | G26: 13320907.64 | H26: 13320907.64 | I26: 13320907.64 | J26: 13986958 | K26: 14686305 | L26: 15420621
A27: Depreciation & asset impairment | B27: 2 | C27: ='SA1'!C83 -> 46756190 | D27: ='SA1'!D83 -> 45000000 | E27: ='SA1'!E83 -> 50000000 | F27: ='SA1'!F83 -> 52000000 | G27: ='SA1'!G83 -> 52000008 | H27: ='SA1'!H83 -> 52000008 | I27: ='SA1'!I83 -> 52000008 | J27: ='SA1'!J83 -> 54600008 | K27: ='SA1'!K83 -> 57330009 | L27: ='SA1'!L83 -> 60196509
A28: Finance charges | C28: 3493578 | D28: 3597669 | E28: 150000 | F28: 365000 | G28: 365000 | H28: 365000 | I28: 365000 | J28: 53496 | K28: 11029 | L28: 11581
A29: Bulk purchases | B29: 2 | C29: ='SA1'!C88 -> 29357077 | D29: ='SA1'!D88 -> 30469771.2 | E29: ='SA1'!E88 -> 36399996.87 | F29: ='SA1'!F88 -> 42224000 | G29: ='SA1'!G88 -> 39000000 | H29: ='SA1'!H88 -> 39000000 | I29: ='SA1'!I88 -> 39000000 | J29: ='SA1'!J88 -> 42000000 | K29: ='SA1'!K88 -> 51577500 | L29: ='SA1'!L88 -> 59314125
A30: Other materials | B30: 8 | C30: 6838643 | D30: 5565074.71 | E30: 2323708 | F30: 1275347.28 | G30: 1881422 | H30: 1881422 | I30: 1881422 | J30: 15916009 | K30: 15613124 | L30: 16394935
A31: Contracted services | C31: ='SA1'!C127 -> 13009399 | D31: ='SA1'!D127 -> 14551505.38 | E31: ='SA1'!E127 -> 38937970 | F31: ='SA1'!F127 -> 36354927.8 | G31: ='SA1'!G127 -> 38286517 | H31: ='SA1'!H127 -> 38286517 | I31: ='SA1'!I127 -> 38286517 | J31: ='SA1'!J127 -> 45508861 | K31: ='SA1'!K127 -> 41228071 | L31: ='SA1'!L127 -> 41301571
A32: Transfers and subsidies | C32: ='SA1'!C93 -> 0 | D32: ='SA1'!D93 -> 0 | E32: ='SA1'!E93 -> 0 | F32: ='SA1'!F93 -> 0 | G32: ='SA1'!G93 -> 0 | H32: ='SA1'!H93 -> 0 | I32: ='SA1'!I93 -> 0 | J32: ='SA1'!J93 -> 0 | K32: ='SA1'!K93 -> 0 | L32: ='SA1'!L93 -> 0
A33: Other expenditure | B33: 4, 5 | C33: ='SA1'!C157 -> 34117740.4 | D33: ='SA1'!D157 -> 143639447.2 | E33: ='SA1'!E157 -> 41085856 | F33: ='SA1'!F157 -> 52313929.3 | G33: ='SA1'!G157 -> 70304341 | H33: ='SA1'!H157 -> 70304341 | I33: ='SA1'!I157 -> 70304341 | J33: ='SA1'!J157 -> 25686823.69 | K33: ='SA1'!K157 -> 35175005 | L33: ='SA1'!L157 -> 37722241
A34: Losses
A35: Total Expenditure | C35: =SUM(C24:C34) -> 224568204.4 | D35: =SUM(D24:D34) -> 336430901.5 | E35: 280985575.5 | F35: 300101935.1 | G35: 320766011.9 | H35: 320766011.9 | I35: 320766011.9 | J35: 310931804.7 | K35: 331198808 | L35: 349692349 | M35: =SUM(M24:M34) -> 0 | N35: 0 | O35: 0 | P35: 0 | Q35: 0 | R35: 0 | S35: 0 | T35: 0 | U35: 0 | V35: 0 | W35: 0 | X35: 0
A37: Surplus/(Deficit) | C37: =C21-C35 -> -291400.4 | D37: -108762162.5 | E37: -35924617.42 | F37: -29778696.85 | G37: -48064776.74 | H37: -48064776.74 | I37: -48064776.74 | J37: -18119855.36 | K37: -20041133.11 | L37: -22228714.99 | M37: =M21+M35 -> 0 | N37: 0 | O37: 0 | P37: 0 | Q37: 0 | R37: 0 | S37: 0 | T37: 0 | U37: 0 | V37: 0 | W37: 0 | X37: 0
A38: Transfers and subsidies - capital (monetary allocations) (National / Provincial and District) | C38: 37720309 | D38: 43008217 | E38: 34624782.99 | F38: 33443000 | G38: 33443000 | H38: 33443000 | I38: 33443000 | J38: 33238000 | K38: 35885000 | L38: 37822000
A39: Transfers and subsidies - capital (monetary allocations) (National / Provincial Departmental Agencies, Households, Non-profit Institutions, Private Enterprises, Public Corporatons, Higher Educational Institutions) | B39: 6 | C39: ='SA1'!C76 -> 0 | D39: ='SA1'!D76 -> 0 | E39: ='SA1'!E76 -> 0 | F39: ='SA1'!F76 -> 0 | G39: ='SA1'!G76 -> 0 | H39: ='SA1'!H76 -> 0 | I39: ='SA1'!I76 -> 0 | J39: ='SA1'!J76 -> 0 | K39: ='SA1'!K76 -> 0 | L39: ='SA1'!L76 -> 0
A40: Transfers and subsidies - capital (in-kind - all)
A41: Surplus/(Deficit) after capital transfers & contributions | C41: =SUM(C37:C40) -> 37428908.6 | D41: -65753945.47 | E41: -1299834.433 | F41: 3664303.154 | G41: -14621776.74 | H41: -14621776.74 | I41: -14621776.74 | J41: 15118144.64 | K41: 15843866.89 | L41: 15593285.01
A42: Taxation
A43: Surplus/(Deficit) after taxation | C43: =C41-C42 -> 37428908.6 | D43: -65753945.47 | E43: -1299834.433 | F43: 3664303.154 | G43: -14621776.74 | H43: -14621776.74 | I43: -14621776.74 | J43: 15118144.64 | K43: 15843866.89 | L43: 15593285.01
A44: Attributable to minorities
A45: Surplus/(Deficit) attributable to municipality | C45: =SUM(C43:C44) -> 37428908.6 | D45: -65753945.47 | E45: -1299834.433 | F45: 3664303.154 | G45: -14621776.74 | H45: -14621776.74 | I45: -14621776.74 | J45: 15118144.64 | K45: 15843866.89 | L45: 15593285.01
A46: Share of surplus/ (deficit) of associate | B46: 7
A47: =result -> Surplus/(Deficit) for the year | C47: =SUM(C45:C46) -> 37428908.6 | D47: -65753945.47 | E47: -1299834.433 | F47: 3664303.154 | G47: -14621776.74 | H47: -14621776.74 | I47: -14621776.74 | J47: 15118144.64 | K47: 15843866.89 | L47: 15593285.01 | M47: =M25+M46 -> 0 | N47: 0 | O47: 0 | P47: 0 | Q47: 0 | R47: 0 | S47: 0 | T47: 0 | U47: 0 | V47: 0 | W47: 0 | X47: 0
A48: =head27a -> References
A49: 1. Classifications are revenue sources and expenditure type
A50: 2. Detail to be provided in Table SA1
A51: 3. Previously described as 'bad or doubtful debts' - amounts shown should reflect the change in the provision for debt impairment
A52: 4. Expenditure type components previously shown under repairs and maintenance should be allocated back to the originating expenditure group/item; e.g. employee costs
A53: 5. Repairs & maintenance detailed in Table A9 and Table SA34c
A54: 6. Contributions are funds provided by external organisations to assist with infrastructure development; e.g. developer contributions (detail to be provided in Table SA1)
A55: 7. Equity method ( Includes Joint Ventures)
A56: 8. All materials not part of 'bulk' e.g road making materials, pipe, cable etc.
A57: check balance | C57: =C45-'A3-FinPerf V'!C39 -> 3228832 | D57: =D45-'A3-FinPerf V'!D39 -> 4196264.4 | E57: =E45-'A3-FinPerf V'!E39 -> 7464661.254 | F57: =F45-'A3-FinPerf V'!F39 -> 0 | G57: =G45-'A3-FinPerf V'!G39 -> -24820594.07 | H57: =H45-'A3-FinPerf V'!H39 -> -23448917.8 | J57: =J45-'A3-FinPerf V'!I39 -> 6863000.972 | K57: =K45-'A3-FinPerf V'!J39 -> -0.7622869015 | L57: =L45-'A3-FinPerf V'!K39 -> 0.4331232309
A59: Total revenue | C59: =C21+SUM(C38:C40) -> 261997113 | D59: 270676956 | E59: 279685741.1 | F59: 303766238.2 | G59: 306144235.2 | H59: 306144235.2 | I59: 306144235.2 | J59: 326049949.3 | K59: 347042674.9 | L59: 365285634

Sheet A5-Capex
A2: =Vdesc -> Vote Description | B2: =head27 -> Ref | C2: =head1b -> 2016/17 | D2: =head1A -> 2017/18 | E2: =Head1 -> 2018/19 | F2: =Head2 -> Current Year 2019/20 | J2: =Head3 -> 2020/21 Medium Term Revenue & Expenditure Framework
A3: R thousand | B3: 1 | C3: =Head5 -> Audited Outcome | D3: =Head5 -> Audited Outcome | E3: =Head5 -> Audited Outcome | F3: =Head6 -> Original Budget | G3: =Head7 -> Adjusted Budget | H3: =Head8 -> Full Year Forecast | I3: =Head5b -> Pre-audit outcome | J3: =Head9 -> Budget Year 2020/21 | K3: =Head10 -> Budget Year +1 2021/22 | L3: =Head11 -> Budget Year +2 2022/23
A4: Capital expenditure - Vote
A5: Multi-year expenditure to be appropriated | B5: 2
A6: =A5A!A6 -> Vote 1 - EXECUTIVE AND COUNCIL | C6: =A5A!C6 -> 790794 | D6: =A5A!D6 -> 0 | E6: =A5A!E6 -> 0 | F6: =A5A!F6 -> 0 | G6: =A5A!G6 -> 0 | H6: =A5A!H6 -> 0 | I6: =A5A!I6 -> 0 | J6: =A5A!J6 -> 0 | K6: =A5A!K6 -> 0 | L6: =A5A!L6 -> 0
A7: =A5A!A17 -> Vote 2 - MUNICIPAL MANAGER | C7: =A5A!C17 -> 0 | D7: =A5A!D17 -> 0 | E7: =A5A!E17 -> 0 | F7: =A5A!F17 -> 0 | G7: =A5A!G17 -> 0 | H7: =A5A!H17 -> 0 | I7: =A5A!I17 -> 0 | J7: =A5A!J17 -> 0 | K7: =A5A!K17 -> 0 | L7: =A5A!L17 -> 0
A8: =A5A!A28 -> Vote 3 - FINANCE | C8: =A5A!C28 -> 0 | D8: =A5A!D28 -> 606929.48 | E8: =A5A!E28 -> 252000 | F8: =A5A!F28 -> 70008 | G8: =A5A!G28 -> 70008 | H8: =A5A!H28 -> 70008 | I8: =A5A!I28 -> 70008 | J8: =A5A!J28 -> 0 | K8: =A5A!K28 -> 0 | L8: =A5A!L28 -> 0
A9: =A5A!A39 -> Vote 4 - CORPORATE SERVICES MANAGEMENT | C9: =A5A!C39 -> 671404.06 | D9: =A5A!D39 -> 261609.26 | E9: =A5A!E39 -> 1261500 | F9: =A5A!F39 -> 1910040 | G9: =A5A!G39 -> 1970040 | H9: =A5A!H39 -> 1970040 | I9: =A5A!I39 -> 1970040 | J9: =A5A!J39 -> 815000 | K9: =A5A!K39 -> 70000 | L9: =A5A!L39 -> 0
A10: =A5A!A50 -> Vote 5 - TECHNICAL SERVICES | C10: =A5A!C50 -> 52738036.93 | D10: =A5A!D50 -> 50276708.16 | E10: =A5A!E50 -> 41365733.78 | F10: =A5A!F50 -> 46836648 | G10: =A5A!G50 -> 46820858 | H10: =A5A!H50 -> 46820858 | I10: =A5A!I50 -> 46820858 | J10: =A5A!J50 -> 44076100 | K10: =A5A!K50 -> 55690750 | L10: =A5A!L50 -> 45930900
A11: =A5A!A61 -> Vote 6 - PLANNING & ECONOMIC DEVELOPMENT | C11: =A5A!C61 -> 253792.5 | D11: =A5A!D61 -> 25234.64 | E11: =A5A!E61 -> 200000 | F11: =A5A!F61 -> 100008 | G11: =A5A!G61 -> 100008 | H11: =A5A!H61 -> 100008 | I11: =A5A!I61 -> 100008 | J11: =A5A!J61 -> 100000 | K11: =A5A!K61 -> 0 | L11: =A5A!L61 -> 0
A12: =A5A!A72 -> Vote 7 - COMMUNITY SERVICES MANAGEMENT | C12: =A5A!C72 -> 3112027.78 | D12: =A5A!D72 -> 936602 | E12: =A5A!E72 -> 3385400 | F12: =A5A!F72 -> 1100004 | G12: =A5A!G72 -> 1100004 | H12: =A5A!H72 -> 1100004 | I12: =A5A!I72 -> 1100004 | J12: =A5A!J72 -> 500000 | K12: =A5A!K72 -> 3095000 | L12: =A5A!L72 -> 0
A13: =A5A!A83 -> Vote 8 - [NAME OF VOTE 8] | C13: =A5A!C83 -> 0 | D13: =A5A!D83 -> 0 | E13: =A5A!E83 -> 0 | F13: =A5A!F83 -> 0 | G13: =A5A!G83 -> 0 | H13: =A5A!H83 -> 0 | I13: =A5A!I83 -> 0 | J13: =A5A!J83 -> 0 | K13: =A5A!K83 -> 0 | L13: =A5A!L83 -> 0
A14: =A5A!A94 -> Vote 9 - [NAME OF VOTE 9] | C14: =A5A!C94 -> 0 | D14: =A5A!D94 -> 0 | E14: =A5A!E94 -> 0 | F14: =A5A!F94 -> 0 | G14: =A5A!G94 -> 0 | H14: =A5A!H94 -> 0 | I14: =A5A!I94 -> 0 | J14: =A5A!J94 -> 0 | K14: =A5A!K94 -> 0 | L14: =A5A!L94 -> 0
A15: =A5A!A105 -> Vote 10 - [NAME OF VOTE 10] | C15: =A5A!C105 -> 0 | D15: =A5A!D105 -> 0 | E15: =A5A!E105 -> 0 | F15: =A5A!F105 -> 0 | G15: =A5A!G105 -> 0 | H15: =A5A!H105 -> 0 | I15: =A5A!I105 -> 0 | J15: =A5A!J105 -> 0 | K15: =A5A!K105 -> 0 | L15: =A5A!L105 -> 0
A16: =A5A!A116 -> Vote 11 - [NAME OF VOTE 11] | C16: =A5A!C116 -> 0 | D16: =A5A!D116 -> 0 | E16: =A5A!E116 -> 0 | F16: =A5A!F116 -> 0 | G16: =A5A!G116 -> 0 | H16: =A5A!H116 -> 0 | I16: =A5A!I116 -> 0 | J16: =A5A!J116 -> 0 | K16: =A5A!K116 -> 0 | L16: =A5A!L116 -> 0
A17: =A5A!A127 -> Vote 12 - [NAME OF VOTE 12] | C17: =A5A!C127 -> 0 | D17: =A5A!D127 -> 0 | E17: =A5A!E127 -> 0 | F17: =A5A!F127 -> 0 | G17: =A5A!G127 -> 0 | H17: =A5A!H127 -> 0 | I17: =A5A!I127 -> 0 | J17: =A5A!J127 -> 0 | K17: =A5A!K127 -> 0 | L17: =A5A!L127 -> 0
A18: =A5A!A138 -> Vote 13 - [NAME OF VOTE 13] | C18: =A5A!C138 -> 0 | D18: =A5A!D138 -> 0 | E18: =A5A!E138 -> 0 | F18: =A5A!F138 -> 0 | G18: =A5A!G138 -> 0 | H18: =A5A!H138 -> 0 | I18: =A5A!I138 -> 0 | J18: =A5A!J138 -> 0 | K18: =A5A!K138 -> 0 | L18: =A5A!L138 -> 0
A19: =A5A!A149 -> Vote 14 - [NAME OF VOTE 14] | C19: =A5A!C149 -> 0 | D19: =A5A!D149 -> 0 | E19: =A5A!E149 -> 0 | F19: =A5A!F149 -> 0 | G19: =A5A!G149 -> 0 | H19: =A5A!H149 -> 0 | I19: =A5A!I149 -> 0 | J19: =A5A!J149 -> 0 | K19: =A5A!K149 -> 0 | L19: =A5A!L149 -> 0
A20: =A5A!A160 -> Vote 15 - [NAME OF VOTE 15] | C20: =A5A!C160 -> 0 | D20: =A5A!D160 -> 0 | E20: =A5A!E160 -> 0 | F20: =A5A!F160 -> 0 | G20: =A5A!G160 -> 0 | H20: =A5A!H160 -> 0 | I20: =A5A!I160 -> 0 | J20: =A5A!J160 -> 0 | K20: =A5A!K160 -> 0 | L20: =A5A!L160 -> 0
A21: Capital multi-year expenditure sub-total | B21: 7 | C21: =SUM(C6:C20) -> 57566055.27 | D21: =SUM(D6:D20) -> 52107083.54 | E21: 46464633.78 | F21: 50016708 | G21: 50060918 | H21: =SUM(H6:H20) -> 50060918 | I21: 50060918 | J21: 45491100 | K21: 58855750 | L21: 45930900
A23: Single-year expenditure to be appropriated | B23: 2
A24: =A6 -> Vote 1 - EXECUTIVE AND COUNCIL | C24: =A5A!C175 -> 790794 | D24: =A5A!D175 -> 0 | E24: =A5A!E175 -> 0 | F24: =A5A!F175 -> 0 | G24: =A5A!G175 -> 0 | H24: =A5A!H175 -> 0 | I24: =A5A!I175 -> 0 | J24: =A5A!J175 -> 0 | K24: =A5A!K175 -> 0 | L24: =A5A!L175 -> 0
A25: =A7 -> Vote 2 - MUNICIPAL MANAGER | C25: =A5A!C186 -> 0 | D25: =A5A!D186 -> 0 | E25: =A5A!E186 -> 0 | F25: =A5A!F186 -> 0 | G25: =A5A!G186 -> 0 | H25: =A5A!H186 -> 0 | I25: =A5A!I186 -> 0 | J25: =A5A!J186 -> 0 | K25: =A5A!K186 -> 0 | L25: =A5A!L186 -> 0
A26: Vote 3 - FINANCE | C26: =A5A!C197 -> 0 | D26: =A5A!D197 -> 606929.48 | E26: =A5A!E197 -> 252000 | F26: =A5A!F197 -> 70008 | G26: =A5A!G197 -> 70008 | H26: =A5A!H197 -> 70008 | I26: =A5A!I197 -> 70008 | J26: =A5A!J197 -> 0 | K26: =A5A!K197 -> 0 | L26: =A5A!L197 -> 0
A27: Vote 4 - CORPORATE SERVICES MANAGEMENT | C27: =A5A!C208 -> 671404.06 | D27: =A5A!D208 -> 261609.26 | E27: =A5A!E208 -> 1261500 | F27: =A5A!F208 -> 1910040 | G27: =A5A!G208 -> 1970040 | H27: =A5A!H208 -> 1970040 | I27: =A5A!I208 -> 1970040 | J27: =A5A!J208 -> 815000 | K27: =A5A!K208 -> 70000 | L27: =A5A!L208 -> 0
A28: Vote 5 - TECHNICAL SERVICES | C28: =A5A!C219 -> 52738036.93 | D28: =A5A!D219 -> 50276708.16 | E28: =A5A!E219 -> 41365733.78 | F28: =A5A!F219 -> 46836648 | G28: =A5A!G219 -> 46820858 | H28: =A5A!H219 -> 46820858 | I28: =A5A!I219 -> 46820858 | J28: =A5A!J219 -> 99977200 | K28: =A5A!K219 -> 70433742.42 | L28: =A5A!L219 -> 58300900
A29: Vote 6 - PLANNING & ECONOMIC DEVELOPMENT | C29: =A5A!C230 -> 253792.5 | D29: =A5A!D230 -> 25234.64 | E29: =A5A!E230 -> 200000 | F29: =A5A!F230 -> 100008 | G29: =A5A!G230 -> 100008 | H29: =A5A!H230 -> 100008 | I29: =A5A!I230 -> 100008 | J29: =A5A!J230 -> 0 | K29: =A5A!K230 -> 0 | L29: =A5A!L230 -> 0
A30: Vote 7 - COMMUNITY SERVICES MANAGEMENT | C30: =A5A!C241 -> 3112027.78 | D30: =A5A!D241 -> 936602 | E30: =A5A!E241 -> 3385400 | F30: =A5A!F241 -> 1100004 | G30: =A5A!G241 -> 1100004 | H30: =A5A!H241 -> 1100004 | I30: =A5A!I241 -> 1100004 | J30: =A5A!J241 -> 500000 | K30: =A5A!K241 -> 3095000 | L30: =A5A!L241 -> 0
A31: Vote 8 - [NAME OF VOTE 8] | C31: =A5A!C252 -> 0 | D31: =A5A!D252 -> 0 | E31: =A5A!E252 -> 0 | F31: =A5A!F252 -> 0 | G31: =A5A!G252 -> 0 | H31: =A5A!H252 -> 0 | I31: =A5A!I252 -> 0 | J31: =A5A!J252 -> 0 | K31: =A5A!K252 -> 0 | L31: =A5A!L252 -> 0
A32: Vote 9 - [NAME OF VOTE 9] | C32: =A5A!C263 -> 0 | D32: =A5A!D263 -> 0 | E32: =A5A!E263 -> 0 | F32: =A5A!F263 -> 0 | G32: =A5A!G263 -> 0 | H32: =A5A!H263 -> 0 | I32: =A5A!I263 -> 0 | J32: =A5A!J263 -> 0 | K32: =A5A!K263 -> 0 | L32: =A5A!L263 -> 0
A33: Vote 10 - [NAME OF VOTE 10] | C33: =A5A!C274 -> 0 | D33: =A5A!D274 -> 0 | E33: =A5A!E274 -> 0 | F33: =A5A!F274 -> 0 | G33: =A5A!G274 -> 0 | H33: =A5A!H274 -> 0 | I33: =A5A!I274 -> 0 | J33: =A5A!J274 -> 0 | K33: =A5A!K274 -> 0 | L33: =A5A!L274 -> 0
A34: Vote 11 - [NAME OF VOTE 11] | C34: =A5A!C285 -> 0 | D34: =A5A!D285 -> 0 | E34: =A5A!E285 -> 0 | F34: =A5A!F285 -> 0 | G34: =A5A!G285 -> 0 | H34: =A5A!H285 -> 0 | I34: =A5A!I285 -> 0 | J34: =A5A!J285 -> 0 | K34: =A5A!K285 -> 0 | L34: =A5A!L285 -> 0
A35: Vote 12 - [NAME OF VOTE 12] | C35: =A5A!C296 -> 0 | D35: =A5A!D296 -> 0 | E35: =A5A!E296 -> 0 | F35: =A5A!F296 -> 0 | G35: =A5A!G296 -> 0 | H35: =A5A!H296 -> 0 | I35: =A5A!I296 -> 0 | J35: =A5A!J296 -> 0 | K35: =A5A!K296 -> 0 | L35: =A5A!L296 -> 0
A36: Vote 13 - [NAME OF VOTE 13] | C36: =A5A!C307 -> 0 | D36: =A5A!D307 -> 0 | E36: =A5A!E307 -> 0 | F36: =A5A!F307 -> 0 | G36: =A5A!G307 -> 0 | H36: =A5A!H307 -> 0 | I36: =A5A!I307 -> 0 | J36: =A5A!J307 -> 0 | K36: =A5A!K307 -> 0 | L36: =A5A!L307 -> 0
A37: Vote 14 - [NAME OF VOTE 14] | C37: =A5A!C318 -> 0 | D37: =A5A!D318 -> 0 | E37: =A5A!E318 -> 0 | F37: =A5A!F318 -> 0 | G37: =A5A!G318 -> 0 | H37: =A5A!H318 -> 0 | I37: =A5A!I318 -> 0 | J37: =A5A!J318 -> 0 | K37: =A5A!K318 -> 0 | L37: =A5A!L318 -> 0
A38: =A20 -> Vote 15 - [NAME OF VOTE 15] | C38: =A5A!C329 -> 0 | D38: =A5A!D329 -> 0 | E38: =A5A!E329 -> 0 | F38: =A5A!F329 -> 0 | G38: =A5A!G329 -> 0 | H38: =A5A!H329 -> 0 | I38: =A5A!I329 -> 0 | J38: =A5A!J329 -> 0 | K38: =A5A!K329 -> 0 | L38: =A5A!L329 -> 0
A39: Capital single-year expenditure sub-total | C39: =SUM(C24:C38) -> 57566055.27 | D39: =SUM(D24:D38) -> 52107083.54 | E39: 46464633.78 | F39: 50016708 | G39: 50060918 | H39: 50060918 | I39: 50060918 | J39: 101292200 | K39: 73598742.42 | L39: 58300900
A40: Total Capital Expenditure - Vote | C40: =C39+C21 -> 115132110.5 | D40: =D39+D21 -> 104214167.1 | E40: 92929267.56 | F40: 100033416 | G40: 100121836 | H40: 100121836 | I40: 100121836 | J40: 146783300 | K40: 132454492.4 | L40: 104231800
A42: Capital Expenditure - Functional
A43: Governance and administration | C43: =SUM(C44:C46) -> 1462198.06 | D43: =SUM(D44:D46) -> 868538.74 | E43: 370008 | F43: 370008 | G43: 370008 | H43: 370008 | I43: 370008 | J43: 815000 | K43: 70000 | L43: 0
A44: Executive and council | C44: 790794 | D44: 0
A45: Finance and administration | C45: 671404.06 | D45: 868538.74 | E45: 370008 | F45: 370008 | G45: 370008 | H45: 370008 | I45: 370008 | J45: 815000 | K45: 70000 | L45: 0
A46: Internal audit
A47: Community and public safety | C47: =SUM(C48:C52) -> 2878284.31 | D47: =SUM(D48:D52) -> 2198362.94 | E47: 2670050 | F47: 2570050 | G47: 2570050 | H47: 2570058 | I47: 2570058 | J47: 600000 | K47: 3095000 | L47: 0
A48: Community and social services | C48: 971116 | D48: 1376876.3 | E48: 2470050 | F48: 2470050 | G48: 2470050 | H48: 2470050 | I48: 2470050 | J48: 500000 | K48: 3095000 | L48: 0
A49: Sport and recreation | C49: 233560
A50: Public safety | C50: 1419815.81 | D50: 796252
A51: Housing | C51: 253792.5 | D51: 25234.64 | E51: 200000 | F51: 100000 | G51: 100000 | H51: 100008 | I51: 100008 | J51: 100000
A52: Health
A53: Economic and environmental services | C53: =SUM(C54:C56) -> 49861874.11 | D53: =SUM(D54:D56) -> 48247525.29 | E53: 40536624 | F53: 40536624 | G53: 40536624 | H53: 40536624 | I53: 40536624 | J53: 49141100 | K53: 55690750 | L53: 45930900
A54: Planning and development
A55: Road transport | C55: 49861874.11 | D55: 48247525.29 | E55: 40536624 | F55: 40536624 | G55: 40536624 | H55: 40536624 | I55: 40536624 | J55: 49141100 | K55: 55690750 | L55: 45930900
A56: Environmental protection
A57: Trading services | C57: =SUM(C58:C61) -> 2876162.82 | D57: =SUM(D58:D61) -> 2029182.87 | E57: 6284232 | F57: 6284232 | G57: 6284232 | H57: 6284232 | I57: 6284232 | J57: 6760000 | K57: 14742992.42 | L57: 12370000
A58: Energy sources | C58: 2876162.82 | D58: 2029182.87 | E58: 6284232 | F58: 6284232 | G58: 6284232 | H58: 6284232 | I58: 6284232 | J58: 6760000 | K58: 14742992.42 | L58: 12370000
A59: Water management
A60: Waste water management
A61: Waste management | F61: 0
A62: Other | E62: 646289.46 | F62: 455790 | G62: 600000 | H62: 600000 | I62: 600000
A63: Total Capital Expenditure - Functional | B63: 3 | C63: =C43+C47+C53+C57+C62 -> 57078519.3 | D63: =D43+D47+D53+D57+D62 -> 53343609.84 | E63: 50507203.46 | F63: 50216704 | G63: 50360914 | H63: 50360922 | I63: 50360922 | J63: 57316100 | K63: 73598742.42 | L63: =L43+L47+L53+L57+L62 -> 58300900
A65: Funded by:
A66: National Government | C66: 37720309 | D66: 43008217 | E66: 34575727 | F66: 33443000 | G66: 33443000 | H66: 33443000 | I66: 33443000 | J66: 33238000 | K66: 35885000 | L66: 37822000
A67: Provincial Government
A68: District Municipality | I68: 0
A69: ='A4-FinPerf RE'!A39 -> Transfers and subsidies - capital (monetary allocations) (National / Provincial Departmental Agencies, Households, Non-profit Institutions, Private Enterprises, Public Corporatons, Higher Educational Institutions) | I69: 0
A70: Transfers recognised - capital | B70: 4 | C70: =SUM(C66:C69) -> 37720309 | D70: 43008217 | E70: 34575727 | F70: 33443000 | G70: 33443000 | H70: 33443000 | I70: 33443000 | J70: 33238000 | K70: 35885000 | L70: 37822000
A72: Borrowing | B72: 6
A73: Internally generated funds | C73: 19845746.27 | D73: 9098866.54 | E73: 11303506.78 | F73: 16813600 | G73: 16917922 | H73: 16917922 | I73: 16917922 | J73: 24078100 | K73: 37713742.42 | L73: 20478900
A74: Total Capital Funding | B74: 7 | C74: =+C70+C72+C73 -> 57566055.27 | D74: =+D70+D72+D73 -> 52107083.54 | E74: =+E70+E72+E73 -> 45879233.78 | F74: 50256600 | G74: 50360922 | H74: 50360922 | I74: 50360922 | J74: 57316100 | K74: 73598742.42 | L74: 58300900
A75: =head27a -> References
A76: 1. Municipalities may choose to appropriate for capital expenditure for three years or for one year (if one year appropriation projected expenditure required for yr2 and yr3).
A77: 2. Include capital component of PPP unitary payment. Note that capital transfers are only appropriated to municipalities for the budget year
A78: 3. Capital expenditure by functional classification must reconcile to the appropriations by vote
A79: 4. Must reconcile to supporting table SA20 and to Budgeted Financial Performance (revenue and expenditure)
A81: 6. Include finance leases and PPP capital funding component of unitary payment - total borrowing/repayments to reconcile to changes in Table SA17
A82: 7. Total Capital Funding must balance with Total Capital Expenditure
A83: 8. Include any capitalised interest (MFMA section 46) as part of relevant capital budget
A85: check balance | C85: =IF((C63-C74)=0,0,"Unbalanced") -> Unbalanced | D85: =IF((D63-D74)=0,0,"Unbalanced") -> Unbalanced | E85: Unbalanced | F85: Unbalanced | G85: Unbalanced | H85: 0 | I85: 0 | J85: 0 | K85: 0 | L85: 0

Sheet A5A
A1: =muni&" - "&Approve5 -> LIM471 Ephraim Mogale - Table A5 Budgeted Capital Expenditure by vote, functional classification and funding
A2: =Vdesc -> Vote Description | B2: =head27 -> Ref | C2: =head1b -> 2016/17 | D2: =head1A -> 2017/18 | E2: =Head1 -> 2018/19 | F2: =Head2 -> Current Year 2019/20 | J2: =Head3 -> 2020/21 Medium Term Revenue & Expenditure Framework | N2: ="Multi-year appropriation for "&Head9& " in the "&Head2A&" Annual Budget" -> Multi-year appropriation for Budget Year 2020/21 in the 2019/20 Annual Budget | R2: ="Multi-year appropriation for "&RIGHT(Head10,7)& " in the "&Head2A&" Annual Budget" -> Multi-year appropriation for 2021/22 in the 2019/20 Annual Budget | V2: New multi-year appropriations (funds for new and existing projects)
A3: R thousand | B3: 1 | C3: =Head5 -> Audited Outcome | D3: =Head5 -> Audited Outcome | E3: =Head5 -> Audited Outcome | F3: =Head6 -> Original Budget | G3: =Head7 -> Adjusted Budget | H3: =Head8 -> Full Year Forecast | I3: =Head5b -> Pre-audit outcome | J3: =Head9 -> Budget Year 2020/21 | K3: =Head10 -> Budget Year +1 2021/22 | L3: =Head11 -> Budget Year +2 2022/23 | N3: ="Appropriation for "&RIGHT(Head9,7) -> Appropriation for 2020/21 | O3: ="Adjustments in "&Head2A -> Adjustments in 2019/20 | P3: ="Downward adjustments for "&RIGHT(Head9,7) -> Downward adjustments for 2020/21 | Q3: Appropriation carried forward | R3: ="Appropriation for "&RIGHT(Head9,7) -> Appropriation for 2020/21 | S3: ="Adjustments in "&Head2A -> Adjustments in 2019/20 | T3: ="Downward adjustments for "&RIGHT(Head9,7) -> Downward adjustments for 2020/21 | U3: Appropriation carried forward | V3: =Head9 -> Budget Year 2020/21 | W3: =Head10 -> Budget Year +1 2021/22 | X3: =Head11 -> Budget Year +2 2022/23
A4: Capital expenditure - Municipal Vote
A5: Multi-year expenditure appropriation | B5: 2
A6: ='Org structure'!A2 -> Vote 1 - EXECUTIVE AND COUNCIL | C6: =SUM(C7:C16) -> 790794 | D6: =SUM(D7:D16) -> 0 | E6: 0 | F6: 0 | G6: 0 | H6: 0 | I6: =SUM(I7:I16) -> 0 | J6: 0 | K6: 0 | L6: 0 | N6: =SUM(N7:N16) -> 0 | O6: 0 | P6: 0 | Q6: 0 | R6: 0 | S6: 0 | T6: 0 | U6: 0 | V6: =SUM(V7:V16) -> 0 | W6: =SUM(W7:W16) -> 0 | X6: =SUM(X7:X16) -> 0
A7: ='Org structure'!E3 -> 1.1 - COUNCIL GENERAL | C7: 790794 | J7: =Q7+V7 -> 0 | K7: =U7+W7 -> 0 | L7: =X7 -> 0 | Q7: =SUM(N7:P7) -> 0 | U7: =SUM(R7:T7) -> 0
A8: ='Org structure'!E4 -> 0 | J8: =Q8+V8 -> 0 | K8: =U8+W8 -> 0 | L8: =X8 -> 0 | Q8: =SUM(N8:P8) -> 0 | U8: =SUM(R8:T8) -> 0
A9: ='Org structure'!E5 -> 0 | J9: =Q9+V9 -> 0 | K9: =U9+W9 -> 0 | L9: 0 | Q9: 0 | U9: 0
A10: ='Org structure'!E6 -> 0 | J10: 0 | K10: 0 | L10: 0 | Q10: 0 | U10: 0
A11: ='Org structure'!E7 -> 0 | J11: 0 | K11: 0 | L11: =X11 -> 0 | Q11: 0 | U11: 0
A12: ='Org structure'!E8 -> 0 | J12: 0 | K12: 0 | L12: 0 | Q12: 0 | U12: 0
A13: ='Org structure'!E9 -> 0 | J13: 0 | K13: 0 | L13: 0 | Q13: 0 | U13: 0
A14: ='Org structure'!E10 -> 0 | J14: 0 | K14: 0 | L14: 0 | Q14: 0 | U14: 0
A15: ='Org structure'!E11 -> 0 | J15: 0 | K15: 0 | L15: 0 | Q15: 0 | U15: 0
A16: ='Org structure'!E12 -> 0 | J16: 0 | K16: 0 | L16: 0 | Q16: 0 | U16: 0
A17: ='Org structure'!A3 -> Vote 2 - MUNICIPAL MANAGER | C17: =SUM(C18:C27) -> 0 | D17: =SUM(D18:D27) -> 0 | E17: 0 | F17: 0 | G17: 0 | H17: 0 | I17: =SUM(I18:I27) -> 0 | J17: 0 | K17: 0 | L17: 0 | N17: =SUM(N18:N27) -> 0 | O17: 0 | P17: 0 | Q17: 0 | R17: 0 | S17: 0 | T17: 0 | U17: 0 | V17: 0 | W17: 0 | X17: 0
A18: ='Org structure'!E14 -> 2.1 - MUNICIPAL MANAGER | J18: =Q18+V18 -> 0 | K18: =U18+W18 -> 0 | L18: =X18 -> 0 | Q18: =SUM(N18:P18) -> 0 | U18: 0
A19: ='Org structure'!E15 -> 2.2 - URBAN RENEWAL | J19: =Q19+V19 -> 0 | K19: =U19+W19 -> 0 | L19: 0 | Q19: 0 | U19: 0
A20: ='Org structure'!E16 -> 0 | J20: 0 | K20: 0 | L20: 0 | Q20: 0 | U20: 0
A21: ='Org structure'!E17 -> 0 | J21: 0 | K21: =U21+W21 -> 0 | L21: 0 | Q21: 0 | U21: 0
A22: ='Org structure'!E18 -> 0 | J22: 0 | K22: 0 | L22: 0 | Q22: 0 | U22: 0
A23: ='Org structure'!E19 -> 0 | J23: 0 | K23: 0 | L23: 0 | Q23: 0 | U23: 0
A24: ='Org structure'!E20 -> 0 | J24: 0 | K24: 0 | L24: 0 | Q24: 0 | U24: 0
A25: ='Org structure'!E21 -> 0 | J25: 0 | K25: 0 | L25: 0 | Q25: 0 | U25: 0
A26: ='Org structure'!E22 -> 0 | J26: 0 | K26: 0 | L26: 0 | Q26: 0 | U26: 0
A27: ='Org structure'!E23 -> 0 | J27: 0 | K27: 0 | L27: 0 | Q27: 0 | U27: 0
A28: ='Org structure'!A4 -> Vote 3 - FINANCE | C28: =SUM(C29:C38) -> 0 | D28: =SUM(D29:D38) -> 606929.48 | E28: 252000 | F28: 70008 | G28: 70008 | H28: 70008 | I28: =SUM(I29:I38) -> 70008 | J28: 0 | K28: 0 | L28: 0 | N28: =SUM(N29:N38) -> 0 | O28: 0 | P28: 0 | Q28: 0 | R28: 0 | S28: 0 | T28: 0 | U28: 0 | V28: 0 | W28: 0 | X28: 0
A29: ='Org structure'!E25 -> 3.1 - FINANCE | D29: 131104.48 | E29: 52000 | F29: 70008 | G29: 70008 | H29: 70008 | I29: 70008 | J29: =Q29+V29 -> 0 | K29: =U29+W29 -> 0 | L29: =X29 -> 0 | Q29: =SUM(N29:P29) -> 0 | U29: 0
A30: ='Org structure'!E26 -> 3.3 - FLEET | J30: 0 | K30: 0 | L30: 0 | Q30: 0 | U30: 0
A31: ='Org structure'!E27 -> 3.2 - STORES | D31: 475825 | E31: 200000 | J31: 0 | K31: 0 | L31: 0 | Q31: 0 | U31: =SUM(R31:T31) -> 0
A32: ='Org structure'!E28 -> 3,4 - Information Technology | J32: 0 | K32: =U32+W32 -> 0 | L32: 0 | Q32: 0 | U32: 0
A33: ='Org structure'!E29 -> 0 | J33: =Q33+V33 -> 0 | K33: 0 | L33: 0 | Q33: 0 | U33: 0
A34: ='Org structure'!E30 -> 0 | J34: 0 | K34: 0 | L34: 0 | Q34: 0 | U34: 0
A35: ='Org structure'!E31 -> 0 | J35: 0 | K35: 0 | L35: 0 | Q35: 0 | U35: 0
A36: ='Org structure'!E32 -> 0 | J36: 0 | K36: 0 | L36: 0 | Q36: 0 | U36: 0
A37: ='Org structure'!E33 -> 0 | J37: 0 | K37: 0 | L37: 0 | Q37: 0 | U37: 0
A38: ='Org structure'!E34 -> 0 | J38: 0 | K38: 0 | L38: 0 | Q38: 0 | U38: 0
A39: ='Org structure'!A5 -> Vote 4 - CORPORATE SERVICES MANAGEMENT | C39: =SUM(C40:C49) -> 671404.06 | D39: =SUM(D40:D49) -> 261609.26 | E39: 1261500 | F39: 1910040 | G39: 1970040 | H39: 1970040 | I39: =SUM(I40:I49) -> 1970040 | J39: 815000 | K39: 70000 | L39: 0 | N39: =SUM(N40:N49) -> 0 | O39: 0 | P39: 0 | Q39: 0 | R39: 0 | S39: 0 | T39: 0 | U39: 0 | V39: 815000 | W39: 70000 | X39: 0
A40: ='Org structure'!E36 -> 4.1 - HUMAN RESOURCES | E40: 560000 | J40: =Q40+V40 -> 90000 | K40: =U40+W40 -> 0 | L40: =X40 -> 0 | Q40: =SUM(N40:P40) -> 0 | U40: 0 | V40: 90000
A41: ='Org structure'!E37 -> 4.2 - ADMINISTRATION | D41: 69170 | F41: 300000 | G41: 300000 | H41: 300000 | I41: 300000 | J41: 350000 | K41: 0 | L41: 0 | Q41: 0 | U41: 0 | V41: 350000
A42: ='Org structure'!E38 -> 4.3 - CORPORATE SERVICES MANAGEMENT | C42: 671404.06 | E42: 238500 | J42: 0 | K42: 0 | L42: 0 | Q42: 0 | U42: 0
A43: ='Org structure'!E39 -> 4.4 - ICT | D43: 192439.26 | E43: 463000 | F43: 1610040 | G43: 1670040 | H43: 1670040 | I43: 1670040 | J43: 300000 | K43: 0 | L43: 0 | Q43: 0 | U43: 0 | V43: 300000
A44: ='Org structure'!E40 -> 4,5 - COMMINICATION | J44: 75000 | K44: 70000 | L44: 0 | Q44: 0 | U44: 0 | V44: 75000 | W44: 70000
A45: ='Org structure'!E41 -> 4,6 - Legal | J45: 0 | K45: 0 | L45: 0 | Q45: 0 | U45: 0
A46: ='Org structure'!E42 -> 0 | J46: 0 | K46: 0 | L46: 0 | Q46: 0 | U46: 0
A47: ='Org structure'!E43 -> 0 | J47: 0 | K47: 0 | L47: 0 | Q47: 0 | U47: 0
A48: ='Org structure'!E44 -> 0 | J48: 0 | K48: 0 | L48: 0 | Q48: 0 | U48: 0
A49: ='Org structure'!E45 -> 0 | J49: 0 | K49: 0 | L49: 0 | Q49: 0 | U49: 0
A50: ='Org structure'!A6 -> Vote 5 - TECHNICAL SERVICES | C50: =SUM(C51:C60) -> 52738036.93 | D50: =SUM(D51:D60) -> 50276708.16 | E50: 41365733.78 | F50: 46836648 | G50: 46820858 | H50: 46820858 | I50: =SUM(I51:I60) -> 46820858 | J50: 44076100 | K50: 55690750 | L50: 45930900 | N50: =SUM(N51:N60) -> 0 | O50: 0 | P50: 0 | Q50: 0 | R50: 0 | S50: 0 | T50: 0 | U50: 0 | V50: 50836100 | W50: 70433742.42 | X50: 58300900
A51: ='Org structure'!E47 -> 5.1 - ELECTRICITY | C51: 2876162.82 | D51: 2029182.87 | E51: 6490008 | F51: 6300024 | G51: 6284234 | H51: 6284234 | I51: 6284234 | V51: 6760000 | W51: 14742992.42 | X51: 12370000 | BP51: 6284234
A52: ='Org structure'!E48 -> 5.2 - TECHNICAL | J52: =Q52+V52 -> 0 | K52: =U52+W52 -> 0 | L52: =X52 -> 0 | Q52: =SUM(N52:P52) -> 0 | U52: 0
A53: ='Org structure'!E49 -> 5.3 - ROADS & STORMWATER | C53: 49861874.11 | D53: 48247525.29 | E53: 34875725.78 | F53: 40536624 | G53: 40536624 | H53: 40536624 | I53: 40536624 | J53: 44076100 | K53: 55690750 | L53: 45930900 | Q53: 0 | U53: 0 | V53: 44076100 | W53: 55690750 | X53: 45930900
A54: ='Org structure'!E50 -> 5,8 - [Name of sub-vote] | J54: 0 | K54: 0 | L54: 0 | Q54: 0 | U54: 0
A55: ='Org structure'!E51 -> 0 | J55: 0 | K55: 0 | L55: 0 | Q55: 0 | U55: 0
A56: ='Org structure'!E52 -> 0 | J56: 0 | K56: 0 | L56: 0 | Q56: 0 | U56: 0
A57: ='Org structure'!E53 -> 0 | J57: 0 | K57: 0 | L57: 0 | Q57: 0 | U57: 0
A58: ='Org structure'!E54 -> 0 | J58: 0 | K58: 0 | L58: 0 | Q58: 0 | U58: 0
A59: ='Org structure'!E55 -> 0 | J59: 0 | K59: 0 | L59: 0 | Q59: 0 | U59: 0
A60: ='Org structure'!E56 -> 0 | J60: 0 | K60: 0 | L60: 0 | Q60: 0 | U60: 0
A61: ='Org structure'!A7 -> Vote 6 - PLANNING & ECONOMIC DEVELOPMENT | C61: =SUM(C62:C71) -> 253792.5 | D61: =SUM(D62:D71) -> 25234.64 | E61: 200000 | F61: 100008 | G61: 100008 | H61: 100008 | I61: =SUM(I62:I71) -> 100008 | J61: 100000 | K61: 0 | L61: 0 | N61: =SUM(N62:N71) -> 0 | O61: 0 | P61: 0 | Q61: 0 | R61: 0 | S61: 0 | T61: 0 | U61: 0 | V61: 100000 | W61: 0 | X61: 0
A62: ='Org structure'!E58 -> 6.1 - HOUSING & BUILDING CONTROL | C62: 253792.5 | D62: 25234.64 | E62: 200000 | F62: 100008 | G62: 100008 | H62: 100008 | I62: 100008 | J62: =Q62+V62 -> 100000 | K62: =U62+W62 -> 0 | L62: =X62 -> 0 | Q62: =SUM(N62:P62) -> 0 | U62: 0 | V62: 100000
A63: ='Org structure'!E59 -> 6.2 - URBAN RENEWAL | J63: 0 | K63: 0 | L63: 0 | Q63: 0 | U63: 0
A64: ='Org structure'!E60 -> 0 | J64: 0 | K64: 0 | L64: 0 | Q64: 0 | U64: 0
A65: ='Org structure'!E61 -> 0 | J65: 0 | K65: 0 | L65: 0 | Q65: 0 | U65: 0
A66: ='Org structure'!E62 -> 0 | J66: 0 | K66: 0 | L66: 0 | Q66: 0 | U66: 0
A67: ='Org structure'!E63 -> 0 | J67: 0 | K67: 0 | L67: 0 | Q67: 0 | U67: 0
A68: ='Org structure'!E64 -> 0 | J68: 0 | K68: 0 | L68: 0 | Q68: 0 | U68: 0
A69: ='Org structure'!E65 -> 0 | J69: 0 | K69: 0 | L69: 0 | Q69: 0 | U69: 0
A70: ='Org structure'!E66 -> 0 | J70: 0 | K70: 0 | L70: 0 | Q70: 0 | U70: 0
A71: ='Org structure'!E67 -> 0 | J71: 0 | K71: 0 | L71: 0 | Q71: 0 | U71: 0
A72: ='Org structure'!A8 -> Vote 7 - COMMUNITY SERVICES MANAGEMENT | C72: =SUM(C73:C82) -> 3112027.78 | D72: 936602 | E72: 3385400 | F72: 1100004 | G72: 1100004 | H72: 1100004 | I72: 1100004 | J72: 500000 | K72: 3095000 | L72: 0 | N72: =SUM(N73:N82) -> 0 | O72: 0 | P72: 0 | Q72: 0 | R72: 0 | S72: 0 | T72: 0 | U72: 0 | V72: 500000 | W72: 3095000 | X72: 0
A73: ='Org structure'!E69 -> 7.1 - COMMUNITY SERVICES MANAGEMENT | C73: 971116 | J73: =Q73+V73 -> 0 | K73: =U73+W73 -> 0 | L73: =X73 -> 0 | Q73: =SUM(N73:P73) -> 0 | U73: =SUM(R73:T73) -> 0
A74: ='Org structure'!E70 -> 7.2 - LIBRARY | J74: 0 | K74: 0 | L74: 0 | Q74: 0 | U74: 0
A75: ='Org structure'!E71 -> 7.3 - HEALTH GENERAL | J75: 0 | K75: 0 | L75: 0 | Q75: 0 | U75: 0
A76: ='Org structure'!E72 -> 7.4 - REGISTRATION AUTHORITY | J76: 0 | K76: 0 | L76: 0 | Q76: 0 | U76: 0
A77: ='Org structure'!E73 -> 7.5 - LICENCING & TRAFFIC | C77: 1419815.81 | D77: 796252 | E77: 585400 | F77: 600000 | G77: 600000 | H77: 600000 | I77: 600000 | J77: 0 | K77: 0 | L77: 0 | Q77: 0 | U77: 0
A78: ='Org structure'!E74 -> 7.6 - PARKS & CEMETRIES | D78: 140350 | E78: 750000 | F78: 500004 | G78: 500004 | H78: 500004 | I78: 500004 | J78: 500000 | K78: 3095000 | L78: 0 | Q78: 0 | U78: 0 | V78: 500000 | W78: 3095000
A79: ='Org structure'!E75 -> 7.7 - SOLID WASTE | C79: 487535.97 | E79: 2050000 | J79: 0 | K79: 0 | L79: 0 | Q79: 0 | U79: 0
A80: ='Org structure'!E76 -> 7.8 - SPORTS ARTS AND CULTURE | C80: 233560 | J80: 0 | K80: 0 | L80: 0 | Q80: 0 | U80: 0
A81: ='Org structure'!E77 -> 7.9 - HIV/AIDS | J81: 0 | K81: 0 | L81: 0 | Q81: 0 | U81: 0
A82: ='Org structure'!E78 -> 0 | J82: 0 | K82: 0 | L82: 0 | Q82: 0 | U82: 0
A83: ='Org structure'!A9 -> Vote 8 - [NAME OF VOTE 8] | C83: =SUM(C84:C93) -> 0 | D83: 0 | E83: 0 | F83: 0 | G83: 0 | H83: 0 | I83: 0 | J83: 0 | K83: 0 | L83: 0 | N83: =SUM(N84:N93) -> 0 | O83: 0 | P83: 0 | Q83: 0 | R83: 0 | S83: 0 | T83: 0 | U83: 0 | V83: 0 | W83: 0 | X83: 0
A84: ='Org structure'!E80 -> 8.1 - [Name of sub-vote] | J84: =Q84+V84 -> 0 | K84: =U84+W84 -> 0 | L84: =X84 -> 0 | Q84: =SUM(N84:P84) -> 0 | U84: 0
A85: ='Org structure'!E81 -> 0 | J85: 0 | K85: 0 | L85: 0 | Q85: 0 | U85: 0
A86: ='Org structure'!E82 -> 0 | J86: 0 | K86: 0 | L86: 0 | Q86: 0 | U86: 0
A87: ='Org structure'!E83 -> 0 | J87: 0 | K87: 0 | L87: 0 | Q87: 0 | U87: 0
A88: ='Org structure'!E84 -> 0 | J88: 0 | K88: 0 | L88: 0 | Q88: 0 | U88: 0
A89: ='Org structure'!E85 -> 0 | J89: 0 | K89: 0 | L89: 0 | Q89: 0 | U89: 0
A90: ='Org structure'!E86 -> 0 | J90: 0 | K90: 0 | L90: 0 | Q90: 0 | U90: 0
A91: ='Org structure'!E87 -> 0 | J91: 0 | K91: 0 | L91: 0 | Q91: 0 | U91: 0
A92: ='Org structure'!E88 -> 0 | J92: 0 | K92: 0 | L92: 0 | Q92: 0 | U92: 0
A93: ='Org structure'!E89 -> 0 | J93: 0 | K93: 0 | L93: 0 | Q93: 0 | U93: 0
A94: ='Org structure'!A10 -> Vote 9 - [NAME OF VOTE 9] | C94: =SUM(C95:C104) -> 0 | D94: =SUM(D95:D104) -> 0 | E94: 0 | F94: 0 | G94: 0 | H94: 0 | I94: 0 | J94: 0 | K94: 0 | L94: 0 | N94: =SUM(N95:N104) -> 0 | O94: 0 | P94: 0 | Q94: 0 | R94: 0 | S94: 0 | T94: 0 | U94: 0 | V94: 0 | W94: 0 | X94: 0
A95: ='Org structure'!E91 -> 9.1 - [Name of sub-vote] | J95: =Q95+V95 -> 0 | K95: =U95+W95 -> 0 | L95: =X95 -> 0 | Q95: =SUM(N95:P95) -> 0 | U95: 0
A96: ='Org structure'!E92 -> 0 | J96: 0 | K96: 0 | L96: 0 | Q96: 0 | U96: 0
A97: ='Org structure'!E93 -> 0 | J97: 0 | K97: 0 | L97: 0 | Q97: 0 | U97: 0
A98: ='Org structure'!E94 -> 0 | J98: 0 | K98: 0 | L98: 0 | Q98: 0 | U98: 0
A99: ='Org structure'!E95 -> 0 | J99: 0 | K99: 0 | L99: 0 | Q99: 0 | U99: 0
A100: ='Org structure'!E96 -> 0 | J100: 0 | K100: 0 | L100: 0 | Q100: 0 | U100: 0
A101: ='Org structure'!E97 -> 0 | J101: 0 | K101: 0 | L101: 0 | Q101: 0 | U101: 0
A102: ='Org structure'!E98 -> 0 | J102: 0 | K102: 0 | L102: 0 | Q102: 0 | U102: 0
A103: ='Org structure'!E99 -> 0 | J103: 0 | K103: 0 | L103: 0 | Q103: 0 | U103: 0
A104: ='Org structure'!E100 -> 0 | J104: 0 | K104: 0 | L104: 0 | Q104: 0 | U104: 0
A105: ='Org structure'!A11 -> Vote 10 - [NAME OF VOTE 10] | C105: =SUM(C106:C115) -> 0 | D105: =SUM(D106:D115) -> 0 | E105: 0 | F105: 0 | G105: 0 | H105: 0 | I105: 0 | J105: 0 | K105: 0 | L105: 0 | N105: =SUM(N106:N115) -> 0 | O105: 0 | P105: 0 | Q105: 0 | R105: 0 | S105: 0 | T105: 0 | U105: 0 | V105: 0 | W105: 0 | X105: 0
A106: ='Org structure'!E102 -> 10.1 - [Name of sub-vote] | J106: =Q106+V106 -> 0 | K106: =U106+W106 -> 0 | L106: =X106 -> 0 | Q106: =SUM(N106:P106) -> 0 | U106: 0
A107: ='Org structure'!E103 -> 0 | J107: 0 | K107: 0 | L107: 0 | Q107: 0 | U107: 0
A108: ='Org structure'!E104 -> 0 | J108: 0 | K108: 0 | L108: 0 | Q108: 0 | U108: 0
A109: ='Org structure'!E105 -> 0 | J109: 0 | K109: 0 | L109: 0 | Q109: 0 | U109: 0
A110: ='Org structure'!E106 -> 0 | J110: 0 | K110: 0 | L110: 0 | Q110: 0 | U110: 0
A111: ='Org structure'!E107 -> 0 | J111: 0 | K111: 0 | L111: 0 | Q111: 0 | U111: 0
A112: ='Org structure'!E108 -> 0 | J112: 0 | K112: 0 | L112: 0 | Q112: 0 | U112: 0
A113: ='Org structure'!E109 -> 0 | J113: 0 | K113: 0 | L113: 0 | Q113: 0 | U113: 0
A114: ='Org structure'!E110 -> 0 | J114: 0 | K114: 0 | L114: 0 | Q114: 0 | U114: 0
A115: ='Org structure'!E111 -> 0 | J115: 0 | K115: 0 | L115: 0 | Q115: 0 | U115: 0
A116: ='Org structure'!A12 -> Vote 11 - [NAME OF VOTE 11] | C116: =SUM(C117:C126) -> 0 | D116: 0 | E116: 0 | F116: 0 | G116: 0 | H116: 0 | I116: 0 | J116: 0 | K116: 0 | L116: 0 | N116: =SUM(N117:N126) -> 0 | O116: 0 | P116: 0 | Q116: 0 | R116: 0 | S116: 0 | T116: 0 | U116: 0 | V116: 0 | W116: 0 | X116: 0
A117: ='Org structure'!E113 -> 11.1 - [Name of sub-vote] | J117: =Q117+V117 -> 0 | K117: =U117+W117 -> 0 | L117: =X117 -> 0 | Q117: =SUM(N117:P117) -> 0 | U117: 0
A118: ='Org structure'!E114 -> 0 | J118: 0 | K118: 0 | L118: 0 | Q118: 0 | U118: 0
A119: ='Org structure'!E115 -> 0 | J119: 0 | K119: 0 | L119: 0 | Q119: 0 | U119: 0
A120: ='Org structure'!E116 -> 0 | J120: 0 | K120: 0 | L120: 0 | Q120: 0 | U120: 0
A121: ='Org structure'!E117 -> 0 | J121: 0 | K121: 0 | L121: 0 | Q121: 0 | U121: 0
A122: ='Org structure'!E118 -> 0 | J122: 0 | K122: 0 | L122: 0 | Q122: 0 | U122: 0
A123: ='Org structure'!E119 -> 0 | J123: 0 | K123: 0 | L123: 0 | Q123: 0 | U123: 0
A124: ='Org structure'!E120 -> 0 | J124: 0 | K124: 0 | L124: 0 | Q124: 0 | U124: 0
A125: ='Org structure'!E121 -> 0 | J125: 0 | K125: 0 | L125: 0 | Q125: 0 | U125: 0
A126: ='Org structure'!E122 -> 0 | J126: 0 | K126: 0 | L126: 0 | Q126: 0 | U126: 0
A127: ='Org structure'!A13 -> Vote 12 - [NAME OF VOTE 12] | C127: =SUM(C128:C137) -> 0 | D127: 0 | E127: 0 | F127: 0 | G127: 0 | H127: 0 | I127: 0 | J127: 0 | K127: 0 | L127: 0 | N127: =SUM(N128:N137) -> 0 | O127: 0 | P127: 0 | Q127: 0 | R127: 0 | S127: 0 | T127: 0 | U127: 0 | V127: 0 | W127: 0 | X127: 0
A128: ='Org structure'!E124 -> 12.1 - [Name of sub-vote] | J128: =Q128+V128 -> 0 | K128: =U128+W128 -> 0 | L128: =X128 -> 0 | Q128: =SUM(N128:P128) -> 0 | U128: 0
A129: ='Org structure'!E125 -> 0 | J129: 0 | K129: 0 | L129: 0 | Q129: 0 | U129: 0
A130: ='Org structure'!E126 -> 0 | J130: 0 | K130: 0 | L130: 0 | Q130: 0 | U130: 0
A131: ='Org structure'!E127 -> 0 | J131: 0 | K131: 0 | L131: 0 | Q131: 0 | U131: 0
A132: ='Org structure'!E128 -> 0 | J132: 0 | K132: 0 | L132: 0 | Q132: 0 | U132: 0
A133: ='Org structure'!E129 -> 0 | J133: =Q133+V133 -> 0 | K133: 0 | L133: 0 | Q133: 0 | U133: 0
A134: ='Org structure'!E130 -> 0 | J134: 0 | K134: 0 | L134: 0 | Q134: 0 | U134: 0
A135: ='Org structure'!E131 -> 0 | J135: 0 | K135: 0 | L135: 0 | Q135: 0 | U135: 0
A136: ='Org structure'!E132 -> 0 | J136: 0 | K136: 0 | L136: 0 | Q136: 0 | U136: =SUM(R136:T136) -> 0
A137: ='Org structure'!E133 -> 0 | J137: 0 | K137: 0 | L137: 0 | Q137: 0 | U137: 0
A138: ='Org structure'!A14 -> Vote 13 - [NAME OF VOTE 13] | C138: =SUM(C139:C148) -> 0 | D138: 0 | E138: 0 | F138: 0 | G138: 0 | H138: 0 | I138: 0 | J138: 0 | K138: 0 | L138: 0 | N138: =SUM(N139:N148) -> 0 | O138: 0 | P138: 0 | Q138: 0 | R138: 0 | S138: 0 | T138: 0 | U138: 0 | V138: 0 | W138: 0 | X138: 0
A139: ='Org structure'!E135 -> 13.1 - [Name of sub-vote] | J139: =Q139+V139 -> 0 | K139: =U139+W139 -> 0 | L139: =X139 -> 0 | Q139: =SUM(N139:P139) -> 0 | U139: 0
A140: ='Org structure'!E136 -> 0 | J140: 0 | K140: 0 | L140: 0 | Q140: 0 | U140: 0
A141: ='Org structure'!E137 -> 0 | J141: 0 | K141: 0 | L141: 0 | Q141: 0 | U141: 0
A142: ='Org structure'!E138 -> 0 | J142: 0 | K142: 0 | L142: 0 | Q142: 0 | U142: 0
A143: ='Org structure'!E139 -> 0 | J143: 0 | K143: 0 | L143: 0 | Q143: 0 | U143: 0
A144: ='Org structure'!E140 -> 0 | J144: 0 | K144: 0 | L144: 0 | Q144: 0 | U144: 0
A145: ='Org structure'!E141 -> 0 | J145: 0 | K145: 0 | L145: 0 | Q145: 0 | U145: 0
A146: ='Org structure'!E142 -> 0 | J146: 0 | K146: 0 | L146: 0 | Q146: 0 | U146: 0
A147: ='Org structure'!E143 -> 0 | J147: 0 | K147: 0 | L147: 0 | Q147: 0 | U147: 0
A148: ='Org structure'!E144 -> 0 | J148: 0 | K148: 0 | L148: 0 | Q148: 0 | U148: 0
A149: ='Org structure'!A15 -> Vote 14 - [NAME OF VOTE 14] | C149: =SUM(C150:C159) -> 0 | D149: 0 | E149: 0 | F149: 0 | G149: 0 | H149: 0 | I149: 0 | J149: 0 | K149: 0 | L149: 0 | N149: =SUM(N150:N159) -> 0 | O149: 0 | P149: 0 | Q149: 0 | R149: 0 | S149: 0 | T149: 0 | U149: 0 | V149: 0 | W149: 0 | X149: 0
A150: ='Org structure'!E146 -> 14.1 - [Name of sub-vote] | J150: =Q150+V150 -> 0 | K150: =U150+W150 -> 0 | L150: =X150 -> 0 | Q150: =SUM(N150:P150) -> 0 | U150: 0
A151: ='Org structure'!E147 -> 0 | J151: 0 | K151: 0 | L151: 0 | Q151: 0 | U151: 0
A152: ='Org structure'!E148 -> 0 | J152: 0 | K152: 0 | L152: 0 | Q152: 0 | U152: 0
A153: ='Org structure'!E149 -> 0 | J153: 0 | K153: 0 | L153: 0 | Q153: 0 | U153: 0
A154: ='Org structure'!E150 -> 0 | J154: 0 | K154: 0 | L154: 0 | Q154: 0 | U154: 0
A155: ='Org structure'!E151 -> 0 | J155: 0 | K155: 0 | L155: 0 | Q155: 0 | U155: 0
A156: ='Org structure'!E152 -> 0 | J156: 0 | K156: 0 | L156: 0 | Q156: 0 | U156: 0
A157: ='Org structure'!E153 -> 0 | J157: 0 | K157: 0 | L157: 0 | Q157: 0 | U157: 0
A158: ='Org structure'!E154 -> 0 | J158: 0 | K158: 0 | L158: 0 | Q158: 0 | U158: 0
A159: ='Org structure'!E155 -> 0 | J159: 0 | K159: 0 | L159: 0 | Q159: 0 | U159: 0
A160: ='Org structure'!A16 -> Vote 15 - [NAME OF VOTE 15] | C160: =SUM(C161:C170) -> 0 | D160: 0 | E160: 0 | F160: 0 | G160: 0 | H160: 0 | I160: 0 | J160: 0 | K160: 0 | L160: 0 | N160: =SUM(N161:N170) -> 0 | O160: 0 | P160: 0 | Q160: 0 | R160: 0 | S160: 0 | T160: 0 | U160: 0 | V160: 0 | W160: 0 | X160: 0
A161: ='Org structure'!E157 -> 15.1 - [Name of sub-vote] | J161: =Q161+V161 -> 0 | K161: =U161+W161 -> 0 | L161: =X161 -> 0 | Q161: =SUM(N161:P161) -> 0 | U161: 0
A162: ='Org structure'!E158 -> 0 | J162: 0 | K162: 0 | L162: 0 | Q162: 0 | U162: 0
A163: ='Org structure'!E159 -> 0 | J163: 0 | K163: 0 | L163: 0 | Q163: 0 | U163: 0
A164: ='Org structure'!E160 -> 0 | J164: 0 | K164: 0 | L164: 0 | Q164: 0 | U164: 0
A165: ='Org structure'!E161 -> 0 | J165: 0 | K165: 0 | L165: 0 | Q165: 0 | U165: 0
A166: ='Org structure'!E162 -> 0 | J166: 0 | K166: 0 | L166: 0 | Q166: 0 | U166: 0
A167: ='Org structure'!E163 -> 0 | J167: 0 | K167: 0 | L167: 0 | Q167: 0 | U167: 0
A168: ='Org structure'!E164 -> 0 | J168: 0 | K168: 0 | L168: 0 | Q168: 0 | U168: 0
A169: ='Org structure'!E165 -> 0 | J169: 0 | K169: 0 | L169: 0 | Q169: 0 | U169: 0
A170: ='Org structure'!E166 -> 0 | J170: 0 | K170: 0 | L170: 0 | Q170: 0 | U170: 0
A171: Capital multi-year expenditure sub-total | C171: =C6+C17+C28+C39+C50+C61+C72+C83+C94+C105+C116+C127+C138+C149+C160 -> 57566055.27 | D171: =D6+D17+D28+D39+D50+D61+D72+D83+D94+D105+D116+D127+D138+D149+D160 -> 52107083.54 | E171: 46464633.78 | F171: 50016708 | G171: 50060918 | H171: 50060918 | I171: 50060918 | J171: 45491100 | K171: 58855750 | L171: 45930900 | N171: =N6+N17+N28+N39+N50+N61+N72+N83+N94+N105+N116+N127+N138+N149+N160 -> 0 | O171: 0 | P171: 0 | Q171: 0 | R171: 0 | S171: 0 | U171: 0 | V171: =V6+V17+V28+V39+V50+V61+V72+V83+V94+V105+V116+V127+V138+V149+V160 -> 52251100 | W171: =W6+W17+W28+W39+W50+W61+W72+W83+W94+W105+W116+W127+W138+W149+W160 -> 73598742.42
A173: Capital expenditure - Municipal Vote
A174: Single-year expenditure appropriation | B174: 2
A175: =A6 -> Vote 1 - EXECUTIVE AND COUNCIL | C175: =SUM(C176:C185) -> 790794 | D175: 0 | E175: 0 | F175: 0 | G175: 0 | H175: 0 | I175: 0 | J175: 0 | K175: 0 | L175: 0
A176: =A7 -> 1.1 - COUNCIL GENERAL | C176: 790794
A177: 0
A178: 0
A179: 0
A180: 0
A181: 0
A182: 0
A183: 0
A184: 0
A185: 0
A186: Vote 2 - MUNICIPAL MANAGER | C186: =SUM(C187:C196) -> 0 | D186: 0 | E186: 0 | F186: 0 | G186: 0 | H186: 0 | I186: 0 | J186: 0 | K186: 0 | L186: 0
A187: 2.1 - MUNICIPAL MANAGER
A188: 2.2 - URBAN RENEWAL
A189: 0
A190: 0
A191: 0
A192: 0
A193: 0
A194: 0
A195: 0
A196: 0
A197: Vote 3 - FINANCE | C197: =SUM(C198:C207) -> 0 | D197: 606929.48 | E197: 252000 | F197: 70008 | G197: 70008 | H197: 70008 | I197: 70008 | J197: 0 | K197: 0 | L197: 0
A198: 3.1 - FINANCE | D198: 131104.48 | E198: 52000 | F198: 70008 | G198: 70008 | H198: 70008 | I198: 70008
A199: 3.3 - FLEET | D199: 475825 | E199: 200000
A200: 3.2 - STORES
A201: 3,4 - Information Technology
... 140 more rows

Sheet A6-FinPos
A1: =muni&" - "&Approve6 -> LIM471 Ephraim Mogale - Table A6 Budgeted Financial Position
A2: =desc -> Description | B2: =head27 -> Ref | C2: =head1b -> 2016/17 | D2: =head1A -> 2017/18 | E2: =Head1 -> 2018/19 | F2: =Head2 -> Current Year 2019/20 | J2: =Head3 -> 2020/21 Medium Term Revenue & Expenditure Framework
A3: R thousand | C3: =Head5 -> Audited Outcome | D3: =Head5 -> Audited Outcome | E3: =Head5 -> Audited Outcome | F3: =Head6 -> Original Budget | G3: =Head7 -> Adjusted Budget | H3: =Head8 -> Full Year Forecast | I3: =Head5b -> Pre-audit outcome | J3: =Head9 -> Budget Year 2020/21 | K3: =Head10 -> Budget Year +1 2021/22 | L3: =Head11 -> Budget Year +2 2022/23
A4: ASSETS
A5: Current assets
A6: Cash | C6: 124746340 | D6: 68566058 | E6: 44313953.64 | F6: 46529651.32 | G6: 37806579 | H6: 37806579 | I6: 37806579 | J6: 37806579 | K6: 37806579 | L6: 37806579
A7: Call investment deposits | B7: 1 | C7: ='SA3'!C9 -> 0 | D7: ='SA3'!D9 -> 0 | E7: ='SA3'!E9 -> 0 | F7: ='SA3'!F9 -> 0 | I7: ='SA3'!I9 -> 0 | J7: ='SA3'!J9 -> 0 | K7: ='SA3'!K9 -> 0 | L7: ='SA3'!L9 -> 0
A8: Consumer debtors | B8: 1 | C8: ='SA3'!C14 -> 0 | D8: ='SA3'!D14 -> 0 | E8: ='SA3'!E14 -> 0 | F8: ='SA3'!F14 -> 0 | G8: ='SA3'!G14 -> 0 | H8: ='SA3'!H14 -> 0 | I8: ='SA3'!I14 -> 0 | J8: ='SA3'!J14 -> 0 | K8: ='SA3'!K14 -> 0 | L8: ='SA3'!L14 -> 0
A9: Other debtors | C9: 43453454 | D9: 0 | E9: 23000000 | G9: 35560082 | H9: 35560082 | I9: 35560082 | J9: 35560082 | K9: 35560082 | L9: 35560082
A10: Current portion of long-term receivables | G10: 1119586 | H10: 1119586 | I10: 1119586 | J10: 1119586 | K10: 1119586 | L10: 1119586
A11: Inventory | B11: 2 | C11: 720347 | D11: 754565 | E11: 820000 | G11: 1363910 | H11: 1363910 | I11: 1363910 | J11: 1363910 | K11: 1363910 | L11: 1363910
A12: Total current assets | C12: =SUM(C6:C11) -> 168920141 | D12: 69320623 | E12: 68133953.64 | F12: 46529651.32 | G12: 75850157 | H12: 75850157 | I12: 75850157 | J12: 75850157 | K12: 75850157 | L12: 75850157
A14: Non current assets
A15: Long-term receivables
A16: Investments | D16: 87629001
A17: Investment property | C17: 88362701 | D17: 0 | E17: 89000000 | F17: 93450000 | G17: 50360922 | H17: 50360922 | I17: 50360922 | J17: 50360922 | K17: 50360922 | L17: 50360922
A18: Investment in Associate
A19: Property, plant and equipment | B19: 3 | C19: ='SA3'!C26 -> 0 | D19: ='SA3'!D26 -> 0 | E19: ='SA3'!E26 -> 0 | F19: ='SA3'!F26 -> 0 | G19: ='SA3'!G26 -> 0 | H19: ='SA3'!H26 -> 0 | I19: ='SA3'!I26 -> 0 | J19: ='SA3'!J26 -> 0 | K19: ='SA3'!K26 -> 0 | L19: ='SA3'!L26 -> 0
A21: Biological
A22: Intangible
A23: Other non-current assets | C23: 81647
A24: Total non current assets | C24: =SUM(C15:C19)+SUM(C21:C23) -> 88444348 | D24: =SUM(D15:D19)+SUM(D21:D23) -> 87629001 | E24: 89000000 | F24: 93450000 | G24: 50360922 | H24: 50360922 | I24: 50360922 | J24: 50360922 | K24: 50360922 | L24: 50360922
A25: TOTAL ASSETS | C25: =C12+C24 -> 257364489 | D25: =D12+D24 -> 156949624 | E25: =E12+E24 -> 157133953.6 | F25: =F12+F24 -> 139979651.3 | G25: 126211079 | H25: 126211079 | I25: 126211079 | J25: 126211079 | K25: 126211079 | L25: 126211079
A27: LIABILITIES
A28: Current liabilities
A29: Bank overdraft | B29: 1 | D29: 235884
A30: Borrowing | B30: 4 | C30: ='SA3'!C32 -> 0 | D30: ='SA3'!D32 -> 0 | E30: ='SA3'!E32 -> 0 | F30: ='SA3'!F32 -> 0 | G30: ='SA3'!G32 -> 0 | H30: ='SA3'!H32 -> 0 | I30: ='SA3'!I32 -> 0 | J30: ='SA3'!J32 -> 0 | K30: ='SA3'!K32 -> 0 | L30: ='SA3'!L32 -> 0
A31: Consumer deposits | C31: 1426273 | D31: 1399552 | F31: 1300000 | G31: 93515 | H31: 93515 | I31: 93515 | J31: 93515 | K31: 93515 | L31: 93515
A32: Trade and other payables | B32: 4 | C32: ='SA3'!C39 -> 0 | D32: ='SA3'!D39 -> 0 | E32: ='SA3'!E39 -> 0 | F32: ='SA3'!F39 -> 0 | G32: ='SA3'!G39 -> 0 | H32: ='SA3'!H39 -> 0 | I32: ='SA3'!I39 -> 0 | J32: ='SA3'!J39 -> 0 | K32: ='SA3'!K39 -> 0 | L32: ='SA3'!L39 -> 0
A33: Provisions | C33: 285568 | D33: 2087351 | F33: 285000 | G33: 285000 | H33: 285000 | I33: 285000 | J33: 285000 | K33: 285000 | L33: 285000
A34: Total current liabilities | C34: =SUM(C29:C33) -> 1711841 | D34: 3722787 | E34: 0 | F34: 1585000 | G34: 378515 | H34: 378515 | I34: 378515 | J34: 378515 | K34: 378515 | L34: 378515
A36: Non current liabilities
A37: Borrowing | C37: ='SA3'!C44 -> 0 | D37: ='SA3'!D44 -> 0 | E37: ='SA3'!E44 -> 0 | F37: ='SA3'!F44 -> 0 | G37: ='SA3'!G44 -> 0 | H37: ='SA3'!H44 -> 0 | I37: ='SA3'!I44 -> 0 | J37: ='SA3'!J44 -> 0 | K37: ='SA3'!K44 -> 0 | L37: ='SA3'!L44 -> 0
A38: Provisions | C38: ='SA3'!C51 -> 0 | D38: ='SA3'!D51 -> 0 | E38: ='SA3'!E51 -> 0 | F38: ='SA3'!F51 -> 0 | G38: ='SA3'!G51 -> 0 | H38: ='SA3'!H51 -> 0 | I38: ='SA3'!I51 -> 0 | J38: ='SA3'!J51 -> 0 | K38: ='SA3'!K51 -> 0 | L38: ='SA3'!L51 -> 0
A39: Total non current liabilities | C39: =SUM(C37:C38) -> 0 | D39: =SUM(D37:D38) -> 0 | E39: =SUM(E37:E38) -> 0 | F39: =SUM(F37:F38) -> 0 | G39: 0 | H39: 0 | I39: 0 | J39: 0 | K39: =SUM(K37:K38) -> 0 | L39: 0
A40: TOTAL LIABILITIES | C40: =C34+C39 -> 1711841 | D40: =D34+D39 -> 3722787 | E40: =E34+E39 -> 0 | F40: =F34+F39 -> 1585000 | G40: 378515 | H40: 378515 | I40: 378515 | J40: 378515 | K40: =K34+K39 -> 378515 | L40: 378515
A42: NET ASSETS | B42: 5 | C42: =C25-C40 -> 255652648 | D42: 153226837 | E42: 157133953.6 | F42: 138394651.3 | G42: 125832564 | H42: 125832564 | I42: 125832564 | J42: 125832564 | K42: 125832564 | L42: 125832564
A44: COMMUNITY WEALTH/EQUITY
A45: Accumulated Surplus/(Deficit) | C45: 1009282505 | D45: 957767799 | E45: 1018379404 | F45: 1069298374 | G45: 66989036 | H45: 66989036 | I45: 66989036 | J45: 66989036 | K45: 66989036 | L45: 66989036
A46: Reserves | B46: 4 | C46: ='SA3'!C70 -> 0 | D46: ='SA3'!D70 -> 0 | E46: ='SA3'!E70 -> 0 | F46: ='SA3'!F70 -> 0 | G46: ='SA3'!G70 -> 0 | H46: ='SA3'!H70 -> 0 | I46: ='SA3'!I70 -> 0 | J46: ='SA3'!J70 -> 0 | K46: ='SA3'!K70 -> 0 | L46: ='SA3'!L70 -> 0
A48: TOTAL COMMUNITY WEALTH/EQUITY | B48: 5 | C48: =SUM(C45:C46) -> 1009282505 | D48: =SUM(D45:D46) -> 957767799 | E48: 1018379404 | F48: 1069298374 | G48: 66989036 | H48: 66989036 | I48: 66989036 | J48: 66989036 | K48: 66989036 | L48: 66989036
A49: =head27a -> References
A50: 1. Detail to be provided in Table SA3
A51: 2. Include completed low cost housing to be transferred to beneficiaries within 12 months
A52: 3. Include 'Construction-work-in-progress' (disclosed separately in annual financial statements)
A53: 4. Detail to be provided in Table SA3. Includes reserves to be funded by statute.
A54: 5. Net assets must balance with Total Community Wealth/Equity
A55: check balance | C55: =IF((C42-C48)=0,0,"Unbalanced") -> Unbalanced | D55: =IF((D42-D48)=0,0,"Unbalanced") -> Unbalanced | E55: Unbalanced | F55: Unbalanced | G55: Unbalanced | H55: Unbalanced | I55: Unbalanced | J55: Unbalanced | K55: Unbalanced | L55: Unbalanced

Sheet A7-CFlow
A1: =muni&" - "&Approve7 -> LIM471 Ephraim Mogale - Table A7 Budgeted Cash Flows
A2: =desc -> Description | B2: =head27 -> Ref | C2: =head1b -> 2016/17 | D2: =head1A -> 2017/18 | E2: =Head1 -> 2018/19 | F2: =Head2 -> Current Year 2019/20 | J2: =Head3 -> 2020/21 Medium Term Revenue & Expenditure Framework
A3: R thousand | C3: =Head5 -> Audited Outcome | D3: =Head5 -> Audited Outcome | E3: =Head5 -> Audited Outcome | F3: =Head6 -> Original Budget | G3: =Head7 -> Adjusted Budget | H3: =Head8 -> Full Year Forecast | I3: =Head5b -> Pre-audit outcome | J3: =Head9 -> Budget Year 2020/21 | K3: =Head10 -> Budget Year +1 2021/22 | L3: =Head11 -> Budget Year +2 2022/23
A4: CASH FLOW FROM OPERATING ACTIVITIES
A5: Receipts
A6: Property rates | C6: 25768000 | D6: 23708928.79 | E6: 42604438 | F6: 30007043.1 | G6: 37405602 | H6: 37405602 | I6: 37405602 | J6: ='SA30'!N5 -> 31301009.43 | K6: ='SA30'!O5 -> 32803457.88 | L6: ='SA30'!P5 -> 34378023.86
A7: Service charges | C7: 46130353 | D7: 54454056.21 | E7: 59646588 | F7: 52549812.75 | G7: 64782588 | H7: 64782588 | I7: 64782588 | J7: ='SA30'!N6+'SA30'!N7+'SA30'!N8+'SA30'!N9 -> 55016740.8 | K7: ='SA30'!O6+'SA30'!O7+'SA30'!O8+'SA30'!O9 -> 60330870.69 | L7: ='SA30'!P6+'SA30'!P7+'SA30'!P8+'SA30'!P9 -> 63226752.48
A8: Other revenue | C8: 2359317 | D8: 24181535 | E8: 8617791 | F8: 3609780.366 | G8: 2846862 | H8: 2846862 | I8: 2846862 | J8: ='SA30'!N11+'SA30'!N15+'SA30'!N16+'SA30'!N17+'SA30'!N19 -> 6300975.18 | K8: ='SA30'!O11+'SA30'!O15+'SA30'!O16+'SA30'!O17+'SA30'!O19 -> 6584313.918 | L8: ='SA30'!P11+'SA30'!P15+'SA30'!P16+'SA30'!P17+'SA30'!P19 -> 6900360.986
A9: Transfers and Subsidies - Operational | B9: 1 | C9: 119667441 | D9: 127233305 | E9: 133484988 | F9: 148974000 | G9: 148974000 | H9: 148974000 | I9: 148974000 | J9: ='SA30'!N18 -> 148974012 | K9: ='SA30'!O18 -> 163620000 | L9: ='SA30'!P18 -> 173342000
A10: Transfers and Subsidies - Capital | B10: 1 | C10: 29313000 | D10: 44810000 | E10: 34624783 | F10: 0 | G10: 33443000 | H10: 33443000 | I10: 33443000 | J10: ='SA30'!N23 -> 0 | K10: ='SA30'!O23 -> 0 | L10: ='SA30'!P23 -> 0
A11: Interest | C11: 12412299 | D11: 10055167 | E11: 0 | F11: 11147462.01 | G11: 13470000 | H11: 13470000 | I11: 13470000 | J11: ='SA30'!N12+'SA30'!N13 -> 13470000 | K11: ='SA30'!O12+'SA30'!O13 -> 12263400 | L11: ='SA30'!P12+'SA30'!P13 -> 14497403.2
A12: Dividends | F12: 0 | J12: ='SA30'!N14 -> 0 | K12: ='SA30'!O14 -> 0 | L12: ='SA30'!P14 -> 0
A13: Payments
A14: Suppliers and employees | C14: -161062927 | D14: -174697683 | E14: -218386150 | F14: -234416027.4 | G14: -226669092 | H14: -226669092 | I14: -226669092 | J14: =-('SA30'!N35+'SA30'!N36+'SA30'!N38+'SA30'!N39+'SA30'!N40+'SA30'!N41+'SA30'!N44+'SA30'!N50) -> -121372205.8 | K14: =-('SA30'!O35+'SA30'!O36+'SA30'!O38+'SA30'!O39+'SA30'!O40+'SA30'!O41+'SA30'!O44+'SA30'!O50) -> -122780982.5 | L14: =-('SA30'!P35+'SA30'!P36+'SA30'!P38+'SA30'!P39+'SA30'!P40+'SA30'!P41+'SA30'!P44+'SA30'!P50) -> -132998667.4
A15: Finance charges | C15: -260528 | D15: -3597669 | E15: -150000 | F15: -365000 | G15: -105654 | H15: -105654 | I15: -105654 | J15: =-('SA30'!N37) -> 0 | K15: =-('SA30'!O37) -> 0 | L15: =-('SA30'!P37) -> 0
A16: Transfers and Grants | B16: 1 | D16: -2571011 | E16: 0 | F16: 0 | J16: =-('SA30'!N42+'SA30'!N43) -> 0 | K16: =-('SA30'!O42+'SA30'!O43) -> 0 | L16: =-('SA30'!P42+'SA30'!P43) -> 0
A17: NET CASH FROM/(USED) OPERATING ACTIVITIES | C17: =SUM(C6:C12)+SUM(C14:C16) -> 74326955 | D17: 103576629 | E17: 60442438 | F17: 11507070.8 | G17: 74147306 | H17: 74147306 | I17: 74147306 | J17: 133690531.6 | K17: 152821060 | L17: 159345873.1
A19: CASH FLOWS FROM INVESTING ACTIVITIES
A20: Receipts
A21: Proceeds on disposal of PPE | D21: -71893440 | J21: ='SA30'!N24+'SA30'!N25 -> 0 | K21: ='SA30'!O24+'SA30'!O25 -> 0 | L21: ='SA30'!P24+'SA30'!P25 -> 0
A23: Decrease (increase) in non-current receivables | J23: ='SA30'!N30 -> 0 | K23: ='SA30'!O30 -> 0 | L23: ='SA30'!P30 -> 0
A24: Decrease (increase) in non-current investments | D24: -84076833 | J24: ='SA30'!N31 -> 0 | K24: ='SA30'!O31 -> 0 | L24: ='SA30'!P31 -> 0
A25: Payments
A26: Capital assets | C26: -53765320 | F26: -40536600 | G26: -50360922 | H26: -50360922 | I26: -50360922 | J26: =-('SA30'!N48) -> 0 | K26: =-('SA30'!O48) -> 0 | L26: =-('SA30'!P48) -> 0
A27: NET CASH FROM/(USED) INVESTING ACTIVITIES | C27: =+C21+C23+C24+C26 -> -53765320 | D27: =+D21+D23+D24+D26 -> -155970273 | E27: 0 | F27: -40536600 | G27: -50360922 | H27: -50360922 | I27: -50360922 | J27: 0 | K27: 0 | L27: 0
A29: CASH FLOWS FROM FINANCING ACTIVITIES
A30: Receipts
A31: Short term loans | J31: ='SA30'!N26 -> 0 | K31: ='SA30'!O26 -> 0 | L31: ='SA30'!P26 -> 0
A32: Borrowing long term/refinancing | J32: ='SA30'!N27 -> 0 | K32: ='SA30'!O27 -> 0 | L32: ='SA30'!P27 -> 0
A33: Increase (decrease) in consumer deposits | J33: ='SA30'!N28 -> 0 | K33: ='SA30'!O28 -> 0 | L33: ='SA30'!P28 -> 0
A34: Payments
A35: Repayment of borrowing | C35: -1537792 | D35: -1943068 | E35: -1535367.6 | F35: 0 | J35: =-('SA30'!N49) -> 0 | K35: =-('SA30'!O49) -> 0 | L35: =-('SA30'!P49) -> 0
A36: NET CASH FROM/(USED) FINANCING ACTIVITIES | C36: =SUM(C31:C33)+C35 -> -1537792 | D36: =SUM(D31:D33)+D35 -> -1943068 | E36: -1535367.6 | F36: 0 | G36: 0 | H36: 0 | I36: 0 | J36: 0 | K36: 0 | L36: 0
A38: NET INCREASE/ (DECREASE) IN CASH HELD | C38: =C17+C27+C36 -> 19023843 | D38: =D17+D27+D36 -> -54336712 | E38: 58907070.4 | F38: -29029529.2 | G38: 23786384 | H38: 23786384 | I38: 23786384 | J38: 133690531.6 | K38: 152821060 | L38: 159345873.1
A39: Cash/cash equivalents at the year begin: | B39: 2 | C39: 105722497 | D39: 122982129 | E39: 124746340 | F39: 183653410.4 | J39: ='SA30'!N54 -> 0 | K39: =J40 -> 133690531.6 | L39: =K40 -> 286511591.6
A40: Cash/cash equivalents at the year end: | B40: 2 | C40: =C38+C39 -> 124746340 | D40: =D38+D39 -> 68645417 | E40: =E38+E39 -> 183653410.4 | F40: =F38+F39 -> 154623881.2 | G40: 23786384 | H40: 23786384 | I40: 23786384 | J40: 133690531.6 | K40: 286511591.6 | L40: 445857464.7
A41: =head27a -> References
A42: 1. Local/District municipalities to include transfers from/to District/Local Municipalities
A43: 2. Cash equivalents includes investments with maturities of 3 months or less
A44: 3. The MTREF is populated directly from SA30.
A45: Total receipts | C45: =SUM(C6:C12)+SUM(C21:C23) -> 235650410 | D45: 212549552 | E45: 278978588 | F45: 246288098.2 | G45: 300922052 | H45: 300922052 | I45: 300922052 | J45: 255062737.4 | K45: 275602042.5 | L45: 292344540.5
A46: Total payments | C46: =SUM(C14:C16)+C26 -> -215088775 | D46: =SUM(D14:D16)+D26 -> -180866363 | E46: -218536150 | F46: -275317627.4 | G46: -277135668 | H46: -277135668 | I46: -277135668 | J46: -121372205.8 | K46: -122780982.5 | L46: -132998667.4
C47: =C45+C46 -> 20561635 | D47: =D45+D46 -> 31683189 | E47: 60442438 | F47: -29029529.2 | G47: 23786384 | H47: 23786384 | I47: 23786384 | J47: 133690531.6 | K47: 152821060 | L47: 159345873.1
A48: Borrowings & investments & c.deposits | C48: =C24+C32+C33 -> 0 | D48: =D24+D32+D33 -> -84076833 | E48: 0 | F48: 0 | G48: 0 | H48: 0 | I48: 0 | J48: 0 | K48: 0 | L48: 0
A49: =A35 -> Repayment of borrowing | C49: =C35 -> -1537792 | D49: =D35 -> -1943068 | E49: -1535367.6 | F49: 0 | G49: 0 | H49: 0 | I49: =I35 -> 0 | J49: 0 | K49: 0 | L49: 0
C50: =C47+C48+C49 -> 19023843 | D50: =D47+D48+D49 -> -54336712 | E50: 58907070.4 | F50: -29029529.2 | G50: 23786384 | H50: 23786384 | I50: 23786384 | J50: 133690531.6 | K50: 152821060 | L50: 159345873.1
C51: =C38-C50 -> 0 | D51: 0 | E51: 0 | F51: 0 | G51: 0 | H51: 0 | I51: 0 | J51: 0 | K51: 0 | L51: 0

Sheet A8-ResRecon
A1: =muni&" - "&Approve8 -> LIM471 Ephraim Mogale - Table A8 Cash backed reserves/accumulated surplus reconciliation
A2: =desc -> Description | B2: =head27 -> Ref | C2: =head1b -> 2016/17 | D2: =head1A -> 2017/18 | E2: =Head1 -> 2018/19 | F2: =Head2 -> Current Year 2019/20 | J2: =Head3 -> 2020/21 Medium Term Revenue & Expenditure Framework
A3: R thousand | C3: =Head5 -> Audited Outcome | D3: =Head5 -> Audited Outcome | E3: =Head5 -> Audited Outcome | F3: =Head6 -> Original Budget | G3: =Head7 -> Adjusted Budget | H3: =Head8 -> Full Year Forecast | I3: =Head5b -> Pre-audit outcome | J3: =Head9 -> Budget Year 2020/21 | K3: =Head10 -> Budget Year +1 2021/22 | L3: =Head11 -> Budget Year +2 2022/23
A4: Cash and investments available
A5: =LEFT('A7-CFlow'!A40,37) -> Cash/cash equivalents at the year end | B5: 1 | C5: ='A7-CFlow'!C40 -> 124746340 | D5: ='A7-CFlow'!D40 -> 68645417 | E5: ='A7-CFlow'!E40 -> 183653410.4 | F5: ='A7-CFlow'!F40 -> 154623881.2 | G5: ='A7-CFlow'!G40 -> 23786384 | H5: ='A7-CFlow'!H40 -> 23786384 | I5: ='A7-CFlow'!I40 -> 23786384 | J5: ='A7-CFlow'!J40 -> 133690531.6 | K5: ='A7-CFlow'!K40 -> 286511591.6 | L5: ='A7-CFlow'!L40 -> 445857464.7
A6: Other current investments > 90 days | C6: ='A6-FinPos'!C6+'A6-FinPos'!C7-'A6-FinPos'!C29-'A8-ResRecon'!C5 -> 0 | D6: ='A6-FinPos'!D6+'A6-FinPos'!D7-'A6-FinPos'!D29-'A8-ResRecon'!D5 -> -315243 | E6: ='A6-FinPos'!E6+'A6-FinPos'!E7-'A6-FinPos'!E29-'A8-ResRecon'!E5 -> -139339456.8 | F6: ='A6-FinPos'!F6+'A6-FinPos'!F7-'A6-FinPos'!F29-'A8-ResRecon'!F5 -> -108094229.9 | G6: ='A6-FinPos'!G6+'A6-FinPos'!G7-'A6-FinPos'!G29-'A8-ResRecon'!G5 -> 14020195 | H6: ='A6-FinPos'!H6+'A6-FinPos'!H7-'A6-FinPos'!H29-'A8-ResRecon'!H5 -> 14020195 | I6: ='A6-FinPos'!I6+'A6-FinPos'!I7-'A6-FinPos'!I29-'A8-ResRecon'!I5 -> 14020195 | J6: ='A6-FinPos'!J6+'A6-FinPos'!J7-'A6-FinPos'!J29-'A8-ResRecon'!J5 -> -95883952.61 | K6: ='A6-FinPos'!K6+'A6-FinPos'!K7-'A6-FinPos'!K29-'A8-ResRecon'!K5 -> -248705012.6 | L6: ='A6-FinPos'!L6+'A6-FinPos'!L7-'A6-FinPos'!L29-'A8-ResRecon'!L5 -> -408050885.7
A7: ='A6-FinPos'!A14&" - "&'A6-FinPos'!A16 -> Non current assets - Investments | B7: 1 | C7: ='A6-FinPos'!C16 -> 0 | D7: ='A6-FinPos'!D16 -> 87629001 | E7: ='A6-FinPos'!E16 -> 0 | F7: ='A6-FinPos'!F16 -> 0 | G7: ='A6-FinPos'!G16 -> 0 | H7: ='A6-FinPos'!H16 -> 0 | I7: ='A6-FinPos'!I16 -> 0 | J7: ='A6-FinPos'!J16 -> 0 | K7: ='A6-FinPos'!K16 -> 0 | L7: ='A6-FinPos'!L16 -> 0
A8: Cash and investments available: | C8: =SUM(C5:C7) -> 124746340 | D8: =SUM(D5:D7) -> 155959175 | E8: 44313953.64 | F8: 46529651.32 | G8: 37806579 | H8: 37806579 | I8: 37806579 | J8: 37806579 | K8: 37806579 | L8: 37806579
A10: Application of cash and investments
A11: ='SA3'!A37 -> Unspent conditional transfers | C11: ='SA3'!C37 -> 0 | D11: ='SA3'!D37 -> 0 | E11: ='SA3'!E37 -> 0 | F11: ='SA3'!F37 -> 0 | G11: ='SA3'!G37 -> 0 | H11: ='SA3'!H37 -> 0 | I11: ='SA3'!I37 -> 0 | J11: ='SA3'!J37 -> 0 | K11: ='SA3'!K37 -> 0 | L11: ='SA3'!L37 -> 0
A12: Unspent borrowing | C12: ='SA17'!C67 -> 0 | D12: ='SA17'!D67 -> 0 | E12: ='SA17'!E67 -> 0 | F12: ='SA17'!F67 -> 0 | G12: ='SA17'!G67 -> 0 | H12: ='SA17'!H67 -> 0 | J12: ='SA17'!I67 -> 0 | K12: ='SA17'!J67 -> 0 | L12: ='SA17'!K67 -> 0
A13: Statutory requirements | B13: 2
A14: Other working capital requirements | B14: 3 | C14: =-C32 -> -33493000 | D14: =-D32 -> 0 | E14: -23595000 | F14: =-F32 -> 0 | G14: -31611000 | H14: -31611000 | I14: -31611000 | J14: -26434000 | K14: -26868000 | L14: -26868000
A15: Other provisions
A16: Long term investments committed | B16: 4 | C16: =C52 -> 0 | D16: =D52 -> 0 | E16: 0 | F16: 0 | G16: 0 | H16: 0 | I16: 0 | J16: 0 | K16: 0 | L16: 0
A17: Reserves to be backed by cash/investments | B17: 5
A18: ="Total "&A10&":" -> Total Application of cash and investments: | C18: =SUM(C11:C17) -> -33493000 | D18: =SUM(D11:D17) -> 0 | E18: -23595000 | F18: 0 | G18: -31611000 | H18: -31611000 | I18: -31611000 | J18: -26434000 | K18: -26868000 | L18: -26868000
A19: Surplus(shortfall) | C19: =C8-C18 -> 158239340 | D19: =D8-D18 -> 155959175 | E19: 67908953.64 | F19: 46529651.32 | G19: 69417579 | H19: 69417579 | I19: 69417579 | J19: 64240579 | K19: 64674579 | L19: 64674579
A20: =head27a -> References
A21: 1. Must reconcile with Budgeted Cash Flows
A22: 2. For example: VAT, taxation
A23: 3. Council approval for policy required - include sufficient working capital (e.g. allowing for a % of current debtors > 90 days as uncollectable)
A24: 4. For example: sinking fund requirements for borrowing
A25: 5. Council approval required for each reserve created and basis of cash backing of reserves
A28: Other working capital requirements
A29: Debtors | C29: =IF(ISERROR(ROUND(C35*C36,-3)),0,(ROUND(C35*C36,-3))) -> 33493000 | D29: =IF(ISERROR(ROUND(D35*D36,-3)),0,(ROUND(D35*D36,-3))) -> 0 | E29: 23595000 | F29: 0 | G29: 31611000 | H29: 31611000 | I29: 31611000 | J29: 26434000 | K29: 26868000 | L29: 26868000
A31: Creditors due | C31: ='SA3'!C35+'SA3'!C36 -> 0 | D31: ='SA3'!D35+'SA3'!D36 -> 0 | E31: ='SA3'!E35+'SA3'!E36 -> 0 | F31: ='SA3'!F35+'SA3'!F36 -> 0 | G31: ='SA3'!G35+'SA3'!G36 -> 0 | H31: ='SA3'!H35+'SA3'!H36 -> 0 | I31: ='SA3'!I35+'SA3'!I36 -> 0 | J31: ='SA3'!J35+'SA3'!J36 -> 0 | K31: ='SA3'!K35+'SA3'!K36 -> 0 | L31: ='SA3'!L35+'SA3'!L36 -> 0
A32: Total | C32: =C29-C31 -> 33493000 | D32: =D29-D31 -> 0 | E32: 23595000 | F32: 0 | G32: 31611000 | H32: 31611000 | I32: 31611000 | J32: 26434000 | K32: 26868000 | L32: 26868000
A34: Debtors collection assumptions
A35: Balance outstanding - debtors | C35: ='A6-FinPos'!C8+'A6-FinPos'!C9+'A6-FinPos'!C15 -> 43453454 | D35: ='A6-FinPos'!D8+'A6-FinPos'!D9+'A6-FinPos'!D15 -> 0 | E35: ='A6-FinPos'!E8+'A6-FinPos'!E9+'A6-FinPos'!E15 -> 23000000 | F35: ='A6-FinPos'!F8+'A6-FinPos'!F9+'A6-FinPos'!F15 -> 0 | G35: ='A6-FinPos'!G8+'A6-FinPos'!G9+'A6-FinPos'!G15 -> 35560082 | H35: ='A6-FinPos'!H8+'A6-FinPos'!H9+'A6-FinPos'!H15 -> 35560082 | I35: ='A6-FinPos'!I8+'A6-FinPos'!I9+'A6-FinPos'!I15 -> 35560082 | J35: ='A6-FinPos'!J8+'A6-FinPos'!J9+'A6-FinPos'!J15 -> 35560082 | K35: ='A6-FinPos'!K8+'A6-FinPos'!K9+'A6-FinPos'!K15 -> 35560082 | L35: ='A6-FinPos'!L8+'A6-FinPos'!L9+'A6-FinPos'!L15 -> 35560082
A36: Estimate of debtors collection rate | C36: =IF(ISERROR('SA10'!D10),0,('SA10'!D10)) -> 0.7707714503 | D36: =IF(ISERROR('SA10'!E10),0,('SA10'!E10)) -> 1.106435353 | E36: =IF(ISERROR('SA10'!F10),0,('SA10'!F10)) -> 1.025866639 | F36: =IF(ISERROR('SA10'!G10),0,('SA10'!G10)) -> 0.7323080863 | G36: =IF(ISERROR('SA10'!H10),0,('SA10'!H10)) -> 0.8889431166 | H36: =IF(ISERROR('SA10'!I10),0,('SA10'!I10)) -> 0.8889431166 | I36: =IF(ISERROR('SA10'!J10),0,('SA10'!J10)) -> 0.8889431166 | J36: =IF(ISERROR('SA10'!K10),0,('SA10'!K10)) -> 0.7433526203 | K36: =IF(ISERROR('SA10'!L10),0,('SA10'!L10)) -> 0.7555683869 | L36: =IF(ISERROR('SA10'!M10),0,('SA10'!M10)) -> 0.7555683869
K39: `
A40: =A16 -> Long term investments committed
A41: Balance (Insert description; eg sinking fund)
C52: =SUM(C41:C51) -> 0 | D52: =SUM(D41:D51) -> 0 | E52: 0 | F52: 0 | G52: 0 | H52: 0 | I52: 0 | J52: 0 | K52: 0 | L52: 0
A53: =A17 -> Reserves to be backed by cash/investments
A54: ='SA3'!A65 -> Housing Development Fund | C54: ='SA3'!C65 -> 0 | D54: ='SA3'!D65 -> 0 | E54: ='SA3'!E65 -> 0 | F54: ='SA3'!F65 -> 0 | G54: ='SA3'!G65 -> 0 | H54: ='SA3'!H65 -> 0 | I54: ='SA3'!I65 -> 0 | J54: ='SA3'!J65 -> 0 | K54: ='SA3'!K65 -> 0 | L54: ='SA3'!L65 -> 0
A55: ='SA3'!A66 -> Capital replacement
A56: ='SA3'!A67 -> Self-insurance
A57: Other (list)
C67: =SUM(C54:C65) -> 0 | D67: 0 | E67: 0 | F67: 0 | G67: 0 | H67: 0 | I67: 0 | J67: 0 | K67: 0 | L67: 0

Sheet A9-Asset
A1: =muni&" - "&Approve9 -> LIM471 Ephraim Mogale - Table A9 Asset Management
A2: =desc -> Description | B2: =head27 -> Ref | C2: =head1b -> 2016/17 | D2: =head1A -> 2017/18 | E2: =Head1 -> 2018/19 | F2: =Head2 -> Current Year 2019/20 | I2: =Head3 -> 2020/21 Medium Term Revenue & Expenditure Framework
A3: R thousand | C3: =Head5 -> Audited Outcome | D3: =Head5 -> Audited Outcome | E3: =Head5 -> Audited Outcome | F3: =Head6 -> Original Budget | G3: =Head7 -> Adjusted Budget | H3: =Head8 -> Full Year Forecast | I3: =Head9 -> Budget Year 2020/21 | J3: =Head10 -> Budget Year +1 2021/22 | K3: =Head11 -> Budget Year +2 2022/23
A4: CAPITAL EXPENDITURE
A5: Total New Assets | B5: 1 | C5: =C15+C18+C19+C22+C25+C26+SUM(C29:C35) -> 59755032.27 | D5: =D15+D18+D19+D22+D25+D26+SUM(D29:D35) -> 38490065.15 | E5: 41123987 | F5: 0 | G5: 0 | H5: 0 | I5: 0 | J5: 0 | K5: 0
A6: Roads Infrastructure | C6: =SA34a!C7 -> 57332495.27 | D6: =SA34a!D7 -> 35404720.15 | E6: =SA34a!E7 -> 22357771 | F6: =SA34a!F7 -> 0 | G6: =SA34a!G7 -> 0 | H6: =SA34a!H7 -> 0 | I6: =SA34a!I7 -> 0 | J6: =SA34a!J7 -> 0 | K6: =SA34a!K7 -> 0
A7: Storm water Infrastructure | C7: =SA34a!C12 -> 0 | D7: =SA34a!D12 -> 0 | E7: =SA34a!E12 -> 0 | F7: =SA34a!F12 -> 0 | G7: =SA34a!G12 -> 0 | H7: =SA34a!H12 -> 0 | I7: =SA34a!I12 -> 0 | J7: =SA34a!J12 -> 0 | K7: =SA34a!K12 -> 0
A8: Electrical Infrastructure | C8: =SA34a!C16 -> 0 | D8: =SA34a!D16 -> 1200000 | E8: =SA34a!E16 -> 849996 | F8: =SA34a!F16 -> 0 | G8: =SA34a!G16 -> 0 | H8: =SA34a!H16 -> 0 | I8: =SA34a!I16 -> 0 | J8: =SA34a!J16 -> 0 | K8: =SA34a!K16 -> 0
A9: Water Supply Infrastructure | C9: =SA34a!C26 -> 0 | D9: =SA34a!D26 -> 0 | E9: =SA34a!E26 -> 0 | F9: =SA34a!F26 -> 0 | G9: =SA34a!G26 -> 0 | H9: =SA34a!H26 -> 0 | I9: =SA34a!I26 -> 0 | J9: =SA34a!J26 -> 0 | K9: =SA34a!K26 -> 0
A10: Sanitation Infrastructure | C10: =SA34a!C37 -> 0 | D10: =SA34a!D37 -> 0 | E10: =SA34a!E37 -> 0 | F10: =SA34a!F37 -> 0 | G10: =SA34a!G37 -> 0 | H10: =SA34a!H37 -> 0 | I10: =SA34a!I37 -> 0 | J10: =SA34a!J37 -> 0 | K10: =SA34a!K37 -> 0
A11: Solid Waste Infrastructure | C11: =SA34a!C44 -> 0 | D11: =SA34a!D44 -> 0 | E11: =SA34a!E44 -> 1100000 | F11: =SA34a!F44 -> 0 | G11: =SA34a!G44 -> 0 | H11: =SA34a!H44 -> 0 | I11: =SA34a!I44 -> 0 | J11: =SA34a!J44 -> 0 | K11: =SA34a!K44 -> 0
A12: Rail Infrastructure | C12: =SA34a!C52 -> 0 | D12: =SA34a!D52 -> 1200000 | E12: =SA34a!E52 -> 849996 | F12: =SA34a!F52 -> 0 | G12: =SA34a!G52 -> 0 | H12: =SA34a!H52 -> 0 | I12: =SA34a!I52 -> 0 | J12: =SA34a!J52 -> 0 | K12: =SA34a!K52 -> 0
A13: Coastal Infrastructure | C13: =SA34a!C62 -> 0 | D13: =SA34a!D62 -> 0 | E13: =SA34a!E62 -> 0 | F13: =SA34a!F62 -> 0 | G13: =SA34a!G62 -> 0 | H13: =SA34a!H62 -> 0 | I13: =SA34a!I62 -> 0 | J13: =SA34a!J62 -> 0 | K13: =SA34a!K62 -> 0
A14: Information and Communication Infrastructure | C14: =SA34a!C68 -> 0 | D14: =SA34a!D68 -> 0 | E14: =SA34a!E68 -> 0 | F14: =SA34a!F68 -> 0 | G14: =SA34a!G68 -> 0 | H14: =SA34a!H68 -> 0 | I14: =SA34a!I68 -> 0 | J14: =SA34a!J68 -> 0 | K14: =SA34a!K68 -> 0
A15: Infrastructure | C15: =SUM(C6:C14) -> 57332495.27 | D15: =SUM(D6:D14) -> 37804720.15 | E15: 25157763 | F15: 0 | G15: 0 | H15: 0 | I15: 0 | J15: 0 | K15: 0
A16: Community Facilities | C16: =SA34a!C75 -> 0 | D16: =SA34a!D75 -> 140350 | E16: =SA34a!E75 -> 750000 | F16: =SA34a!F75 -> 0 | G16: =SA34a!G75 -> 0 | H16: =SA34a!H75 -> 0 | I16: =SA34a!I75 -> 0 | J16: =SA34a!J75 -> 0 | K16: =SA34a!K75 -> 0
A17: Sport and Recreation Facilities | C17: =SA34a!C98 -> 233560 | D17: =SA34a!D98 -> 0 | E17: =SA34a!E98 -> 12151228 | F17: =SA34a!F98 -> 0 | G17: =SA34a!G98 -> 0 | H17: =SA34a!H98 -> 0 | I17: =SA34a!I98 -> 0 | J17: =SA34a!J98 -> 0 | K17: =SA34a!K98 -> 0
A18: Community Assets | C18: =SUM(C16:C17) -> 233560 | D18: =SUM(D16:D17) -> 140350 | E18: 12901228 | F18: 0 | G18: 0 | H18: 0 | I18: 0 | J18: 0 | K18: 0
A19: Heritage Assets | C19: =SA34a!C103 -> 0 | D19: =SA34a!D103 -> 0 | E19: =SA34a!E103 -> 0 | F19: =SA34a!F103 -> 0 | G19: =SA34a!G103 -> 0 | H19: =SA34a!H103 -> 0 | I19: =SA34a!I103 -> 0 | J19: =SA34a!J103 -> 0 | K19: =SA34a!K103 -> 0
A20: Revenue Generating | C20: =SA34a!C111 -> 0 | D20: =SA34a!D111 -> 0 | E20: =SA34a!E111 -> 0 | F20: =SA34a!F111 -> 0 | G20: =SA34a!G111 -> 0 | H20: =SA34a!H111 -> 0 | I20: =SA34a!I111 -> 0 | J20: =SA34a!J111 -> 0 | K20: =SA34a!K111 -> 0
A21: Non-revenue Generating | C21: =SA34a!C114 -> 0 | D21: =SA34a!D114 -> 0 | E21: =SA34a!E114 -> 0 | F21: =SA34a!F114 -> 0 | G21: =SA34a!G114 -> 0 | H21: =SA34a!H114 -> 0 | I21: =SA34a!I114 -> 0 | J21: =SA34a!J114 -> 0 | K21: =SA34a!K114 -> 0
A22: Investment properties | C22: =SUM(C20:C21) -> 0 | D22: =SUM(D20:D21) -> 0 | E22: 0 | F22: 0 | G22: 0 | H22: 0 | I22: 0 | J22: 0 | K22: 0
A23: Operational Buildings | C23: =SA34a!C119 -> 0 | D23: =SA34a!D119 -> 0 | E23: =SA34a!E119 -> 300000 | F23: =SA34a!F119 -> 0 | G23: =SA34a!G119 -> 0 | H23: =SA34a!H119 -> 0 | I23: =SA34a!I119 -> 0 | J23: =SA34a!J119 -> 0 | K23: =SA34a!K119 -> 0
A24: Housing | C24: =SA34a!C131 -> 0 | D24: =SA34a!D131 -> 0 | E24: =SA34a!E131 -> 0 | F24: =SA34a!F131 -> 0 | G24: =SA34a!G131 -> 0 | H24: =SA34a!H131 -> 0 | I24: =SA34a!I131 -> 0 | J24: =SA34a!J131 -> 0 | K24: =SA34a!K131 -> 0
A25: Other Assets | C25: =SUM(C23:C24) -> 0 | D25: =SUM(D23:D24) -> 0 | E25: 300000 | F25: 0 | G25: 0 | H25: 0 | I25: 0 | J25: 0 | K25: 0
A26: Biological or Cultivated Assets | C26: =SA34a!C136 -> 0 | D26: =SA34a!D136 -> 0 | E26: =SA34a!E136 -> 0 | F26: =SA34a!F136 -> 0 | G26: =SA34a!G136 -> 0 | H26: =SA34a!H136 -> 0 | I26: =SA34a!I136 -> 0 | J26: =SA34a!J136 -> 0 | K26: =SA34a!K136 -> 0
A27: Servitudes | C27: =SA34a!C140 -> 0 | D27: =SA34a!D140 -> 0 | E27: =SA34a!E140 -> 0 | F27: =SA34a!F140 -> 0 | G27: =SA34a!G140 -> 0 | H27: =SA34a!H140 -> 0 | I27: =SA34a!I140 -> 0 | J27: =SA34a!J140 -> 0 | K27: =SA34a!K140 -> 0
A28: Licences and Rights | C28: =SA34a!C141 -> 0 | D28: =SA34a!D141 -> 0 | E28: =SA34a!E141 -> 60000 | F28: =SA34a!F141 -> 0 | G28: =SA34a!G141 -> 0 | H28: =SA34a!H141 -> 0 | I28: =SA34a!I141 -> 0 | J28: =SA34a!J141 -> 0 | K28: =SA34a!K141 -> 0
A29: Intangible Assets | C29: =SUM(C27:C28) -> 0 | D29: =SUM(D27:D28) -> 0 | E29: 60000 | F29: 0 | G29: 0 | H29: 0 | I29: 0 | J29: 0 | K29: 0
A30: Computer Equipment | C30: =SA34a!C149 -> 0 | D30: =SA34a!D149 -> 0 | E30: =SA34a!E149 -> 0 | F30: =SA34a!F149 -> 0 | G30: =SA34a!G149 -> 0 | H30: =SA34a!H149 -> 0 | I30: =SA34a!I149 -> 0 | J30: =SA34a!J149 -> 0 | K30: =SA34a!K149 -> 0
A31: Furniture and Office Equipment | C31: =SA34a!C152 -> 0 | D31: =SA34a!D152 -> 69170 | E31: =SA34a!E152 -> 642996 | F31: =SA34a!F152 -> 0 | G31: =SA34a!G152 -> 0 | H31: =SA34a!H152 -> 0 | I31: =SA34a!I152 -> 0 | J31: =SA34a!J152 -> 0 | K31: =SA34a!K152 -> 0
A32: Machinery and Equipment | C32: =SA34a!C155 -> 0 | D32: =SA34a!D155 -> 0 | E32: =SA34a!E155 -> 1112000 | F32: =SA34a!F155 -> 0 | G32: =SA34a!G155 -> 0 | H32: =SA34a!H155 -> 0 | I32: =SA34a!I155 -> 0 | J32: =SA34a!J155 -> 0 | K32: =SA34a!K155 -> 0
A33: Transport Assets | C33: =SA34a!C158 -> 2188977 | D33: =SA34a!D158 -> 475825 | E33: =SA34a!E158 -> 950000 | F33: =SA34a!F158 -> 0 | G33: =SA34a!G158 -> 0 | H33: =SA34a!H158 -> 0 | I33: =SA34a!I158 -> 0 | J33: =SA34a!J158 -> 0 | K33: =SA34a!K158 -> 0
A34: Land | C34: =SA34a!C161 -> 0 | D34: =SA34a!D161 -> 0 | E34: =SA34a!E161 -> 0 | F34: =SA34a!F161 -> 0 | G34: =SA34a!G161 -> 0 | H34: =SA34a!H161 -> 0 | I34: =SA34a!I161 -> 0 | J34: =SA34a!J161 -> 0 | K34: =SA34a!K161 -> 0
A35: Zoo's, Marine and Non-biological Animals | C35: =SA34a!C164 -> 0 | D35: =SA34a!D164 -> 0 | E35: =SA34a!E164 -> 0 | F35: =SA34a!F164 -> 0 | G35: =SA34a!G164 -> 0 | H35: =SA34a!H164 -> 0 | I35: =SA34a!I164 -> 0 | J35: =SA34a!J164 -> 0 | K35: =SA34a!K164 -> 0
A37: Total Renewal of Existing Assets | B37: 2 | C37: =C47+C50+C51+C54+C57+C58+SUM(C61:C67) -> 0 | D37: =D47+D50+D51+D54+D57+D58+SUM(D61:D67) -> 7000000 | E37: 2000000 | F37: 0 | G37: 0 | H37: 0 | I37: 0 | J37: 0 | K37: 0
A38: Roads Infrastructure | C38: =SA34b!C7 -> 0 | D38: =SA34b!D7 -> 2000000 | E38: =SA34b!E7 -> 0 | F38: =SA34b!F7 -> 0 | G38: =SA34b!G7 -> 0 | H38: =SA34b!H7 -> 0 | I38: =SA34b!I7 -> 0 | J38: =SA34b!J7 -> 0 | K38: =SA34b!K7 -> 0
A39: Storm water Infrastructure | C39: =SA34b!C12 -> 0 | D39: =SA34b!D12 -> 5000000 | E39: =SA34b!E12 -> 0 | F39: =SA34b!F12 -> 0 | G39: =SA34b!G12 -> 0 | H39: =SA34b!H12 -> 0 | I39: =SA34b!I12 -> 0 | J39: =SA34b!J12 -> 0 | K39: =SA34b!K12 -> 0
A40: Electrical Infrastructure | C40: =SA34b!C16 -> 0 | D40: =SA34b!D16 -> 0 | E40: =SA34b!E16 -> 2000000 | F40: =SA34b!F16 -> 0 | G40: =SA34b!G16 -> 0 | H40: =SA34b!H16 -> 0 | I40: =SA34b!I16 -> 0 | J40: =SA34b!J16 -> 0 | K40: =SA34b!K16 -> 0
A41: Water Supply Infrastructure | C41: =SA34b!C26 -> 0 | D41: =SA34b!D26 -> 0 | E41: =SA34b!E26 -> 0 | F41: =SA34b!F26 -> 0 | G41: =SA34b!G26 -> 0 | H41: =SA34b!H26 -> 0 | I41: =SA34b!I26 -> 0 | J41: =SA34b!J26 -> 0 | K41: =SA34b!K26 -> 0
A42: Sanitation Infrastructure | C42: =SA34b!C37 -> 0 | D42: =SA34b!D37 -> 0 | E42: =SA34b!E37 -> 0 | F42: =SA34b!F37 -> 0 | G42: =SA34b!G37 -> 0 | H42: =SA34b!H37 -> 0 | I42: =SA34b!I37 -> 0 | J42: =SA34b!J37 -> 0 | K42: =SA34b!K37 -> 0
A43: Solid Waste Infrastructure | C43: =SA34b!C44 -> 0 | D43: =SA34b!D44 -> 0 | E43: =SA34b!E44 -> 0 | F43: =SA34b!F44 -> 0 | G43: =SA34b!G44 -> 0 | H43: =SA34b!H44 -> 0 | I43: =SA34b!I44 -> 0 | J43: =SA34b!J44 -> 0 | K43: =SA34b!K44 -> 0
A44: Rail Infrastructure | C44: =SA34b!C52 -> 0 | D44: =SA34b!D52 -> 0 | E44: =SA34b!E52 -> 0 | F44: =SA34b!F52 -> 0 | G44: =SA34b!G52 -> 0 | H44: =SA34b!H52 -> 0 | I44: =SA34b!I52 -> 0 | J44: =SA34b!J52 -> 0 | K44: =SA34b!K52 -> 0
A45: Coastal Infrastructure | C45: =SA34b!C62 -> 0 | D45: =SA34b!D62 -> 0 | E45: =SA34b!E62 -> 0 | F45: =SA34b!F62 -> 0 | G45: =SA34b!G62 -> 0 | H45: =SA34b!H62 -> 0 | I45: =SA34b!I62 -> 0 | J45: =SA34b!J62 -> 0 | K45: =SA34b!K62 -> 0
A46: Information and Communication Infrastructure | C46: =SA34b!C68 -> 0 | D46: =SA34b!D68 -> 0 | E46: =SA34b!E68 -> 0 | F46: =SA34b!F68 -> 0 | G46: =SA34b!G68 -> 0 | H46: =SA34b!H68 -> 0 | I46: =SA34b!I68 -> 0 | J46: =SA34b!J68 -> 0 | K46: =SA34b!K68 -> 0
A47: Infrastructure | C47: =SUM(C38:C46) -> 0 | D47: =SUM(D38:D46) -> 7000000 | E47: 2000000 | F47: 0 | G47: 0 | H47: 0 | I47: 0 | J47: 0 | K47: 0
A48: Community Facilities | C48: =SA34b!C75 -> 0 | D48: =SA34b!D75 -> 0 | E48: =SA34b!E75 -> 0 | F48: =SA34b!F75 -> 0 | G48: =SA34b!G75 -> 0 | H48: =SA34b!H75 -> 0 | I48: =SA34b!I75 -> 0 | J48: =SA34b!J75 -> 0 | K48: =SA34b!K75 -> 0
A49: Sport and Recreation Facilities | C49: =SA34b!C98 -> 0 | D49: =SA34b!D98 -> 0 | E49: =SA34b!E98 -> 0 | F49: =SA34b!F98 -> 0 | G49: =SA34b!G98 -> 0 | H49: =SA34b!H98 -> 0 | I49: =SA34b!I98 -> 0 | J49: =SA34b!J98 -> 0 | K49: =SA34b!K98 -> 0
A50: Community Assets | C50: =SUM(C48:C49) -> 0 | D50: =SUM(D48:D49) -> 0 | E50: 0 | F50: 0 | G50: 0 | H50: 0 | I50: 0 | J50: 0 | K50: 0
A51: Heritage Assets | C51: =SA34b!C103 -> 0 | D51: =SA34b!D103 -> 0 | E51: =SA34b!E103 -> 0 | F51: =SA34b!F103 -> 0 | G51: =SA34b!G103 -> 0 | H51: =SA34b!H103 -> 0 | I51: =SA34b!I103 -> 0 | J51: =SA34b!J103 -> 0 | K51: =SA34b!K103 -> 0
A52: Revenue Generating | C52: =SA34b!C111 -> 0 | D52: =SA34b!D111 -> 0 | E52: =SA34b!E111 -> 0 | F52: =SA34b!F111 -> 0 | G52: =SA34b!G111 -> 0 | H52: =SA34b!H111 -> 0 | I52: =SA34b!I111 -> 0 | J52: =SA34b!J111 -> 0 | K52: =SA34b!K111 -> 0
A53: Non-revenue Generating | C53: =SA34b!C114 -> 0 | D53: =SA34b!D114 -> 0 | E53: =SA34b!E114 -> 0 | F53: =SA34b!F114 -> 0 | G53: =SA34b!G114 -> 0 | H53: =SA34b!H114 -> 0 | I53: =SA34b!I114 -> 0 | J53: =SA34b!J114 -> 0 | K53: =SA34b!K114 -> 0
A54: Investment properties | C54: =SUM(C52:C53) -> 0 | D54: =SUM(D52:D53) -> 0 | E54: 0 | F54: 0 | G54: 0 | H54: 0 | I54: 0 | J54: 0 | K54: 0
A55: Operational Buildings | C55: =SA34b!C119 -> 0 | D55: =SA34b!D119 -> 0 | E55: =SA34b!E119 -> 0 | F55: =SA34b!F119 -> 0 | G55: =SA34b!G119 -> 0 | H55: =SA34b!H119 -> 0 | I55: =SA34b!I119 -> 0 | J55: =SA34b!J119 -> 0 | K55: =SA34b!K119 -> 0
A56: Housing | C56: =SA34b!C131 -> 0 | D56: =SA34b!D131 -> 0 | E56: =SA34b!E131 -> 0 | F56: =SA34b!F131 -> 0 | G56: =SA34b!G131 -> 0 | H56: =SA34b!H131 -> 0 | I56: =SA34b!I131 -> 0 | J56: =SA34b!J131 -> 0 | K56: =SA34b!K131 -> 0
A57: Other Assets | C57: =SUM(C55:C56) -> 0 | D57: =SUM(D55:D56) -> 0 | E57: 0 | F57: 0 | G57: 0 | H57: 0 | I57: 0 | J57: 0 | K57: 0
A58: Biological or Cultivated Assets | C58: =SA34b!C136 -> 0 | D58: =SA34b!D136 -> 0 | E58: =SA34b!E136 -> 0 | F58: =SA34b!F136 -> 0 | G58: =SA34b!G136 -> 0 | H58: =SA34b!H136 -> 0 | I58: =SA34b!I136 -> 0 | J58: =SA34b!J136 -> 0 | K58: =SA34b!K136 -> 0
A59: Servitudes | C59: =SA34b!C140 -> 0 | D59: =SA34b!D140 -> 0 | E59: =SA34b!E140 -> 0 | F59: =SA34b!F140 -> 0 | G59: =SA34b!G140 -> 0 | H59: =SA34b!H140 -> 0 | I59: =SA34b!I140 -> 0 | J59: =SA34b!J140 -> 0 | K59: =SA34b!K140 -> 0
A60: Licences and Rights | C60: =SA34b!C141 -> 0 | D60: =SA34b!D141 -> 0 | E60: =SA34b!E141 -> 0 | F60: =SA34b!F141 -> 0 | G60: =SA34b!G141 -> 0 | H60: =SA34b!H141 -> 0 | I60: =SA34b!I141 -> 0 | J60: =SA34b!J141 -> 0 | K60: =SA34b!K141 -> 0
A61: Intangible Assets | C61: =SUM(C59:C60) -> 0 | D61: =SUM(D59:D60) -> 0 | E61: 0 | F61: 0 | G61: 0 | H61: 0 | I61: 0 | J61: 0 | K61: 0
A62: Computer Equipment | C62: =SA34b!C149 -> 0 | D62: =SA34b!D149 -> 0 | E62: =SA34b!E149 -> 0 | F62: =SA34b!F149 -> 0 | G62: =SA34b!G149 -> 0 | H62: =SA34b!H149 -> 0 | I62: =SA34b!I149 -> 0 | J62: =SA34b!J149 -> 0 | K62: =SA34b!K149 -> 0
A63: Furniture and Office Equipment | C63: =SA34b!C152 -> 0 | D63: =SA34b!D152 -> 0 | E63: =SA34b!E152 -> 0 | F63: =SA34b!F152 -> 0 | G63: =SA34b!G152 -> 0 | H63: =SA34b!H152 -> 0 | I63: =SA34b!I152 -> 0 | J63: =SA34b!J152 -> 0 | K63: =SA34b!K152 -> 0
A64: Machinery and Equipment | C64: =SA34b!C155 -> 0 | D64: =SA34b!D155 -> 0 | E64: =SA34b!E155 -> 0 | F64: =SA34b!F155 -> 0 | G64: =SA34b!G155 -> 0 | H64: =SA34b!H155 -> 0 | I64: =SA34b!I155 -> 0 | J64: =SA34b!J155 -> 0 | K64: =SA34b!K155 -> 0
A65: Transport Assets | C65: =SA34b!C158 -> 0 | D65: =SA34b!D158 -> 0 | E65: =SA34b!E158 -> 0 | F65: =SA34b!F158 -> 0 | G65: =SA34b!G158 -> 0 | H65: =SA34b!H158 -> 0 | I65: =SA34b!I158 -> 0 | J65: =SA34b!J158 -> 0 | K65: =SA34b!K158 -> 0
A66: Land | C66: =SA34b!C161 -> 0 | D66: =SA34b!D161 -> 0 | E66: =SA34b!E161 -> 0 | F66: =SA34b!F161 -> 0 | G66: =SA34b!G161 -> 0 | H66: =SA34b!H161 -> 0 | I66: =SA34b!I161 -> 0 | J66: =SA34b!J161 -> 0 | K66: =SA34b!K161 -> 0
A67: Zoo's, Marine and Non-biological Animals | C67: =SA34b!C164 -> 0 | D67: =SA34b!D164 -> 0 | E67: =SA34b!E164 -> 0 | F67: =SA34b!F164 -> 0 | G67: =SA34b!G164 -> 0 | H67: =SA34b!H164 -> 0 | I67: =SA34b!I164 -> 0 | J67: =SA34b!J164 -> 0 | K67: =SA34b!K164 -> 0
A69: Total Upgrading of Existing Assets | B69: 6 | C69: =C79+C82+C83+C86+C89+C90+SUM(C93:C99) -> 3000000 | D69: =D79+D82+D83+D86+D89+D90+SUM(D93:D99) -> 3000000 | E69: 3000000 | F69: 2000004 | G69: 2000004 | H69: 2000004 | I69: 2000000 | J69: 3000000 | K69: 3000000
A70: Roads Infrastructure | C70: =SA34e!C7 -> 0 | D70: =SA34e!D7 -> 0 | E70: =SA34e!E7 -> 0 | F70: =SA34e!F7 -> 0 | G70: =SA34e!G7 -> 0 | H70: =SA34e!H7 -> 0 | I70: =SA34e!I7 -> 0 | J70: =SA34e!J7 -> 0 | K70: =SA34e!K7 -> 0
A71: Storm water Infrastructure | C71: =SA34e!C12 -> 0 | D71: =SA34e!D12 -> 0 | E71: =SA34e!E12 -> 0 | F71: =SA34e!F12 -> 0 | G71: =SA34e!G12 -> 0 | H71: =SA34e!H12 -> 0 | I71: =SA34e!I12 -> 0 | J71: =SA34e!J12 -> 0 | K71: =SA34e!K12 -> 0
A72: Electrical Infrastructure | C72: =SA34e!C16 -> 3000000 | D72: =SA34e!D16 -> 3000000 | E72: =SA34e!E16 -> 3000000 | F72: =SA34e!F16 -> 2000004 | G72: =SA34e!G16 -> 2000004 | H72: =SA34e!H16 -> 2000004 | I72: =SA34e!I16 -> 2000000 | J72: =SA34e!J16 -> 3000000 | K72: =SA34e!K16 -> 3000000
A73: Water Supply Infrastructure | C73: =SA34e!C26 -> 0 | D73: =SA34e!D26 -> 0 | E73: =SA34e!E26 -> 0 | F73: =SA34e!F26 -> 0 | G73: =SA34e!G26 -> 0 | H73: =SA34e!H26 -> 0 | I73: =SA34e!I26 -> 0 | J73: =SA34e!J26 -> 0 | K73: =SA34e!K26 -> 0
A74: Sanitation Infrastructure | C74: =SA34e!C37 -> 0 | D74: =SA34e!D37 -> 0 | E74: =SA34e!E37 -> 0 | F74: =SA34e!F37 -> 0 | G74: =SA34e!G37 -> 0 | H74: =SA34e!H37 -> 0 | I74: =SA34e!I37 -> 0 | J74: =SA34e!J37 -> 0 | K74: =SA34e!K37 -> 0
A75: Solid Waste Infrastructure | C75: =SA34e!C44 -> 0 | D75: =SA34e!D44 -> 0 | E75: =SA34e!E44 -> 0 | F75: =SA34e!F44 -> 0 | G75: =SA34e!G44 -> 0 | H75: =SA34e!H44 -> 0 | I75: =SA34e!I44 -> 0 | J75: =SA34e!J44 -> 0 | K75: =SA34e!K44 -> 0
A76: Rail Infrastructure | C76: =SA34e!C52 -> 0 | D76: =SA34e!D52 -> 0 | E76: =SA34e!E52 -> 0 | F76: =SA34e!F52 -> 0 | G76: =SA34e!G52 -> 0 | H76: =SA34e!H52 -> 0 | I76: =SA34e!I52 -> 0 | J76: =SA34e!J52 -> 0 | K76: =SA34e!K52 -> 0
A77: Coastal Infrastructure | C77: =SA34e!C62 -> 0 | D77: =SA34e!D62 -> 0 | E77: =SA34e!E62 -> 0 | F77: =SA34e!F62 -> 0 | G77: =SA34e!G62 -> 0 | H77: =SA34e!H62 -> 0 | I77: =SA34e!I62 -> 0 | J77: =SA34e!J62 -> 0 | K77: =SA34e!K62 -> 0
A78: Information and Communication Infrastructure | C78: =SA34e!C68 -> 0 | D78: =SA34e!D68 -> 0 | E78: =SA34e!E68 -> 0 | F78: =SA34e!F68 -> 0 | G78: =SA34e!G68 -> 0 | H78: =SA34e!H68 -> 0 | I78: =SA34e!I68 -> 0 | J78: =SA34e!J68 -> 0 | K78: =SA34e!K68 -> 0
A79: Infrastructure | C79: =SUM(C70:C78) -> 3000000 | D79: 3000000 | E79: 3000000 | F79: 2000004 | G79: 2000004 | H79: 2000004 | I79: 2000000 | J79: 3000000 | K79: 3000000
A80: Community Facilities | C80: =SA34e!C75 -> 0 | D80: =SA34e!D75 -> 0 | E80: =SA34e!E75 -> 0 | F80: =SA34e!F75 -> 0 | G80: =SA34e!G75 -> 0 | H80: =SA34e!H75 -> 0 | I80: =SA34e!I75 -> 0 | J80: =SA34e!J75 -> 0 | K80: =SA34e!K75 -> 0
A81: Sport and Recreation Facilities | C81: =SA34e!C98 -> 0 | D81: =SA34e!D98 -> 0 | E81: =SA34e!E98 -> 0 | F81: =SA34e!F98 -> 0 | G81: =SA34e!G98 -> 0 | H81: =SA34e!H98 -> 0 | I81: =SA34e!I98 -> 0 | J81: =SA34e!J98 -> 0 | K81: =SA34e!K98 -> 0
A82: Community Assets | C82: =SUM(C80:C81) -> 0 | D82: 0 | E82: 0 | F82: 0 | G82: 0 | H82: 0 | I82: 0 | J82: 0 | K82: 0
A83: Heritage Assets | C83: =SA34e!C103 -> 0 | D83: =SA34e!D103 -> 0 | E83: =SA34e!E103 -> 0 | F83: =SA34e!F103 -> 0 | G83: =SA34e!G103 -> 0 | H83: =SA34e!H103 -> 0 | I83: =SA34e!I103 -> 0 | J83: =SA34e!J103 -> 0 | K83: =SA34e!K103 -> 0
A84: Revenue Generating | C84: =SA34e!C111 -> 0 | D84: =SA34e!D111 -> 0 | E84: =SA34e!E111 -> 0 | F84: =SA34e!F111 -> 0 | G84: =SA34e!G111 -> 0 | H84: =SA34e!H111 -> 0 | I84: =SA34e!I111 -> 0 | J84: =SA34e!J111 -> 0 | K84: =SA34e!K111 -> 0
A85: Non-revenue Generating | C85: =SA34e!C114 -> 0 | D85: =SA34e!D114 -> 0 | E85: =SA34e!E114 -> 0 | F85: =SA34e!F114 -> 0 | G85: =SA34e!G114 -> 0 | H85: =SA34e!H114 -> 0 | I85: =SA34e!I114 -> 0 | J85: =SA34e!J114 -> 0 | K85: =SA34e!K114 -> 0
A86: Investment properties | C86: =SUM(C84:C85) -> 0 | D86: 0 | E86: 0 | F86: 0 | G86: 0 | H86: 0 | I86: 0 | J86: 0 | K86: 0
A87: Operational Buildings | C87: =SA34e!C119 -> 0 | D87: =SA34e!D119 -> 0 | E87: =SA34e!E119 -> 0 | F87: =SA34e!F119 -> 0 | G87: =SA34e!G119 -> 0 | H87: =SA34e!H119 -> 0 | I87: =SA34e!I119 -> 0 | J87: =SA34e!J119 -> 0 | K87: =SA34e!K119 -> 0
A88: Housing | C88: =SA34e!C131 -> 0 | D88: =SA34e!D131 -> 0 | E88: =SA34e!E131 -> 0 | F88: =SA34e!F131 -> 0 | G88: =SA34e!G131 -> 0 | H88: =SA34e!H131 -> 0 | I88: =SA34e!I131 -> 0 | J88: =SA34e!J131 -> 0 | K88: =SA34e!K131 -> 0
A89: Other Assets | C89: =SUM(C87:C88) -> 0 | D89: 0 | E89: 0 | F89: 0 | G89: 0 | H89: 0 | I89: 0 | J89: 0 | K89: 0
A90: Biological or Cultivated Assets | C90: =SA34e!C136 -> 0 | D90: =SA34e!D136 -> 0 | E90: =SA34e!E136 -> 0 | F90: =SA34e!F136 -> 0 | G90: =SA34e!G136 -> 0 | H90: =SA34e!H136 -> 0 | I90: =SA34e!I136 -> 0 | J90: =SA34e!J136 -> 0 | K90: =SA34e!K136 -> 0
A91: Servitudes | C91: =SA34e!C140 -> 0 | D91: =SA34e!D140 -> 0 | E91: =SA34e!E140 -> 0 | F91: =SA34e!F140 -> 0 | G91: =SA34e!G140 -> 0 | H91: =SA34e!H140 -> 0 | I91: =SA34e!I140 -> 0 | J91: =SA34e!J140 -> 0 | K91: =SA34e!K140 -> 0
A92: Licences and Rights | C92: =SA34e!C141 -> 0 | D92: =SA34e!D141 -> 0 | E92: =SA34e!E141 -> 0 | F92: =SA34e!F141 -> 0 | G92: =SA34e!G141 -> 0 | H92: =SA34e!H141 -> 0 | I92: =SA34e!I141 -> 0 | J92: =SA34e!J141 -> 0 | K92: =SA34e!K141 -> 0
A93: Intangible Assets | C93: =SUM(C91:C92) -> 0 | D93: 0 | E93: 0 | F93: 0 | G93: 0 | H93: 0 | I93: 0 | J93: 0 | K93: 0
A94: Computer Equipment | C94: =SA34e!C149 -> 0 | D94: =SA34e!D149 -> 0 | E94: =SA34e!E149 -> 0 | F94: =SA34e!F149 -> 0 | G94: =SA34e!G149 -> 0 | H94: =SA34e!H149 -> 0 | I94: =SA34e!I149 -> 0 | J94: =SA34e!J149 -> 0 | K94: =SA34e!K149 -> 0
A95: Furniture and Office Equipment | C95: =SA34e!C152 -> 0 | D95: =SA34e!D152 -> 0 | E95: =SA34e!E152 -> 0 | F95: =SA34e!F152 -> 0 | G95: =SA34e!G152 -> 0 | H95: =SA34e!H152 -> 0 | I95: =SA34e!I152 -> 0 | J95: =SA34e!J152 -> 0 | K95: =SA34e!K152 -> 0
A96: Machinery and Equipment | C96: =SA34e!C155 -> 0 | D96: =SA34e!D155 -> 0 | E96: =SA34e!E155 -> 0 | F96: =SA34e!F155 -> 0 | G96: =SA34e!G155 -> 0 | H96: =SA34e!H155 -> 0 | I96: =SA34e!I155 -> 0 | J96: =SA34e!J155 -> 0 | K96: =SA34e!K155 -> 0
A97: Transport Assets | C97: =SA34e!C158 -> 0 | D97: =SA34e!D158 -> 0 | E97: =SA34e!E158 -> 0 | F97: =SA34e!F158 -> 0 | G97: =SA34e!G158 -> 0 | H97: =SA34e!H158 -> 0 | I97: =SA34e!I158 -> 0 | J97: =SA34e!J158 -> 0 | K97: =SA34e!K158 -> 0
A98: Land | C98: =SA34e!C161 -> 0 | D98: =SA34e!D161 -> 0 | E98: =SA34e!E161 -> 0 | F98: =SA34e!F161 -> 0 | G98: =SA34e!G161 -> 0 | H98: =SA34e!H161 -> 0 | I98: =SA34e!I161 -> 0 | J98: =SA34e!J161 -> 0 | K98: =SA34e!K161 -> 0
A99: Zoo's, Marine and Non-biological Animals | C99: =SA34e!C164 -> 0 | D99: =SA34e!D164 -> 0 | E99: =SA34e!E164 -> 0 | F99: =SA34e!F164 -> 0 | G99: =SA34e!G164 -> 0 | H99: =SA34e!H164 -> 0 | I99: =SA34e!I164 -> 0 | J99: =SA34e!J164 -> 0 | K99: =SA34e!K164 -> 0
A101: Total Capital Expenditure | B101: 4 | C101: =+C5+C37+C69 -> 62755032.27 | D101: =+D5+D37+D69 -> 48490065.15 | E101: 46123987 | F101: 2000004 | G101: 2000004 | H101: 2000004 | I101: 2000000 | J101: 3000000 | K101: 3000000
A102: Roads Infrastructure | C102: =+C6+C38+C70 -> 57332495.27 | D102: =+D6+D38+D70 -> 37404720.15 | E102: 22357771 | F102: 0 | G102: 0 | H102: 0 | I102: 0 | J102: 0 | K102: 0
A103: Storm water Infrastructure | C103: =+C7+C39+C71 -> 0 | D103: 5000000 | E103: 0 | F103: 0 | G103: 0 | H103: 0 | I103: 0 | J103: 0 | K103: 0
A104: Electrical Infrastructure | C104: 3000000 | D104: 4200000 | E104: 5849996 | F104: 2000004 | G104: 2000004 | H104: 2000004 | I104: 2000000 | J104: 3000000 | K104: 3000000
A105: Water Supply Infrastructure | C105: 0 | D105: 0 | E105: 0 | F105: 0 | G105: 0 | H105: 0 | I105: 0 | J105: 0 | K105: 0
A106: Sanitation Infrastructure | C106: 0 | D106: 0 | E106: 0 | F106: 0 | G106: 0 | H106: 0 | I106: 0 | J106: 0 | K106: 0
A107: Solid Waste Infrastructure | C107: 0 | D107: 0 | E107: 1100000 | F107: 0 | G107: 0 | H107: 0 | I107: 0 | J107: 0 | K107: 0
A108: Rail Infrastructure | C108: 0 | D108: 1200000 | E108: 849996 | F108: 0 | G108: 0 | H108: 0 | I108: 0 | J108: 0 | K108: 0
A109: Coastal Infrastructure | C109: 0 | D109: 0 | E109: 0 | F109: 0 | G109: 0 | H109: 0 | I109: 0 | J109: 0 | K109: 0
A110: Information and Communication Infrastructure | C110: 0 | D110: 0 | E110: 0 | F110: 0 | G110: 0 | H110: 0 | I110: 0 | J110: 0 | K110: 0
A111: Infrastructure | C111: =SUM(C102:C110) -> 60332495.27 | D111: =SUM(D102:D110) -> 47804720.15 | E111: 30157763 | F111: 2000004 | G111: 2000004 | H111: 2000004 | I111: 2000000 | J111: 3000000 | K111: 3000000
A112: Community Facilities | C112: =+C16+C48+C80 -> 0 | D112: =+D16+D48+D80 -> 140350 | E112: 750000 | F112: 0 | G112: 0 | H112: 0 | I112: 0 | J112: 0 | K112: 0
A113: Sport and Recreation Facilities | C113: =+C17+C49+C81 -> 233560 | D113: =+D17+D49+D81 -> 0 | E113: 12151228 | F113: 0 | G113: 0 | H113: 0 | I113: 0 | J113: 0 | K113: 0
A114: Community Assets | C114: =SUM(C112:C113) -> 233560 | D114: =SUM(D112:D113) -> 140350 | E114: 12901228 | F114: 0 | G114: 0 | H114: 0 | I114: 0 | J114: 0 | K114: 0
A115: Heritage Assets | C115: =+C19+C51+C83 -> 0 | D115: =+D19+D51+D83 -> 0 | E115: 0 | F115: 0 | G115: 0 | H115: 0 | I115: 0 | J115: 0 | K115: 0
A116: Revenue Generating | C116: =+C20+C52+C84 -> 0 | D116: =+D20+D52+D84 -> 0 | E116: 0 | F116: 0 | G116: 0 | H116: 0 | I116: 0 | J116: 0 | K116: 0
A117: Non-revenue Generating | C117: =+C21+C53+C85 -> 0 | D117: =+D21+D53+D85 -> 0 | E117: 0 | F117: 0 | G117: 0 | H117: 0 | I117: 0 | J117: 0 | K117: 0
A118: Investment properties | C118: =SUM(C116:C117) -> 0 | D118: =SUM(D116:D117) -> 0 | E118: 0 | F118: 0 | G118: 0 | H118: 0 | I118: 0 | J118: 0 | K118: 0
A119: Operational Buildings | C119: =+C23+C55+C87 -> 0 | D119: =+D23+D55+D87 -> 0 | E119: 300000 | F119: 0 | G119: 0 | H119: 0 | I119: 0 | J119: 0 | K119: 0
A120: Housing | C120: =+C24+C56+C88 -> 0 | D120: =+D24+D56+D88 -> 0 | E120: 0 | F120: 0 | G120: 0 | H120: 0 | I120: 0 | J120: 0 | K120: 0
A121: Other Assets | C121: =SUM(C119:C120) -> 0 | D121: 0 | E121: 300000 | F121: 0 | G121: 0 | H121: 0 | I121: 0 | J121: 0 | K121: 0
A122: Biological or Cultivated Assets | C122: =+C26+C58+C90 -> 0 | D122: =+D26+D58+D90 -> 0 | E122: 0 | F122: 0 | G122: 0 | H122: 0 | I122: 0 | J122: 0 | K122: 0
A123: Servitudes | C123: =+C27+C59+C91 -> 0 | D123: =+D27+D59+D91 -> 0 | E123: 0 | F123: 0 | G123: 0 | H123: 0 | I123: 0 | J123: 0 | K123: 0
A124: Licences and Rights | C124: =+C28+C60+C92 -> 0 | D124: =+D28+D60+D92 -> 0 | E124: 60000 | F124: 0 | G124: 0 | H124: 0 | I124: 0 | J124: 0 | K124: 0
A125: Intangible Assets | C125: =SUM(C123:C124) -> 0 | D125: =SUM(D123:D124) -> 0 | E125: 60000 | F125: 0 | G125: 0 | H125: 0 | I125: 0 | J125: 0 | K125: 0
A126: Computer Equipment | C126: =+C30+C62+C94 -> 0 | D126: =+D30+D62+D94 -> 0 | E126: 0 | F126: 0 | G126: 0 | H126: 0 | I126: 0 | J126: 0 | K126: 0
A127: Furniture and Office Equipment | C127: =+C31+C63+C95 -> 0 | D127: 69170 | E127: 642996 | F127: 0 | G127: 0 | H127: 0 | I127: 0 | J127: 0 | K127: 0
A128: Machinery and Equipment | C128: 0 | D128: 0 | E128: 1112000 | F128: 0 | G128: 0 | H128: 0 | I128: 0 | J128: 0 | K128: 0
A129: Transport Assets | C129: 2188977 | D129: 475825 | E129: 950000 | F129: 0 | G129: 0 | H129: 0 | I129: 0 | J129: 0 | K129: 0
A130: Land | C130: 0 | D130: 0 | E130: 0 | F130: 0 | G130: 0 | H130: 0 | I130: 0 | J130: 0 | K130: 0
A131: Zoo's, Marine and Non-biological Animals | C131: 0 | D131: 0 | E131: 0 | F131: 0 | G131: 0 | H131: 0 | I131: 0 | J131: 0 | K131: 0
A132: TOTAL CAPITAL EXPENDITURE - Asset class | C132: =+C5+C37+C69 -> 62755032.27 | D132: =+D5+D37+D69 -> 48490065.15 | E132: 46123987 | F132: 2000004 | G132: 2000004 | H132: 2000004 | I132: 2000000 | J132: 3000000 | K132: 3000000
A134: ASSET REGISTER SUMMARY - PPE (WDV) | B134: 5 | C134: =C144+C147+C148+C151+C154+C155+C158+C159+C160+C161+C162+C163+C164 -> 826174628 | D134: =D144+D147+D148+D151+D154+D155+D158+D159+D160+D161+D162+D163+D164 -> 0 | E134: 731113214 | F134: 802204008.7 | G134: 784249642 | H134: 784249642 | I134: 784249642 | J134: 784249642 | K134: 784249642
A135: Roads Infrastructure | C135: 692536334 | D135: 0 | E135: 700000000 | F135: 735000000 | G135: =647137465+55766359 -> 702903824 | H135: =647137465+55766359 -> 702903824 | I135: 702903824 | J135: 702903824 | K135: 702903824
A136: Storm water Infrastructure | D136: 0 | E136: 0 | F136: 0
A137: Electrical Infrastructure | D137: 0 | E137: 5890000 | F137: 6184500
A138: Water Supply Infrastructure | D138: 0 | E138: 0 | F138: 0
A139: Sanitation Infrastructure | D139: 0 | E139: 0 | F139: 0
A140: Solid Waste Infrastructure | D140: 0 | E140: 1100004 | F140: 1155004.2
A141: Rail Infrastructure | D141: 0 | E141: 0 | F141: 0
A142: Coastal Infrastructure | D142: 0 | E142: 0 | F142: 0
A143: Information and Communication Infrastructure | D143: 0 | E143: 228496 | F143: 239920.8
A144: Infrastructure | C144: =SUM(C135:C143) -> 692536334 | D144: =SUM(D135:D143) -> 0 | E144: 707218500 | F144: 742579425 | G144: 702903824 | H144: 702903824 | I144: 702903824 | J144: 702903824 | K144: 702903824
A147: Community Assets | C147: 21868242 | E147: 20344314 | F147: 21361529.7 | G147: 21773492 | H147: 21773492 | I147: 21773492 | J147: 21773492 | K147: 21773492
A148: Heritage Assets | C148: 106798
A151: Investment properties | C151: 88362701 | E151: 200000 | F151: 210000
G153: 26642336 | H153: 26642336 | I153: 26642336 | J153: 26642336 | K153: 26642336
A154: Other Assets | F154: =26642336+1917579 -> 28559915 | G154: =26642336+1917579 -> 28559915 | H154: 28559915 | I154: 28559915 | J154: 28559915 | K154: 28559915
A155: Biological or Cultivated Assets
A158: Intangible Assets
A159: Computer Equipment | C159: 1382743 | E159: 425996 | F159: 447295.8 | G159: 1555107 | H159: 1555107 | I159: 1555107 | J159: 1555107 | K159: 1555107
A160: Furniture and Office Equipment | C160: 1597491 | E160: 658996 | F160: 691945.8 | G160: 3126660 | H160: 3126660 | I160: 3126660 | J160: 3126660 | K160: 3126660
A161: Machinery and Equipment | C161: 15592281 | E161: 1315404 | F161: 1381174.2 | G161: 15343840 | H161: 15343840 | I161: 15343840 | J161: 15343840 | K161: 15343840
A162: Transport Assets | C162: 4728038 | E162: 950004 | F162: 997504.2 | G162: 5011585 | H162: 5011585 | I162: 5011585 | J162: 5011585 | K162: 5011585
A163: Land | F163: 5975219 | G163: 5975219 | H163: 5975219 | I163: 5975219 | J163: 5975219 | K163: 5975219
A164: Zoo's, Marine and Non-biological Animals
A165: TOTAL ASSET REGISTER SUMMARY - PPE (WDV) | B165: 5 | C165: =C144+C147+C148+C151+C154+C155+C158+C159+C160+C161+C162+C163+C164 -> 826174628 | D165: =D144+D147+D148+D151+D154+D155+D158+D159+D160+D161+D162+D163+D164 -> 0 | E165: 731113214 | F165: 802204008.7 | G165: 784249642 | H165: 784249642 | I165: 784249642 | J165: 784249642 | K165: 784249642
A167: EXPENDITURE OTHER ITEMS | C167: =SUM(C168:C169) -> 53594835 | D167: =SUM(D168:D169) -> 55833968.57 | E167: 58627008 | F167: 11063436 | G167: 11070368 | H167: 11070368 | I167: 15916010.83 | J167: 15613124.61 | K167: 16394935.11
A168: Depreciation | B168: 7 | C168: =SA34d!C167 -> 46756190 | D168: =SA34d!D167 -> 45000000 | E168: =SA34d!E167 -> 47700000 | F168: =SA34d!F167 -> 0 | G168: =SA34d!G167 -> 0 | H168: =SA34d!H167 -> 0 | I168: =SA34d!I167 -> 0 | J168: =SA34d!J167 -> 0 | K168: =SA34d!K167 -> 0
A169: Repairs and Maintenance by Asset Class | B169: 3 | C169: =C179+C182+C183+C186+C189+C190+SUM(C193:C199) -> 6838645 | D169: =D179+D182+D183+D186+D189+D190+SUM(D193:D199) -> 10833968.57 | E169: 10927008 | F169: 11063436 | G169: 11070368 | H169: 11070368 | I169: 15916010.83 | J169: 15613124.61 | K169: 16394935.11
A170: Roads Infrastructure | C170: =SA34c!C7 -> 6838645 | D170: =SA34c!D7 -> 1975825.16 | E170: =SA34c!E7 -> 2524944 | F170: =SA34c!F7 -> 2127936 | G170: =SA34c!G7 -> 2127936 | H170: =SA34c!H7 -> 2127936 | I170: =SA34c!I7 -> 2502819.712 | J170: =SA34c!J7 -> 2627955.058 | K170: =SA34c!K7 -> 2785596.901
A171: Storm water Infrastructure | C171: =SA34c!C12 -> 0 | D171: =SA34c!D12 -> 0 | E171: =SA34c!E12 -> 0 | F171: =SA34c!F12 -> 0 | G171: =SA34c!G12 -> 0 | H171: =SA34c!H12 -> 0 | I171: =SA34c!I12 -> 0 | J171: =SA34c!J12 -> 0 | K171: =SA34c!K12 -> 0
A172: Electrical Infrastructure | C172: =SA34c!C16 -> 0 | D172: =SA34c!D16 -> 3185724 | E172: =SA34c!E16 -> 2500008 | F172: =SA34c!F16 -> 2714076 | G172: =SA34c!G16 -> 2781008 | H172: =SA34c!H16 -> 2781008 | I172: =SA34c!I16 -> 6947868.48 | J172: =SA34c!J16 -> 6168868.48 | K172: =SA34c!K16 -> 6359000.589
A173: Water Supply Infrastructure | C173: =SA34c!C26 -> 0 | D173: =SA34c!D26 -> 0 | E173: =SA34c!E26 -> 0 | F173: =SA34c!F26 -> 0 | G173: =SA34c!G26 -> 0 | H173: =SA34c!H26 -> 0 | I173: =SA34c!I26 -> 0 | J173: =SA34c!J26 -> 0 | K173: =SA34c!K26 -> 0
A174: Sanitation Infrastructure | C174: =SA34c!C37 -> 0 | D174: =SA34c!D37 -> 0 | E174: =SA34c!E37 -> 0 | F174: =SA34c!F37 -> 0 | G174: =SA34c!G37 -> 0 | H174: =SA34c!H37 -> 0 | I174: =SA34c!I37 -> 0 | J174: =SA34c!J37 -> 0 | K174: =SA34c!K37 -> 0
A175: Solid Waste Infrastructure | C175: =SA34c!C44 -> 0 | D175: =SA34c!D44 -> 574000 | E175: =SA34c!E44 -> 499992 | F175: =SA34c!F44 -> 580008 | G175: =SA34c!G44 -> 580008 | H175: =SA34c!H44 -> 580008 | I175: =SA34c!I44 -> 593500 | J175: =SA34c!J44 -> 636500 | K175: =SA34c!K44 -> 676840
A176: Rail Infrastructure | C176: =SA34c!C52 -> 0 | D176: =SA34c!D52 -> 0 | E176: =SA34c!E52 -> 0 | F176: =SA34c!F52 -> 0 | G176: =SA34c!G52 -> 0 | H176: =SA34c!H52 -> 0 | I176: =SA34c!I52 -> 0 | J176: =SA34c!J52 -> 0 | K176: =SA34c!K52 -> 0
A177: Coastal Infrastructure | C177: =SA34c!C62 -> 0 | D177: =SA34c!D62 -> 0 | E177: =SA34c!E62 -> 0 | F177: =SA34c!F62 -> 0 | G177: =SA34c!G62 -> 0 | H177: =SA34c!H62 -> 0 | I177: =SA34c!I62 -> 0 | J177: =SA34c!J62 -> 0 | K177: =SA34c!K62 -> 0
A178: Information and Communication Infrastructure | C178: =SA34c!C68 -> 0 | D178: =SA34c!D68 -> 0 | E178: =SA34c!E68 -> 0 | F178: =SA34c!F68 -> 0 | G178: =SA34c!G68 -> 0 | H178: =SA34c!H68 -> 0 | I178: =SA34c!I68 -> 0 | J178: =SA34c!J68 -> 0 | K178: =SA34c!K68 -> 0
A179: Infrastructure | C179: =SUM(C170:C178) -> 6838645 | D179: =SUM(D170:D178) -> 5735549.16 | E179: 5524944 | F179: 5422020 | G179: 5488952 | H179: 5488952 | I179: 10044188.19 | J179: 9433323.538 | K179: 9821437.49
A180: Community Facilities | C180: =SA34c!C75 -> 0 | D180: =SA34c!D75 -> 0 | E180: =SA34c!E75 -> 0 | F180: =SA34c!F75 -> 827208 | G180: =SA34c!G75 -> 797208 | H180: =SA34c!H75 -> 797208 | I180: =SA34c!I75 -> 805200 | J180: =SA34c!J75 -> 865900 | K180: =SA34c!K75 -> 931384
A181: Sport and Recreation Facilities | C181: =SA34c!C98 -> 0 | D181: =SA34c!D98 -> 0 | E181: =SA34c!E98 -> 0 | F181: =SA34c!F98 -> 0 | G181: =SA34c!G98 -> 0 | H181: =SA34c!H98 -> 0 | I181: =SA34c!I98 -> 0 | J181: =SA34c!J98 -> 0 | K181: =SA34c!K98 -> 0
A182: Community Assets | C182: =SUM(C180:C181) -> 0 | D182: 0 | E182: 0 | F182: 827208 | G182: 797208 | H182: 797208 | I182: 805200 | J182: 865900 | K182: 931384
A183: Heritage Assets | C183: =SA34c!C103 -> 0 | D183: =SA34c!D103 -> 0 | E183: =SA34c!E103 -> 0 | F183: =SA34c!F103 -> 0 | G183: =SA34c!G103 -> 0 | H183: =SA34c!H103 -> 0 | I183: =SA34c!I103 -> 0 | J183: =SA34c!J103 -> 0 | K183: =SA34c!K103 -> 0
A184: Revenue Generating | C184: =SA34c!C111 -> 0 | D184: =SA34c!D111 -> 0 | E184: =SA34c!E111 -> 0 | F184: =SA34c!F111 -> 0 | G184: =SA34c!G111 -> 0 | H184: =SA34c!H111 -> 0 | I184: =SA34c!I111 -> 0 | J184: =SA34c!J111 -> 0 | K184: =SA34c!K111 -> 0
A185: Non-revenue Generating | C185: =SA34c!C114 -> 0 | D185: =SA34c!D114 -> 0 | E185: =SA34c!E114 -> 0 | F185: =SA34c!F114 -> 0 | G185: =SA34c!G114 -> 0 | H185: =SA34c!H114 -> 0 | I185: =SA34c!I114 -> 0 | J185: =SA34c!J114 -> 0 | K185: =SA34c!K114 -> 0
A186: Investment properties | C186: =SUM(C184:C185) -> 0 | D186: 0 | E186: 0 | F186: 0 | G186: 0 | H186: 0 | I186: 0 | J186: 0 | K186: 0
A187: Operational Buildings | C187: =SA34c!C119 -> 0 | D187: =SA34c!D119 -> 850000 | E187: =SA34c!E119 -> 1554996 | F187: =SA34c!F119 -> 1102500 | G187: =SA34c!G119 -> 1102500 | H187: =SA34c!H119 -> 1102500 | I187: =SA34c!I119 -> 1168125 | J187: =SA34c!J119 -> 1226531.25 | K187: =SA34c!K119 -> 1287857.812
A188: Housing | C188: =SA34c!C131 -> 0 | D188: =SA34c!D131 -> 0 | E188: =SA34c!E131 -> 0 | F188: =SA34c!F131 -> 0 | G188: =SA34c!G131 -> 0 | H188: =SA34c!H131 -> 0 | I188: =SA34c!I131 -> 0 | J188: =SA34c!J131 -> 0 | K188: =SA34c!K131 -> 0
A189: Other Assets | C189: =SUM(C187:C188) -> 0 | D189: 850000 | E189: 1554996 | F189: 1102500 | G189: 1102500 | H189: 1102500 | I189: 1168125 | J189: 1226531.25 | K189: 1287857.812
A190: Biological or Cultivated Assets | C190: =SA34c!C136 -> 0 | D190: =SA34c!D136 -> 0 | E190: =SA34c!E136 -> 0 | F190: =SA34c!F136 -> 0 | G190: =SA34c!G136 -> 0 | H190: =SA34c!H136 -> 0 | I190: =SA34c!I136 -> 0 | J190: =SA34c!J136 -> 0 | K190: =SA34c!K136 -> 0
A191: Servitudes | C191: =SA34c!C140 -> 0 | D191: =SA34c!D140 -> 0 | E191: =SA34c!E140 -> 0 | F191: =SA34c!F140 -> 0 | G191: =SA34c!G140 -> 0 | H191: =SA34c!H140 -> 0 | I191: =SA34c!I140 -> 0 | J191: =SA34c!J140 -> 0 | K191: =SA34c!K140 -> 0
A192: Licences and Rights | C192: =SA34c!C141 -> 0 | D192: =SA34c!D141 -> 0 | E192: =SA34c!E141 -> 0 | F192: =SA34c!F141 -> 123300 | G192: =SA34c!G141 -> 93300 | H192: =SA34c!H141 -> 93300 | I192: =SA34c!I141 -> 130669.24 | J192: =SA34c!J141 -> 130450 | K192: =SA34c!K141 -> 137400
A193: Intangible Assets | C193: =SUM(C191:C192) -> 0 | D193: 0 | E193: 0 | F193: 123300 | G193: 93300 | H193: 93300 | I193: 130669.24 | J193: 130450 | K193: 137400
A194: Computer Equipment | C194: =SA34c!C149 -> 0 | D194: =SA34c!D149 -> 116600 | E194: =SA34c!E149 -> 120000 | F194: =SA34c!F149 -> 180012 | G194: =SA34c!G149 -> 180012 | H194: =SA34c!H149 -> 180012 | I194: =SA34c!I149 -> 119012.6 | J194: =SA34c!J149 -> 124963.23 | K194: =SA34c!K149 -> 131211.3915
A195: Furniture and Office Equipment | C195: =SA34c!C152 -> 0 | D195: =SA34c!D152 -> 0 | E195: =SA34c!E152 -> 359496 | F195: =SA34c!F152 -> 41496 | G195: =SA34c!G152 -> 41496 | H195: =SA34c!H152 -> 41496 | I195: =SA34c!I152 -> 113570.8 | J195: =SA34c!J152 -> 119949.34 | K195: =SA34c!K152 -> 188036.807
A196: Machinery and Equipment | C196: =SA34c!C155 -> 0 | D196: =SA34c!D155 -> 1266697.791 | E196: =SA34c!E155 -> 467568 | F196: =SA34c!F155 -> 292896 | G196: =SA34c!G155 -> 292896 | H196: =SA34c!H155 -> 292896 | I196: =SA34c!I155 -> 307540.8 | J196: =SA34c!J155 -> 322917.84 | K196: =SA34c!K155 -> 339063.732
A197: Transport Assets | C197: =SA34c!C158 -> 0 | D197: =SA34c!D158 -> 2865121.616 | E197: =SA34c!E158 -> 2900004 | F197: =SA34c!F158 -> 3074004 | G197: =SA34c!G158 -> 3074004 | H197: =SA34c!H158 -> 3074004 | I197: =SA34c!I158 -> 3227704.2 | J197: =SA34c!J158 -> 3389089.41 | K197: =SA34c!K158 -> 3558543.88
A198: Land | C198: =SA34c!C161 -> 0 | D198: =SA34c!D161 -> 0 | E198: =SA34c!E161 -> 0 | F198: =SA34c!F161 -> 0 | G198: =SA34c!G161 -> 0 | H198: =SA34c!H161 -> 0 | I198: =SA34c!I161 -> 0 | J198: =SA34c!J161 -> 0 | K198: =SA34c!K161 -> 0
A199: Zoo's, Marine and Non-biological Animals | C199: =SA34c!C164 -> 0 | D199: =SA34c!D164 -> 0 | E199: =SA34c!E164 -> 0 | F199: =SA34c!F164 -> 0 | G199: =SA34c!G164 -> 0 | H199: =SA34c!H164 -> 0 | I199: =SA34c!I164 -> 0 | J199: =SA34c!J164 -> 0 | K199: =SA34c!K164 -> 0
A201: TOTAL EXPENDITURE OTHER ITEMS | C201: =SUM(C168:C169) -> 53594835 | D201: 55833968.57 | E201: 58627008 | F201: 11063436 | G201: 11070368 | H201: 11070368 | I201: 15916010.83 | J201: 15613124.61 | K201: 16394935.11
A203: Renewal and upgrading of Existing Assets as % of total capex | C203: =IF(ISERROR((C37+C69)/C132),0,((C37+C69)/C132)) -> 0.0478049312 | D203: =IF(ISERROR((D37+D69)/D132),0,((D37+D69)/D132)) -> 0.2062278112 | E203: 0.1084034648 | F203: 1 | G203: 1 | H203: 1 | I203: 1 | J203: 1 | K203: 1
A204: Renewal and upgrading of Existing Assets as % of deprecn | C204: =IF(ISERROR((C37+C69)/C168),0,((C37+C69)/C168)) -> 0.06416262745 | D204: =IF(ISERROR((D37+D69)/D168),0,((D37+D69)/D168)) -> 0.2222222222 | E204: 0.1048218029 | F204: 0 | G204: 0 | H204: 0 | I204: 0 | J204: 0 | K204: 0
A205: R&M as a % of PPE | C205: =IF(ISERROR(ROUND(C169/'A6-FinPos'!C19,3)),0,(ROUND(C169/'A6-FinPos'!C19,3))) -> 0 | D205: =IF(ISERROR(ROUND(D169/'A6-FinPos'!D19,3)),0,(ROUND(D169/'A6-FinPos'!D19,3))) -> 0 | E205: =IF(ISERROR(ROUND(E169/'A6-FinPos'!E19,3)),0,(ROUND(E169/'A6-FinPos'!E19,3))) -> 0 | F205: =IF(ISERROR(ROUND(F169/'A6-FinPos'!F19,3)),0,(ROUND(F169/'A6-FinPos'!F19,3))) -> 0 | G205: =IF(ISERROR(ROUND(G169/'A6-FinPos'!G19,3)),0,(ROUND(G169/'A6-FinPos'!G19,3))) -> 0 | H205: =IF(ISERROR(ROUND(H169/'A6-FinPos'!H19,3)),0,(ROUND(H169/'A6-FinPos'!H19,3))) -> 0 | I205: =IF(ISERROR(ROUND(I169/'A6-FinPos'!J19,3)),0,(ROUND(I169/'A6-FinPos'!J19,3))) -> 0 | J205: =IF(ISERROR(ROUND(J169/'A6-FinPos'!K19,3)),0,(ROUND(J169/'A6-FinPos'!K19,3))) -> 0 | K205: =IF(ISERROR(ROUND(K169/'A6-FinPos'!L19,3)),0,(ROUND(K169/'A6-FinPos'!L19,3))) -> 0
A206: Renewal and upgrading and R&M as a % of PPE | C206: =IF(ISERROR(ROUND((C37+C69+C169)/C165,2)),0,(ROUND((C37+C69+C169)/C165,2))) -> 0.01 | D206: =IF(ISERROR(ROUND((D37+D69+D169)/D165,2)),0,(ROUND((D37+D69+D169)/D165,2))) -> 0 | E206: 0.02 | F206: 0.02 | G206: 0.02 | H206: 0.02 | I206: 0.02 | J206: 0.02 | K206: 0.02
A208: =head27a -> References
A209: 1. Detail of new assets provided in Table SA34a
A210: 2. Detail of renewal of existing assets provided in Table SA34b
A211: 3. Detail of Repairs and Maintenance by Asset Class provided in Table SA34c
A212: 4. Must reconcile to total capital expenditure on Budgeted Capital Expenditure
A213: 5. Must reconcile to 'Budgeted Financial Position' (written down value)
A214: 6. Detail of upgrading of existing assets provided in Table SA34e
A215: 7. Detail of depreciation provided in Table SA34d
... 1 more rows

Sheet A10-SerDel
A1: =muni&" - "&Approve10 -> LIM471 Ephraim Mogale - Table A10 Basic service delivery measurement
A2: =desc -> Description | B2: =head27 -> Ref | C2: =head1b -> 2016/17 | D2: =head1A -> 2017/18 | E2: =Head1 -> 2018/19 | F2: =Head2 -> Current Year 2019/20 | I2: =Head3 -> 2020/21 Medium Term Revenue & Expenditure Framework
C3: =Head5A -> Outcome | D3: =Head5A -> Outcome | E3: =Head5A -> Outcome | F3: =Head6 -> Original Budget | G3: =Head7 -> Adjusted Budget | H3: =Head8 -> Full Year Forecast | I3: =Head9 -> Budget Year 2020/21 | J3: =Head10 -> Budget Year +1 2021/22 | K3: =Head11 -> Budget Year +2 2022/23
A4: Household service targets | B4: 1
A5: Water:
A6: Piped water inside dwelling | C6: ='SA9'!E67 -> 0 | D6: ='SA9'!F67 -> 0 | E6: ='SA9'!G67 -> 0 | F6: ='SA9'!H67 -> 0 | G6: ='SA9'!I67 -> 0 | H6: ='SA9'!J67 -> 0 | I6: ='SA9'!K67 -> 0 | J6: ='SA9'!L67 -> 0 | K6: ='SA9'!M67 -> 0
A7: Piped water inside yard (but not in dwelling) | C7: ='SA9'!E68 -> 0 | D7: ='SA9'!F68 -> 0 | E7: ='SA9'!G68 -> 0 | F7: ='SA9'!H68 -> 0 | G7: ='SA9'!I68 -> 0 | H7: ='SA9'!J68 -> 0 | I7: ='SA9'!K68 -> 0 | J7: ='SA9'!L68 -> 0 | K7: ='SA9'!M68 -> 0
A8: Using public tap (at least min.service level) | B8: 2 | C8: ='SA9'!E69 -> 0 | D8: ='SA9'!F69 -> 0 | E8: ='SA9'!G69 -> 0 | F8: ='SA9'!H69 -> 0 | G8: ='SA9'!I69 -> 0 | H8: ='SA9'!J69 -> 0 | I8: ='SA9'!K69 -> 0 | J8: ='SA9'!L69 -> 0 | K8: ='SA9'!M69 -> 0
A9: Other water supply (at least min.service level) | B9: 4 | C9: ='SA9'!E70 -> 0 | D9: ='SA9'!F70 -> 0 | E9: ='SA9'!G70 -> 0 | F9: ='SA9'!H70 -> 0 | G9: ='SA9'!I70 -> 0 | H9: ='SA9'!J70 -> 0 | I9: ='SA9'!K70 -> 0 | J9: ='SA9'!L70 -> 0 | K9: ='SA9'!M70 -> 0
A10: Minimum Service Level and Above sub-total | C10: =SUM(C6:C9) -> 0 | D10: =SUM(D6:D9) -> 0 | E10: 0 | F10: 0 | G10: 0 | H10: 0 | I10: 0 | J10: 0 | K10: 0
A11: Using public tap (< min.service level) | B11: 3 | C11: ='SA9'!E72 -> 0 | D11: ='SA9'!F72 -> 0 | E11: ='SA9'!G72 -> 0 | F11: ='SA9'!H72 -> 0 | G11: ='SA9'!I72 -> 0 | H11: ='SA9'!J72 -> 0 | I11: ='SA9'!K72 -> 0 | J11: ='SA9'!L72 -> 0 | K11: ='SA9'!M72 -> 0
A12: Other water supply (< min.service level) | B12: =B9 -> 4 | C12: ='SA9'!E73 -> 0 | D12: ='SA9'!F73 -> 0 | E12: ='SA9'!G73 -> 0 | F12: ='SA9'!H73 -> 0 | G12: ='SA9'!I73 -> 0 | H12: ='SA9'!J73 -> 0 | I12: ='SA9'!K73 -> 0 | J12: ='SA9'!L73 -> 0 | K12: ='SA9'!M73 -> 0
A13: No water supply | C13: ='SA9'!E74 -> 0 | D13: ='SA9'!F74 -> 0 | E13: ='SA9'!G74 -> 0 | F13: ='SA9'!H74 -> 0 | G13: ='SA9'!I74 -> 0 | H13: ='SA9'!J74 -> 0 | I13: ='SA9'!K74 -> 0 | J13: ='SA9'!L74 -> 0 | K13: ='SA9'!M74 -> 0
A14: Below Minimum Service Level sub-total | C14: =SUM(C11:C13) -> 0 | D14: =SUM(D11:D13) -> 0 | E14: 0 | F14: 0 | G14: 0 | H14: 0 | I14: 0 | J14: 0 | K14: 0
A15: Total number of households | B15: 5 | C15: =C10+C14 -> 0 | D15: =D10+D14 -> 0 | E15: 0 | F15: 0 | G15: 0 | H15: 0 | I15: 0 | J15: 0 | K15: 0
A16: Sanitation/sewerage:
A17: Flush toilet (connected to sewerage) | C17: ='SA9'!E78 -> 0 | D17: ='SA9'!F78 -> 0 | E17: ='SA9'!G78 -> 0 | F17: ='SA9'!H78 -> 0 | G17: ='SA9'!I78 -> 0 | H17: ='SA9'!J78 -> 0 | I17: ='SA9'!K78 -> 0 | J17: ='SA9'!L78 -> 0 | K17: ='SA9'!M78 -> 0
A18: Flush toilet (with septic tank) | C18: ='SA9'!E79 -> 0 | D18: ='SA9'!F79 -> 0 | E18: ='SA9'!G79 -> 0 | F18: ='SA9'!H79 -> 0 | G18: ='SA9'!I79 -> 0 | H18: ='SA9'!J79 -> 0 | I18: ='SA9'!K79 -> 0 | J18: ='SA9'!L79 -> 0 | K18: ='SA9'!M79 -> 0
A19: Chemical toilet | C19: ='SA9'!E80 -> 0 | D19: ='SA9'!F80 -> 0 | E19: ='SA9'!G80 -> 0 | F19: ='SA9'!H80 -> 0 | G19: ='SA9'!I80 -> 0 | H19: ='SA9'!J80 -> 0 | I19: ='SA9'!K80 -> 0 | J19: ='SA9'!L80 -> 0 | K19: ='SA9'!M80 -> 0
A20: Pit toilet (ventilated) | C20: ='SA9'!E81 -> 0 | D20: ='SA9'!F81 -> 0 | E20: ='SA9'!G81 -> 0 | F20: ='SA9'!H81 -> 0 | G20: ='SA9'!I81 -> 0 | H20: ='SA9'!J81 -> 0 | I20: ='SA9'!K81 -> 0 | J20: ='SA9'!L81 -> 0 | K20: ='SA9'!M81 -> 0
A21: Other toilet provisions (> min.service level) | C21: ='SA9'!E82 -> 0 | D21: ='SA9'!F82 -> 0 | E21: ='SA9'!G82 -> 0 | F21: ='SA9'!H82 -> 0 | G21: ='SA9'!I82 -> 0 | H21: ='SA9'!J82 -> 0 | I21: ='SA9'!K82 -> 0 | J21: ='SA9'!L82 -> 0 | K21: ='SA9'!M82 -> 0
A22: =$A$10 -> Minimum Service Level and Above sub-total | C22: =SUM(C17:C21) -> 0 | D22: =SUM(D17:D21) -> 0 | E22: 0 | F22: 0 | G22: 0 | H22: 0 | I22: 0 | J22: 0 | K22: 0
A23: Bucket toilet | C23: ='SA9'!E84 -> 0 | D23: ='SA9'!F84 -> 0 | E23: ='SA9'!G84 -> 0 | F23: ='SA9'!H84 -> 0 | G23: ='SA9'!I84 -> 0 | H23: ='SA9'!J84 -> 0 | I23: ='SA9'!K84 -> 0 | J23: ='SA9'!L84 -> 0 | K23: ='SA9'!M84 -> 0
A24: Other toilet provisions (< min.service level) | C24: ='SA9'!E85 -> 0 | D24: ='SA9'!F85 -> 0 | E24: ='SA9'!G85 -> 0 | F24: ='SA9'!H85 -> 0 | G24: ='SA9'!I85 -> 0 | H24: ='SA9'!J85 -> 0 | I24: ='SA9'!K85 -> 0 | J24: ='SA9'!L85 -> 0 | K24: ='SA9'!M85 -> 0
A25: No toilet provisions | C25: ='SA9'!E86 -> 0 | D25: ='SA9'!F86 -> 0 | E25: ='SA9'!G86 -> 0 | F25: ='SA9'!H86 -> 0 | G25: ='SA9'!I86 -> 0 | H25: ='SA9'!J86 -> 0 | I25: ='SA9'!K86 -> 0 | J25: ='SA9'!L86 -> 0 | K25: ='SA9'!M86 -> 0
A26: =$A$14 -> Below Minimum Service Level sub-total | C26: =SUM(C23:C25) -> 0 | D26: =SUM(D23:D25) -> 0 | E26: 0 | F26: 0 | G26: 0 | H26: 0 | I26: 0 | J26: 0 | K26: 0
A27: =$A$15 -> Total number of households | B27: =$B$15 -> 5 | C27: =C22+C26 -> 0 | D27: =D22+D26 -> 0 | E27: 0 | F27: 0 | G27: 0 | H27: 0 | I27: 0 | J27: 0 | K27: 0
A28: Energy:
A29: Electricity (at least min.service level) | C29: ='SA9'!E90 -> 0 | D29: ='SA9'!F90 -> 0 | E29: ='SA9'!G90 -> 0 | F29: ='SA9'!H90 -> 0 | G29: ='SA9'!I90 -> 0 | H29: ='SA9'!J90 -> 0 | I29: ='SA9'!K90 -> 0 | J29: ='SA9'!L90 -> 0 | K29: ='SA9'!M90 -> 0
A30: Electricity - prepaid (min.service level) | C30: ='SA9'!E91 -> 0 | D30: ='SA9'!F91 -> 0 | E30: ='SA9'!G91 -> 0 | F30: ='SA9'!H91 -> 0 | G30: ='SA9'!I91 -> 0 | H30: ='SA9'!J91 -> 0 | I30: ='SA9'!K91 -> 0 | J30: ='SA9'!L91 -> 0 | K30: ='SA9'!M91 -> 0
A31: =$A$10 -> Minimum Service Level and Above sub-total | C31: =SUM(C29:C30) -> 0 | D31: =SUM(D29:D30) -> 0 | E31: 0 | F31: 0 | G31: 0 | H31: 0 | I31: 0 | J31: 0 | K31: 0
A32: Electricity (< min.service level) | C32: ='SA9'!E93 -> 0 | D32: ='SA9'!F93 -> 0 | E32: ='SA9'!G93 -> 0 | F32: ='SA9'!H93 -> 0 | G32: ='SA9'!I93 -> 0 | H32: ='SA9'!J93 -> 0 | I32: ='SA9'!K93 -> 0 | J32: ='SA9'!L93 -> 0 | K32: ='SA9'!M93 -> 0
A33: Electricity - prepaid (< min. service level) | C33: ='SA9'!E94 -> 0 | D33: ='SA9'!F94 -> 0 | E33: ='SA9'!G94 -> 0 | F33: ='SA9'!H94 -> 0 | G33: ='SA9'!I94 -> 0 | H33: ='SA9'!J94 -> 0 | I33: ='SA9'!K94 -> 0 | J33: ='SA9'!L94 -> 0 | K33: ='SA9'!M94 -> 0
A34: Other energy sources | C34: ='SA9'!E95 -> 0 | D34: ='SA9'!F95 -> 0 | E34: ='SA9'!G95 -> 0 | F34: ='SA9'!H95 -> 0 | G34: ='SA9'!I95 -> 0 | H34: ='SA9'!J95 -> 0 | I34: ='SA9'!K95 -> 0 | J34: ='SA9'!L95 -> 0 | K34: ='SA9'!M95 -> 0
A35: =$A$14 -> Below Minimum Service Level sub-total | C35: =SUM(C32:C34) -> 0 | D35: =SUM(D32:D34) -> 0 | E35: 0 | F35: 0 | G35: 0 | H35: 0 | I35: 0 | J35: 0 | K35: 0
A36: =$A$15 -> Total number of households | B36: =$B$15 -> 5 | C36: =C31+C35 -> 0 | D36: =D31+D35 -> 0 | E36: 0 | F36: 0 | G36: 0 | H36: 0 | I36: 0 | J36: 0 | K36: 0
A37: Refuse:
A38: Removed at least once a week | C38: ='SA9'!E99 -> 0 | D38: ='SA9'!F99 -> 0 | E38: ='SA9'!G99 -> 0 | F38: ='SA9'!H99 -> 0 | G38: ='SA9'!I99 -> 0 | H38: ='SA9'!J99 -> 0 | I38: ='SA9'!K99 -> 0 | J38: ='SA9'!L99 -> 0 | K38: ='SA9'!M99 -> 0
A39: =$A$10 -> Minimum Service Level and Above sub-total | C39: =SUM(C38) -> 0 | D39: =SUM(D38) -> 0 | E39: 0 | F39: 0 | G39: 0 | H39: 0 | I39: 0 | J39: 0 | K39: 0
A40: Removed less frequently than once a week | C40: ='SA9'!E101 -> 0 | D40: ='SA9'!F101 -> 0 | E40: ='SA9'!G101 -> 0 | F40: ='SA9'!H101 -> 0 | G40: ='SA9'!I101 -> 0 | H40: ='SA9'!J101 -> 0 | I40: ='SA9'!K101 -> 0 | J40: ='SA9'!L101 -> 0 | K40: ='SA9'!M101 -> 0
A41: Using communal refuse dump | C41: ='SA9'!E102 -> 0 | D41: ='SA9'!F102 -> 0 | E41: ='SA9'!G102 -> 0 | F41: ='SA9'!H102 -> 0 | G41: ='SA9'!I102 -> 0 | H41: ='SA9'!J102 -> 0 | I41: ='SA9'!K102 -> 0 | J41: ='SA9'!L102 -> 0 | K41: ='SA9'!M102 -> 0
A42: Using own refuse dump | C42: ='SA9'!E103 -> 0 | D42: ='SA9'!F103 -> 0 | E42: ='SA9'!G103 -> 0 | F42: ='SA9'!H103 -> 0 | G42: ='SA9'!I103 -> 0 | H42: ='SA9'!J103 -> 0 | I42: ='SA9'!K103 -> 0 | J42: ='SA9'!L103 -> 0 | K42: ='SA9'!M103 -> 0
A43: Other rubbish disposal | C43: ='SA9'!E104 -> 0 | D43: ='SA9'!F104 -> 0 | E43: ='SA9'!G104 -> 0 | F43: ='SA9'!H104 -> 0 | G43: ='SA9'!I104 -> 0 | H43: ='SA9'!J104 -> 0 | I43: ='SA9'!K104 -> 0 | J43: ='SA9'!L104 -> 0 | K43: ='SA9'!M104 -> 0
A44: No rubbish disposal | C44: ='SA9'!E105 -> 0 | D44: ='SA9'!F105 -> 0 | E44: ='SA9'!G105 -> 0 | F44: ='SA9'!H105 -> 0 | G44: ='SA9'!I105 -> 0 | H44: ='SA9'!J105 -> 0 | I44: ='SA9'!K105 -> 0 | J44: ='SA9'!L105 -> 0 | K44: ='SA9'!M105 -> 0
A45: =$A$14 -> Below Minimum Service Level sub-total | C45: =SUM(C40:C44) -> 0 | D45: 0 | E45: 0 | F45: 0 | G45: 0 | H45: 0 | I45: 0 | J45: 0 | K45: 0
A46: =$A$15 -> Total number of households | B46: =$B$15 -> 5 | C46: =C39+C45 -> 0 | D46: =D39+D45 -> 0 | E46: 0 | F46: 0 | G46: 0 | H46: 0 | I46: 0 | J46: 0 | K46: 0
A48: Households receiving Free Basic Service | B48: 7
A49: Water (6 kilolitres per household per month) | C49: ='SA9'!E263 -> 0 | D49: ='SA9'!F263 -> 0 | E49: ='SA9'!G263 -> 0 | F49: ='SA9'!H263 -> 0 | G49: ='SA9'!I263 -> 0 | H49: ='SA9'!J263 -> 0 | I49: ='SA9'!K263 -> 0 | J49: ='SA9'!L263 -> 0 | K49: ='SA9'!M263 -> 0
A50: Sanitation (free minimum level service) | C50: ='SA9'!E275 -> 0 | D50: ='SA9'!F275 -> 0 | E50: ='SA9'!G275 -> 0 | F50: ='SA9'!H275 -> 0 | G50: ='SA9'!I275 -> 0 | H50: ='SA9'!J275 -> 0 | I50: ='SA9'!K275 -> 0 | J50: ='SA9'!L275 -> 0 | K50: ='SA9'!M275 -> 0
A51: Electricity/other energy (50kwh per household per month) | C51: ='SA9'!E251 -> 0 | D51: ='SA9'!F251 -> 0 | E51: ='SA9'!G251 -> 0 | F51: ='SA9'!H251 -> 0 | G51: ='SA9'!I251 -> 0 | H51: ='SA9'!J251 -> 0 | I51: ='SA9'!K251 -> 0 | J51: ='SA9'!L251 -> 0 | K51: ='SA9'!M251 -> 0
A52: Refuse (removed at least once a week) | C52: ='SA9'!E287 -> 0 | D52: ='SA9'!F287 -> 0 | E52: ='SA9'!G287 -> 0 | F52: ='SA9'!H287 -> 0 | G52: ='SA9'!I287 -> 0 | H52: ='SA9'!J287 -> 0 | I52: ='SA9'!K287 -> 0 | J52: ='SA9'!L287 -> 0 | K52: ='SA9'!M287 -> 0
A54: Cost of Free Basic Services provided - Formal Settlements (R'000) | B54: 8
A55: Water (6 kilolitres per indigent household per month) | C55: ='SA1'!C20 -> 0 | D55: ='SA1'!D20 -> 0 | E55: ='SA1'!E20 -> 0 | F55: ='SA1'!F20 -> 0 | G55: ='SA1'!G20 -> 0 | H55: ='SA1'!H20 -> 0 | I55: ='SA1'!J20 -> 0 | J55: ='SA1'!K20 -> 0 | K55: ='SA1'!L20 -> 0
A56: Sanitation (free sanitation service to indigent households) | C56: ='SA1'!C26 -> 0 | D56: ='SA1'!D26 -> 0 | E56: ='SA1'!E26 -> 0 | F56: ='SA1'!F26 -> 0 | G56: ='SA1'!G26 -> 0 | H56: ='SA1'!H26 -> 0 | I56: ='SA1'!J26 -> 0 | J56: ='SA1'!K26 -> 0 | K56: ='SA1'!L26 -> 0
A57: Electricity/other energy (50kwh per indigent household per month) | C57: ='SA1'!C14 -> 0 | D57: ='SA1'!D14 -> 0 | E57: ='SA1'!E14 -> 0 | F57: ='SA1'!F14 -> 0 | G57: ='SA1'!G14 -> 0 | H57: ='SA1'!H14 -> 0 | I57: ='SA1'!J14 -> 0 | J57: ='SA1'!K14 -> 0 | K57: ='SA1'!L14 -> 0
A58: Refuse (removed once a week for indigent households) | C58: ='SA1'!C33 -> 0 | D58: ='SA1'!D33 -> 0 | E58: ='SA1'!E33 -> 0 | F58: ='SA1'!F33 -> 0 | G58: ='SA1'!G33 -> 0 | H58: ='SA1'!H33 -> 0 | I58: ='SA1'!J33 -> 0 | J58: ='SA1'!K33 -> 0 | K58: ='SA1'!L33 -> 0
A59: Cost of Free Basic Services provided - Informal Formal Settlements (R'000) | C59: ='SA9'!E260+'SA9'!E272+'SA9'!E284+'SA9'!E296 -> 0 | D59: ='SA9'!F260+'SA9'!F272+'SA9'!F284+'SA9'!F296 -> 0 | E59: ='SA9'!G260+'SA9'!G272+'SA9'!G284+'SA9'!G296 -> 0 | F59: ='SA9'!H260+'SA9'!H272+'SA9'!H284+'SA9'!H296 -> 0 | G59: ='SA9'!I260+'SA9'!I272+'SA9'!I284+'SA9'!I296 -> 0 | H59: ='SA9'!J260+'SA9'!J272+'SA9'!J284+'SA9'!J296 -> 0 | I59: ='SA9'!K260+'SA9'!K272+'SA9'!K284+'SA9'!K296 -> 0 | J59: ='SA9'!L260+'SA9'!L272+'SA9'!L284+'SA9'!L296 -> 0 | K59: ='SA9'!M260+'SA9'!M272+'SA9'!M284+'SA9'!M296 -> 0
A60: Total cost of FBS provided | C60: =SUM(C55:C59) -> 0 | D60: 0 | E60: 0 | F60: 0 | G60: 0 | H60: 0 | I60: 0 | J60: 0 | K60: 0
A62: Highest level of free service provided per household
A63: Property rates (R value threshold)
A64: Water (kilolitres per household per month)
A65: Sanitation (kilolitres per household per month)
A66: Sanitation (Rand per household per month)
A67: Electricity (kwh per household per month)
A68: Refuse (average litres per week)
A69: Revenue cost of subsidised services provided (R'000) | B69: 9
A70: Property rates (tariff adjustment) ( impermissable values per section 17 of MPRA)
A71: Property rates exemptions, reductions and rebates and impermissable values in excess of section 17 of MPRA) | C71: ='SA1'!C8 -> 0 | D71: ='SA1'!D8 -> 0 | E71: ='SA1'!E8 -> 0 | F71: ='SA1'!F8 -> 0 | G71: ='SA1'!G8 -> 0 | H71: ='SA1'!H8 -> 0 | I71: ='SA1'!J8 -> 0 | J71: ='SA1'!K8 -> 0 | K71: ='SA1'!L8 -> 0
A72: Water (in excess of 6 kilolitres per indigent household per month) | C72: ='SA1'!C19 -> 0 | D72: ='SA1'!D19 -> 0 | E72: ='SA1'!E19 -> 0 | F72: ='SA1'!F19 -> 0 | G72: ='SA1'!G19 -> 0 | H72: ='SA1'!H19 -> 0 | I72: ='SA1'!J19 -> 0 | J72: ='SA1'!K19 -> 0 | K72: ='SA1'!L19 -> 0
A73: Sanitation (in excess of free sanitation service to indigent households) | C73: ='SA1'!C25 -> 0 | D73: ='SA1'!D25 -> 0 | E73: ='SA1'!E25 -> 0 | F73: ='SA1'!F25 -> 0 | G73: ='SA1'!G25 -> 0 | H73: ='SA1'!H25 -> 0 | I73: ='SA1'!J25 -> 0 | J73: ='SA1'!K25 -> 0 | K73: ='SA1'!L25 -> 0
A74: Electricity/other energy (in excess of 50 kwh per indigent household per month) | C74: ='SA1'!C13 -> 1679622 | D74: ='SA1'!D13 -> 0 | E74: ='SA1'!E13 -> 0 | F74: ='SA1'!F13 -> 0 | G74: ='SA1'!G13 -> 0 | H74: ='SA1'!H13 -> 0 | I74: ='SA1'!J13 -> 0 | J74: ='SA1'!K13 -> 0 | K74: ='SA1'!L13 -> 0
A75: Refuse (in excess of one removal a week for indigent households) | C75: ='SA1'!C32 -> 0 | D75: ='SA1'!D32 -> 0 | E75: ='SA1'!E32 -> 0 | F75: ='SA1'!F32 -> 0 | G75: ='SA1'!G32 -> 0 | H75: ='SA1'!H32 -> 0 | I75: ='SA1'!J32 -> 0 | J75: ='SA1'!K32 -> 0 | K75: ='SA1'!L32 -> 0
A76: Municipal Housing - rental rebates
A77: Housing - top structure subsidies | B77: 6
A78: Other
A79: Total revenue cost of subsidised services provided | C79: =SUM(C70:C78) -> 1679622 | D79: =SUM(D70:D78) -> 0 | E79: 0 | F79: 0 | G79: 0 | H79: 0 | I79: 0 | J79: =SUM(J70:J78) -> 0 | K79: =SUM(K70:K78) -> 0
A80: =head27a -> References
A81: 1. Include services provided by another entity; e.g. Eskom
A82: 2. Stand distance <= 200m from dwelling
A83: 3. Stand distance > 200m from dwelling
A84: 4. Borehole, spring, rain-water tank etc.
A85: 5. Must agree to total number of households in municipal area (informal settlements receiving services must be included)
A86: 6. Include value of subsidy provided by municipality above provincial subsidy level
A87: 7. Show number of households receiving at least these levels of services completely free (informal settlements must be included)
A88: 8. Must reflect the cost to the municipality of providing the Free Basic Service
A89: 9. Reflect the cost to the municipality in terms of 'revenue foregone' of providing free services (note this will not equal 'Revenue Foregone' on SA1)

Sheet SA1
A1: =muni&" - "&TableA1 -> LIM471 Ephraim Mogale - Supporting Table SA1 Supportinging detail to 'Budgeted Financial Performance'
A2: =desc -> Description | B2: =head27 -> Ref | C2: =head1b -> 2016/17 | D2: =head1A -> 2017/18 | E2: =Head1 -> 2018/19 | F2: =Head2 -> Current Year 2019/20 | J2: =Head3 -> 2020/21 Medium Term Revenue & Expenditure Framework
C3: =Head5 -> Audited Outcome | D3: =Head5 -> Audited Outcome | E3: =Head5 -> Audited Outcome | F3: =Head6 -> Original Budget | G3: =Head7 -> Adjusted Budget | H3: =Head8 -> Full Year Forecast | I3: =Head5b -> Pre-audit outcome | J3: =Head9 -> Budget Year 2020/21 | K3: =Head10 -> Budget Year +1 2021/22 | L3: =Head11 -> Budget Year +2 2022/23
A4: R thousand
A5: REVENUE ITEMS:
A6: ='A4-FinPerf RE'!A5 -> Property rates | B6: 6
A7: Total Property Rates | C7: 31425047 | D7: 33437488 | E7: 35654755.19 | F7: 37508803.88 | G7: 37405604 | H7: 37405604 | I7: 37405604 | J7: 39126261.78 | K7: 41004322.35 | L7: 42972529.82
A8: less Revenue Foregone (exemptions, reductions and rebates and impermissable values in excess of section 17 of MPRA)
A9: Net Property Rates | C9: =C7-C8 -> 31425047 | D9: =D7-D8 -> 33437488 | E9: 35654755.19 | F9: 37508803.88 | G9: 37405604 | H9: 37405604 | I9: 37405604 | J9: 39126261.78 | K9: 41004322.35 | L9: 42972529.82
A11: ='A4-FinPerf RE'!A6 -> Service charges - electricity revenue | B11: 6
A12: ="Total "&A11 -> Total Service charges - electricity revenue | C12: 49622978 | D12: 43760856 | E12: 57470614.63 | F12: 61224400 | G12: 61529284 | H12: 61529284 | I12: 61529284 | J12: 63770000 | K12: 69909133.36 | L12: 73264771.76
A13: less Revenue Foregone (in excess of 50 kwh per indigent household per month) | C13: 1679622
A14: less Cost of Free Basis Services (50 kwh per indigent household per month) | C14: ='SA9'!E250 -> 0 | D14: ='SA9'!F250 -> 0 | E14: ='SA9'!G250 -> 0 | F14: ='SA9'!H250 -> 0 | G14: ='SA9'!I250 -> 0 | H14: ='SA9'!J250 -> 0 | J14: ='SA9'!K250 -> 0 | K14: ='SA9'!L250 -> 0 | L14: ='SA9'!M250 -> 0
A15: ="Net "& A11 -> Net Service charges - electricity revenue | C15: =C12-C13-C14 -> 47943356 | D15: =D12-D13-D14 -> 43760856 | E15: 57470614.63 | F15: 61224400 | G15: 61529284 | H15: 61529284 | I15: 61529284 | J15: 63770000 | K15: 69909133.36 | L15: 73264771.76
A17: ='A4-FinPerf RE'!A7 -> Service charges - water revenue | B17: 6
A18: ="Total "&A17 -> Total Service charges - water revenue
A19: less Revenue Foregone (in excess of 6 kilolitres per indigent household per month)
A20: less Cost of Free Basis Services (6 kilolitres per indigent household per month) | C20: ='SA9'!E262 -> 0 | D20: ='SA9'!F262 -> 0 | E20: ='SA9'!G262 -> 0 | F20: ='SA9'!H262 -> 0 | G20: ='SA9'!I262 -> 0 | H20: ='SA9'!J262 -> 0 | J20: ='SA9'!K262 -> 0 | K20: ='SA9'!L262 -> 0 | L20: ='SA9'!M262 -> 0
A21: ="Net "& A17 -> Net Service charges - water revenue | C21: =C18-C19-C20 -> 0 | D21: =D18-D19-D20 -> 0 | E21: 0 | F21: 0 | G21: 0 | H21: 0 | I21: 0 | J21: 0 | K21: 0 | L21: 0
A23: ='A4-FinPerf RE'!A8 -> Service charges - sanitation revenue
A24: ="Total "&A23 -> Total Service charges - sanitation revenue
A25: less Revenue Foregone (in excess of free sanitation service to indigent households)
A26: less Cost of Free Basis Services (free sanitation service to indigent households) | C26: ='SA9'!E274 -> 0 | D26: ='SA9'!F274 -> 0 | E26: ='SA9'!G274 -> 0 | F26: ='SA9'!H274 -> 0 | G26: ='SA9'!I274 -> 0 | H26: ='SA9'!J274 -> 0 | J26: ='SA9'!K274 -> 0 | K26: ='SA9'!L274 -> 0 | L26: ='SA9'!M274 -> 0
A27: ="Net "& A23 -> Net Service charges - sanitation revenue | C27: =C24-C25-C26 -> 0 | D27: =D24-D25-D26 -> 0 | E27: 0 | F27: 0 | G27: 0 | H27: 0 | I27: 0 | J27: 0 | K27: 0 | L27: 0
A29: ='A4-FinPerf RE'!A9 -> Service charges - refuse revenue | B29: 6
A30: Total refuse removal revenue | C30: 3228115 | D30: 3909051 | E30: 4243768 | F30: 4462865.936 | G30: 5021360 | H30: 5021360 | I30: 5021360 | J30: 5000926 | K30: 5504455.003 | L30: 5768668.843
A31: Total landfill revenue
A32: less Revenue Foregone (in excess of one removal a week to indigent households)
A33: less Cost of Free Basis Services (removed once a week to indigent households) | C33: ='SA9'!E286 -> 0 | D33: ='SA9'!F286 -> 0 | E33: ='SA9'!G286 -> 0 | F33: ='SA9'!H286 -> 0 | G33: ='SA9'!I286 -> 0 | H33: ='SA9'!J286 -> 0 | J33: ='SA9'!K286 -> 0 | K33: ='SA9'!L286 -> 0 | L33: ='SA9'!M286 -> 0
A34: ="Net "& A29 -> Net Service charges - refuse revenue | C34: =SUM(C30:C31)-C32-C33 -> 3228115 | D34: =SUM(D30:D31)-D32-D33 -> 3909051 | E34: 4243768 | F34: 4462865.936 | G34: 5021360 | H34: 5021360 | I34: 5021360 | J34: 5000926 | K34: 5504455.003 | L34: 5768668.843
A36: Other Revenue by source
A37: Fuel Levy | D37: 135722
A38: Other Revenue | C38: 3382866 | D38: 92938 | F38: 3395926.026 | G38: 1106811.18 | H38: 1106811.18 | I38: 1106811.18 | J38: 3008772.114 | K38: 1213295.27 | L38: 1271533.443
F39: 1696338.336
F40: 1313949.738
A49: Total 'Other' Revenue | B49: 1 | C49: =SUM(C37:C38) -> 3382866 | D49: =SUM(D37:D38) -> 228660 | E49: =SUM(E37:E38) -> 0 | F49: 3395926.026 | G49: 1106811.18 | H49: 1106811.18 | I49: 1106811.18 | J49: 3008772.114 | K49: 1213295.27 | L49: 1271533.443
A51: EXPENDITURE ITEMS:
A52: ='A4-FinPerf RE'!A24 -> Employee related costs
A53: Basic Salaries and Wages | B53: 2 | C53: 43444203 | D53: 44974814.01 | E53: 51782520.55 | F53: 56408397.56 | G53: 58493351.26 | H53: 58493351.26 | I53: 58493351.26 | J53: =62658133.4005+874200 -> 63532333.4 | K53: 64891941.58 | L53: 67270644.28
A54: Pension and UIF Contributions | C54: 7872000 | D54: 8423040 | E54: 11343449.2 | F54: 11034507 | G54: 10948889.36 | H54: 10948889.36 | I54: 10948889.36 | J54: 11726921.4 | K54: 12144606.21 | L54: 12589299.46
A55: Medical Aid Contributions | C55: 2131576 | D55: 2280786.32 | E55: 3077740.057 | F55: 4088122 | G55: 3273134.72 | H55: 3273134.72 | I55: 3273134.72 | J55: 3514419.258 | K55: 3609044.732 | L55: 3709731.294
A56: Overtime | C56: 1321490 | D56: 1413994.3 | E56: 1667675.454 | F56: 1775816.4 | G56: 1970725 | H56: 1970725 | I56: 1970725 | J56: 2273257.257 | K56: 2161906.135 | L56: 2261758.461
A57: Performance Bonus | C57: 0 | D57: 0 | E57: 0
A58: Motor Vehicle Allowance | C58: 3681400 | D58: 3939098 | E58: 5363334.456 | F58: 5862331 | G58: 4914557.7 | H58: 4914557.7 | I58: 4914557.7 | J58: 5271214.859 | K58: 5475710.106 | L58: 5694032.23
A59: Cellphone Allowance | C59: 578000 | D59: 618460 | E59: 756992.5021 | F59: 813763 | G59: 820701.38 | H59: 820701.38 | I59: 820701.38 | J59: 879872.7529 | K59: 910262.5586 | L59: 942642.9924
A60: Housing Allowances | C60: 450000 | D60: 481500 | E60: 556415.7444 | F60: 597855 | G60: 418754.24 | H60: 418754.24 | I60: 418754.24 | J60: 447637.1328 | K60: 465255.6906 | L60: 483997.9996
A61: Other benefits and allowances | C61: 11496991 | D61: 12301780.37 | E61: 8898914.128 | F61: 3533811.605 | G61: 6853430.62 | H61: 6853430.62 | I61: 6853430.62 | J61: 6289783.69 | K61: 6470058.311 | L61: 6717811.703
A62: Payments in lieu of leave | E62: 2494329.074 | F62: 2726790 | G62: 2726916 | H62: 2726916 | I62: 2726916 | J62: 2920356.048 | K62: 3028526.606 | L62: 3142266.973
A63: Long service awards | E63: 172536.84 | F63: 873220 | G63: 654012 | H63: 654012 | I63: 654012 | J63: 700506.2 | K63: 724438.075 | L63: 749902.6057
A64: Post-retirement benefit obligations | B64: 4
A65: sub-total | B65: 5 | C65: =SUM(C53:C64) -> 70975660 | D65: =SUM(D53:D64) -> 74433473 | E65: 86113908 | F65: 87714613.57 | G65: 91074472.28 | H65: 91074472.28 | I65: 91074472.28 | J65: 97556302 | K65: 99881750 | L65: 103562088
A66: Less: Employees costs capitalised to PPE
A67: ="Total "&A52 -> Total Employee related costs | B67: 1 | C67: =C65-C66 -> 70975660 | D67: =D65-D66 -> 74433473 | E67: 86113908 | F67: 87714613.57 | G67: 91074472.28 | H67: 91074472.28 | I67: 91074472.28 | J67: 97556302 | K67: 99881750 | L67: 103562088
A78: ='A4-FinPerf RE'!A27 -> Depreciation & asset impairment
A79: Depreciation of Property, Plant & Equipment | C79: 46756190 | D79: 45000000 | E79: 50000000 | F79: 52000000 | G79: 52000008 | H79: 52000008 | I79: 52000008 | J79: 54600008 | K79: 57330009 | L79: 60196509
A80: Lease amortisation
A81: Capital asset impairment
A83: ="Total "&LEFT(A78,35) -> Total Depreciation & asset impairment | B83: 1 | C83: =SUM(C79:C81) -> 46756190 | D83: =SUM(D79:D81) -> 45000000 | E83: 50000000 | F83: 52000000 | G83: 52000008 | H83: 52000008 | I83: 52000008 | J83: 54600008 | K83: 57330009 | L83: 60196509
A85: ='A4-FinPerf RE'!A29 -> Bulk purchases
A86: Electricity Bulk Purchases | C86: 29357077 | D86: 30469771.2 | E86: 36399996.87 | F86: 42224000 | G86: 39000000 | H86: 39000000 | I86: 39000000 | J86: 42000000 | K86: 51577500 | L86: 59314125
A87: Water Bulk Purchases
A88: Total bulk purchases | B88: 1 | C88: =SUM(C86:C87) -> 29357077 | D88: =SUM(D86:D87) -> 30469771.2 | E88: 36399996.87 | F88: 42224000 | G88: 39000000 | H88: 39000000 | I88: 39000000 | J88: 42000000 | K88: 51577500 | L88: 59314125
A90: Transfers and grants
A91: Cash transfers and grants | C91: ='SA21'!C32 -> 0 | D91: ='SA21'!D32 -> 0 | E91: ='SA21'!E32 -> 0 | F91: ='SA21'!F32 -> 0 | G91: ='SA21'!G32 -> 0 | H91: ='SA21'!H32 -> 0 | I91: ='SA21'!I32 -> 0 | J91: ='SA21'!J32 -> 0 | K91: ='SA21'!K32 -> 0 | L91: ='SA21'!L32 -> 0
A92: Non-cash transfers and grants | C92: ='SA21'!C63 -> 0 | D92: ='SA21'!D63 -> 0 | E92: ='SA21'!E63 -> 0 | F92: ='SA21'!F63 -> 0 | G92: ='SA21'!G63 -> 0 | H92: ='SA21'!H63 -> 0 | I92: ='SA21'!I63 -> 0 | J92: ='SA21'!J63 -> 0 | K92: ='SA21'!K63 -> 0 | L92: ='SA21'!L63 -> 0
A93: Total transfers and grants | B93: 1 | C93: =SUM(C91:C92) -> 0 | D93: =SUM(D91:D92) -> 0 | E93: 0 | F93: 0 | G93: 0 | H93: 0 | I93: 0 | J93: 0 | K93: 0 | L93: 0
A95: ='A4-FinPerf RE'!A31 -> Contracted services
A96: Outsourced Services
A97: Consultants and Professional Services | C97: 13009399 | D97: 14551505.38 | E97: 38937970 | F97: 36354927.8 | G97: 38286517 | H97: 38286517 | I97: 38286517 | J97: 45508861 | K97: 41228071 | L97: 41301571
A98: Contractors
A127: Total contracted services | C127: =SUM(C96:C98) -> 13009399 | D127: =SUM(D96:D98) -> 14551505.38 | E127: 38937970 | F127: 36354927.8 | G127: 38286517 | H127: 38286517 | I127: 38286517 | J127: 45508861 | K127: 41228071 | L127: 41301571
A129: Other Expenditure By Type
A130: Collection costs
A131: Contributions to 'other' provisions
A133: Audit fees
A136: Other Expenditure | C136: 34117740.4 | D136: 143639447.2 | E136: 41085856 | F136: 52313929.3 | G136: 70304341 | H136: 70304341 | I136: 70304341 | J136: 25686823.69 | K136: 35175005 | L136: 37722241
A157: Total 'Other' Expenditure | B157: 1 | C157: =+C130+C131+C133+C136 -> 34117740.4 | D157: =+D130+D131+D133+D136 -> 143639447.2 | E157: 41085856 | F157: 52313929.3 | G157: 70304341 | H157: 70304341 | I157: 70304341 | J157: 25686823.69 | K157: 35175005 | L157: 37722241
A159: Repairs and Maintenance by Expenditure Item | B159: 8
A160: Employee related costs
A161: Other materials | C161: 6838645 | D161: 5565075.04 | E161: 2323708 | F161: 2331420 | G161: 1881422 | H161: 1881422 | I161: 1881422 | J161: 15916009 | K161: 15613124 | L161: 16394935
A162: Contracted Services
A163: Other Expenditure
A164: Total Repairs and Maintenance Expenditure | B164: 9 | C164: =SUM(C160:C163) -> 6838645 | D164: =SUM(D160:D163) -> 5565075.04 | E164: 2323708 | F164: 2331420 | G164: 1881422 | H164: 1881422 | I164: 1881422 | J164: 15916009 | K164: 15613124 | L164: 16394935
A166: check | C166: =C164-SA34c!C167 -> 0 | D166: =D164-SA34c!D167 -> -5268893.527 | E166: =E164-SA34c!E167 -> -8603300 | F166: =F164-SA34c!F167 -> -8732016 | G166: =G164-SA34c!G167 -> -9188946 | H166: =H164-SA34c!H167 -> -9188946 | J166: =J164-SA34c!I167 -> -1.832000002 | K166: =K164-SA34c!J167 -> -0.6081760004 | L166: =L164-SA34c!K167 -> -0.113268448
A169: =head27a -> References
A170: 1. Must reconcile with 'Budgeted Financial Performance (Revenue and Expenditure)
A171: 2. Must reconcile to supporting documentation on staff salaries
A173: 4. Expenditure to meet any 'unfunded obligations'
A174: 5 This sub-total must agree with the total on SA22, but excluding councillor and board member items
A175: 6. Include a note for each revenue item that is affected by 'revenue foregone'
A176: 7. Special consideration may have to be given to including 'goodwill arising' or 'joint venture' budgets where circumstances require this (include separately under relevant notes)
A177: 8. Repairs and Maintenance is not a GRAP item. However to facilitate transparency, municipalities must provide a breakdown of the amounts included in the relevant GRAP items that will be spent on Repairs and Maintenance.
A178: 9. Must reconcile with Repairs and Maintenance by Asset Class (Total Repairs and Maintenance) on Table SA34c.
A179: 10. Only applicable to municipalities that have adopted the 'revaluation method' in GRAP 17. The aim is to prevent overstating 'depreciation and asset impairment'

Sheet SA2
A1: =muni&" - "&TableA2 -> LIM471 Ephraim Mogale - Supporting Table SA2 Matrix Financial Performance Budget (revenue source/expenditure type and dept.)
A2: =desc -> Description | B2: =head27 -> Ref | C2: ='A3-FinPerf V'!A5 -> Vote 1 - EXECUTIVE AND COUNCIL | D2: ='A3-FinPerf V'!A6 -> Vote 2 - MUNICIPAL MANAGER | E2: ='A3-FinPerf V'!A7 -> Vote 3 - FINANCE | F2: ='A3-FinPerf V'!A8 -> Vote 4 - CORPORATE SERVICES MANAGEMENT | G2: ='A3-FinPerf V'!A9 -> Vote 5 - TECHNICAL SERVICES | H2: ='A3-FinPerf V'!A10 -> Vote 6 - PLANNING & ECONOMIC DEVELOPMENT | I2: ='A3-FinPerf V'!A11 -> Vote 7 - COMMUNITY SERVICES MANAGEMENT | J2: ='A3-FinPerf V'!A12 -> Vote 8 - [NAME OF VOTE 8] | K2: ='A3-FinPerf V'!A13 -> Vote 9 - [NAME OF VOTE 9] | L2: ='A3-FinPerf V'!A14 -> Vote 10 - [NAME OF VOTE 10] | M2: ='A3-FinPerf V'!A15 -> Vote 11 - [NAME OF VOTE 11] | N2: ='A3-FinPerf V'!A16 -> Vote 12 - [NAME OF VOTE 12] | O2: ='A3-FinPerf V'!A17 -> Vote 13 - [NAME OF VOTE 13] | P2: ='A3-FinPerf V'!A18 -> Vote 14 - [NAME OF VOTE 14] | Q2: ='A3-FinPerf V'!A19 -> Vote 15 - [NAME OF VOTE 15] | R2: Total
A3: R thousand | B3: 1 | C3: R'000 | D3: R'000 | E3: R'000 | F3: R'000 | G3: R'000 | H3: R'000 | Q3: R'000 | R3: R'000
A4: ='A4-FinPerf RE'!A4 -> Revenue By Source
A5: ='A4-FinPerf RE'!A5 -> Property rates | E5: 37508803.88 | R5: =SUM(C5:Q5) -> 37508803.88
A6: ='A4-FinPerf RE'!A6 -> Service charges - electricity revenue | G6: 61224400 | R6: =SUM(C6:Q6) -> 61224400
A7: ='A4-FinPerf RE'!A7 -> Service charges - water revenue | R7: 0
A8: ='A4-FinPerf RE'!A8 -> Service charges - sanitation revenue | I8: 4462865.936 | R8: 4462865.936
A9: ='A4-FinPerf RE'!A9 -> Service charges - refuse revenue | R9: 0
A11: ='A4-FinPerf RE'!A11 -> Rental of facilities and equipment | H11: 163294.6381 | R11: 163294.6381
A12: ='A4-FinPerf RE'!A12 -> Interest earned - external investments | E12: 3684777.28 | R12: 3684777.28
A13: ='A4-FinPerf RE'!A13 -> Interest earned - outstanding debtors | E13: 7462684.733 | R13: 7462684.733
A14: ='A4-FinPerf RE'!A14 -> Dividends received | R14: 0
A15: ='A4-FinPerf RE'!A15 -> Fines, penalties and forfeits | I15: 101269.728 | R15: 101269.728
A16: ='A4-FinPerf RE'!A16 -> Licences and permits | I16: 3345216 | R16: 3345216
A17: ='A4-FinPerf RE'!A17 -> Agency services | R17: 0
A18: ='A4-FinPerf RE'!A19 -> Other revenue | I18: 3395926.026 | R18: 3395926.026
A19: ='A4-FinPerf RE'!A18 -> Transfers and subsidies | C19: 1317000 | E19: 147657000 | G19: 33443000 | R19: 182417000
A20: ='A4-FinPerf RE'!A20 -> Gains | R20: 0
A21: ='A4-FinPerf RE'!A21 -> Total Revenue (excluding capital transfers and contributions) | C21: =SUM(C5:C9)+SUM(C11:C20) -> 1317000 | D21: =SUM(D5:D9)+SUM(D11:D20) -> 0 | E21: 196313265.9 | F21: 0 | G21: 94667400 | H21: 163294.6381 | I21: 11305277.69 | J21: 0 | K21: 0 | L21: 0 | M21: 0 | N21: 0 | O21: 0 | P21: 0 | Q21: 0 | R21: =SUM(R5:R9)+SUM(R11:R20) -> 303766238.2
A23: ='A4-FinPerf RE'!A23 -> Expenditure By Type
A24: ='A4-FinPerf RE'!A24 -> Employee related costs | C24: 7713181.256 | D24: 4368628.361 | E24: 13574860.92 | F24: 18199610.26 | G24: 16043788.5 | H24: 5434651.627 | I24: 28688319.17 | R24: =SUM(C24:Q24) -> 94023040.09
A25: ='A4-FinPerf RE'!A25 -> Remuneration of councillors | C25: 14533209.48 | R25: =SUM(C25:Q25) -> 14533209.48
A26: ='A4-FinPerf RE'!A26 -> Debt impairment | E26: 13320907.64 | R26: 13320907.64
A27: ='A4-FinPerf RE'!A27 -> Depreciation & asset impairment | E27: 52000000 | R27: 52000000
A28: ='A4-FinPerf RE'!A28 -> Finance charges | E28: 365000 | R28: 365000
A29: ='A4-FinPerf RE'!A29 -> Bulk purchases | G29: 42224000 | R29: 42224000
A30: ='A4-FinPerf RE'!A30 -> Other materials | E30: 577691.52 | F30: 10000 | G30: 410000 | I30: 337655.76 | R30: 1335347.28
A31: ='A4-FinPerf RE'!A31 -> Contracted services | C31: 6569542.88 | D31: 6536027.72 | E31: 9773337.28 | F31: 1599621.12 | G31: 5670356.04 | H31: 4285769 | I31: 1920273.76 | R31: 36354927.8
A32: ='A4-FinPerf RE'!A32 -> Transfers and subsidies | R32: 0
A33: ='A4-FinPerf RE'!A33 -> Other expenditure | C33: 45945502.78 | R33: 45945502.78
A34: ='A4-FinPerf RE'!A34 -> Losses | R34: 0
A35: Total Expenditure | C35: =SUM(C24:C34) -> 74761436.39 | D35: 10904656.08 | E35: 89611797.36 | F35: 19809231.38 | G35: 64348144.54 | H35: 9720420.627 | I35: 30946248.69 | J35: 0 | K35: 0 | L35: 0 | M35: 0 | N35: 0 | O35: 0 | P35: 0 | Q35: 0 | R35: 300101935.1
A37: ='A4-FinPerf RE'!A37 -> Surplus/(Deficit) | C37: =C21-C35 -> -73444436.39 | D37: -10904656.08 | E37: 106701468.5 | F37: -19809231.38 | G37: 30319255.46 | H37: -9557125.989 | I37: =I21-I35 -> -19640971 | J37: 0 | K37: 0 | L37: 0 | M37: 0 | N37: 0 | O37: 0 | P37: 0 | Q37: 0 | R37: =R21-R35 -> 3664303.154
A38: ='A4-FinPerf RE'!A38 -> Transfers and subsidies - capital (monetary allocations) (National / Provincial and District) | R38: =SUM(C38:Q38) -> 0
A39: ='A4-FinPerf RE'!A39 -> Transfers and subsidies - capital (monetary allocations) (National / Provincial Departmental Agencies, Households, Non-profit Institutions, Private Enterprises, Public Corporatons, Higher Educational Institutions) | R39: =SUM(C39:Q39) -> 0
A40: ='A4-FinPerf RE'!A40 -> Transfers and subsidies - capital (in-kind - all) | R40: =SUM(C40:Q40) -> 0
A41: ='A4-FinPerf RE'!A41 -> Surplus/(Deficit) after capital transfers & contributions | C41: =SUM(C37:C40) -> -73444436.39 | D41: -10904656.08 | E41: 106701468.5 | F41: -19809231.38 | G41: 30319255.46 | H41: -9557125.989 | I41: -19640971 | J41: 0 | K41: 0 | L41: 0 | M41: 0 | N41: 0 | O41: 0 | P41: 0 | Q41: =SUM(Q37:Q40) -> 0 | R41: =SUM(R37:R40) -> 3664303.154
A42: =head27a -> References
A43: 1. Departmental columns to be based on municipal organisation structure
A44: check balance | R44: ='A4-FinPerf RE'!J41-'SA2'!R41 -> 11453841.48

Sheet SA3
A1: =muni&" - "&TableA3 -> LIM471 Ephraim Mogale - Supporting Table SA3 Supportinging detail to 'Budgeted Financial Position'
A2: =desc -> Description | B2: =head27 -> Ref | C2: =head1b -> 2016/17 | D2: =head1A -> 2017/18 | E2: =Head1 -> 2018/19 | F2: =Head2 -> Current Year 2019/20 | J2: =Head3 -> 2020/21 Medium Term Revenue & Expenditure Framework
C3: =Head5 -> Audited Outcome | D3: =Head5 -> Audited Outcome | E3: =Head5 -> Audited Outcome | F3: =Head6 -> Original Budget | G3: =Head7 -> Adjusted Budget | H3: =Head8 -> Full Year Forecast | I3: =Head5b -> Pre-audit outcome | J3: =Head9 -> Budget Year 2020/21 | K3: =Head10 -> Budget Year +1 2021/22 | L3: =Head11 -> Budget Year +2 2022/23
A4: R thousand
A5: ASSETS
A11: ='A6-FinPos'!A8 -> Consumer debtors
A12: =A11 -> Consumer debtors
A13: Less: Provision for debt impairment
A14: ="Total "&A11 -> Total Consumer debtors | B14: 2 | C14: =SUM(C12:C13) -> 0 | D14: =SUM(D12:D13) -> 0 | E14: 0 | F14: =SUM(F12:F13) -> 0 | G14: 0 | H14: 0 | I14: 0 | J14: 0 | K14: 0 | L14: 0
A16: Debt impairment provision
A17: Balance at the beginning of the year
A18: Contributions to the provision
A19: Bad debts written off
A20: Balance at end of year | C20: =SUM(C17:C19) -> 0 | D20: =SUM(D17:D19) -> 0 | E20: 0 | F20: 0 | G20: 0 | H20: 0 | I20: 0 | J20: 0 | K20: 0 | L20: 0
A22: ='A6-FinPos'!A19&" (PPE)" -> Property, plant and equipment (PPE)
A23: PPE at cost/valuation (excl. finance leases)
A24: Leases recognised as PPE | B24: 3
A25: Less: Accumulated depreciation
A26: ="Total "&A22 -> Total Property, plant and equipment (PPE) | B26: 2 | C26: =SUM(C23:C24)-C25 -> 0 | D26: =SUM(D23:D24)-D25 -> 0 | E26: 0 | F26: 0 | G26: 0 | H26: 0 | I26: 0 | J26: 0 | K26: 0 | L26: 0
A28: LIABILITIES
A29: ='A6-FinPos'!A28&" - "&'A6-FinPos'!A30 -> Current liabilities - Borrowing
A30: Short term loans (other than bank overdraft)
A31: Current portion of long-term liabilities
A32: ="Total "&A29 -> Total Current liabilities - Borrowing | C32: =SUM(C30:C31) -> 0 | D32: =SUM(D30:D31) -> 0 | E32: 0 | F32: 0 | G32: 0 | H32: 0 | I32: 0 | J32: 0 | K32: 0 | L32: 0
A34: ='A6-FinPos'!A32 -> Trade and other payables
A35: Trade Payables | B35: 5
A36: Other creditors
A37: Unspent conditional transfers
A38: VAT
A39: ="Total "&A34 -> Total Trade and other payables | B39: 2 | C39: =SUM(C35:C38) -> 0 | D39: 0 | E39: 0 | F39: 0 | G39: 0 | H39: 0 | I39: 0 | J39: 0 | K39: 0 | L39: =SUM(L35:L38) -> 0
A41: ='A6-FinPos'!A36&" - "&'A6-FinPos'!A37 -> Non current liabilities - Borrowing
A42: Borrowing | B42: 4
A43: Finance leases (including PPP asset element)
A44: ="Total "&A41 -> Total Non current liabilities - Borrowing | C44: =SUM(C42:C43) -> 0 | D44: =SUM(D42:D43) -> 0 | E44: 0 | F44: 0 | G44: 0 | H44: 0 | I44: 0 | J44: 0 | K44: 0 | L44: 0
A46: ='A6-FinPos'!A38&" - non-current" -> Provisions - non-current
A47: Retirement benefits
A49: Refuse landfill site rehabilitation
A50: Other
A51: ="Total "&A46 -> Total Provisions - non-current | C51: =+C47+C49+C50 -> 0 | D51: 0 | E51: 0 | F51: 0 | G51: 0 | H51: 0 | I51: =+I47+I49+I50 -> 0 | J51: =+J47+J49+J50 -> 0 | K51: 0 | L51: 0
A53: CHANGES IN NET ASSETS
A54: ='A6-FinPos'!A45 -> Accumulated Surplus/(Deficit)
A55: =A54&" - opening balance" -> Accumulated Surplus/(Deficit) - opening balance
A56: GRAP adjustments
A57: Restated balance | C57: =SUM(C55:C56) -> 0 | D57: =SUM(D55:D56) -> 0 | E57: =SUM(E55:E56) -> 0 | F57: =SUM(F55:F56) -> 0 | G57: 0 | H57: 0 | I57: 0 | J57: 0 | K57: 0 | L57: 0
A58: ='A4-FinPerf RE'!A37 -> Surplus/(Deficit) | C58: ='A4-FinPerf RE'!C45 -> 37428908.6 | D58: ='A4-FinPerf RE'!D45 -> -65753945.47 | E58: ='A4-FinPerf RE'!E45 -> -1299834.433 | F58: ='A4-FinPerf RE'!F45 -> 3664303.154 | G58: ='A4-FinPerf RE'!G45 -> -14621776.74 | H58: ='A4-FinPerf RE'!H45 -> -14621776.74 | I58: ='A4-FinPerf RE'!I45 -> -14621776.74 | J58: ='A4-FinPerf RE'!J45 -> 15118144.64 | K58: ='A4-FinPerf RE'!K45 -> 15843866.89 | L58: ='A4-FinPerf RE'!L45 -> 15593285.01
A60: Transfers to/from Reserves
A61: Depreciation offsets
A62: Other adjustments
A63: Accumulated Surplus/(Deficit) | B63: 1 | C63: =SUM(C57:C62) -> 37428908.6 | D63: =SUM(D57:D62) -> -65753945.47 | E63: =SUM(E57:E62) -> -1299834.433 | F63: 3664303.154 | G63: -14621776.74 | H63: -14621776.74 | I63: -14621776.74 | J63: 15118144.64 | K63: 15843866.89 | L63: 15593285.01
A64: Reserves
A65: Housing Development Fund
A66: Capital replacement
A67: Self-insurance
A68: Other reserves
A69: Revaluation
A70: Total Reserves | B70: 2 | C70: =SUM(C65:C69) -> 0 | D70: 0 | E70: 0 | F70: 0 | G70: 0 | H70: 0 | I70: 0 | J70: 0 | K70: 0 | L70: 0
A71: ='A6-FinPos'!A48 -> TOTAL COMMUNITY WEALTH/EQUITY | B71: 2 | C71: =C63+C70 -> 37428908.6 | D71: -65753945.47 | E71: -1299834.433 | F71: 3664303.154 | G71: -14621776.74 | H71: -14621776.74 | I71: -14621776.74 | J71: 15118144.64 | K71: 15843866.89 | L71: 15593285.01
A77: =head27a -> References
A78: ="1. Must reconcile with "&'Template names'!F103 -> 1. Must reconcile with Table A4 Budgeted Financial Performance (revenue and expenditure)
A79: ="2. Must reconcile with "&'Template names'!F105 -> 2. Must reconcile with Table A6 Budgeted Financial Position
A80: 3. Leases treated as assets to be depreciated as the same as purchased/constructed assets. Includes PPP asset element accounted for as finance leases
A81: 4. Borrowing must reconcile to Table A17
A82: 5. Trade Payable should only include Trade Payables from Exchance Transactions ("True Creditors")
A83: check | C83: =C71-'A6-FinPos'!C48 -> -971853596.4 | D83: =D71-'A6-FinPos'!D48 -> -1023521744 | E83: =E71-'A6-FinPos'!E48 -> -1019679238 | F83: =F71-'A6-FinPos'!F48 -> -1065634071 | G83: =G71-'A6-FinPos'!G48 -> -81610812.74 | H83: =H71-'A6-FinPos'!H48 -> -81610812.74 | I83: =I71-'A6-FinPos'!I48 -> -81610812.74 | J83: =J71-'A6-FinPos'!J48 -> -51870891.36 | K83: =K71-'A6-FinPos'!K48 -> -51145169.11 | L83: =L71-'A6-FinPos'!L48 -> -51395750.99
C84: =TREND(D84:H84) -> 0 | D84: =TREND(E84:H84) -> 0 | E84: =E74 -> 0 | F84: =H74 -> 0 | G84: =J74 -> 0 | H84: =K74 -> 0 | I84: =L74 -> 0

Sheet SA4
A1: =muni&" - "&TableA4 -> LIM471 Ephraim Mogale - Supporting Table SA4 Reconciliation of IDP strategic objectives and budget (revenue)
A2: Strategic Objective | B2: Goal | C2: Goal Code | D2: =head27 -> Ref | E2: =head1b -> 2016/17 | F2: =head1A -> 2017/18 | G2: =Head1 -> 2018/19 | H2: =Head2 -> Current Year 2019/20 | K2: =Head3 -> 2020/21 Medium Term Revenue & Expenditure Framework
A3: R thousand | E3: =Head5 -> Audited Outcome | F3: =Head5 -> Audited Outcome | G3: =Head5 -> Audited Outcome | H3: =Head6 -> Original Budget | I3: =Head7 -> Adjusted Budget | J3: =Head8 -> Full Year Forecast | K3: =Head9 -> Budget Year 2020/21 | L3: =Head10 -> Budget Year +1 2021/22 | M3: =Head11 -> Budget Year +2 2022/23
A4: - Differentiate approach to municipal financing, planning and support | B4: - Plan for the future. Develop and retain skilled and capacitated workforce | E4: 0 | F4: 0
A5: - Improved access to basic services. Support for human settlements | B5: - Improve Community well-being through accelerated service delivery. House the nation and build integrated settlement | E5: 100685648 | F5: 108465007.2 | G5: 97949282.99 | H5: 97949282.99 | I5: 97949282.99 | J5: 104775617.2 | K5: 110344578.5 | L5: 116874545.8
A6: - Implementation of community work programme | B6: - Grow the economy and provide livelihood support. Develop partnerships
A7: - Improve municipal and financial and administrative capability | B7: - Become financially viable. Develop ,retain skilled and capacitated workforce | E7: 157664570 | F7: 179705915.8 | G7: 178288379.3 | H7: 178288379.3 | I7: 178288379.3 | J7: 196467051.5 | K7: 210034794.2 | L7: 224667867.1
A8: - Refine ward committee model to deepen democracy. Single coordination window | B8: - Effective and efficient community involvement. Improve inter-governmental function | E8: 1708836 | F8: 2160518.51 | G8: 2515702.2 | H8: 2515702.2 | I8: 2515702.2 | J8: 2286634.922 | K8: 1021995.208 | L8: 1077182.949
A9: - Actions supportive of the human settlement outcomes | B9: - To promote integrated human settlement and agrarian reform | E9: 234815 | F9: 350159.16 | G9: 225223.04 | H9: 225223.04 | I9: 225223.04 | J9: 236934.6381 | K9: 249729.1085 | L9: 263214.4804
A21: Allocations to other priorities | D21: 2
A22: ='A4-FinPerf RE'!A21 -> Total Revenue (excluding capital transfers and contributions) | D22: 1 | E22: =SUM(E4:E21) -> 260293869 | F22: 290681600.6 | G22: 278978587.6 | H22: 278978587.6 | I22: 278978587.6 | J22: 303766238.2 | K22: 321651097.1 | L22: 342882810.3 | M22: 0
A23: =head27a -> References
A24: ="1. Total revenue must reconcile to "&'Template names'!F103 -> 1. Total revenue must reconcile to Table A4 Budgeted Financial Performance (revenue and expenditure)
A25: 2. Balance of allocations not directly linked to an IDP strategic objective
